Workbook

Sheet MENU
L4: =+TABLAS!A77 -> 3-1-2-5-4-10-11-9-8-7-6-T
L5: =+TABLAS!A109 -> 3-1-2-4-5-9-10-7-8-11-6-T
L6: =+TABLAS!A146 -> 1-11-5-2-6-7-8-9-10-4-3-T
L7: =+TABLAS!A182 -> 1-11-5-2-6-7-8-9-10-4-3-T
L8: =+TABLAS!A217 -> 1-11-5-2-6-7-8-9-10-4-3-T
L9: =+TABLAS!A251 -> 3-1-2-4-5-11-10-9-8-7-6-T
L10: =+GETPIVOTDATA("Suma de total",TABLAS!$A$266) -> 0
L11: =+TABLAS!A303 -> 1-2-3-4-5-9-11-8-6-7-10-T
H27: CONTROL DE MESES
H29: =+TABLAS!A146 -> 1-11-5-2-6-7-8-9-10-4-3-T

Sheet TABLAS (hidden)
C8: Valores | I8: Tabla | J8: =IF(I9="(Todas)","CUSCO ","") -> 
C9: RED | D9: 03 - LA CONVENCION | I9: =IF(MID(D9,1,2)="99","(All)",MID(D9,1,2)) -> 03 | J9: =IF(I9="(All)"," ",I9) -> 03 | M9: =LEN(MID(D9,5,90)) -> 14 | O9: =IF(MID(D9,6,5)="(All)","",D9) -> 03 - LA CONVENCION
C10: Micro RED | D10: 0399 - (All) | I10: =IF(MID(D10,3,2)="99","(All)",MID(D10,1,4)) -> (All) | M10: =LEN(MID(D10,7,90)) -> 6 | O10: =IF(MID(D10,8,5)="(All)","",D10) -> 
C11: Establecimiento | D11: 999999999 - (All) | I11: =IF(OR(MID(D11,1,9)="999999999",MID(D11,1,9)="000000000"),"(All)",MID(D11,1,9)) -> (All) | M11: =LEN(MID(D11,12,90)) -> 6 | O11: =IF(MID(D11,13,5)="(All)","",D11) ->  | Q11: =MID(O11,1,9) -> 
C12: Provincia | D12: 00 - (All) | I12: =IF(MID(D12,1,2)="00","(All)",MID(D12,1,2)) -> (All) | M12: =LEN(MID(D12,6,90)) -> 5 | O12: =IF(MID(D12,6,5)="(All)","",D12) -> 
C13: Distrito | D13: 0000 - (All) | I13: =IF(OR(MID(D13,1,4)="0000",MID(D13,3,2)="00"),"(All)",MID(D13,1,4)) -> (All) | M13: =LEN(MID(D13,8,90)) -> 5 | O13: =IF(MID(D13,8,5)="(All)","",D13) -> 
C14: Ejecutira | D14: 99 - (ALL) | I14: =IF(MID(D14,1,2)="99","(All)",MID(D14,1,2)) -> (All) | M14: =LEN(MID(D14,5,90)) -> 6 | O14: =IF(MID(D14,6,5)="(All)","",D14) -> 
C16: Año | D16: 2024 | I16: =+D16 -> 2024 | J16: =IF(I16="(Todas)"," ",I16) -> 2024
B20: 1 | C20: 1 | D20: 1 | E20: 1 | F20: 1 | G20: 1 | H20: 1 | I20: 1 | J20: 1 | K20: 1 | L20: 1 | M20: 0 | N20: =SUM(B20:M20) -> 11
B21: =IF(B20=1,"ENERO","") -> ENERO | C21: =IF(C20=1,"FEBRERO","") -> FEBRERO | D21: =IF(D20=1,"MARZO","") -> MARZO | E21: =IF(E20=1,"ABRIL","") -> ABRIL | F21: =IF(F20=1,"MAYO","") -> MAYO | G21: =IF(G20=1,"JUNIO","") -> JUNIO | H21: =IF(H20=1,"JULIO","") -> JULIO | I21: =IF(I20=1,"AGOSTO","") -> AGOSTO | J21: =IF(J20=1,"SETIEMBRE","") -> SETIEMBRE | K21: =IF(K20=1,"OCTUBRE","") -> OCTUBRE | L21: =IF(L20=1,"NOVIEMBRE","") -> NOVIEMBRE | M21: =IF(M20=1,"DICIEMBRE","") ->  | N21: =IF(B20=1,B21,IF(C20=1,C21,IF(D20=1,D21,IF(E20=1,E21,IF(F20=1,F21,IF(G20=1,G21,IF(H20=1,H21,IF(I20=1,I21,IF(J20=1,J21,IF(K20=1,K21,IF(L20=1,L21,IF(M20=1,M21,"")))))))))))) -> ENERO
N22: =IF(N20=1,N21,"") -> 
B23: 10 | C23: 4 | D23: 6 | E23: 8 | F23: 10 | G23: 12 | H23: 14 | I23: 16 | J23: 18 | K23: 20 | L23: 22 | N23: =MIN(B23:M23) -> 4 | O23: =MAX(B23:M23) -> 22 | P23: =MAX(C23:N23) -> 22
B24: =IF(B23=2,"ENE","") ->  | C24: =IF(C23=4,"FEB","") -> FEB | D24: =IF(D23=6,"MAR","") -> MAR | E24: =IF(E23=8,"ABR","") -> ABR | F24: =IF(F23=10,"MAY","") -> MAY | G24: =IF(G23=12,"JUN","") -> JUN | H24: =IF(H23=14,"JUL","") -> JUL | I24: =IF(I23=16,"AGO","") -> AGO | J24: =IF(J23=18,"SET","") -> SET | K24: =IF(K23=20,"OCT","") -> OCT | L24: =IF(L23=22,"NOV","") -> NOV | M24: =IF(M23=24,"DIC","") ->  | N24: =IF(N23=B23,B24,IF(N23=C23,C24,IF(N23=D23,D24,IF(N23=E23,E24,IF(N23=F23,F24,IF(N23=G23,G24,IF(N23=H23,#REF!,IF(N23=I23,I24,IF(N23=J23,J24,IF(N23=K23,K24,IF(N23=L23,L24,IF(N23=M23,M24,"")))))))))))) -> FEB | O24: =IF(O23=C23,C24,IF(O23=D23,D24,IF(O23=E23,E24,IF(O23=F23,F24,IF(O23=G23,G24,IF(O23=H23,H24,IF(O23=I23,I24,IF(O23=J23,J24,IF(O23=K23,K24,IF(O23=L23,L24,IF(O23=M23,M24,""))))))))))) -> NOV | P24: =IF(P23=D23,D24,IF(P23=E23,E24,IF(P23=F23,F24,IF(P23=G23,G24,IF(P23=H23,H24,IF(P23=I23,I24,IF(P23=J23,J24,IF(P23=K23,K24,IF(P23=L23,L24,IF(P23=M23,M24,IF(P23=N23,N24,""))))))))))) -> NOV
N25: =CONCATENATE(N24," - ",O24) -> FEB - NOV
N26: =IF(N23=O23,N22,N25) -> FEB - NOV
A50: TUBERCU_ATC_ETAPAS
A51: ANNO | B51: 2024
A52: cod_red | B52: 03
A53: codmic | B53: (Todas)
A54: cod_prov | B54: (Todas)
A55: coddist | B55: (Todas)
A56: cod_estab | B56: (Todas)
A57: cod_eje | B57: (Todas)
A59: Suma de ATC | B59: Etiquetas de columna
A60: Etiquetas de fila | B60: 00-11A | C60: 12-17A | D60: 18-29A | E60: 30-59A | F60: 80-+A
A61: 3 | B61: 12746 | C61: 3704 | D61: 11953 | E61: 26422 | F61: 11163
A62: 1 | B62: 12851 | C62: 2997 | D62: 10560 | E62: 24849 | F62: 10688
A63: 2 | B63: 11666 | C63: 3067 | D63: 11266 | E63: 24248 | F63: 10834
A64: 5 | B64: 19723 | C64: 10353 | D64: 13300 | E64: 28030 | F64: 11347
A65: 4 | B65: 21342 | C65: 10267 | D65: 13067 | E65: 28887 | F65: 13029
A66: 10 | B66: 18160 | C66: 4837 | D66: 10509 | E66: 24564 | F66: 10831
A67: 11 | B67: 17209 | C67: 7817 | D67: 10593 | E67: 25351 | F67: 11269
A68: 9 | B68: 23230 | C68: 5381 | D68: 10559 | E68: 23210 | F68: 10744
A69: 8 | B69: 13362 | C69: 4777 | D69: 10363 | E69: 23408 | F69: 10825
A70: 7 | B70: 15799 | C70: 5568 | D70: 11832 | E70: 27999 | F70: 11630
A71: 6 | B71: 18487 | C71: 10821 | D71: 12642 | E71: 29411 | F71: 11477
A72: T | B72: 184575 | C72: 69589 | D72: 126644 | E72: 286379 | F72: 123837
A75: TOTAL
A76: =COUNT(A61:A72) -> 11 | B76: =SUM(B57:B73) -> 369150
A77: =CONCATENATE(A61,"-",A62,"-",A63,"-",A64,"-",A65,"-",A66,"-",A67,"-",A68,"-",A69,"-",A70,"-",A71,"-",A72) -> 3-1-2-5-4-10-11-9-8-7-6-T
B78: BAS001
B79: =IF(B78=B56,"SI","NO") -> NO
A82: TUBERCU_ATC_MAY15
A83: ANNO | B83: 2024
A84: cod_red | B84: 03
A85: codmic | B85: (Todas)
A86: cod_prov | B86: (Todas)
A87: coddist | B87: (Todas)
A88: cod_estab | B88: (Todas)
A89: cod_eje | B89: (Todas)
A91: Suma de ATC | B91: Etiquetas de columna
A92: Etiquetas de fila | B92: 0 | C92: 15-+A
A93: 3 | B93: 14441 | C93: 51547
A94: 1 | B94: 14123 | C94: 47822
A95: 2 | B95: 12910 | C95: 48171
A96: 4 | B96: 27132 | C96: 59460
A97: 5 | B97: 24986 | C97: 57767
A98: 9 | B98: 25780 | C98: 47344
A99: 10 | B99: 20366 | C99: 48535
A100: 7 | B100: 18222 | C100: 54606
A101: 8 | B101: 15424 | C101: 47311
A102: 11 | B102: 20805 | C102: 51434
A103: 6 | B103: 24044 | C103: 58794
A104: T | B104: 218233 | C104: 572791
A107: TOTAL
A108: =COUNT(A93:A104) -> 11 | B108: =SUM(B89:B105) -> 436466
A109: =CONCATENATE(A93,"-",A94,"-",A95,"-",A96,"-",A97,"-",A98,"-",A99,"-",A100,"-",A101,"-",A102,"-",A103,"-",A104) -> 3-1-2-4-5-9-10-7-8-11-6-T
B110: BAS001
B111: =IF(B110=B88,"SI","NO") -> NO
A115: TUBERCU_01
A116: anno | B116: 2024
A117: cod_red | B117: 03
A118: codmic | B118: (Todas)
A119: cod_prov | B119: (Todas)
A120: coddist | B120: (Todas)
A121: cod_estab | B121: (Todas)
A122: cod_eje | B122: (Todas)
B124: Valores
A125: Etiquetas de fila | B125: BAS001 | C125: BAS002 | D125: BAS003 | E125: BAS004 | F125: BAS005 | G125: BAS006 | H125: BAS007 | I125: BAS008 | J125: BAS009 | K125: BAS010 | L125: BAS011 | M125: BAS012 | N125: BAS013 | O125: BAS014 | P125: BAS015 | Q125: BAS016 | R125: BAS017 | S125: BAS018 | T125: BAS019 | U125: BAS020 | V125: BAS021 | W125: BAS022 | X125: BAS023 | Y125: BAS024 | Z125: BAS025 | AA125: BAS026 | AB125: BAS027 | AC125: BAS028 | AD125: BAS029 | AE125: BAS030 | AF125: BAS031 | AG125: BAS032 | AH125: BAS033 | AI125: BAS034 | AJ125: BAS035 | AK125: BAS036 | AL125: BAS037 | AM125: BAS038 | AN125: BAS039 | AO125: BAS040 | AP125: BAS041 | AQ125: BAS042 | AR125: BAS043 | AS125: BAS044 | AT125: BAS045 | AU125: BAS046 | AV125: BAS047 | AW125: BAS048 | AX125: BAS049 | AY125: BAS050 | AZ125: BAS051 | BA125: BAS052 | BB125: BAS053 | BC125: BAS054 | BD125: BAS055 | BE125: BAS056 | BF125: BAS057 | BG125: BAS058 | BH125: BAS059 | BI125: BAS060 | BJ125: BAS061 | BK125: BAS062 | BL125: BAS063 | BM125: BAS064 | BN125: BAS065 | BO125: BAS066 | BP125: BAS067 | BQ125: BAS068 | BR125: BAS069 | BS125: BAS070 | BT125: BAS071 | BU125: BAS072 | BV125: BAS073 | BW125: BAS074 | BX125: BAS075 | BY125: BAS076 | BZ125: BAS077 | CA125: BAS078 | CB125: BAS079 | CC125: BAS080 | CD125: BAS081 | CE125: BAS082 | CF125: BAS083 | CG125: BAS084 | CH125: BAS085 | CI125: BAS086 | CJ125: BAS087 | CK125: BAS088 | CL125: BAS089 | CM125: BAS090 | CN125: BAS091 | CO125: BAS092 | CP125: BAS093 | CQ125: BAS094 | CR125: BAS095 | CS125: BAS096 | CT125: BAS097 | CU125: BAS098 | CV125: BAS099 | CW125: BAS100 | CX125: BAS101 | CY125: BAS102 | CZ125: BAS103 | DA125: BAS104 | DB125: BAS105 | DC125: BAS106 | DD125: BAS107 | DE125: BAS108 | DF125: BAS109 | DG125: BAS110 | DH125: BAS111 | DI125: BAS112 | DJ125: BAS113 | DK125: BAS114 | DL125: BAS115 | DM125: BAS116 | DN125: BAS117 | DO125: BAS118 | DP125: BAS119 | DQ125: BAS120 | DR125: BAS121 | DS125: BAS122 | DT125: BAS123 | DU125: BAS124 | DV125: BAS125 | DW125: BAS126 | DX125: BAS127 | DY125: BAS128 | DZ125: BAS129 | EA125: BAS130 | EB125: BAS131 | EC125: BAS132 | ED125: BAS133 | EE125: BAS134 | EF125: BAS135 | EG125: BAS136 | EH125: BAS137 | EI125: BAS138 | EJ125: BAS139 | EK125: BAS140 | EL125: BAS141 | EM125: BAS142 | EN125: BAS143 | EO125: BAS144 | EP125: BAS145 | EQ125: BAS146 | ER125: BAS147 | ES125: BAS148 | ET125: BAS149 | EU125: BAS150 | EV125: BAS151 | EW125: BAS152 | EX125: BAS153 | EY125: BAS154 | EZ125: BAS155 | FA125: BAS156 | FB125: BAS157 | FC125: BAS158 | FD125: BAS159 | FE125: BAS160 | FF125: BAS161 | FG125: BAS162 | FH125: BAS163 | FI125: BAS164 | FJ125: BAS165 | FK125: BAS166 | FL125: BAS167 | FM125: BAS168 | FN125: BAS169 | FO125: BAS170 | FP125: BAS171 | FQ125: BAS172 | FR125: BAS173 | FS125: BAS174 | FT125: BAS175 | FU125: BAS176 | FV125: BAS177 | FW125: BAS178 | FX125: BAS179 | FY125: BAS180 | FZ125: BAS181 | GA125: BAS182 | GB125: BAS183 | GC125: BAS184 | GD125: BAS185 | GE125: BAS186 | GF125: BAS187 | GG125: BAS188 | GH125: BAS189 | GI125: BAS190 | GJ125: BAS191 | GK125: BAS192 | GL125: BAS193 | GM125: BAS194 | GN125: BAS195 | GO125: BAS196 | GP125: BAS197 | GQ125: BAS198 | GR125: BAS199 | GS125: BAS200 | GT125: BAS201 | GU125: BAS202 | GV125: BAS203 | GW125: BAS204 | GX125: BAS205 | GY125: BAS206 | GZ125: BAS207 | HA125: BAS208 | HB125: BAS209 | HC125: BAS210 | HD125: BAS211 | HE125: BAS212 | HF125: BAS213 | HG125: BAS214 | HH125: BAS215 | HI125: BAS216 | HJ125: BAS217 | HK125: BAS218 | HL125: BAS219 | HM125: BAS220 | HN125: BAS221 | HO125: BAS222 | HP125: BAS223 | HQ125: BAS224 | HR125: BAS225 | HS125: BAS226 | HT125: BAS227 | HU125: BAS228 | HV125: BAS229 | HW125: BAS230
A126: 1 | B126: 0 | C126: 0 | D126: 0 | E126: 0 | F126: 0 | G126: 0 | H126: 12 | I126: 19 | J126: 83 | K126: 230 | L126: 177 | M126: 9 | N126: 17 | O126: 71 | P126: 202 | Q126: 162 | R126: 0 | S126: 0 | T126: 0 | U126: 0 | V126: 0 | W126: 0 | X126: 0 | Y126: 1 | Z126: 0 | AA126: 2 | AB126: 0 | AC126: 0 | AD126: 0 | AE126: 0 | AF126: 0 | AG126: 0 | AH126: 0 | AI126: 0 | AJ126: 0 | AK126: 0 | AL126: 0 | AM126: 0 | AN126: 0 | AO126: 0 | AP126: 0 | AQ126: 0 | AR126: 0 | AS126: 0 | AT126: 0 | AU126: 0 | AV126: 0 | AW126: 0 | AX126: 0 | AY126: 0 | AZ126: 0 | BA126: 0 | BB126: 0 | BC126: 0 | BD126: 0 | BE126: 0 | BF126: 0 | BG126: 0 | BH126: 0 | BI126: 0 | BJ126: 0 | BK126: 0 | BL126: 0 | BM126: 0 | BN126: 0 | BO126: 0 | BP126: 0 | BQ126: 0 | BR126: 0 | BS126: 0 | BT126: 0 | BU126: 0 | BV126: 0 | BW126: 0 | BX126: 0 | BY126: 0 | BZ126: 0 | CA126: 0 | CB126: 0 | CC126: 0 | CD126: 0 | CE126: 0 | CF126: 0 | CG126: 0 | CH126: 0 | CI126: 0 | CJ126: 0 | CK126: 0 | CL126: 0 | CM126: 0 | CN126: 0 | CO126: 0 | CP126: 0 | CQ126: 0 | CR126: 0 | CS126: 0 | CT126: 0 | CU126: 0 | CV126: 0 | CW126: 0 | CX126: 0 | CY126: 0 | CZ126: 0 | DA126: 0 | DB126: 0 | DC126: 0 | DD126: 0 | DE126: 0 | DF126: 0 | DG126: 0 | DH126: 0 | DI126: 0 | DJ126: 0 | DK126: 0 | DL126: 0 | DM126: 0 | DN126: 0 | DO126: 0 | DP126: 0 | DQ126: 0 | DR126: 0 | DS126: 2 | DT126: 1 | DU126: 3 | DV126: 1 | DW126: 0 | DX126: 4 | DY126: 1 | DZ126: 7 | EA126: 1 | EB126: 6 | EC126: 0 | ED126: 0 | EE126: 0 | EF126: 0 | EG126: 0 | EH126: 0 | EI126: 0 | EJ126: 0 | EK126: 0 | EL126: 0 | EM126: 0 | EN126: 1 | EO126: 0 | EP126: 0 | EQ126: 0 | ER126: 0 | ES126: 0 | ET126: 0 | EU126: 0 | EV126: 0 | EW126: 0 | EX126: 0 | EY126: 0 | EZ126: 0 | FA126: 0 | FB126: 0 | FC126: 0 | FD126: 0 | FE126: 0 | FF126: 0 | FG126: 0 | FH126: 0 | FI126: 0 | FJ126: 0 | FK126: 0 | FL126: 0 | FM126: 0 | FN126: 0 | FO126: 0 | FP126: 0 | FQ126: 0 | FR126: 0 | FS126: 0 | FT126: 0 | FU126: 0 | FV126: 0 | FW126: 0 | FX126: 0 | FY126: 0 | FZ126: 0 | GA126: 0 | GB126: 0 | GC126: 0 | GD126: 0 | GE126: 0 | GF126: 0 | GG126: 0 | GH126: 0 | GI126: 0 | GJ126: 0 | GK126: 0 | GL126: 0 | GM126: 0 | GN126: 0 | GO126: 0 | GP126: 0 | GQ126: 0 | GR126: 0 | GS126: 0 | GT126: 0 | GU126: 0 | GV126: 0 | GW126: 0 | GX126: 0 | GY126: 0 | GZ126: 0 | HA126: 0 | HB126: 0 | HC126: 0 | HD126: 0 | HE126: 0 | HF126: 0 | HG126: 0 | HH126: 0 | HI126: 0 | HJ126: 0 | HK126: 0 | HL126: 0 | HM126: 0 | HN126: 0 | HO126: 0 | HP126: 0 | HQ126: 1 | HR126: 0 | HS126: 8 | HT126: 17 | HU126: 69 | HV126: 203 | HW126: 142
A127: 11 | B127: 0 | C127: 0 | D127: 0 | E127: 0 | F127: 0 | G127: 0 | H127: 1 | I127: 1 | J127: 5 | K127: 23 | L127: 22 | M127: 1 | N127: 1 | O127: 5 | P127: 21 | Q127: 18 | R127: 0 | S127: 0 | T127: 0 | U127: 0 | V127: 0 | W127: 0 | X127: 0 | Y127: 0 | Z127: 1 | AA127: 0 | AB127: 0 | AC127: 0 | AD127: 0 | AE127: 0 | AF127: 0 | AG127: 0 | AH127: 0 | AI127: 0 | AJ127: 0 | AK127: 0 | AL127: 0 | AM127: 0 | AN127: 0 | AO127: 0 | AP127: 0 | AQ127: 0 | AR127: 0 | AS127: 0 | AT127: 0 | AU127: 0 | AV127: 0 | AW127: 0 | AX127: 0 | AY127: 0 | AZ127: 0 | BA127: 0 | BB127: 0 | BC127: 0 | BD127: 0 | BE127: 0 | BF127: 0 | BG127: 0 | BH127: 0 | BI127: 0 | BJ127: 0 | BK127: 0 | BL127: 0 | BM127: 0 | BN127: 0 | BO127: 0 | BP127: 0 | BQ127: 0 | BR127: 0 | BS127: 0 | BT127: 0 | BU127: 0 | BV127: 0 | BW127: 0 | BX127: 0 | BY127: 0 | BZ127: 0 | CA127: 0 | CB127: 0 | CC127: 0 | CD127: 0 | CE127: 0 | CF127: 0 | CG127: 0 | CH127: 0 | CI127: 0 | CJ127: 0 | CK127: 0 | CL127: 0 | CM127: 0 | CN127: 0 | CO127: 0 | CP127: 0 | CQ127: 0 | CR127: 0 | CS127: 0 | CT127: 0 | CU127: 0 | CV127: 0 | CW127: 0 | CX127: 0 | CY127: 0 | CZ127: 0 | DA127: 0 | DB127: 0 | DC127: 0 | DD127: 0 | DE127: 0 | DF127: 0 | DG127: 0 | DH127: 0 | DI127: 0 | DJ127: 0 | DK127: 0 | DL127: 0 | DM127: 0 | DN127: 0 | DO127: 0 | DP127: 0 | DQ127: 0 | DR127: 0 | DS127: 0 | DT127: 1 | DU127: 0 | DV127: 1 | DW127: 2 | DX127: 0 | DY127: 0 | DZ127: 1 | EA127: 1 | EB127: 1 | EC127: 0 | ED127: 0 | EE127: 0 | EF127: 0 | EG127: 0 | EH127: 0 | EI127: 0 | EJ127: 0 | EK127: 0 | EL127: 0 | EM127: 0 | EN127: 0 | EO127: 0 | EP127: 0 | EQ127: 0 | ER127: 0 | ES127: 0 | ET127: 0 | EU127: 0 | EV127: 0 | EW127: 0 | EX127: 0 | EY127: 0 | EZ127: 0 | FA127: 0 | FB127: 0 | FC127: 0 | FD127: 0 | FE127: 0 | FF127: 0 | FG127: 0 | FH127: 0 | FI127: 0 | FJ127: 0 | FK127: 0 | FL127: 0 | FM127: 0 | FN127: 0 | FO127: 0 | FP127: 0 | FQ127: 0 | FR127: 0 | FS127: 0 | FT127: 0 | FU127: 0 | FV127: 0 | FW127: 0 | FX127: 0 | FY127: 0 | FZ127: 0 | GA127: 0 | GB127: 0 | GC127: 0 | GD127: 0 | GE127: 0 | GF127: 0 | GG127: 0 | GH127: 0 | GI127: 0 | GJ127: 0 | GK127: 0 | GL127: 0 | GM127: 0 | GN127: 1 | GO127: 0 | GP127: 0 | GQ127: 0 | GR127: 0 | GS127: 0 | GT127: 0 | GU127: 0 | GV127: 0 | GW127: 0 | GX127: 0 | GY127: 0 | GZ127: 0 | HA127: 0 | HB127: 0 | HC127: 0 | HD127: 0 | HE127: 0 | HF127: 0 | HG127: 0 | HH127: 0 | HI127: 0 | HJ127: 0 | HK127: 0 | HL127: 0 | HM127: 0 | HN127: 0 | HO127: 0 | HP127: 0 | HQ127: 0 | HR127: 0 | HS127: 1 | HT127: 1 | HU127: 4 | HV127: 22 | HW127: 19
A128: 5 | B128: 0 | C128: 0 | D128: 0 | E128: 0 | F128: 0 | G128: 0 | H128: 32 | I128: 38 | J128: 111 | K128: 270 | L128: 178 | M128: 29 | N128: 32 | O128: 106 | P128: 249 | Q128: 163 | R128: 0 | S128: 0 | T128: 0 | U128: 0 | V128: 0 | W128: 0 | X128: 0 | Y128: 1 | Z128: 4 | AA128: 3 | AB128: 0 | AC128: 0 | AD128: 0 | AE128: 0 | AF128: 0 | AG128: 4 | AH128: 0 | AI128: 0 | AJ128: 0 | AK128: 0 | AL128: 0 | AM128: 0 | AN128: 0 | AO128: 0 | AP128: 0 | AQ128: 0 | AR128: 0 | AS128: 0 | AT128: 0 | AU128: 0 | AV128: 0 | AW128: 0 | AX128: 0 | AY128: 0 | AZ128: 0 | BA128: 0 | BB128: 0 | BC128: 0 | BD128: 0 | BE128: 0 | BF128: 0 | BG128: 0 | BH128: 0 | BI128: 0 | BJ128: 0 | BK128: 0 | BL128: 0 | BM128: 0 | BN128: 0 | BO128: 0 | BP128: 0 | BQ128: 0 | BR128: 0 | BS128: 0 | BT128: 0 | BU128: 0 | BV128: 0 | BW128: 0 | BX128: 0 | BY128: 0 | BZ128: 0 | CA128: 0 | CB128: 0 | CC128: 0 | CD128: 0 | CE128: 0 | CF128: 0 | CG128: 0 | CH128: 0 | CI128: 0 | CJ128: 0 | CK128: 0 | CL128: 0 | CM128: 0 | CN128: 0 | CO128: 0 | CP128: 0 | CQ128: 0 | CR128: 0 | CS128: 0 | CT128: 0 | CU128: 0 | CV128: 0 | CW128: 0 | CX128: 0 | CY128: 0 | CZ128: 0 | DA128: 0 | DB128: 0 | DC128: 0 | DD128: 0 | DE128: 0 | DF128: 0 | DG128: 0 | DH128: 0 | DI128: 0 | DJ128: 0 | DK128: 0 | DL128: 0 | DM128: 0 | DN128: 0 | DO128: 0 | DP128: 0 | DQ128: 0 | DR128: 0 | DS128: 2 | DT128: 0 | DU128: 0 | DV128: 1 | DW128: 0 | DX128: 6 | DY128: 1 | DZ128: 0 | EA128: 2 | EB128: 0 | EC128: 0 | ED128: 0 | EE128: 0 | EF128: 0 | EG128: 0 | EH128: 0 | EI128: 0 | EJ128: 0 | EK128: 0 | EL128: 0 | EM128: 0 | EN128: 1 | EO128: 0 | EP128: 0 | EQ128: 4 | ER128: 0 | ES128: 0 | ET128: 0 | EU128: 0 | EV128: 4 | EW128: 0 | EX128: 0 | EY128: 0 | EZ128: 0 | FA128: 0 | FB128: 0 | FC128: 0 | FD128: 0 | FE128: 0 | FF128: 0 | FG128: 0 | FH128: 0 | FI128: 0 | FJ128: 0 | FK128: 0 | FL128: 0 | FM128: 0 | FN128: 0 | FO128: 0 | FP128: 0 | FQ128: 0 | FR128: 0 | FS128: 0 | FT128: 0 | FU128: 0 | FV128: 0 | FW128: 0 | FX128: 0 | FY128: 0 | FZ128: 0 | GA128: 0 | GB128: 0 | GC128: 0 | GD128: 0 | GE128: 0 | GF128: 0 | GG128: 0 | GH128: 0 | GI128: 0 | GJ128: 0 | GK128: 0 | GL128: 0 | GM128: 0 | GN128: 0 | GO128: 0 | GP128: 0 | GQ128: 0 | GR128: 0 | GS128: 0 | GT128: 0 | GU128: 0 | GV128: 0 | GW128: 0 | GX128: 0 | GY128: 0 | GZ128: 0 | HA128: 0 | HB128: 0 | HC128: 0 | HD128: 0 | HE128: 4 | HF128: 0 | HG128: 0 | HH128: 0 | HI128: 0 | HJ128: 0 | HK128: 0 | HL128: 0 | HM128: 0 | HN128: 0 | HO128: 0 | HP128: 0 | HQ128: 3 | HR128: 2 | HS128: 21 | HT128: 25 | HU128: 94 | HV128: 239 | HW128: 155
A129: 2 | B129: 0 | C129: 0 | D129: 0 | E129: 0 | F129: 0 | G129: 0 | H129: 9 | I129: 30 | J129: 81 | K129: 231 | L129: 138 | M129: 9 | N129: 27 | O129: 79 | P129: 222 | Q129: 129 | R129: 0 | S129: 0 | T129: 0 | U129: 0 | V129: 0 | W129: 0 | X129: 1 | Y129: 3 | Z129: 3 | AA129: 1 | AB129: 0 | AC129: 0 | AD129: 0 | AE129: 0 | AF129: 0 | AG129: 0 | AH129: 0 | AI129: 0 | AJ129: 0 | AK129: 0 | AL129: 0 | AM129: 0 | AN129: 0 | AO129: 0 | AP129: 0 | AQ129: 0 | AR129: 0 | AS129: 0 | AT129: 0 | AU129: 0 | AV129: 0 | AW129: 0 | AX129: 0 | AY129: 0 | AZ129: 0 | BA129: 0 | BB129: 0 | BC129: 0 | BD129: 0 | BE129: 0 | BF129: 0 | BG129: 0 | BH129: 0 | BI129: 0 | BJ129: 0 | BK129: 0 | BL129: 0 | BM129: 0 | BN129: 0 | BO129: 0 | BP129: 0 | BQ129: 0 | BR129: 0 | BS129: 0 | BT129: 0 | BU129: 0 | BV129: 0 | BW129: 0 | BX129: 0 | BY129: 0 | BZ129: 0 | CA129: 0 | CB129: 0 | CC129: 0 | CD129: 0 | CE129: 0 | CF129: 0 | CG129: 0 | CH129: 0 | CI129: 0 | CJ129: 0 | CK129: 0 | CL129: 0 | CM129: 0 | CN129: 0 | CO129: 0 | CP129: 0 | CQ129: 0 | CR129: 0 | CS129: 0 | CT129: 0 | CU129: 0 | CV129: 0 | CW129: 0 | CX129: 0 | CY129: 0 | CZ129: 0 | DA129: 0 | DB129: 0 | DC129: 0 | DD129: 0 | DE129: 0 | DF129: 0 | DG129: 0 | DH129: 0 | DI129: 0 | DJ129: 0 | DK129: 0 | DL129: 0 | DM129: 0 | DN129: 0 | DO129: 0 | DP129: 0 | DQ129: 0 | DR129: 0 | DS129: 1 | DT129: 4 | DU129: 0 | DV129: 6 | DW129: 3 | DX129: 0 | DY129: 1 | DZ129: 1 | EA129: 7 | EB129: 3 | EC129: 0 | ED129: 0 | EE129: 0 | EF129: 1 | EG129: 1 | EH129: 0 | EI129: 0 | EJ129: 0 | EK129: 0 | EL129: 0 | EM129: 0 | EN129: 0 | EO129: 0 | EP129: 0 | EQ129: 0 | ER129: 0 | ES129: 0 | ET129: 0 | EU129: 0 | EV129: 0 | EW129: 0 | EX129: 0 | EY129: 0 | EZ129: 0 | FA129: 0 | FB129: 0 | FC129: 0 | FD129: 0 | FE129: 0 | FF129: 0 | FG129: 0 | FH129: 0 | FI129: 0 | FJ129: 0 | FK129: 0 | FL129: 0 | FM129: 0 | FN129: 0 | FO129: 0 | FP129: 0 | FQ129: 0 | FR129: 0 | FS129: 0 | FT129: 0 | FU129: 0 | FV129: 0 | FW129: 0 | FX129: 0 | FY129: 0 | FZ129: 0 | GA129: 0 | GB129: 0 | GC129: 0 | GD129: 0 | GE129: 0 | GF129: 0 | GG129: 0 | GH129: 0 | GI129: 0 | GJ129: 0 | GK129: 0 | GL129: 0 | GM129: 0 | GN129: 0 | GO129: 0 | GP129: 0 | GQ129: 0 | GR129: 0 | GS129: 0 | GT129: 0 | GU129: 0 | GV129: 0 | GW129: 0 | GX129: 0 | GY129: 0 | GZ129: 0 | HA129: 0 | HB129: 0 | HC129: 0 | HD129: 0 | HE129: 0 | HF129: 0 | HG129: 0 | HH129: 0 | HI129: 0 | HJ129: 0 | HK129: 0 | HL129: 0 | HM129: 0 | HN129: 0 | HO129: 0 | HP129: 2 | HQ129: 1 | HR129: 0 | HS129: 8 | HT129: 27 | HU129: 75 | HV129: 221 | HW129: 125
A130: 6 | B130: 0 | C130: 0 | D130: 0 | E130: 0 | F130: 0 | G130: 0 | H130: 16 | I130: 33 | J130: 91 | K130: 352 | L130: 206 | M130: 15 | N130: 31 | O130: 84 | P130: 323 | Q130: 187 | R130: 0 | S130: 0 | T130: 0 | U130: 0 | V130: 0 | W130: 0 | X130: 0 | Y130: 1 | Z130: 1 | AA130: 1 | AB130: 0 | AC130: 0 | AD130: 0 | AE130: 0 | AF130: 0 | AG130: 3 | AH130: 0 | AI130: 0 | AJ130: 3 | AK130: 0 | AL130: 0 | AM130: 0 | AN130: 0 | AO130: 0 | AP130: 0 | AQ130: 0 | AR130: 0 | AS130: 0 | AT130: 0 | AU130: 0 | AV130: 0 | AW130: 0 | AX130: 0 | AY130: 0 | AZ130: 0 | BA130: 0 | BB130: 0 | BC130: 0 | BD130: 0 | BE130: 0 | BF130: 0 | BG130: 0 | BH130: 0 | BI130: 0 | BJ130: 0 | BK130: 0 | BL130: 0 | BM130: 0 | BN130: 0 | BO130: 0 | BP130: 0 | BQ130: 0 | BR130: 0 | BS130: 0 | BT130: 0 | BU130: 0 | BV130: 0 | BW130: 0 | BX130: 0 | BY130: 0 | BZ130: 0 | CA130: 0 | CB130: 0 | CC130: 0 | CD130: 0 | CE130: 0 | CF130: 0 | CG130: 0 | CH130: 0 | CI130: 0 | CJ130: 0 | CK130: 0 | CL130: 0 | CM130: 0 | CN130: 0 | CO130: 0 | CP130: 0 | CQ130: 0 | CR130: 0 | CS130: 0 | CT130: 0 | CU130: 0 | CV130: 0 | CW130: 0 | CX130: 0 | CY130: 0 | CZ130: 0 | DA130: 0 | DB130: 0 | DC130: 0 | DD130: 0 | DE130: 0 | DF130: 0 | DG130: 0 | DH130: 0 | DI130: 0 | DJ130: 0 | DK130: 0 | DL130: 0 | DM130: 0 | DN130: 0 | DO130: 0 | DP130: 0 | DQ130: 0 | DR130: 0 | DS130: 6 | DT130: 0 | DU130: 1 | DV130: 6 | DW130: 1 | DX130: 5 | DY130: 2 | DZ130: 1 | EA130: 14 | EB130: 1 | EC130: 0 | ED130: 3 | EE130: 2 | EF130: 5 | EG130: 0 | EH130: 0 | EI130: 0 | EJ130: 0 | EK130: 0 | EL130: 0 | EM130: 0 | EN130: 3 | EO130: 0 | EP130: 0 | EQ130: 1 | ER130: 0 | ES130: 0 | ET130: 2 | EU130: 0 | EV130: 1 | EW130: 0 | EX130: 0 | EY130: 2 | EZ130: 0 | FA130: 0 | FB130: 0 | FC130: 0 | FD130: 0 | FE130: 0 | FF130: 0 | FG130: 0 | FH130: 0 | FI130: 0 | FJ130: 0 | FK130: 0 | FL130: 0 | FM130: 0 | FN130: 0 | FO130: 0 | FP130: 0 | FQ130: 0 | FR130: 0 | FS130: 0 | FT130: 0 | FU130: 0 | FV130: 0 | FW130: 0 | FX130: 0 | FY130: 0 | FZ130: 0 | GA130: 0 | GB130: 0 | GC130: 0 | GD130: 0 | GE130: 0 | GF130: 0 | GG130: 0 | GH130: 0 | GI130: 0 | GJ130: 0 | GK130: 0 | GL130: 0 | GM130: 0 | GN130: 0 | GO130: 0 | GP130: 0 | GQ130: 0 | GR130: 0 | GS130: 0 | GT130: 0 | GU130: 0 | GV130: 0 | GW130: 0 | GX130: 0 | GY130: 0 | GZ130: 0 | HA130: 0 | HB130: 0 | HC130: 0 | HD130: 0 | HE130: 3 | HF130: 0 | HG130: 0 | HH130: 3 | HI130: 0 | HJ130: 0 | HK130: 0 | HL130: 0 | HM130: 0 | HN130: 0 | HO130: 1 | HP130: 1 | HQ130: 0 | HR130: 1 | HS130: 14 | HT130: 31 | HU130: 79 | HV130: 314 | HW130: 188
A131: 7 | B131: 0 | C131: 0 | D131: 0 | E131: 0 | F131: 0 | G131: 0 | H131: 1 | I131: 6 | J131: 11 | K131: 70 | L131: 34 | M131: 1 | N131: 6 | O131: 10 | P131: 62 | Q131: 33 | R131: 0 | S131: 0 | T131: 0 | U131: 0 | V131: 0 | W131: 0 | X131: 0 | Y131: 0 | Z131: 0 | AA131: 1 | AB131: 0 | AC131: 0 | AD131: 0 | AE131: 0 | AF131: 1 | AG131: 0 | AH131: 0 | AI131: 0 | AJ131: 0 | AK131: 0 | AL131: 0 | AM131: 0 | AN131: 0 | AO131: 0 | AP131: 0 | AQ131: 0 | AR131: 0 | AS131: 0 | AT131: 0 | AU131: 0 | AV131: 0 | AW131: 0 | AX131: 0 | AY131: 0 | AZ131: 0 | BA131: 0 | BB131: 0 | BC131: 0 | BD131: 0 | BE131: 0 | BF131: 0 | BG131: 0 | BH131: 0 | BI131: 0 | BJ131: 0 | BK131: 0 | BL131: 0 | BM131: 0 | BN131: 0 | BO131: 0 | BP131: 0 | BQ131: 0 | BR131: 0 | BS131: 0 | BT131: 0 | BU131: 0 | BV131: 0 | BW131: 0 | BX131: 0 | BY131: 0 | BZ131: 0 | CA131: 0 | CB131: 0 | CC131: 0 | CD131: 0 | CE131: 0 | CF131: 0 | CG131: 0 | CH131: 0 | CI131: 0 | CJ131: 0 | CK131: 0 | CL131: 0 | CM131: 0 | CN131: 0 | CO131: 0 | CP131: 0 | CQ131: 0 | CR131: 0 | CS131: 0 | CT131: 0 | CU131: 0 | CV131: 0 | CW131: 0 | CX131: 0 | CY131: 0 | CZ131: 0 | DA131: 0 | DB131: 0 | DC131: 0 | DD131: 0 | DE131: 0 | DF131: 0 | DG131: 0 | DH131: 0 | DI131: 0 | DJ131: 0 | DK131: 0 | DL131: 0 | DM131: 0 | DN131: 0 | DO131: 0 | DP131: 0 | DQ131: 0 | DR131: 0 | DS131: 0 | DT131: 0 | DU131: 0 | DV131: 0 | DW131: 0 | DX131: 3 | DY131: 2 | DZ131: 0 | EA131: 2 | EB131: 1 | EC131: 0 | ED131: 0 | EE131: 0 | EF131: 0 | EG131: 0 | EH131: 0 | EI131: 0 | EJ131: 0 | EK131: 0 | EL131: 0 | EM131: 0 | EN131: 0 | EO131: 0 | EP131: 0 | EQ131: 0 | ER131: 0 | ES131: 0 | ET131: 0 | EU131: 0 | EV131: 0 | EW131: 0 | EX131: 0 | EY131: 0 | EZ131: 0 | FA131: 0 | FB131: 0 | FC131: 0 | FD131: 0 | FE131: 0 | FF131: 0 | FG131: 0 | FH131: 0 | FI131: 0 | FJ131: 0 | FK131: 0 | FL131: 0 | FM131: 0 | FN131: 0 | FO131: 0 | FP131: 0 | FQ131: 0 | FR131: 0 | FS131: 0 | FT131: 0 | FU131: 0 | FV131: 0 | FW131: 0 | FX131: 0 | FY131: 0 | FZ131: 0 | GA131: 0 | GB131: 0 | GC131: 0 | GD131: 0 | GE131: 0 | GF131: 0 | GG131: 0 | GH131: 0 | GI131: 0 | GJ131: 0 | GK131: 0 | GL131: 0 | GM131: 0 | GN131: 0 | GO131: 0 | GP131: 0 | GQ131: 0 | GR131: 0 | GS131: 0 | GT131: 0 | GU131: 0 | GV131: 0 | GW131: 0 | GX131: 0 | GY131: 0 | GZ131: 0 | HA131: 0 | HB131: 0 | HC131: 0 | HD131: 0 | HE131: 0 | HF131: 0 | HG131: 0 | HH131: 0 | HI131: 0 | HJ131: 0 | HK131: 0 | HL131: 0 | HM131: 0 | HN131: 0 | HO131: 0 | HP131: 0 | HQ131: 0 | HR131: 1 | HS131: 1 | HT131: 6 | HU131: 10 | HV131: 69 | HW131: 41
A132: 8 | B132: 0 | C132: 0 | D132: 0 | E132: 0 | F132: 0 | G132: 0 | H132: 2 | I132: 3 | J132: 11 | K132: 37 | L132: 23 | M132: 2 | N132: 3 | O132: 11 | P132: 33 | Q132: 21 | R132: 0 | S132: 0 | T132: 0 | U132: 0 | V132: 0 | W132: 0 | X132: 0 | Y132: 1 | Z132: 0 | AA132: 1 | AB132: 0 | AC132: 0 | AD132: 0 | AE132: 0 | AF132: 0 | AG132: 0 | AH132: 0 | AI132: 0 | AJ132: 0 | AK132: 0 | AL132: 0 | AM132: 0 | AN132: 0 | AO132: 0 | AP132: 0 | AQ132: 0 | AR132: 0 | AS132: 0 | AT132: 0 | AU132: 0 | AV132: 0 | AW132: 0 | AX132: 0 | AY132: 0 | AZ132: 0 | BA132: 0 | BB132: 0 | BC132: 0 | BD132: 0 | BE132: 0 | BF132: 0 | BG132: 0 | BH132: 0 | BI132: 0 | BJ132: 0 | BK132: 0 | BL132: 0 | BM132: 0 | BN132: 0 | BO132: 0 | BP132: 0 | BQ132: 0 | BR132: 0 | BS132: 0 | BT132: 0 | BU132: 0 | BV132: 0 | BW132: 0 | BX132: 0 | BY132: 0 | BZ132: 0 | CA132: 0 | CB132: 0 | CC132: 0 | CD132: 0 | CE132: 0 | CF132: 0 | CG132: 0 | CH132: 0 | CI132: 0 | CJ132: 0 | CK132: 0 | CL132: 0 | CM132: 0 | CN132: 0 | CO132: 0 | CP132: 0 | CQ132: 0 | CR132: 0 | CS132: 0 | CT132: 0 | CU132: 0 | CV132: 0 | CW132: 0 | CX132: 0 | CY132: 0 | CZ132: 0 | DA132: 0 | DB132: 0 | DC132: 0 | DD132: 0 | DE132: 0 | DF132: 0 | DG132: 0 | DH132: 0 | DI132: 0 | DJ132: 0 | DK132: 0 | DL132: 0 | DM132: 0 | DN132: 0 | DO132: 0 | DP132: 0 | DQ132: 0 | DR132: 0 | DS132: 0 | DT132: 0 | DU132: 0 | DV132: 0 | DW132: 0 | DX132: 1 | DY132: 0 | DZ132: 0 | EA132: 1 | EB132: 1 | EC132: 1 | ED132: 2 | EE132: 2 | EF132: 1 | EG132: 0 | EH132: 0 | EI132: 0 | EJ132: 0 | EK132: 0 | EL132: 0 | EM132: 0 | EN132: 0 | EO132: 0 | EP132: 0 | EQ132: 0 | ER132: 0 | ES132: 0 | ET132: 0 | EU132: 0 | EV132: 0 | EW132: 0 | EX132: 0 | EY132: 0 | EZ132: 0 | FA132: 0 | FB132: 0 | FC132: 0 | FD132: 0 | FE132: 0 | FF132: 0 | FG132: 0 | FH132: 0 | FI132: 0 | FJ132: 0 | FK132: 0 | FL132: 0 | FM132: 0 | FN132: 0 | FO132: 0 | FP132: 0 | FQ132: 0 | FR132: 0 | FS132: 0 | FT132: 0 | FU132: 0 | FV132: 0 | FW132: 0 | FX132: 0 | FY132: 0 | FZ132: 0 | GA132: 0 | GB132: 0 | GC132: 0 | GD132: 0 | GE132: 0 | GF132: 0 | GG132: 0 | GH132: 0 | GI132: 0 | GJ132: 0 | GK132: 0 | GL132: 0 | GM132: 0 | GN132: 0 | GO132: 0 | GP132: 0 | GQ132: 0 | GR132: 0 | GS132: 0 | GT132: 0 | GU132: 0 | GV132: 0 | GW132: 0 | GX132: 0 | GY132: 0 | GZ132: 0 | HA132: 0 | HB132: 0 | HC132: 0 | HD132: 0 | HE132: 0 | HF132: 0 | HG132: 0 | HH132: 0 | HI132: 0 | HJ132: 0 | HK132: 0 | HL132: 0 | HM132: 0 | HN132: 0 | HO132: 0 | HP132: 0 | HQ132: 0 | HR132: 0 | HS132: 3 | HT132: 3 | HU132: 10 | HV132: 38 | HW132: 28
A133: 9 | B133: 0 | C133: 0 | D133: 0 | E133: 0 | F133: 0 | G133: 0 | H133: 0 | I133: 1 | J133: 7 | K133: 17 | L133: 8 | M133: 0 | N133: 1 | O133: 7 | P133: 15 | Q133: 7 | R133: 0 | S133: 0 | T133: 0 | U133: 0 | V133: 0 | W133: 0 | X133: 0 | Y133: 0 | Z133: 0 | AA133: 0 | AB133: 0 | AC133: 0 | AD133: 0 | AE133: 0 | AF133: 3 | AG133: 0 | AH133: 0 | AI133: 0 | AJ133: 2 | AK133: 3 | AL133: 0 | AM133: 0 | AN133: 0 | AO133: 0 | AP133: 0 | AQ133: 0 | AR133: 0 | AS133: 0 | AT133: 0 | AU133: 0 | AV133: 0 | AW133: 0 | AX133: 0 | AY133: 0 | AZ133: 0 | BA133: 0 | BB133: 0 | BC133: 0 | BD133: 0 | BE133: 0 | BF133: 0 | BG133: 0 | BH133: 0 | BI133: 0 | BJ133: 0 | BK133: 0 | BL133: 0 | BM133: 0 | BN133: 0 | BO133: 0 | BP133: 0 | BQ133: 0 | BR133: 0 | BS133: 0 | BT133: 0 | BU133: 0 | BV133: 0 | BW133: 0 | BX133: 0 | BY133: 0 | BZ133: 0 | CA133: 0 | CB133: 0 | CC133: 0 | CD133: 0 | CE133: 0 | CF133: 0 | CG133: 0 | CH133: 0 | CI133: 0 | CJ133: 0 | CK133: 0 | CL133: 0 | CM133: 0 | CN133: 0 | CO133: 0 | CP133: 0 | CQ133: 0 | CR133: 0 | CS133: 0 | CT133: 0 | CU133: 0 | CV133: 0 | CW133: 0 | CX133: 0 | CY133: 0 | CZ133: 0 | DA133: 0 | DB133: 0 | DC133: 0 | DD133: 0 | DE133: 0 | DF133: 0 | DG133: 0 | DH133: 0 | DI133: 0 | DJ133: 0 | DK133: 0 | DL133: 0 | DM133: 0 | DN133: 0 | DO133: 0 | DP133: 0 | DQ133: 0 | DR133: 0 | DS133: 0 | DT133: 0 | DU133: 0 | DV133: 0 | DW133: 0 | DX133: 7 | DY133: 2 | DZ133: 2 | EA133: 4 | EB133: 3 | EC133: 0 | ED133: 0 | EE133: 0 | EF133: 0 | EG133: 0 | EH133: 0 | EI133: 0 | EJ133: 0 | EK133: 0 | EL133: 0 | EM133: 0 | EN133: 0 | EO133: 0 | EP133: 0 | EQ133: 0 | ER133: 0 | ES133: 0 | ET133: 0 | EU133: 0 | EV133: 0 | EW133: 0 | EX133: 0 | EY133: 0 | EZ133: 0 | FA133: 0 | FB133: 0 | FC133: 0 | FD133: 0 | FE133: 0 | FF133: 0 | FG133: 0 | FH133: 0 | FI133: 0 | FJ133: 0 | FK133: 0 | FL133: 0 | FM133: 0 | FN133: 0 | FO133: 0 | FP133: 0 | FQ133: 0 | FR133: 0 | FS133: 0 | FT133: 0 | FU133: 0 | FV133: 0 | FW133: 0 | FX133: 0 | FY133: 0 | FZ133: 0 | GA133: 0 | GB133: 0 | GC133: 0 | GD133: 0 | GE133: 0 | GF133: 0 | GG133: 0 | GH133: 0 | GI133: 0 | GJ133: 0 | GK133: 0 | GL133: 0 | GM133: 0 | GN133: 0 | GO133: 0 | GP133: 0 | GQ133: 0 | GR133: 0 | GS133: 0 | GT133: 0 | GU133: 0 | GV133: 0 | GW133: 0 | GX133: 0 | GY133: 0 | GZ133: 0 | HA133: 0 | HB133: 0 | HC133: 0 | HD133: 0 | HE133: 0 | HF133: 0 | HG133: 0 | HH133: 0 | HI133: 0 | HJ133: 0 | HK133: 0 | HL133: 0 | HM133: 0 | HN133: 0 | HO133: 0 | HP133: 0 | HQ133: 0 | HR133: 0 | HS133: 0 | HT133: 1 | HU133: 8 | HV133: 21 | HW133: 11
A134: 10 | B134: 0 | C134: 0 | D134: 0 | E134: 0 | F134: 0 | G134: 0 | H134: 2 | I134: 4 | J134: 6 | K134: 25 | L134: 27 | M134: 2 | N134: 4 | O134: 5 | P134: 24 | Q134: 19 | R134: 0 | S134: 0 | T134: 0 | U134: 0 | V134: 0 | W134: 0 | X134: 0 | Y134: 1 | Z134: 0 | AA134: 2 | AB134: 1 | AC134: 0 | AD134: 0 | AE134: 0 | AF134: 0 | AG134: 0 | AH134: 0 | AI134: 0 | AJ134: 0 | AK134: 0 | AL134: 0 | AM134: 0 | AN134: 0 | AO134: 0 | AP134: 0 | AQ134: 0 | AR134: 0 | AS134: 0 | AT134: 0 | AU134: 0 | AV134: 0 | AW134: 0 | AX134: 0 | AY134: 0 | AZ134: 0 | BA134: 0 | BB134: 0 | BC134: 0 | BD134: 0 | BE134: 0 | BF134: 0 | BG134: 0 | BH134: 0 | BI134: 0 | BJ134: 0 | BK134: 0 | BL134: 0 | BM134: 0 | BN134: 0 | BO134: 0 | BP134: 0 | BQ134: 0 | BR134: 0 | BS134: 1 | BT134: 0 | BU134: 0 | BV134: 0 | BW134: 0 | BX134: 0 | BY134: 0 | BZ134: 0 | CA134: 0 | CB134: 0 | CC134: 0 | CD134: 0 | CE134: 0 | CF134: 0 | CG134: 0 | CH134: 0 | CI134: 0 | CJ134: 0 | CK134: 0 | CL134: 0 | CM134: 0 | CN134: 0 | CO134: 0 | CP134: 0 | CQ134: 0 | CR134: 0 | CS134: 0 | CT134: 0 | CU134: 0 | CV134: 0 | CW134: 0 | CX134: 0 | CY134: 0 | CZ134: 0 | DA134: 0 | DB134: 0 | DC134: 0 | DD134: 0 | DE134: 0 | DF134: 0 | DG134: 0 | DH134: 0 | DI134: 0 | DJ134: 0 | DK134: 0 | DL134: 0 | DM134: 0 | DN134: 0 | DO134: 0 | DP134: 0 | DQ134: 0 | DR134: 0 | DS134: 0 | DT134: 0 | DU134: 0 | DV134: 0 | DW134: 0 | DX134: 1 | DY134: 0 | DZ134: 0 | EA134: 1 | EB134: 1 | EC134: 0 | ED134: 0 | EE134: 0 | EF134: 0 | EG134: 0 | EH134: 0 | EI134: 0 | EJ134: 0 | EK134: 0 | EL134: 0 | EM134: 0 | EN134: 0 | EO134: 0 | EP134: 0 | EQ134: 0 | ER134: 0 | ES134: 0 | ET134: 0 | EU134: 0 | EV134: 0 | EW134: 0 | EX134: 0 | EY134: 0 | EZ134: 0 | FA134: 0 | FB134: 0 | FC134: 0 | FD134: 0 | FE134: 0 | FF134: 0 | FG134: 0 | FH134: 0 | FI134: 0 | FJ134: 0 | FK134: 0 | FL134: 0 | FM134: 0 | FN134: 0 | FO134: 0 | FP134: 0 | FQ134: 0 | FR134: 0 | FS134: 0 | FT134: 0 | FU134: 0 | FV134: 0 | FW134: 0 | FX134: 0 | FY134: 0 | FZ134: 0 | GA134: 0 | GB134: 0 | GC134: 0 | GD134: 0 | GE134: 0 | GF134: 0 | GG134: 0 | GH134: 0 | GI134: 0 | GJ134: 0 | GK134: 0 | GL134: 0 | GM134: 0 | GN134: 0 | GO134: 0 | GP134: 0 | GQ134: 0 | GR134: 0 | GS134: 0 | GT134: 0 | GU134: 0 | GV134: 0 | GW134: 0 | GX134: 0 | GY134: 0 | GZ134: 0 | HA134: 0 | HB134: 0 | HC134: 0 | HD134: 0 | HE134: 0 | HF134: 0 | HG134: 0 | HH134: 0 | HI134: 0 | HJ134: 0 | HK134: 0 | HL134: 0 | HM134: 0 | HN134: 0 | HO134: 0 | HP134: 0 | HQ134: 0 | HR134: 0 | HS134: 2 | HT134: 4 | HU134: 7 | HV134: 27 | HW134: 31
A135: 4 | B135: 0 | C135: 0 | D135: 0 | E135: 0 | F135: 0 | G135: 0 | H135: 7 | I135: 31 | J135: 111 | K135: 287 | L135: 182 | M135: 7 | N135: 29 | O135: 101 | P135: 258 | Q135: 169 | R135: 0 | S135: 0 | T135: 0 | U135: 0 | V135: 0 | W135: 0 | X135: 0 | Y135: 0 | Z135: 1 | AA135: 4 | AB135: 0 | AC135: 0 | AD135: 0 | AE135: 0 | AF135: 0 | AG135: 0 | AH135: 0 | AI135: 0 | AJ135: 0 | AK135: 0 | AL135: 0 | AM135: 0 | AN135: 0 | AO135: 0 | AP135: 0 | AQ135: 0 | AR135: 0 | AS135: 0 | AT135: 0 | AU135: 0 | AV135: 0 | AW135: 0 | AX135: 0 | AY135: 0 | AZ135: 0 | BA135: 0 | BB135: 0 | BC135: 0 | BD135: 0 | BE135: 0 | BF135: 0 | BG135: 0 | BH135: 0 | BI135: 0 | BJ135: 0 | BK135: 0 | BL135: 0 | BM135: 0 | BN135: 0 | BO135: 0 | BP135: 0 | BQ135: 0 | BR135: 0 | BS135: 0 | BT135: 0 | BU135: 0 | BV135: 0 | BW135: 0 | BX135: 0 | BY135: 0 | BZ135: 0 | CA135: 0 | CB135: 0 | CC135: 0 | CD135: 0 | CE135: 0 | CF135: 0 | CG135: 0 | CH135: 0 | CI135: 0 | CJ135: 0 | CK135: 0 | CL135: 0 | CM135: 0 | CN135: 0 | CO135: 0 | CP135: 0 | CQ135: 0 | CR135: 0 | CS135: 0 | CT135: 0 | CU135: 0 | CV135: 0 | CW135: 0 | CX135: 0 | CY135: 0 | CZ135: 0 | DA135: 0 | DB135: 0 | DC135: 0 | DD135: 0 | DE135: 0 | DF135: 0 | DG135: 0 | DH135: 0 | DI135: 0 | DJ135: 0 | DK135: 0 | DL135: 0 | DM135: 0 | DN135: 0 | DO135: 0 | DP135: 0 | DQ135: 0 | DR135: 0 | DS135: 0 | DT135: 0 | DU135: 1 | DV135: 1 | DW135: 0 | DX135: 0 | DY135: 0 | DZ135: 0 | EA135: 5 | EB135: 7 | EC135: 0 | ED135: 0 | EE135: 1 | EF135: 0 | EG135: 0 | EH135: 0 | EI135: 0 | EJ135: 0 | EK135: 0 | EL135: 0 | EM135: 0 | EN135: 0 | EO135: 0 | EP135: 0 | EQ135: 0 | ER135: 0 | ES135: 0 | ET135: 0 | EU135: 0 | EV135: 0 | EW135: 0 | EX135: 0 | EY135: 0 | EZ135: 0 | FA135: 0 | FB135: 0 | FC135: 0 | FD135: 0 | FE135: 0 | FF135: 0 | FG135: 0 | FH135: 0 | FI135: 0 | FJ135: 0 | FK135: 0 | FL135: 0 | FM135: 0 | FN135: 0 | FO135: 0 | FP135: 0 | FQ135: 0 | FR135: 0 | FS135: 0 | FT135: 0 | FU135: 0 | FV135: 0 | FW135: 0 | FX135: 0 | FY135: 0 | FZ135: 0 | GA135: 0 | GB135: 0 | GC135: 0 | GD135: 0 | GE135: 0 | GF135: 0 | GG135: 0 | GH135: 0 | GI135: 0 | GJ135: 0 | GK135: 0 | GL135: 0 | GM135: 0 | GN135: 0 | GO135: 0 | GP135: 0 | GQ135: 0 | GR135: 0 | GS135: 0 | GT135: 0 | GU135: 0 | GV135: 0 | GW135: 0 | GX135: 0 | GY135: 0 | GZ135: 0 | HA135: 0 | HB135: 0 | HC135: 0 | HD135: 0 | HE135: 0 | HF135: 0 | HG135: 0 | HH135: 0 | HI135: 0 | HJ135: 0 | HK135: 0 | HL135: 0 | HM135: 0 | HN135: 0 | HO135: 0 | HP135: 0 | HQ135: 0 | HR135: 0 | HS135: 4 | HT135: 29 | HU135: 93 | HV135: 248 | HW135: 164
A136: 3 | B136: 0 | C136: 0 | D136: 0 | E136: 0 | F136: 0 | G136: 0 | H136: 4 | I136: 19 | J136: 81 | K136: 259 | L136: 200 | M136: 4 | N136: 17 | O136: 78 | P136: 244 | Q136: 186 | R136: 0 | S136: 0 | T136: 0 | U136: 0 | V136: 0 | W136: 0 | X136: 0 | Y136: 0 | Z136: 0 | AA136: 3 | AB136: 0 | AC136: 0 | AD136: 0 | AE136: 0 | AF136: 0 | AG136: 0 | AH136: 0 | AI136: 0 | AJ136: 0 | AK136: 0 | AL136: 0 | AM136: 0 | AN136: 1 | AO136: 0 | AP136: 0 | AQ136: 0 | AR136: 0 | AS136: 0 | AT136: 0 | AU136: 0 | AV136: 0 | AW136: 0 | AX136: 0 | AY136: 0 | AZ136: 0 | BA136: 0 | BB136: 0 | BC136: 0 | BD136: 0 | BE136: 1 | BF136: 0 | BG136: 0 | BH136: 0 | BI136: 0 | BJ136: 0 | BK136: 0 | BL136: 0 | BM136: 0 | BN136: 0 | BO136: 0 | BP136: 0 | BQ136: 0 | BR136: 0 | BS136: 0 | BT136: 0 | BU136: 0 | BV136: 0 | BW136: 0 | BX136: 0 | BY136: 0 | BZ136: 0 | CA136: 0 | CB136: 0 | CC136: 0 | CD136: 0 | CE136: 0 | CF136: 0 | CG136: 0 | CH136: 0 | CI136: 0 | CJ136: 0 | CK136: 0 | CL136: 0 | CM136: 0 | CN136: 0 | CO136: 0 | CP136: 0 | CQ136: 0 | CR136: 0 | CS136: 0 | CT136: 0 | CU136: 0 | CV136: 0 | CW136: 0 | CX136: 0 | CY136: 0 | CZ136: 0 | DA136: 0 | DB136: 0 | DC136: 0 | DD136: 0 | DE136: 0 | DF136: 0 | DG136: 0 | DH136: 0 | DI136: 0 | DJ136: 0 | DK136: 0 | DL136: 0 | DM136: 0 | DN136: 0 | DO136: 0 | DP136: 0 | DQ136: 0 | DR136: 0 | DS136: 4 | DT136: 0 | DU136: 1 | DV136: 6 | DW136: 1 | DX136: 1 | DY136: 0 | DZ136: 1 | EA136: 3 | EB136: 1 | EC136: 0 | ED136: 0 | EE136: 0 | EF136: 0 | EG136: 1 | EH136: 0 | EI136: 0 | EJ136: 0 | EK136: 0 | EL136: 0 | EM136: 0 | EN136: 1 | EO136: 2 | EP136: 0 | EQ136: 2 | ER136: 0 | ES136: 0 | ET136: 1 | EU136: 0 | EV136: 2 | EW136: 0 | EX136: 0 | EY136: 1 | EZ136: 0 | FA136: 0 | FB136: 0 | FC136: 0 | FD136: 0 | FE136: 0 | FF136: 0 | FG136: 0 | FH136: 0 | FI136: 0 | FJ136: 0 | FK136: 0 | FL136: 0 | FM136: 0 | FN136: 0 | FO136: 0 | FP136: 0 | FQ136: 0 | FR136: 0 | FS136: 0 | FT136: 0 | FU136: 0 | FV136: 0 | FW136: 0 | FX136: 0 | FY136: 0 | FZ136: 0 | GA136: 0 | GB136: 0 | GC136: 0 | GD136: 0 | GE136: 0 | GF136: 0 | GG136: 0 | GH136: 0 | GI136: 0 | GJ136: 0 | GK136: 0 | GL136: 0 | GM136: 0 | GN136: 0 | GO136: 0 | GP136: 0 | GQ136: 0 | GR136: 0 | GS136: 0 | GT136: 0 | GU136: 0 | GV136: 0 | GW136: 0 | GX136: 0 | GY136: 0 | GZ136: 0 | HA136: 0 | HB136: 0 | HC136: 0 | HD136: 0 | HE136: 0 | HF136: 0 | HG136: 0 | HH136: 0 | HI136: 0 | HJ136: 0 | HK136: 0 | HL136: 0 | HM136: 0 | HN136: 0 | HO136: 0 | HP136: 0 | HQ136: 0 | HR136: 0 | HS136: 3 | HT136: 19 | HU136: 72 | HV136: 229 | HW136: 171
A137: T | B137: 0 | C137: 0 | D137: 0 | E137: 0 | F137: 0 | G137: 0 | H137: 86 | I137: 185 | J137: 598 | K137: 1801 | L137: 1195 | M137: 79 | N137: 168 | O137: 557 | P137: 1653 | Q137: 1094 | R137: 0 | S137: 0 | T137: 0 | U137: 0 | V137: 0 | W137: 0 | X137: 1 | Y137: 8 | Z137: 10 | AA137: 18 | AB137: 1 | AC137: 0 | AD137: 0 | AE137: 0 | AF137: 4 | AG137: 7 | AH137: 0 | AI137: 0 | AJ137: 5 | AK137: 3 | AL137: 0 | AM137: 0 | AN137: 1 | AO137: 0 | AP137: 0 | AQ137: 0 | AR137: 0 | AS137: 0 | AT137: 0 | AU137: 0 | AV137: 0 | AW137: 0 | AX137: 0 | AY137: 0 | AZ137: 0 | BA137: 0 | BB137: 0 | BC137: 0 | BD137: 0 | BE137: 1 | BF137: 0 | BG137: 0 | BH137: 0 | BI137: 0 | BJ137: 0 | BK137: 0 | BL137: 0 | BM137: 0 | BN137: 0 | BO137: 0 | BP137: 0 | BQ137: 0 | BR137: 0 | BS137: 1 | BT137: 0 | BU137: 0 | BV137: 0 | BW137: 0 | BX137: 0 | BY137: 0 | BZ137: 0 | CA137: 0 | CB137: 0 | CC137: 0 | CD137: 0 | CE137: 0 | CF137: 0 | CG137: 0 | CH137: 0 | CI137: 0 | CJ137: 0 | CK137: 0 | CL137: 0 | CM137: 0 | CN137: 0 | CO137: 0 | CP137: 0 | CQ137: 0 | CR137: 0 | CS137: 0 | CT137: 0 | CU137: 0 | CV137: 0 | CW137: 0 | CX137: 0 | CY137: 0 | CZ137: 0 | DA137: 0 | DB137: 0 | DC137: 0 | DD137: 0 | DE137: 0 | DF137: 0 | DG137: 0 | DH137: 0 | DI137: 0 | DJ137: 0 | DK137: 0 | DL137: 0 | DM137: 0 | DN137: 0 | DO137: 0 | DP137: 0 | DQ137: 0 | DR137: 0 | DS137: 15 | DT137: 6 | DU137: 6 | DV137: 22 | DW137: 7 | DX137: 28 | DY137: 9 | DZ137: 13 | EA137: 41 | EB137: 25 | EC137: 1 | ED137: 5 | EE137: 5 | EF137: 7 | EG137: 2 | EH137: 0 | EI137: 0 | EJ137: 0 | EK137: 0 | EL137: 0 | EM137: 0 | EN137: 6 | EO137: 2 | EP137: 0 | EQ137: 7 | ER137: 0 | ES137: 0 | ET137: 3 | EU137: 0 | EV137: 7 | EW137: 0 | EX137: 0 | EY137: 3 | EZ137: 0 | FA137: 0 | FB137: 0 | FC137: 0 | FD137: 0 | FE137: 0 | FF137: 0 | FG137: 0 | FH137: 0 | FI137: 0 | FJ137: 0 | FK137: 0 | FL137: 0 | FM137: 0 | FN137: 0 | FO137: 0 | FP137: 0 | FQ137: 0 | FR137: 0 | FS137: 0 | FT137: 0 | FU137: 0 | FV137: 0 | FW137: 0 | FX137: 0 | FY137: 0 | FZ137: 0 | GA137: 0 | GB137: 0 | GC137: 0 | GD137: 0 | GE137: 0 | GF137: 0 | GG137: 0 | GH137: 0 | GI137: 0 | GJ137: 0 | GK137: 0 | GL137: 0 | GM137: 0 | GN137: 1 | GO137: 0 | GP137: 0 | GQ137: 0 | GR137: 0 | GS137: 0 | GT137: 0 | GU137: 0 | GV137: 0 | GW137: 0 | GX137: 0 | GY137: 0 | GZ137: 0 | HA137: 0 | HB137: 0 | HC137: 0 | HD137: 0 | HE137: 7 | HF137: 0 | HG137: 0 | HH137: 3 | HI137: 0 | HJ137: 0 | HK137: 0 | HL137: 0 | HM137: 0 | HN137: 0 | HO137: 1 | HP137: 3 | HQ137: 5 | HR137: 4 | HS137: 65 | HT137: 163 | HU137: 521 | HV137: 1631 | HW137: 1075
A144: TOTAL
A145: =COUNT(A126:A142) -> 11 | B145: =SUM(B126:B142) -> 0 | C145: =SUM(C126:C142) -> 0 | D145: 0 | E145: 0 | F145: 0 | G145: 0 | H145: 172 | I145: 370 | J145: 1196 | K145: 3602 | L145: 2390 | M145: 158 | N145: 336 | O145: 1114 | P145: 3306 | Q145: 2188 | R145: 0 | S145: 0 | T145: 0 | U145: 0 | V145: 0 | W145: 0 | X145: 2 | Y145: 16 | Z145: 20 | AA145: 36 | AB145: 2 | AC145: 0 | AD145: 0 | AE145: 0 | AF145: 8 | AG145: 14 | AH145: 0 | AI145: 0 | AJ145: 10 | AK145: 6 | AL145: 0 | AM145: 0 | AN145: 2 | AO145: 0 | AP145: 0 | AQ145: 0 | AR145: 0 | AS145: 0 | AT145: 0 | AU145: 0 | AV145: 0 | AW145: 0 | AX145: 0 | AY145: 0 | AZ145: 0 | BA145: 0 | BB145: 0 | BC145: 0 | BD145: 0 | BE145: 2 | BF145: 0 | BG145: 0 | BH145: 0 | BI145: 0 | BJ145: 0 | BK145: 0 | BL145: 0 | BM145: 0 | BN145: 0 | BO145: =SUM(BO126:BO142) -> 0 | BP145: 0 | BQ145: 0 | BR145: 0 | BS145: 2 | BT145: 0 | BU145: 0 | BV145: 0 | BW145: 0 | BX145: 0 | BY145: 0 | BZ145: 0 | CA145: 0 | CB145: 0 | CC145: 0 | CD145: 0 | CE145: 0 | CF145: 0 | CG145: 0 | CH145: 0 | CI145: 0 | CJ145: 0 | CK145: 0 | CL145: 0 | CM145: 0 | CN145: 0 | CO145: 0 | CP145: 0 | CQ145: 0 | CR145: 0 | CS145: 0 | CT145: 0 | CU145: 0 | CV145: 0 | CW145: 0 | CX145: 0 | CY145: 0 | CZ145: 0 | DA145: 0 | DB145: 0 | DC145: 0 | DD145: 0 | DE145: 0 | DF145: 0 | DG145: 0 | DH145: 0 | DI145: 0 | DJ145: 0 | DK145: 0 | DL145: 0 | DM145: 0 | DN145: 0 | DO145: 0 | DP145: 0 | DQ145: 0 | DR145: 0 | DS145: 30 | DT145: 12 | DU145: 12 | DV145: 44 | DW145: 14 | DX145: 56 | DY145: 18 | DZ145: 26 | EA145: =SUM(EA126:EA142) -> 82 | EB145: 50 | EC145: 2 | ED145: 10 | EE145: 10 | EF145: 14 | EG145: 4 | EH145: 0 | EI145: 0 | EJ145: 0 | EK145: 0 | EL145: 0 | EM145: 0 | EN145: 12 | EO145: 4 | EP145: 0 | EQ145: 14 | ER145: 0 | ES145: 0 | ET145: 6 | EU145: 0 | EV145: 14 | EW145: 0 | EX145: 0 | EY145: 6 | EZ145: 0 | FA145: 0 | FB145: 0 | FC145: 0 | FD145: 0 | FE145: 0 | FF145: 0 | FG145: 0 | FH145: 0 | FI145: 0 | FJ145: 0 | FK145: 0 | FL145: 0 | FM145: 0 | FN145: 0 | FO145: 0 | FP145: 0 | FQ145: 0 | FR145: 0 | FS145: 0 | FT145: 0 | FU145: 0 | FV145: 0 | FW145: 0 | FX145: 0 | FY145: 0 | FZ145: 0 | GA145: 0 | GB145: 0 | GC145: 0 | GD145: 0 | GE145: 0 | GF145: 0 | GG145: 0 | GH145: 0 | GI145: 0 | GJ145: 0 | GK145: 0 | GL145: 0 | GM145: =SUM(GM126:GM142) -> 0 | GN145: 2 | GO145: 0 | GP145: 0 | GQ145: 0 | GR145: 0 | GS145: 0 | GT145: 0 | GU145: 0 | GV145: 0 | GW145: 0 | GX145: 0 | GY145: 0 | GZ145: 0 | HA145: 0 | HB145: 0 | HC145: 0 | HD145: 0 | HE145: 14 | HF145: 0 | HG145: 0 | HH145: 6 | HI145: 0 | HJ145: 0 | HK145: 0 | HL145: 0 | HM145: 0 | HN145: 0 | HO145: 2 | HP145: 6 | HQ145: 10 | HR145: 8 | HS145: 130 | HT145: 326 | HU145: 1042 | HV145: 3262 | HW145: 2150 | HX145: 0
A146: =CONCATENATE(A126,"-",A127,"-",A128,"-",A129,"-",A130,"-",A131,"-",A132,"-",A133,"-",A134,"-",A135,"-",A136,"-",A137) -> 1-11-5-2-6-7-8-9-10-4-3-T
B147: BAS001 | C147: BAS002 | D147: BAS003 | E147: BAS004 | F147: BAS005 | G147: BAS006 | H147: BAS007 | I147: BAS008 | J147: BAS009 | K147: BAS010 | L147: BAS011 | M147: BAS012 | N147: BAS013 | O147: BAS014 | P147: BAS015 | Q147: BAS016 | R147: BAS017 | S147: BAS018 | T147: BAS019 | U147: BAS020 | V147: BAS021 | W147: BAS022 | X147: BAS023 | Y147: BAS024 | Z147: BAS025 | AA147: BAS026 | AB147: BAS027 | AC147: BAS028 | AD147: BAS029 | AE147: BAS030 | AF147: BAS031 | AG147: BAS032 | AH147: BAS033 | AI147: BAS034 | AJ147: BAS035 | AK147: BAS036 | AL147: BAS037 | AM147: BAS038 | AN147: BAS039 | AO147: BAS040 | AP147: BAS041 | AQ147: BAS042 | AR147: BAS043 | AS147: BAS044 | AT147: BAS045 | AU147: BAS046 | AV147: BAS047 | AW147: BAS048 | AX147: BAS049 | AY147: BAS050 | AZ147: BAS051 | BA147: BAS052 | BB147: BAS053 | BC147: BAS054 | BD147: BAS055 | BE147: BAS056 | BF147: BAS057 | BG147: BAS058 | BH147: BAS059 | BI147: BAS060 | BJ147: BAS061 | BK147: BAS062 | BL147: BAS063 | BM147: BAS064 | BN147: BAS065 | BO147: BAS066 | BP147: BAS067 | BQ147: BAS068 | BR147: BAS069 | BS147: BAS070 | BT147: BAS071 | BU147: BAS072 | BV147: BAS073 | BW147: BAS074 | BX147: BAS075 | BY147: BAS076 | BZ147: BAS077 | CA147: BAS078 | CB147: BAS079 | CC147: BAS080 | CD147: BAS081 | CE147: BAS082 | CF147: BAS083 | CG147: BAS084 | CH147: BAS085 | CI147: BAS086 | CJ147: BAS087 | CK147: BAS088 | CL147: BAS089 | CM147: BAS090 | CN147: BAS091 | CO147: BAS092 | CP147: BAS093 | CQ147: BAS094 | CR147: BAS095 | CS147: BAS096 | CT147: BAS097 | CU147: BAS098 | CV147: BAS099 | CW147: BAS100 | CX147: BAS101 | CY147: BAS102 | CZ147: BAS103 | DA147: BAS104 | DB147: BAS105 | DC147: BAS106 | DD147: BAS107 | DE147: BAS108 | DF147: BAS109 | DG147: BAS110 | DH147: BAS111 | DI147: BAS112 | DJ147: BAS113 | DK147: BAS114 | DL147: BAS115 | DM147: BAS116 | DN147: BAS117 | DO147: BAS118 | DP147: BAS119 | DQ147: BAS120 | DR147: BAS121 | DS147: BAS122 | DT147: BAS123 | DU147: BAS124 | DV147: BAS125 | DW147: BAS126 | DX147: BAS127 | DY147: BAS128 | DZ147: BAS129 | EA147: BAS130 | EB147: BAS131 | EC147: BAS132 | ED147: BAS133 | EE147: BAS134 | EF147: BAS135 | EG147: BAS136 | EH147: BAS137 | EI147: BAS138 | EJ147: BAS139 | EK147: BAS140 | EL147: BAS141 | EM147: BAS142 | EN147: BAS143 | EO147: BAS144 | EP147: BAS145 | EQ147: BAS146 | ER147: BAS147 | ES147: BAS148 | ET147: BAS149 | EU147: BAS150 | EV147: BAS151 | EW147: BAS152 | EX147: BAS153 | EY147: BAS154 | EZ147: BAS155 | FA147: BAS156 | FB147: BAS157 | FC147: BAS158 | FD147: BAS159 | FE147: BAS160 | FF147: BAS161 | FG147: BAS162 | FH147: BAS163 | FI147: BAS164 | FJ147: BAS165 | FK147: BAS166 | FL147: BAS167 | FM147: BAS168 | FN147: BAS169 | FO147: BAS170 | FP147: BAS171 | FQ147: BAS172 | FR147: BAS173 | FS147: BAS174 | FT147: BAS175 | FU147: BAS176 | FV147: BAS177 | FW147: BAS178 | FX147: BAS179 | FY147: BAS180 | FZ147: BAS181 | GA147: BAS182 | GB147: BAS183 | GC147: BAS184 | GD147: BAS185 | GE147: BAS186 | GF147: BAS187 | GG147: BAS188 | GH147: BAS189 | GI147: BAS190 | GJ147: BAS191 | GK147: BAS192 | GL147: BAS193 | GM147: BAS194 | GN147: BAS195 | GO147: BAS196 | GP147: BAS197 | GQ147: BAS198 | GR147: BAS199 | GS147: BAS200 | GT147: BAS201 | GU147: BAS202 | GV147: BAS203 | GW147: BAS204 | GX147: BAS205 | GY147: BAS206 | GZ147: BAS207 | HA147: BAS208 | HB147: BAS209 | HC147: BAS210 | HD147: BAS211 | HE147: BAS212 | HF147: BAS213 | HG147: BAS214 | HH147: BAS215 | HI147: BAS216 | HJ147: BAS217 | HK147: BAS218 | HL147: BAS219 | HM147: BAS220 | HN147: BAS221 | HO147: BAS222 | HP147: BAS223 | HQ147: BAS224 | HR147: BAS225 | HS147: BAS226 | HT147: BAS227 | HU147: BAS228 | HV147: BAS229 | HW147: BAS230
B148: =IF(B147=B125,"SI","NO") -> SI | C148: =IF(C147=C125,"SI","NO") -> SI | D148: SI | E148: SI | F148: SI | G148: SI | H148: SI | I148: SI | J148: SI | K148: SI | L148: SI | M148: SI | N148: SI | O148: SI | P148: SI | Q148: SI | R148: SI | S148: SI | T148: SI | U148: SI | V148: SI | W148: SI | X148: SI | Y148: SI | Z148: SI | AA148: SI | AB148: SI | AC148: SI | AD148: SI | AE148: SI | AF148: SI | AG148: SI | AH148: SI | AI148: SI | AJ148: SI | AK148: SI | AL148: SI | AM148: SI | AN148: SI | AO148: SI | AP148: SI | AQ148: SI | AR148: SI | AS148: SI | AT148: SI | AU148: SI | AV148: SI | AW148: SI | AX148: SI | AY148: SI | AZ148: SI | BA148: SI | BB148: SI | BC148: SI | BD148: SI | BE148: SI | BF148: SI | BG148: SI | BH148: SI | BI148: SI | BJ148: SI | BK148: SI | BL148: SI | BM148: SI | BN148: SI | BO148: =IF(BO147=BO125,"SI","NO") -> SI | BP148: SI | BQ148: SI | BR148: SI | BS148: SI | BT148: SI | BU148: SI | BV148: SI | BW148: SI | BX148: SI | BY148: SI | BZ148: SI | CA148: SI | CB148: SI | CC148: SI | CD148: SI | CE148: SI | CF148: SI | CG148: SI | CH148: SI | CI148: SI | CJ148: SI | CK148: SI | CL148: SI | CM148: SI | CN148: SI | CO148: SI | CP148: SI | CQ148: SI | CR148: SI | CS148: SI | CT148: SI | CU148: SI | CV148: SI | CW148: SI | CX148: SI | CY148: SI | CZ148: SI | DA148: SI | DB148: SI | DC148: SI | DD148: SI | DE148: SI | DF148: SI | DG148: SI | DH148: SI | DI148: SI | DJ148: SI | DK148: SI | DL148: SI | DM148: SI | DN148: SI | DO148: SI | DP148: SI | DQ148: SI | DR148: SI | DS148: SI | DT148: SI | DU148: SI | DV148: SI | DW148: SI | DX148: SI | DY148: SI | DZ148: SI | EA148: =IF(EA147=EA125,"SI","NO") -> SI | EB148: SI | EC148: SI | ED148: SI | EE148: SI | EF148: SI | EG148: SI | EH148: SI | EI148: SI | EJ148: SI | EK148: SI | EL148: SI | EM148: SI | EN148: SI | EO148: SI | EP148: SI | EQ148: SI | ER148: SI | ES148: SI | ET148: SI | EU148: SI | EV148: SI | EW148: SI | EX148: SI | EY148: SI | EZ148: SI | FA148: SI | FB148: SI | FC148: SI | FD148: SI | FE148: SI | FF148: SI | FG148: SI | FH148: SI | FI148: SI | FJ148: SI | FK148: SI | FL148: SI | FM148: SI | FN148: SI | FO148: SI | FP148: SI | FQ148: SI | FR148: SI | FS148: SI | FT148: SI | FU148: SI | FV148: SI | FW148: SI | FX148: SI | FY148: SI | FZ148: SI | GA148: SI | GB148: SI | GC148: SI | GD148: SI | GE148: SI | GF148: SI | GG148: SI | GH148: SI | GI148: SI | GJ148: SI | GK148: SI | GL148: SI | GM148: =IF(GM147=GM125,"SI","NO") -> SI | GN148: SI | GO148: SI | GP148: SI | GQ148: SI | GR148: SI | GS148: SI | GT148: SI | GU148: SI | GV148: SI | GW148: SI | GX148: SI | GY148: SI | GZ148: SI | HA148: SI | HB148: SI | HC148: SI | HD148: SI | HE148: SI | HF148: SI | HG148: SI | HH148: SI | HI148: SI | HJ148: SI | HK148: SI | HL148: SI | HM148: SI | HN148: SI | HO148: SI | HP148: SI | HQ148: SI | HR148: SI | HS148: SI | HT148: SI | HU148: SI | HV148: SI | HW148: SI | HX148: =IF(HW147=HX125,"SI","NO") -> NO
A151: TUBERCU_02
A152: anno | B152: 2024
A153: cod_red | B153: 03
A154: codmic | B154: (Todas)
A155: cod_prov | B155: (Todas)
A156: coddist | B156: (Todas)
A157: cod_estab | B157: (Todas)
A158: cod_eje | B158: (Todas)
B160: Valores
A161: Etiquetas de fila | B161: BAS001 | C161: BAS002 | D161: BAS003 | E161: BAS004 | F161: BAS005 | G161: BAS006 | H161: BAS007 | I161: BAS008 | J161: BAS009 | K161: BAS010 | L161: BAS011 | M161: BAS012 | N161: BAS013 | O161: BAS014 | P161: BAS015 | Q161: BAS016 | R161: BAS017 | S161: BAS018 | T161: BAS019 | U161: BAS020 | V161: BAS021 | W161: BAS022 | X161: BAS023 | Y161: BAS024 | Z161: BAS025 | AA161: BAS026 | AB161: BAS027 | AC161: BAS028 | AD161: BAS029 | AE161: BAS030 | AF161: BAS031 | AG161: BAS032 | AH161: BAS033 | AI161: BAS034 | AJ161: BAS035 | AK161: BAS036 | AL161: BAS037 | AM161: BAS038 | AN161: BAS039 | AO161: BAS040 | AP161: BAS041 | AQ161: BAS042 | AR161: BAS043 | AS161: BAS044 | AT161: BAS045 | AU161: BAS046 | AV161: BAS047 | AW161: BAS048 | AX161: BAS049 | AY161: BAS050 | AZ161: BAS051 | BA161: BAS052 | BB161: BAS053 | BC161: BAS054 | BD161: BAS055 | BE161: BAS056 | BF161: BAS057 | BG161: BAS058 | BH161: BAS059 | BI161: BAS060 | BJ161: BAS061 | BK161: BAS062 | BL161: BAS063 | BM161: BAS064 | BN161: BAS065 | BO161: BAS066 | BP161: BAS067 | BQ161: BAS068 | BR161: BAS069 | BS161: BAS070 | BT161: BAS071 | BU161: BAS072 | BV161: BAS073 | BW161: BAS074 | BX161: BAS075 | BY161: BAS076 | BZ161: BAS077 | CA161: BAS078 | CB161: BAS079 | CC161: BAS080 | CD161: BAS081 | CE161: BAS082 | CF161: BAS083 | CG161: BAS084 | CH161: BAS085 | CI161: BAS086 | CJ161: BAS087 | CK161: BAS088 | CL161: BAS089 | CM161: BAS090 | CN161: BAS091 | CO161: BAS092 | CP161: BAS093 | CQ161: BAS094 | CR161: BAS095 | CS161: BAS096 | CT161: BAS097 | CU161: BAS098 | CV161: BAS099 | CW161: BAS100 | CX161: BAS101 | CY161: BAS102 | CZ161: BAS103 | DA161: BAS104 | DB161: BAS105 | DC161: BAS106 | DD161: BAS107 | DE161: BAS108 | DF161: BAS109 | DG161: BAS110 | DH161: BAS111 | DI161: BAS112 | DJ161: BAS113 | DK161: BAS114 | DL161: BAS115 | DM161: BAS116 | DN161: BAS117 | DO161: BAS118 | DP161: BAS119 | DQ161: BAS120 | DR161: BAS121 | DS161: BAS122 | DT161: BAS123 | DU161: BAS124 | DV161: BAS125 | DW161: BAS126 | DX161: BAS127 | DY161: BAS128 | DZ161: BAS129 | EA161: BAS130 | EB161: BAS131 | EC161: BAS132 | ED161: BAS133 | EE161: BAS134 | EF161: BAS135 | EG161: BAS136 | EH161: BAS137 | EI161: BAS138 | EJ161: BAS139 | EK161: BAS140 | EL161: BAS141 | EM161: BAS142 | EN161: BAS143 | EO161: BAS144 | EP161: BAS145 | EQ161: BAS146 | ER161: BAS147 | ES161: BAS148 | ET161: BAS149 | EU161: BAS150 | EV161: BAS151 | EW161: BAS152 | EX161: BAS153 | EY161: BAS154 | EZ161: BAS155 | FA161: BAS156 | FB161: BAS157 | FC161: BAS158 | FD161: BAS159 | FE161: BAS160 | FF161: BAS161 | FG161: BAS162 | FH161: BAS163 | FI161: BAS164 | FJ161: BAS165 | FK161: BAS166 | FL161: BAS167 | FM161: BAS168 | FN161: BAS169 | FO161: BAS170 | FP161: BAS171 | FQ161: BAS172 | FR161: BAS173 | FS161: BAS174 | FT161: BAS175 | FU161: BAS176 | FV161: BAS177 | FW161: BAS178 | FX161: BAS179 | FY161: BAS180 | FZ161: BAS181 | GA161: BAS182 | GB161: BAS183 | GC161: BAS184 | GD161: BAS185 | GE161: BAS186 | GF161: BAS187 | GG161: BAS188 | GH161: BAS189 | GI161: BAS190 | GJ161: BAS191 | GK161: BAS192 | GL161: BAS193 | GM161: BAS194 | GN161: BAS195 | GO161: BAS196 | GP161: BAS197 | GQ161: BAS198 | GR161: BAS199 | GS161: BAS200 | GT161: BAS201 | GU161: BAS202 | GV161: BAS203 | GW161: BAS204 | GX161: BAS205 | GY161: BAS206 | GZ161: BAS207 | HA161: BAS208 | HB161: BAS209 | HC161: BAS210 | HD161: BAS211 | HE161: BAS212 | HF161: BAS213 | HG161: BAS214 | HH161: BAS215 | HI161: BAS216 | HJ161: BAS217 | HK161: BAS218 | HL161: BAS219 | HM161: BAS220 | HN161: BAS221 | HO161: BAS222 | HP161: BAS223 | HQ161: BAS224 | HR161: BAS225 | HS161: BAS226 | HT161: BAS227 | HU161: BAS228 | HV161: BAS229 | HW161: BAS230
A162: 1 | B162: 0 | C162: 0 | D162: 0 | E162: 0 | F162: 0 | G162: 0 | H162: 0 | I162: 0 | J162: 0 | K162: 1 | L162: 0 | M162: 0 | N162: 0 | O162: 0 | P162: 0 | Q162: 0 | R162: 0 | S162: 0 | T162: 0 | U162: 0 | V162: 0 | W162: 0 | X162: 0 | Y162: 0 | Z162: 0 | AA162: 0 | AB162: 0 | AC162: 0 | AD162: 0 | AE162: 0 | AF162: 0 | AG162: 0 | AH162: 0 | AI162: 0 | AJ162: 0 | AK162: 0 | AL162: 0 | AM162: 0 | AN162: 0 | AO162: 0 | AP162: 0 | AQ162: 0 | AR162: 0 | AS162: 0 | AT162: 0 | AU162: 0 | AV162: 0 | AW162: 0 | AX162: 0 | AY162: 0 | AZ162: 0 | BA162: 0 | BB162: 0 | BC162: 0 | BD162: 0 | BE162: 0 | BF162: 0 | BG162: 0 | BH162: 0 | BI162: 0 | BJ162: 0 | BK162: 0 | BL162: 0 | BM162: 0 | BN162: 0 | BO162: 0 | BP162: 0 | BQ162: 0 | BR162: 0 | BS162: 0 | BT162: 0 | BU162: 0 | BV162: 0 | BW162: 0 | BX162: 0 | BY162: 2 | BZ162: 0 | CA162: 0 | CB162: 0 | CC162: 0 | CD162: 0 | CE162: 0 | CF162: 0 | CG162: 0 | CH162: 0 | CI162: 0 | CJ162: 0 | CK162: 0 | CL162: 0 | CM162: 1 | CN162: 0 | CO162: 0 | CP162: 0 | CQ162: 2 | CR162: 0 | CS162: 0 | CT162: 0 | CU162: 0 | CV162: 0 | CW162: 0 | CX162: 0 | CY162: 0 | CZ162: 0 | DA162: 0 | DB162: 0 | DC162: 0 | DD162: 0 | DE162: 0 | DF162: 0 | DG162: 0 | DH162: 0 | DI162: 0 | DJ162: 0 | DK162: 0 | DL162: 0 | DM162: 0 | DN162: 0 | DO162: 0 | DP162: 0 | DQ162: 0 | DR162: 0 | DS162: 0 | DT162: 0 | DU162: 0 | DV162: 0 | DW162: 0 | DX162: 0 | DY162: 0 | DZ162: 0 | EA162: 0 | EB162: 0 | EC162: 0 | ED162: 0 | EE162: 0 | EF162: 0 | EG162: 0 | EH162: 0 | EI162: 0 | EJ162: 0 | EK162: 0 | EL162: 0 | EM162: 0 | EN162: 0 | EO162: 0 | EP162: 0 | EQ162: 0 | ER162: 0 | ES162: 0 | ET162: 0 | EU162: 0 | EV162: 0 | EW162: 0 | EX162: 0 | EY162: 0 | EZ162: 0 | FA162: 0 | FB162: 0 | FC162: 0 | FD162: 0 | FE162: 0 | FF162: 0 | FG162: 0 | FH162: 0 | FI162: 0 | FJ162: 0 | FK162: 0 | FL162: 0 | FM162: 0 | FN162: 0 | FO162: 0 | FP162: 0 | FQ162: 0 | FR162: 0 | FS162: 0 | FT162: 0 | FU162: 0 | FV162: 0 | FW162: 0 | FX162: 0 | FY162: 0 | FZ162: 0 | GA162: 0 | GB162: 0 | GC162: 0 | GD162: 0 | GE162: 0 | GF162: 0 | GG162: 0 | GH162: 0 | GI162: 0 | GJ162: 0 | GK162: 0 | GL162: 0 | GM162: 0 | GN162: 0 | GO162: 0 | GP162: 0 | GQ162: 0 | GR162: 0 | GS162: 0 | GT162: 0 | GU162: 0 | GV162: 0 | GW162: 0 | GX162: 0 | GY162: 0 | GZ162: 0 | HA162: 0 | HB162: 0 | HC162: 0 | HD162: 0 | HE162: 0 | HF162: 0 | HG162: 0 | HH162: 0 | HI162: 0 | HJ162: 0 | HK162: 0 | HL162: 0 | HM162: 0 | HN162: 0 | HO162: 0 | HP162: 0 | HQ162: 0 | HR162: 0 | HS162: 0 | HT162: 0 | HU162: 0 | HV162: 0 | HW162: 0
A163: 11 | B163: 0 | C163: 0 | D163: 0 | E163: 0 | F163: 0 | G163: 1 | H163: 1 | I163: 1 | J163: 2 | K163: 1 | L163: 0 | M163: 0 | N163: 0 | O163: 0 | P163: 0 | Q163: 0 | R163: 0 | S163: 0 | T163: 0 | U163: 0 | V163: 0 | W163: 0 | X163: 0 | Y163: 0 | Z163: 0 | AA163: 0 | AB163: 0 | AC163: 0 | AD163: 0 | AE163: 0 | AF163: 0 | AG163: 0 | AH163: 0 | AI163: 0 | AJ163: 0 | AK163: 0 | AL163: 0 | AM163: 0 | AN163: 0 | AO163: 0 | AP163: 0 | AQ163: 0 | AR163: 0 | AS163: 0 | AT163: 0 | AU163: 0 | AV163: 0 | AW163: 0 | AX163: 0 | AY163: 0 | AZ163: 0 | BA163: 0 | BB163: 0 | BC163: 0 | BD163: 0 | BE163: 0 | BF163: 0 | BG163: 0 | BH163: 0 | BI163: 0 | BJ163: 0 | BK163: 0 | BL163: 0 | BM163: 0 | BN163: 0 | BO163: 0 | BP163: 0 | BQ163: 0 | BR163: 0 | BS163: 0 | BT163: 0 | BU163: 0 | BV163: 0 | BW163: 0 | BX163: 0 | BY163: 0 | BZ163: 0 | CA163: 0 | CB163: 0 | CC163: 0 | CD163: 0 | CE163: 0 | CF163: 0 | CG163: 0 | CH163: 0 | CI163: 0 | CJ163: 0 | CK163: 0 | CL163: 0 | CM163: 0 | CN163: 1 | CO163: 0 | CP163: 0 | CQ163: 0 | CR163: 0 | CS163: 0 | CT163: 0 | CU163: 0 | CV163: 0 | CW163: 0 | CX163: 0 | CY163: 0 | CZ163: 0 | DA163: 0 | DB163: 0 | DC163: 0 | DD163: 0 | DE163: 0 | DF163: 0 | DG163: 0 | DH163: 0 | DI163: 0 | DJ163: 0 | DK163: 0 | DL163: 0 | DM163: 0 | DN163: 0 | DO163: 0 | DP163: 0 | DQ163: 0 | DR163: 0 | DS163: 0 | DT163: 0 | DU163: 0 | DV163: 0 | DW163: 0 | DX163: 0 | DY163: 0 | DZ163: 0 | EA163: 0 | EB163: 0 | EC163: 0 | ED163: 0 | EE163: 0 | EF163: 0 | EG163: 0 | EH163: 0 | EI163: 0 | EJ163: 0 | EK163: 0 | EL163: 0 | EM163: 0 | EN163: 0 | EO163: 0 | EP163: 0 | EQ163: 0 | ER163: 0 | ES163: 0 | ET163: 0 | EU163: 0 | EV163: 0 | EW163: 0 | EX163: 0 | EY163: 0 | EZ163: 0 | FA163: 0 | FB163: 0 | FC163: 0 | FD163: 0 | FE163: 0 | FF163: 0 | FG163: 0 | FH163: 0 | FI163: 0 | FJ163: 0 | FK163: 0 | FL163: 0 | FM163: 0 | FN163: 0 | FO163: 0 | FP163: 0 | FQ163: 0 | FR163: 0 | FS163: 0 | FT163: 0 | FU163: 0 | FV163: 0 | FW163: 0 | FX163: 0 | FY163: 0 | FZ163: 0 | GA163: 0 | GB163: 0 | GC163: 0 | GD163: 0 | GE163: 0 | GF163: 0 | GG163: 0 | GH163: 0 | GI163: 0 | GJ163: 0 | GK163: 0 | GL163: 0 | GM163: 0 | GN163: 0 | GO163: 0 | GP163: 0 | GQ163: 0 | GR163: 0 | GS163: 0 | GT163: 0 | GU163: 0 | GV163: 0 | GW163: 0 | GX163: 0 | GY163: 0 | GZ163: 0 | HA163: 0 | HB163: 0 | HC163: 0 | HD163: 0 | HE163: 0 | HF163: 0 | HG163: 0 | HH163: 0 | HI163: 0 | HJ163: 0 | HK163: 0 | HL163: 0 | HM163: 0 | HN163: 0 | HO163: 0 | HP163: 0 | HQ163: 0 | HR163: 0 | HS163: 0 | HT163: 0 | HU163: 0 | HV163: 0 | HW163: 0
A164: 5 | B164: 0 | C164: 0 | D164: 0 | E164: 0 | F164: 0 | G164: 0 | H164: 0 | I164: 0 | J164: 4 | K164: 1 | L164: 0 | M164: 0 | N164: 0 | O164: 5 | P164: 1 | Q164: 0 | R164: 0 | S164: 0 | T164: 0 | U164: 0 | V164: 0 | W164: 0 | X164: 0 | Y164: 0 | Z164: 0 | AA164: 0 | AB164: 0 | AC164: 0 | AD164: 0 | AE164: 0 | AF164: 0 | AG164: 0 | AH164: 0 | AI164: 0 | AJ164: 0 | AK164: 0 | AL164: 0 | AM164: 0 | AN164: 0 | AO164: 0 | AP164: 0 | AQ164: 0 | AR164: 0 | AS164: 0 | AT164: 0 | AU164: 0 | AV164: 0 | AW164: 0 | AX164: 0 | AY164: 0 | AZ164: 0 | BA164: 0 | BB164: 0 | BC164: 0 | BD164: 0 | BE164: 0 | BF164: 0 | BG164: 0 | BH164: 0 | BI164: 0 | BJ164: 0 | BK164: 0 | BL164: 0 | BM164: 0 | BN164: 0 | BO164: 0 | BP164: 0 | BQ164: 0 | BR164: 0 | BS164: 0 | BT164: 0 | BU164: 0 | BV164: 0 | BW164: 0 | BX164: 5 | BY164: 1 | BZ164: 0 | CA164: 0 | CB164: 0 | CC164: 0 | CD164: 0 | CE164: 0 | CF164: 0 | CG164: 0 | CH164: 0 | CI164: 0 | CJ164: 0 | CK164: 0 | CL164: 0 | CM164: 1 | CN164: 0 | CO164: 1 | CP164: 0 | CQ164: 3 | CR164: 0 | CS164: 0 | CT164: 1 | CU164: 1 | CV164: 0 | CW164: 1 | CX164: 0 | CY164: 0 | CZ164: 0 | DA164: 0 | DB164: 0 | DC164: 0 | DD164: 0 | DE164: 0 | DF164: 0 | DG164: 0 | DH164: 0 | DI164: 0 | DJ164: 0 | DK164: 0 | DL164: 0 | DM164: 0 | DN164: 0 | DO164: 0 | DP164: 1 | DQ164: 2 | DR164: 0 | DS164: 0 | DT164: 0 | DU164: 0 | DV164: 0 | DW164: 0 | DX164: 0 | DY164: 1 | DZ164: 0 | EA164: 0 | EB164: 0 | EC164: 0 | ED164: 0 | EE164: 0 | EF164: 0 | EG164: 0 | EH164: 0 | EI164: 0 | EJ164: 0 | EK164: 1 | EL164: 0 | EM164: 0 | EN164: 0 | EO164: 0 | EP164: 0 | EQ164: 0 | ER164: 0 | ES164: 0 | ET164: 0 | EU164: 0 | EV164: 0 | EW164: 0 | EX164: 0 | EY164: 0 | EZ164: 0 | FA164: 0 | FB164: 0 | FC164: 0 | FD164: 0 | FE164: 0 | FF164: 0 | FG164: 0 | FH164: 0 | FI164: 0 | FJ164: 0 | FK164: 0 | FL164: 0 | FM164: 0 | FN164: 0 | FO164: 0 | FP164: 0 | FQ164: 0 | FR164: 0 | FS164: 0 | FT164: 0 | FU164: 0 | FV164: 0 | FW164: 0 | FX164: 0 | FY164: 0 | FZ164: 0 | GA164: 0 | GB164: 0 | GC164: 0 | GD164: 0 | GE164: 0 | GF164: 0 | GG164: 0 | GH164: 0 | GI164: 0 | GJ164: 0 | GK164: 0 | GL164: 0 | GM164: 0 | GN164: 0 | GO164: 0 | GP164: 0 | GQ164: 0 | GR164: 0 | GS164: 0 | GT164: 0 | GU164: 0 | GV164: 0 | GW164: 0 | GX164: 0 | GY164: 0 | GZ164: 0 | HA164: 0 | HB164: 0 | HC164: 0 | HD164: 0 | HE164: 0 | HF164: 0 | HG164: 0 | HH164: 0 | HI164: 0 | HJ164: 0 | HK164: 0 | HL164: 0 | HM164: 0 | HN164: 0 | HO164: 0 | HP164: 0 | HQ164: 0 | HR164: 0 | HS164: 0 | HT164: 0 | HU164: 0 | HV164: 0 | HW164: 0
A165: 2 | B165: 0 | C165: 0 | D165: 0 | E165: 0 | F165: 0 | G165: 0 | H165: 0 | I165: 5 | J165: 3 | K165: 1 | L165: 0 | M165: 0 | N165: 5 | O165: 2 | P165: 0 | Q165: 0 | R165: 0 | S165: 0 | T165: 0 | U165: 0 | V165: 0 | W165: 0 | X165: 0 | Y165: 0 | Z165: 0 | AA165: 0 | AB165: 0 | AC165: 0 | AD165: 0 | AE165: 0 | AF165: 0 | AG165: 0 | AH165: 0 | AI165: 0 | AJ165: 0 | AK165: 0 | AL165: 0 | AM165: 0 | AN165: 0 | AO165: 0 | AP165: 0 | AQ165: 0 | AR165: 0 | AS165: 0 | AT165: 0 | AU165: 0 | AV165: 0 | AW165: 0 | AX165: 0 | AY165: 0 | AZ165: 0 | BA165: 0 | BB165: 0 | BC165: 0 | BD165: 0 | BE165: 0 | BF165: 0 | BG165: 0 | BH165: 0 | BI165: 0 | BJ165: 0 | BK165: 0 | BL165: 0 | BM165: 0 | BN165: 0 | BO165: 0 | BP165: 0 | BQ165: 0 | BR165: 0 | BS165: 0 | BT165: 0 | BU165: 0 | BV165: 0 | BW165: 2 | BX165: 1 | BY165: 0 | BZ165: 0 | CA165: 0 | CB165: 0 | CC165: 0 | CD165: 0 | CE165: 0 | CF165: 0 | CG165: 0 | CH165: 0 | CI165: 0 | CJ165: 0 | CK165: 0 | CL165: 1 | CM165: 1 | CN165: 0 | CO165: 0 | CP165: 0 | CQ165: 1 | CR165: 0 | CS165: 0 | CT165: 1 | CU165: 1 | CV165: 2 | CW165: 1 | CX165: 0 | CY165: 0 | CZ165: 0 | DA165: 0 | DB165: 0 | DC165: 0 | DD165: 0 | DE165: 0 | DF165: 0 | DG165: 0 | DH165: 0 | DI165: 0 | DJ165: 0 | DK165: 0 | DL165: 0 | DM165: 0 | DN165: 0 | DO165: 0 | DP165: 0 | DQ165: 0 | DR165: 0 | DS165: 0 | DT165: 0 | DU165: 0 | DV165: 0 | DW165: 0 | DX165: 0 | DY165: 0 | DZ165: 0 | EA165: 0 | EB165: 0 | EC165: 0 | ED165: 0 | EE165: 0 | EF165: 0 | EG165: 0 | EH165: 0 | EI165: 0 | EJ165: 0 | EK165: 0 | EL165: 0 | EM165: 0 | EN165: 0 | EO165: 0 | EP165: 0 | EQ165: 0 | ER165: 0 | ES165: 0 | ET165: 0 | EU165: 0 | EV165: 0 | EW165: 0 | EX165: 0 | EY165: 0 | EZ165: 0 | FA165: 0 | FB165: 0 | FC165: 0 | FD165: 0 | FE165: 0 | FF165: 0 | FG165: 0 | FH165: 0 | FI165: 0 | FJ165: 0 | FK165: 0 | FL165: 0 | FM165: 0 | FN165: 0 | FO165: 0 | FP165: 0 | FQ165: 0 | FR165: 0 | FS165: 0 | FT165: 0 | FU165: 0 | FV165: 0 | FW165: 0 | FX165: 0 | FY165: 0 | FZ165: 0 | GA165: 0 | GB165: 0 | GC165: 0 | GD165: 0 | GE165: 0 | GF165: 0 | GG165: 0 | GH165: 0 | GI165: 0 | GJ165: 0 | GK165: 0 | GL165: 0 | GM165: 0 | GN165: 0 | GO165: 0 | GP165: 0 | GQ165: 0 | GR165: 0 | GS165: 0 | GT165: 0 | GU165: 0 | GV165: 0 | GW165: 0 | GX165: 0 | GY165: 0 | GZ165: 0 | HA165: 0 | HB165: 0 | HC165: 0 | HD165: 0 | HE165: 0 | HF165: 0 | HG165: 0 | HH165: 0 | HI165: 0 | HJ165: 0 | HK165: 0 | HL165: 0 | HM165: 0 | HN165: 0 | HO165: 0 | HP165: 0 | HQ165: 0 | HR165: 0 | HS165: 0 | HT165: 0 | HU165: 0 | HV165: 0 | HW165: 0
A166: 6 | B166: 0 | C166: 0 | D166: 0 | E166: 0 | F166: 0 | G166: 0 | H166: 1 | I166: 1 | J166: 3 | K166: 2 | L166: 0 | M166: 1 | N166: 1 | O166: 4 | P166: 1 | Q166: 0 | R166: 0 | S166: 0 | T166: 0 | U166: 0 | V166: 0 | W166: 0 | X166: 0 | Y166: 0 | Z166: 0 | AA166: 0 | AB166: 0 | AC166: 0 | AD166: 0 | AE166: 0 | AF166: 0 | AG166: 0 | AH166: 0 | AI166: 0 | AJ166: 0 | AK166: 0 | AL166: 0 | AM166: 0 | AN166: 0 | AO166: 0 | AP166: 0 | AQ166: 0 | AR166: 0 | AS166: 0 | AT166: 0 | AU166: 0 | AV166: 0 | AW166: 0 | AX166: 0 | AY166: 0 | AZ166: 0 | BA166: 0 | BB166: 0 | BC166: 0 | BD166: 0 | BE166: 0 | BF166: 0 | BG166: 0 | BH166: 0 | BI166: 0 | BJ166: 0 | BK166: 0 | BL166: 0 | BM166: 0 | BN166: 0 | BO166: 0 | BP166: 0 | BQ166: 0 | BR166: 0 | BS166: 0 | BT166: 0 | BU166: 0 | BV166: 1 | BW166: 1 | BX166: 2 | BY166: 2 | BZ166: 0 | CA166: 0 | CB166: 0 | CC166: 0 | CD166: 0 | CE166: 0 | CF166: 0 | CG166: 0 | CH166: 0 | CI166: 0 | CJ166: 0 | CK166: 0 | CL166: 0 | CM166: 0 | CN166: 0 | CO166: 1 | CP166: 0 | CQ166: 1 | CR166: 0 | CS166: 0 | CT166: 0 | CU166: 1 | CV166: 0 | CW166: 0 | CX166: 0 | CY166: 0 | CZ166: 0 | DA166: 0 | DB166: 0 | DC166: 0 | DD166: 0 | DE166: 0 | DF166: 0 | DG166: 0 | DH166: 0 | DI166: 0 | DJ166: 0 | DK166: 0 | DL166: 0 | DM166: 0 | DN166: 0 | DO166: 0 | DP166: 0 | DQ166: 2 | DR166: 0 | DS166: 0 | DT166: 0 | DU166: 2 | DV166: 0 | DW166: 0 | DX166: 1 | DY166: 0 | DZ166: 0 | EA166: 0 | EB166: 1 | EC166: 0 | ED166: 0 | EE166: 0 | EF166: 0 | EG166: 0 | EH166: 0 | EI166: 0 | EJ166: 0 | EK166: 0 | EL166: 0 | EM166: 0 | EN166: 0 | EO166: 0 | EP166: 0 | EQ166: 0 | ER166: 0 | ES166: 0 | ET166: 0 | EU166: 0 | EV166: 0 | EW166: 0 | EX166: 0 | EY166: 0 | EZ166: 0 | FA166: 0 | FB166: 0 | FC166: 0 | FD166: 0 | FE166: 0 | FF166: 0 | FG166: 0 | FH166: 0 | FI166: 0 | FJ166: 0 | FK166: 0 | FL166: 0 | FM166: 0 | FN166: 0 | FO166: 0 | FP166: 0 | FQ166: 0 | FR166: 0 | FS166: 0 | FT166: 0 | FU166: 0 | FV166: 0 | FW166: 0 | FX166: 0 | FY166: 0 | FZ166: 0 | GA166: 0 | GB166: 0 | GC166: 0 | GD166: 0 | GE166: 0 | GF166: 0 | GG166: 0 | GH166: 0 | GI166: 0 | GJ166: 0 | GK166: 0 | GL166: 0 | GM166: 0 | GN166: 0 | GO166: 0 | GP166: 0 | GQ166: 0 | GR166: 0 | GS166: 0 | GT166: 0 | GU166: 0 | GV166: 0 | GW166: 0 | GX166: 0 | GY166: 0 | GZ166: 0 | HA166: 0 | HB166: 0 | HC166: 0 | HD166: 0 | HE166: 0 | HF166: 0 | HG166: 0 | HH166: 0 | HI166: 0 | HJ166: 0 | HK166: 0 | HL166: 0 | HM166: 0 | HN166: 0 | HO166: 0 | HP166: 0 | HQ166: 0 | HR166: 0 | HS166: 0 | HT166: 0 | HU166: 0 | HV166: 0 | HW166: 0
A167: 7 | B167: 0 | C167: 0 | D167: 0 | E167: 0 | F167: 0 | G167: 0 | H167: 0 | I167: 2 | J167: 3 | K167: 0 | L167: 0 | M167: 0 | N167: 0 | O167: 0 | P167: 0 | Q167: 0 | R167: 0 | S167: 0 | T167: 0 | U167: 0 | V167: 0 | W167: 0 | X167: 0 | Y167: 0 | Z167: 0 | AA167: 0 | AB167: 0 | AC167: 0 | AD167: 0 | AE167: 0 | AF167: 0 | AG167: 0 | AH167: 0 | AI167: 0 | AJ167: 0 | AK167: 0 | AL167: 0 | AM167: 0 | AN167: 0 | AO167: 0 | AP167: 0 | AQ167: 0 | AR167: 0 | AS167: 0 | AT167: 0 | AU167: 0 | AV167: 0 | AW167: 0 | AX167: 0 | AY167: 0 | AZ167: 0 | BA167: 0 | BB167: 0 | BC167: 0 | BD167: 0 | BE167: 0 | BF167: 0 | BG167: 0 | BH167: 0 | BI167: 0 | BJ167: 0 | BK167: 0 | BL167: 0 | BM167: 0 | BN167: 0 | BO167: 0 | BP167: 0 | BQ167: 0 | BR167: 0 | BS167: 0 | BT167: 0 | BU167: 0 | BV167: 0 | BW167: 0 | BX167: 0 | BY167: 0 | BZ167: 0 | CA167: 0 | CB167: 0 | CC167: 0 | CD167: 0 | CE167: 0 | CF167: 0 | CG167: 0 | CH167: 0 | CI167: 0 | CJ167: 0 | CK167: 0 | CL167: 0 | CM167: 0 | CN167: 0 | CO167: 0 | CP167: 0 | CQ167: 1 | CR167: 0 | CS167: 0 | CT167: 0 | CU167: 0 | CV167: 0 | CW167: 0 | CX167: 0 | CY167: 0 | CZ167: 0 | DA167: 0 | DB167: 0 | DC167: 0 | DD167: 0 | DE167: 0 | DF167: 0 | DG167: 1 | DH167: 0 | DI167: 0 | DJ167: 0 | DK167: 0 | DL167: 0 | DM167: 0 | DN167: 0 | DO167: 0 | DP167: 0 | DQ167: 0 | DR167: 0 | DS167: 0 | DT167: 0 | DU167: 0 | DV167: 0 | DW167: 0 | DX167: 0 | DY167: 0 | DZ167: 0 | EA167: 0 | EB167: 0 | EC167: 0 | ED167: 0 | EE167: 0 | EF167: 0 | EG167: 0 | EH167: 0 | EI167: 0 | EJ167: 0 | EK167: 0 | EL167: 0 | EM167: 0 | EN167: 0 | EO167: 0 | EP167: 0 | EQ167: 0 | ER167: 0 | ES167: 0 | ET167: 0 | EU167: 0 | EV167: 0 | EW167: 0 | EX167: 0 | EY167: 0 | EZ167: 0 | FA167: 0 | FB167: 0 | FC167: 0 | FD167: 0 | FE167: 0 | FF167: 0 | FG167: 0 | FH167: 0 | FI167: 0 | FJ167: 0 | FK167: 0 | FL167: 0 | FM167: 0 | FN167: 0 | FO167: 0 | FP167: 0 | FQ167: 0 | FR167: 0 | FS167: 0 | FT167: 0 | FU167: 0 | FV167: 0 | FW167: 0 | FX167: 0 | FY167: 0 | FZ167: 0 | GA167: 0 | GB167: 0 | GC167: 0 | GD167: 0 | GE167: 0 | GF167: 0 | GG167: 0 | GH167: 0 | GI167: 0 | GJ167: 0 | GK167: 0 | GL167: 0 | GM167: 0 | GN167: 0 | GO167: 0 | GP167: 0 | GQ167: 0 | GR167: 0 | GS167: 0 | GT167: 0 | GU167: 0 | GV167: 0 | GW167: 0 | GX167: 0 | GY167: 0 | GZ167: 0 | HA167: 0 | HB167: 0 | HC167: 0 | HD167: 0 | HE167: 0 | HF167: 0 | HG167: 0 | HH167: 0 | HI167: 0 | HJ167: 0 | HK167: 0 | HL167: 0 | HM167: 0 | HN167: 0 | HO167: 0 | HP167: 0 | HQ167: 0 | HR167: 0 | HS167: 0 | HT167: 0 | HU167: 0 | HV167: 0 | HW167: 0
A168: 8 | B168: 0 | C168: 0 | D168: 0 | E168: 0 | F168: 0 | G168: 0 | H168: 1 | I168: 1 | J168: 2 | K168: 2 | L168: 0 | M168: 0 | N168: 0 | O168: 0 | P168: 0 | Q168: 0 | R168: 0 | S168: 0 | T168: 0 | U168: 0 | V168: 0 | W168: 0 | X168: 0 | Y168: 0 | Z168: 0 | AA168: 0 | AB168: 0 | AC168: 0 | AD168: 0 | AE168: 0 | AF168: 0 | AG168: 0 | AH168: 0 | AI168: 0 | AJ168: 0 | AK168: 0 | AL168: 0 | AM168: 0 | AN168: 0 | AO168: 0 | AP168: 0 | AQ168: 0 | AR168: 0 | AS168: 0 | AT168: 0 | AU168: 0 | AV168: 0 | AW168: 0 | AX168: 0 | AY168: 0 | AZ168: 0 | BA168: 0 | BB168: 0 | BC168: 0 | BD168: 0 | BE168: 0 | BF168: 0 | BG168: 0 | BH168: 0 | BI168: 0 | BJ168: 0 | BK168: 0 | BL168: 0 | BM168: 0 | BN168: 0 | BO168: 0 | BP168: 0 | BQ168: 0 | BR168: 0 | BS168: 0 | BT168: 0 | BU168: 0 | BV168: 0 | BW168: 0 | BX168: 0 | BY168: 0 | BZ168: 0 | CA168: 0 | CB168: 0 | CC168: 0 | CD168: 0 | CE168: 0 | CF168: 0 | CG168: 0 | CH168: 0 | CI168: 0 | CJ168: 0 | CK168: 0 | CL168: 0 | CM168: 0 | CN168: 0 | CO168: 0 | CP168: 0 | CQ168: 1 | CR168: 0 | CS168: 0 | CT168: 0 | CU168: 1 | CV168: 0 | CW168: 0 | CX168: 0 | CY168: 0 | CZ168: 0 | DA168: 0 | DB168: 0 | DC168: 0 | DD168: 0 | DE168: 0 | DF168: 0 | DG168: 0 | DH168: 0 | DI168: 0 | DJ168: 0 | DK168: 0 | DL168: 0 | DM168: 0 | DN168: 0 | DO168: 0 | DP168: 0 | DQ168: 0 | DR168: 0 | DS168: 0 | DT168: 0 | DU168: 0 | DV168: 0 | DW168: 0 | DX168: 0 | DY168: 0 | DZ168: 0 | EA168: 0 | EB168: 0 | EC168: 0 | ED168: 0 | EE168: 0 | EF168: 0 | EG168: 0 | EH168: 0 | EI168: 0 | EJ168: 0 | EK168: 0 | EL168: 0 | EM168: 0 | EN168: 0 | EO168: 0 | EP168: 0 | EQ168: 0 | ER168: 0 | ES168: 0 | ET168: 0 | EU168: 0 | EV168: 0 | EW168: 0 | EX168: 0 | EY168: 0 | EZ168: 0 | FA168: 0 | FB168: 0 | FC168: 0 | FD168: 0 | FE168: 0 | FF168: 0 | FG168: 0 | FH168: 0 | FI168: 0 | FJ168: 0 | FK168: 0 | FL168: 0 | FM168: 0 | FN168: 0 | FO168: 0 | FP168: 0 | FQ168: 0 | FR168: 0 | FS168: 0 | FT168: 0 | FU168: 0 | FV168: 0 | FW168: 0 | FX168: 0 | FY168: 0 | FZ168: 0 | GA168: 0 | GB168: 0 | GC168: 0 | GD168: 0 | GE168: 0 | GF168: 0 | GG168: 0 | GH168: 0 | GI168: 0 | GJ168: 0 | GK168: 0 | GL168: 0 | GM168: 0 | GN168: 0 | GO168: 0 | GP168: 0 | GQ168: 0 | GR168: 0 | GS168: 0 | GT168: 0 | GU168: 0 | GV168: 0 | GW168: 0 | GX168: 0 | GY168: 0 | GZ168: 0 | HA168: 0 | HB168: 0 | HC168: 0 | HD168: 0 | HE168: 0 | HF168: 0 | HG168: 0 | HH168: 0 | HI168: 0 | HJ168: 0 | HK168: 0 | HL168: 0 | HM168: 0 | HN168: 0 | HO168: 0 | HP168: 0 | HQ168: 0 | HR168: 0 | HS168: 0 | HT168: 0 | HU168: 0 | HV168: 0 | HW168: 0
A169: 9 | B169: 0 | C169: 0 | D169: 0 | E169: 0 | F169: 0 | G169: 0 | H169: 0 | I169: 0 | J169: 2 | K169: 0 | L169: 0 | M169: 0 | N169: 0 | O169: 0 | P169: 0 | Q169: 0 | R169: 0 | S169: 0 | T169: 0 | U169: 0 | V169: 0 | W169: 0 | X169: 0 | Y169: 0 | Z169: 0 | AA169: 0 | AB169: 0 | AC169: 0 | AD169: 0 | AE169: 0 | AF169: 0 | AG169: 0 | AH169: 0 | AI169: 0 | AJ169: 0 | AK169: 0 | AL169: 0 | AM169: 0 | AN169: 0 | AO169: 0 | AP169: 0 | AQ169: 0 | AR169: 0 | AS169: 0 | AT169: 0 | AU169: 0 | AV169: 0 | AW169: 0 | AX169: 0 | AY169: 0 | AZ169: 0 | BA169: 0 | BB169: 0 | BC169: 0 | BD169: 0 | BE169: 0 | BF169: 0 | BG169: 0 | BH169: 0 | BI169: 0 | BJ169: 0 | BK169: 0 | BL169: 0 | BM169: 0 | BN169: 0 | BO169: 0 | BP169: 0 | BQ169: 0 | BR169: 0 | BS169: 0 | BT169: 0 | BU169: 0 | BV169: 0 | BW169: 0 | BX169: 0 | BY169: 0 | BZ169: 0 | CA169: 0 | CB169: 0 | CC169: 0 | CD169: 0 | CE169: 0 | CF169: 0 | CG169: 0 | CH169: 0 | CI169: 0 | CJ169: 0 | CK169: 0 | CL169: 0 | CM169: 0 | CN169: 0 | CO169: 0 | CP169: 0 | CQ169: 0 | CR169: 0 | CS169: 0 | CT169: 0 | CU169: 0 | CV169: 0 | CW169: 0 | CX169: 0 | CY169: 0 | CZ169: 0 | DA169: 0 | DB169: 0 | DC169: 0 | DD169: 0 | DE169: 0 | DF169: 0 | DG169: 3 | DH169: 0 | DI169: 0 | DJ169: 0 | DK169: 0 | DL169: 0 | DM169: 0 | DN169: 0 | DO169: 0 | DP169: 0 | DQ169: 0 | DR169: 0 | DS169: 0 | DT169: 1 | DU169: 0 | DV169: 0 | DW169: 2 | DX169: 0 | DY169: 0 | DZ169: 0 | EA169: 0 | EB169: 0 | EC169: 1 | ED169: 0 | EE169: 1 | EF169: 0 | EG169: 0 | EH169: 0 | EI169: 0 | EJ169: 0 | EK169: 0 | EL169: 0 | EM169: 0 | EN169: 0 | EO169: 0 | EP169: 0 | EQ169: 0 | ER169: 0 | ES169: 0 | ET169: 0 | EU169: 0 | EV169: 0 | EW169: 0 | EX169: 0 | EY169: 0 | EZ169: 0 | FA169: 0 | FB169: 0 | FC169: 0 | FD169: 0 | FE169: 0 | FF169: 0 | FG169: 0 | FH169: 0 | FI169: 0 | FJ169: 0 | FK169: 0 | FL169: 0 | FM169: 0 | FN169: 0 | FO169: 0 | FP169: 0 | FQ169: 0 | FR169: 0 | FS169: 0 | FT169: 0 | FU169: 0 | FV169: 0 | FW169: 0 | FX169: 0 | FY169: 0 | FZ169: 0 | GA169: 0 | GB169: 0 | GC169: 0 | GD169: 0 | GE169: 0 | GF169: 0 | GG169: 0 | GH169: 0 | GI169: 0 | GJ169: 0 | GK169: 0 | GL169: 0 | GM169: 0 | GN169: 0 | GO169: 0 | GP169: 0 | GQ169: 0 | GR169: 0 | GS169: 0 | GT169: 0 | GU169: 0 | GV169: 0 | GW169: 0 | GX169: 0 | GY169: 0 | GZ169: 0 | HA169: 0 | HB169: 0 | HC169: 0 | HD169: 0 | HE169: 0 | HF169: 0 | HG169: 0 | HH169: 0 | HI169: 0 | HJ169: 0 | HK169: 0 | HL169: 0 | HM169: 0 | HN169: 0 | HO169: 0 | HP169: 0 | HQ169: 0 | HR169: 0 | HS169: 0 | HT169: 0 | HU169: 0 | HV169: 0 | HW169: 0
A170: 10 | B170: 0 | C170: 0 | D170: 0 | E170: 0 | F170: 0 | G170: 0 | H170: 0 | I170: 0 | J170: 1 | K170: 0 | L170: 0 | M170: 0 | N170: 0 | O170: 0 | P170: 0 | Q170: 0 | R170: 0 | S170: 0 | T170: 0 | U170: 0 | V170: 0 | W170: 0 | X170: 0 | Y170: 0 | Z170: 0 | AA170: 0 | AB170: 0 | AC170: 0 | AD170: 0 | AE170: 0 | AF170: 0 | AG170: 0 | AH170: 0 | AI170: 0 | AJ170: 0 | AK170: 0 | AL170: 0 | AM170: 0 | AN170: 0 | AO170: 0 | AP170: 0 | AQ170: 0 | AR170: 0 | AS170: 0 | AT170: 0 | AU170: 0 | AV170: 0 | AW170: 0 | AX170: 0 | AY170: 0 | AZ170: 0 | BA170: 0 | BB170: 0 | BC170: 0 | BD170: 0 | BE170: 0 | BF170: 0 | BG170: 0 | BH170: 0 | BI170: 0 | BJ170: 0 | BK170: 0 | BL170: 0 | BM170: 0 | BN170: 0 | BO170: 0 | BP170: 0 | BQ170: 0 | BR170: 0 | BS170: 0 | BT170: 0 | BU170: 0 | BV170: 0 | BW170: 0 | BX170: 0 | BY170: 0 | BZ170: 0 | CA170: 0 | CB170: 0 | CC170: 0 | CD170: 0 | CE170: 0 | CF170: 0 | CG170: 0 | CH170: 0 | CI170: 0 | CJ170: 0 | CK170: 0 | CL170: 0 | CM170: 1 | CN170: 0 | CO170: 0 | CP170: 0 | CQ170: 2 | CR170: 0 | CS170: 0 | CT170: 0 | CU170: 0 | CV170: 0 | CW170: 0 | CX170: 0 | CY170: 0 | CZ170: 0 | DA170: 1 | DB170: 0 | DC170: 0 | DD170: 0 | DE170: 0 | DF170: 0 | DG170: 0 | DH170: 0 | DI170: 0 | DJ170: 0 | DK170: 0 | DL170: 0 | DM170: 0 | DN170: 0 | DO170: 0 | DP170: 0 | DQ170: 0 | DR170: 0 | DS170: 0 | DT170: 0 | DU170: 0 | DV170: 0 | DW170: 0 | DX170: 0 | DY170: 0 | DZ170: 0 | EA170: 0 | EB170: 0 | EC170: 0 | ED170: 0 | EE170: 0 | EF170: 0 | EG170: 0 | EH170: 0 | EI170: 0 | EJ170: 0 | EK170: 0 | EL170: 0 | EM170: 0 | EN170: 0 | EO170: 0 | EP170: 0 | EQ170: 0 | ER170: 0 | ES170: 0 | ET170: 0 | EU170: 0 | EV170: 0 | EW170: 0 | EX170: 0 | EY170: 0 | EZ170: 0 | FA170: 0 | FB170: 0 | FC170: 0 | FD170: 0 | FE170: 0 | FF170: 0 | FG170: 0 | FH170: 0 | FI170: 0 | FJ170: 0 | FK170: 0 | FL170: 0 | FM170: 0 | FN170: 0 | FO170: 0 | FP170: 0 | FQ170: 0 | FR170: 0 | FS170: 0 | FT170: 0 | FU170: 0 | FV170: 0 | FW170: 0 | FX170: 0 | FY170: 0 | FZ170: 0 | GA170: 0 | GB170: 0 | GC170: 0 | GD170: 0 | GE170: 0 | GF170: 0 | GG170: 0 | GH170: 0 | GI170: 0 | GJ170: 0 | GK170: 0 | GL170: 0 | GM170: 0 | GN170: 0 | GO170: 0 | GP170: 0 | GQ170: 0 | GR170: 0 | GS170: 0 | GT170: 0 | GU170: 0 | GV170: 0 | GW170: 0 | GX170: 0 | GY170: 0 | GZ170: 0 | HA170: 0 | HB170: 0 | HC170: 0 | HD170: 0 | HE170: 0 | HF170: 0 | HG170: 0 | HH170: 0 | HI170: 0 | HJ170: 0 | HK170: 0 | HL170: 0 | HM170: 0 | HN170: 0 | HO170: 0 | HP170: 0 | HQ170: 0 | HR170: 0 | HS170: 0 | HT170: 0 | HU170: 0 | HV170: 0 | HW170: 0
A171: 4 | B171: 0 | C171: 0 | D171: 0 | E171: 0 | F171: 0 | G171: 0 | H171: 0 | I171: 0 | J171: 0 | K171: 1 | L171: 0 | M171: 0 | N171: 0 | O171: 0 | P171: 1 | Q171: 0 | R171: 0 | S171: 0 | T171: 0 | U171: 0 | V171: 0 | W171: 0 | X171: 0 | Y171: 0 | Z171: 1 | AA171: 0 | AB171: 0 | AC171: 0 | AD171: 0 | AE171: 0 | AF171: 0 | AG171: 0 | AH171: 0 | AI171: 0 | AJ171: 0 | AK171: 0 | AL171: 0 | AM171: 0 | AN171: 0 | AO171: 0 | AP171: 0 | AQ171: 0 | AR171: 0 | AS171: 0 | AT171: 0 | AU171: 0 | AV171: 0 | AW171: 0 | AX171: 0 | AY171: 0 | AZ171: 0 | BA171: 0 | BB171: 0 | BC171: 0 | BD171: 0 | BE171: 0 | BF171: 0 | BG171: 0 | BH171: 0 | BI171: 0 | BJ171: 0 | BK171: 0 | BL171: 0 | BM171: 0 | BN171: 0 | BO171: 0 | BP171: 0 | BQ171: 0 | BR171: 0 | BS171: 0 | BT171: 0 | BU171: 0 | BV171: 0 | BW171: 0 | BX171: 0 | BY171: 1 | BZ171: 0 | CA171: 0 | CB171: 0 | CC171: 0 | CD171: 0 | CE171: 0 | CF171: 0 | CG171: 0 | CH171: 0 | CI171: 0 | CJ171: 0 | CK171: 0 | CL171: 0 | CM171: 0 | CN171: 0 | CO171: 1 | CP171: 0 | CQ171: 1 | CR171: 0 | CS171: 0 | CT171: 0 | CU171: 0 | CV171: 0 | CW171: 0 | CX171: 0 | CY171: 3 | CZ171: 0 | DA171: 0 | DB171: 0 | DC171: 0 | DD171: 0 | DE171: 0 | DF171: 0 | DG171: 0 | DH171: 0 | DI171: 0 | DJ171: 0 | DK171: 0 | DL171: 0 | DM171: 0 | DN171: 0 | DO171: 0 | DP171: 0 | DQ171: 0 | DR171: 0 | DS171: 0 | DT171: 0 | DU171: 0 | DV171: 0 | DW171: 0 | DX171: 0 | DY171: 0 | DZ171: 0 | EA171: 0 | EB171: 0 | EC171: 0 | ED171: 0 | EE171: 0 | EF171: 0 | EG171: 0 | EH171: 0 | EI171: 0 | EJ171: 0 | EK171: 0 | EL171: 0 | EM171: 0 | EN171: 0 | EO171: 0 | EP171: 0 | EQ171: 0 | ER171: 0 | ES171: 0 | ET171: 0 | EU171: 0 | EV171: 0 | EW171: 0 | EX171: 0 | EY171: 0 | EZ171: 0 | FA171: 0 | FB171: 0 | FC171: 0 | FD171: 0 | FE171: 0 | FF171: 0 | FG171: 0 | FH171: 0 | FI171: 0 | FJ171: 0 | FK171: 0 | FL171: 0 | FM171: 0 | FN171: 0 | FO171: 0 | FP171: 0 | FQ171: 0 | FR171: 0 | FS171: 0 | FT171: 0 | FU171: 0 | FV171: 0 | FW171: 0 | FX171: 0 | FY171: 0 | FZ171: 0 | GA171: 0 | GB171: 0 | GC171: 0 | GD171: 0 | GE171: 0 | GF171: 0 | GG171: 0 | GH171: 0 | GI171: 0 | GJ171: 0 | GK171: 0 | GL171: 0 | GM171: 0 | GN171: 0 | GO171: 0 | GP171: 0 | GQ171: 0 | GR171: 0 | GS171: 0 | GT171: 0 | GU171: 0 | GV171: 0 | GW171: 0 | GX171: 0 | GY171: 0 | GZ171: 0 | HA171: 0 | HB171: 0 | HC171: 0 | HD171: 0 | HE171: 0 | HF171: 0 | HG171: 0 | HH171: 0 | HI171: 0 | HJ171: 0 | HK171: 0 | HL171: 0 | HM171: 0 | HN171: 0 | HO171: 0 | HP171: 0 | HQ171: 0 | HR171: 0 | HS171: 0 | HT171: 0 | HU171: 0 | HV171: 0 | HW171: 0
A172: 3 | B172: 0 | C172: 0 | D172: 0 | E172: 0 | F172: 0 | G172: 0 | H172: 0 | I172: 0 | J172: 0 | K172: 1 | L172: 0 | M172: 0 | N172: 0 | O172: 0 | P172: 2 | Q172: 0 | R172: 0 | S172: 0 | T172: 0 | U172: 0 | V172: 0 | W172: 0 | X172: 0 | Y172: 0 | Z172: 0 | AA172: 0 | AB172: 0 | AC172: 0 | AD172: 0 | AE172: 0 | AF172: 0 | AG172: 0 | AH172: 0 | AI172: 0 | AJ172: 0 | AK172: 0 | AL172: 0 | AM172: 0 | AN172: 0 | AO172: 0 | AP172: 0 | AQ172: 0 | AR172: 0 | AS172: 0 | AT172: 0 | AU172: 0 | AV172: 0 | AW172: 0 | AX172: 0 | AY172: 0 | AZ172: 0 | BA172: 0 | BB172: 0 | BC172: 0 | BD172: 0 | BE172: 0 | BF172: 0 | BG172: 0 | BH172: 0 | BI172: 0 | BJ172: 0 | BK172: 0 | BL172: 0 | BM172: 0 | BN172: 0 | BO172: 0 | BP172: 0 | BQ172: 0 | BR172: 0 | BS172: 0 | BT172: 0 | BU172: 0 | BV172: 0 | BW172: 0 | BX172: 0 | BY172: 1 | BZ172: 0 | CA172: 0 | CB172: 0 | CC172: 0 | CD172: 0 | CE172: 0 | CF172: 0 | CG172: 0 | CH172: 0 | CI172: 0 | CJ172: 0 | CK172: 0 | CL172: 0 | CM172: 0 | CN172: 0 | CO172: 0 | CP172: 0 | CQ172: 2 | CR172: 0 | CS172: 0 | CT172: 0 | CU172: 0 | CV172: 0 | CW172: 0 | CX172: 0 | CY172: 1 | CZ172: 0 | DA172: 0 | DB172: 0 | DC172: 0 | DD172: 0 | DE172: 0 | DF172: 0 | DG172: 0 | DH172: 0 | DI172: 0 | DJ172: 0 | DK172: 0 | DL172: 0 | DM172: 0 | DN172: 0 | DO172: 0 | DP172: 0 | DQ172: 0 | DR172: 0 | DS172: 0 | DT172: 0 | DU172: 0 | DV172: 0 | DW172: 0 | DX172: 0 | DY172: 0 | DZ172: 0 | EA172: 0 | EB172: 0 | EC172: 0 | ED172: 0 | EE172: 0 | EF172: 0 | EG172: 0 | EH172: 0 | EI172: 1 | EJ172: 0 | EK172: 0 | EL172: 0 | EM172: 0 | EN172: 0 | EO172: 0 | EP172: 0 | EQ172: 0 | ER172: 0 | ES172: 0 | ET172: 0 | EU172: 0 | EV172: 0 | EW172: 0 | EX172: 0 | EY172: 0 | EZ172: 0 | FA172: 0 | FB172: 0 | FC172: 0 | FD172: 0 | FE172: 0 | FF172: 0 | FG172: 0 | FH172: 0 | FI172: 0 | FJ172: 0 | FK172: 0 | FL172: 0 | FM172: 0 | FN172: 0 | FO172: 0 | FP172: 0 | FQ172: 0 | FR172: 0 | FS172: 0 | FT172: 0 | FU172: 0 | FV172: 0 | FW172: 0 | FX172: 0 | FY172: 0 | FZ172: 0 | GA172: 0 | GB172: 0 | GC172: 0 | GD172: 0 | GE172: 0 | GF172: 0 | GG172: 0 | GH172: 0 | GI172: 0 | GJ172: 0 | GK172: 0 | GL172: 0 | GM172: 0 | GN172: 0 | GO172: 0 | GP172: 0 | GQ172: 0 | GR172: 0 | GS172: 0 | GT172: 0 | GU172: 0 | GV172: 0 | GW172: 0 | GX172: 0 | GY172: 0 | GZ172: 0 | HA172: 0 | HB172: 0 | HC172: 0 | HD172: 0 | HE172: 0 | HF172: 0 | HG172: 0 | HH172: 0 | HI172: 0 | HJ172: 0 | HK172: 0 | HL172: 0 | HM172: 0 | HN172: 0 | HO172: 0 | HP172: 0 | HQ172: 0 | HR172: 0 | HS172: 0 | HT172: 0 | HU172: 0 | HV172: 0 | HW172: 0
A173: T | B173: 0 | C173: 0 | D173: 0 | E173: 0 | F173: 0 | G173: 1 | H173: 3 | I173: 10 | J173: 20 | K173: 10 | L173: 0 | M173: 1 | N173: 6 | O173: 11 | P173: 5 | Q173: 0 | R173: 0 | S173: 0 | T173: 0 | U173: 0 | V173: 0 | W173: 0 | X173: 0 | Y173: 0 | Z173: 1 | AA173: 0 | AB173: 0 | AC173: 0 | AD173: 0 | AE173: 0 | AF173: 0 | AG173: 0 | AH173: 0 | AI173: 0 | AJ173: 0 | AK173: 0 | AL173: 0 | AM173: 0 | AN173: 0 | AO173: 0 | AP173: 0 | AQ173: 0 | AR173: 0 | AS173: 0 | AT173: 0 | AU173: 0 | AV173: 0 | AW173: 0 | AX173: 0 | AY173: 0 | AZ173: 0 | BA173: 0 | BB173: 0 | BC173: 0 | BD173: 0 | BE173: 0 | BF173: 0 | BG173: 0 | BH173: 0 | BI173: 0 | BJ173: 0 | BK173: 0 | BL173: 0 | BM173: 0 | BN173: 0 | BO173: 0 | BP173: 0 | BQ173: 0 | BR173: 0 | BS173: 0 | BT173: 0 | BU173: 0 | BV173: 1 | BW173: 3 | BX173: 8 | BY173: 7 | BZ173: 0 | CA173: 0 | CB173: 0 | CC173: 0 | CD173: 0 | CE173: 0 | CF173: 0 | CG173: 0 | CH173: 0 | CI173: 0 | CJ173: 0 | CK173: 0 | CL173: 1 | CM173: 4 | CN173: 1 | CO173: 3 | CP173: 0 | CQ173: 14 | CR173: 0 | CS173: 0 | CT173: 2 | CU173: 4 | CV173: 2 | CW173: 2 | CX173: 0 | CY173: 4 | CZ173: 0 | DA173: 1 | DB173: 0 | DC173: 0 | DD173: 0 | DE173: 0 | DF173: 0 | DG173: 4 | DH173: 0 | DI173: 0 | DJ173: 0 | DK173: 0 | DL173: 0 | DM173: 0 | DN173: 0 | DO173: 0 | DP173: 1 | DQ173: 4 | DR173: 0 | DS173: 0 | DT173: 1 | DU173: 2 | DV173: 0 | DW173: 2 | DX173: 1 | DY173: 1 | DZ173: 0 | EA173: 0 | EB173: 1 | EC173: 1 | ED173: 0 | EE173: 1 | EF173: 0 | EG173: 0 | EH173: 0 | EI173: 1 | EJ173: 0 | EK173: 1 | EL173: 0 | EM173: 0 | EN173: 0 | EO173: 0 | EP173: 0 | EQ173: 0 | ER173: 0 | ES173: 0 | ET173: 0 | EU173: 0 | EV173: 0 | EW173: 0 | EX173: 0 | EY173: 0 | EZ173: 0 | FA173: 0 | FB173: 0 | FC173: 0 | FD173: 0 | FE173: 0 | FF173: 0 | FG173: 0 | FH173: 0 | FI173: 0 | FJ173: 0 | FK173: 0 | FL173: 0 | FM173: 0 | FN173: 0 | FO173: 0 | FP173: 0 | FQ173: 0 | FR173: 0 | FS173: 0 | FT173: 0 | FU173: 0 | FV173: 0 | FW173: 0 | FX173: 0 | FY173: 0 | FZ173: 0 | GA173: 0 | GB173: 0 | GC173: 0 | GD173: 0 | GE173: 0 | GF173: 0 | GG173: 0 | GH173: 0 | GI173: 0 | GJ173: 0 | GK173: 0 | GL173: 0 | GM173: 0 | GN173: 0 | GO173: 0 | GP173: 0 | GQ173: 0 | GR173: 0 | GS173: 0 | GT173: 0 | GU173: 0 | GV173: 0 | GW173: 0 | GX173: 0 | GY173: 0 | GZ173: 0 | HA173: 0 | HB173: 0 | HC173: 0 | HD173: 0 | HE173: 0 | HF173: 0 | HG173: 0 | HH173: 0 | HI173: 0 | HJ173: 0 | HK173: 0 | HL173: 0 | HM173: 0 | HN173: 0 | HO173: 0 | HP173: 0 | HQ173: 0 | HR173: 0 | HS173: 0 | HT173: 0 | HU173: 0 | HV173: 0 | HW173: 0
A180: TOTAL
A181: =COUNT(A162:A178) -> 11 | B181: =SUM(B162:B178) -> 0 | C181: =SUM(C162:C178) -> 0 | D181: 0 | E181: 0 | F181: 0 | G181: 2 | H181: 6 | I181: 20 | J181: 40 | K181: 20 | L181: 0 | M181: 2 | N181: 12 | O181: 22 | P181: 10 | Q181: 0 | R181: 0 | S181: 0 | T181: 0 | U181: 0 | V181: 0 | W181: 0 | X181: 0 | Y181: 0 | Z181: 2 | AA181: 0 | AB181: 0 | AC181: 0 | AD181: 0 | AE181: 0 | AF181: 0 | AG181: 0 | AH181: 0 | AI181: 0 | AJ181: 0 | AK181: 0 | AL181: 0 | AM181: 0 | AN181: 0 | AO181: 0 | AP181: 0 | AQ181: 0 | AR181: 0 | AS181: 0 | AT181: 0 | AU181: 0 | AV181: 0 | AW181: 0 | AX181: 0 | AY181: 0 | AZ181: 0 | BA181: 0 | BB181: 0 | BC181: 0 | BD181: 0 | BE181: 0 | BF181: 0 | BG181: 0 | BH181: 0 | BI181: 0 | BJ181: 0 | BK181: 0 | BL181: 0 | BM181: 0 | BN181: 0 | BO181: =SUM(BO162:BO178) -> 0 | BP181: 0 | BQ181: 0 | BR181: 0 | BS181: 0 | BT181: 0 | BU181: 0 | BV181: 2 | BW181: 6 | BX181: 16 | BY181: 14 | BZ181: 0 | CA181: 0 | CB181: 0 | CC181: 0 | CD181: 0 | CE181: 0 | CF181: 0 | CG181: 0 | CH181: 0 | CI181: 0 | CJ181: 0 | CK181: 0 | CL181: 2 | CM181: 8 | CN181: 2 | CO181: 6 | CP181: 0 | CQ181: 28 | CR181: 0 | CS181: 0 | CT181: 4 | CU181: 8 | CV181: 4 | CW181: 4 | CX181: 0 | CY181: 8 | CZ181: 0 | DA181: 2 | DB181: 0 | DC181: 0 | DD181: 0 | DE181: 0 | DF181: 0 | DG181: 8 | DH181: 0 | DI181: 0 | DJ181: 0 | DK181: 0 | DL181: 0 | DM181: 0 | DN181: 0 | DO181: 0 | DP181: 2 | DQ181: 8 | DR181: 0 | DS181: 0 | DT181: 2 | DU181: 4 | DV181: 0 | DW181: 4 | DX181: 2 | DY181: 2 | DZ181: 0 | EA181: =SUM(EA162:EA178) -> 0 | EB181: 2 | EC181: 2 | ED181: 0 | EE181: 2 | EF181: 0 | EG181: 0 | EH181: 0 | EI181: 2 | EJ181: 0 | EK181: 2 | EL181: 0 | EM181: 0 | EN181: 0 | EO181: 0 | EP181: 0 | EQ181: 0 | ER181: 0 | ES181: 0 | ET181: 0 | EU181: 0 | EV181: 0 | EW181: 0 | EX181: 0 | EY181: 0 | EZ181: 0 | FA181: 0 | FB181: 0 | FC181: 0 | FD181: 0 | FE181: 0 | FF181: 0 | FG181: 0 | FH181: 0 | FI181: 0 | FJ181: 0 | FK181: 0 | FL181: 0 | FM181: 0 | FN181: 0 | FO181: 0 | FP181: 0 | FQ181: 0 | FR181: 0 | FS181: 0 | FT181: 0 | FU181: 0 | FV181: 0 | FW181: 0 | FX181: 0 | FY181: 0 | FZ181: 0 | GA181: 0 | GB181: 0 | GC181: 0 | GD181: 0 | GE181: 0 | GF181: 0 | GG181: 0 | GH181: 0 | GI181: 0 | GJ181: 0 | GK181: 0 | GL181: 0 | GM181: =SUM(GM162:GM178) -> 0 | GN181: 0 | GO181: 0 | GP181: 0 | GQ181: 0 | GR181: 0 | GS181: 0 | GT181: 0 | GU181: 0 | GV181: 0 | GW181: 0 | GX181: 0 | GY181: 0 | GZ181: 0 | HA181: 0 | HB181: 0 | HC181: 0 | HD181: 0 | HE181: 0 | HF181: 0 | HG181: 0 | HH181: 0 | HI181: 0 | HJ181: 0 | HK181: 0 | HL181: 0 | HM181: 0 | HN181: 0 | HO181: 0 | HP181: 0 | HQ181: 0 | HR181: 0 | HS181: 0 | HT181: 0 | HU181: 0 | HV181: 0 | HW181: 0
A182: =CONCATENATE(A162,"-",A163,"-",A164,"-",A165,"-",A166,"-",A167,"-",A168,"-",A169,"-",A170,"-",A171,"-",A172,"-",A173) -> 1-11-5-2-6-7-8-9-10-4-3-T
B183: BAS001 | C183: BAS002 | D183: BAS003 | E183: BAS004 | F183: BAS005 | G183: BAS006 | H183: BAS007 | I183: BAS008 | J183: BAS009 | K183: BAS010 | L183: BAS011 | M183: BAS012 | N183: BAS013 | O183: BAS014 | P183: BAS015 | Q183: BAS016 | R183: BAS017 | S183: BAS018 | T183: BAS019 | U183: BAS020 | V183: BAS021 | W183: BAS022 | X183: BAS023 | Y183: BAS024 | Z183: BAS025 | AA183: BAS026 | AB183: BAS027 | AC183: BAS028 | AD183: BAS029 | AE183: BAS030 | AF183: BAS031 | AG183: BAS032 | AH183: BAS033 | AI183: BAS034 | AJ183: BAS035 | AK183: BAS036 | AL183: BAS037 | AM183: BAS038 | AN183: BAS039 | AO183: BAS040 | AP183: BAS041 | AQ183: BAS042 | AR183: BAS043 | AS183: BAS044 | AT183: BAS045 | AU183: BAS046 | AV183: BAS047 | AW183: BAS048 | AX183: BAS049 | AY183: BAS050 | AZ183: BAS051 | BA183: BAS052 | BB183: BAS053 | BC183: BAS054 | BD183: BAS055 | BE183: BAS056 | BF183: BAS057 | BG183: BAS058 | BH183: BAS059 | BI183: BAS060 | BJ183: BAS061 | BK183: BAS062 | BL183: BAS063 | BM183: BAS064 | BN183: BAS065 | BO183: BAS066 | BP183: BAS067 | BQ183: BAS068 | BR183: BAS069 | BS183: BAS070 | BT183: BAS071 | BU183: BAS072 | BV183: BAS073 | BW183: BAS074 | BX183: BAS075 | BY183: BAS076 | BZ183: BAS077 | CA183: BAS078 | CB183: BAS079 | CC183: BAS080 | CD183: BAS081 | CE183: BAS082 | CF183: BAS083 | CG183: BAS084 | CH183: BAS085 | CI183: BAS086 | CJ183: BAS087 | CK183: BAS088 | CL183: BAS089 | CM183: BAS090 | CN183: BAS091 | CO183: BAS092 | CP183: BAS093 | CQ183: BAS094 | CR183: BAS095 | CS183: BAS096 | CT183: BAS097 | CU183: BAS098 | CV183: BAS099 | CW183: BAS100 | CX183: BAS101 | CY183: BAS102 | CZ183: BAS103 | DA183: BAS104 | DB183: BAS105 | DC183: BAS106 | DD183: BAS107 | DE183: BAS108 | DF183: BAS109 | DG183: BAS110 | DH183: BAS111 | DI183: BAS112 | DJ183: BAS113 | DK183: BAS114 | DL183: BAS115 | DM183: BAS116 | DN183: BAS117 | DO183: BAS118 | DP183: BAS119 | DQ183: BAS120 | DR183: BAS121 | DS183: BAS122 | DT183: BAS123 | DU183: BAS124 | DV183: BAS125 | DW183: BAS126 | DX183: BAS127 | DY183: BAS128 | DZ183: BAS129 | EA183: BAS130 | EB183: BAS131 | EC183: BAS132 | ED183: BAS133 | EE183: BAS134 | EF183: BAS135 | EG183: BAS136 | EH183: BAS137 | EI183: BAS138 | EJ183: BAS139 | EK183: BAS140 | EL183: BAS141 | EM183: BAS142 | EN183: BAS143 | EO183: BAS144 | EP183: BAS145 | EQ183: BAS146 | ER183: BAS147 | ES183: BAS148 | ET183: BAS149 | EU183: BAS150 | EV183: BAS151 | EW183: BAS152 | EX183: BAS153 | EY183: BAS154 | EZ183: BAS155 | FA183: BAS156 | FB183: BAS157 | FC183: BAS158 | FD183: BAS159 | FE183: BAS160 | FF183: BAS161 | FG183: BAS162 | FH183: BAS163 | FI183: BAS164 | FJ183: BAS165 | FK183: BAS166 | FL183: BAS167 | FM183: BAS168 | FN183: BAS169 | FO183: BAS170 | FP183: BAS171 | FQ183: BAS172 | FR183: BAS173 | FS183: BAS174 | FT183: BAS175 | FU183: BAS176 | FV183: BAS177 | FW183: BAS178 | FX183: BAS179 | FY183: BAS180 | FZ183: BAS181 | GA183: BAS182 | GB183: BAS183 | GC183: BAS184 | GD183: BAS185 | GE183: BAS186 | GF183: BAS187 | GG183: BAS188 | GH183: BAS189 | GI183: BAS190 | GJ183: BAS191 | GK183: BAS192 | GL183: BAS193 | GM183: BAS194 | GN183: BAS195 | GO183: BAS196 | GP183: BAS197 | GQ183: BAS198 | GR183: BAS199 | GS183: BAS200 | GT183: BAS201 | GU183: BAS202 | GV183: BAS203 | GW183: BAS204 | GX183: BAS205 | GY183: BAS206 | GZ183: BAS207 | HA183: BAS208 | HB183: BAS209 | HC183: BAS210 | HD183: BAS211 | HE183: BAS212 | HF183: BAS213 | HG183: BAS214 | HH183: BAS215 | HI183: BAS216 | HJ183: BAS217 | HK183: BAS218 | HL183: BAS219 | HM183: BAS220 | HN183: BAS221 | HO183: BAS222 | HP183: BAS223 | HQ183: BAS224 | HR183: BAS225 | HS183: BAS226 | HT183: BAS227 | HU183: BAS228 | HV183: BAS229 | HW183: BAS230
B184: =IF(B183=B161,"SI","NO") -> SI | C184: =IF(C183=C161,"SI","NO") -> SI | D184: SI | E184: SI | F184: SI | G184: SI | H184: SI | I184: SI | J184: SI | K184: SI | L184: SI | M184: SI | N184: SI | O184: SI | P184: SI | Q184: SI | R184: SI | S184: SI | T184: SI | U184: SI | V184: SI | W184: SI | X184: SI | Y184: SI | Z184: SI | AA184: SI | AB184: SI | AC184: SI | AD184: SI | AE184: SI | AF184: SI | AG184: SI | AH184: SI | AI184: SI | AJ184: SI | AK184: SI | AL184: SI | AM184: SI | AN184: SI | AO184: SI | AP184: SI | AQ184: SI | AR184: SI | AS184: SI | AT184: SI | AU184: SI | AV184: SI | AW184: SI | AX184: SI | AY184: SI | AZ184: SI | BA184: SI | BB184: SI | BC184: SI | BD184: SI | BE184: SI | BF184: SI | BG184: SI | BH184: SI | BI184: SI | BJ184: SI | BK184: SI | BL184: SI | BM184: SI | BN184: SI | BO184: =IF(BO183=BO161,"SI","NO") -> SI | BP184: SI | BQ184: SI | BR184: SI | BS184: SI | BT184: SI | BU184: SI | BV184: SI | BW184: SI | BX184: SI | BY184: SI | BZ184: SI | CA184: SI | CB184: SI | CC184: SI | CD184: SI | CE184: SI | CF184: SI | CG184: SI | CH184: SI | CI184: SI | CJ184: SI | CK184: SI | CL184: SI | CM184: SI | CN184: SI | CO184: SI | CP184: SI | CQ184: SI | CR184: SI | CS184: SI | CT184: SI | CU184: SI | CV184: SI | CW184: SI | CX184: SI | CY184: SI | CZ184: SI | DA184: SI | DB184: SI | DC184: SI | DD184: SI | DE184: SI | DF184: SI | DG184: SI | DH184: SI | DI184: SI | DJ184: SI | DK184: SI | DL184: SI | DM184: SI | DN184: SI | DO184: SI | DP184: SI | DQ184: SI | DR184: SI | DS184: SI | DT184: SI | DU184: SI | DV184: SI | DW184: SI | DX184: SI | DY184: SI | DZ184: SI | EA184: =IF(EA183=EA161,"SI","NO") -> SI | EB184: SI | EC184: SI | ED184: SI | EE184: SI | EF184: SI | EG184: SI | EH184: SI | EI184: SI | EJ184: SI | EK184: SI | EL184: SI | EM184: SI | EN184: SI | EO184: SI | EP184: SI | EQ184: SI | ER184: SI | ES184: SI | ET184: SI | EU184: SI | EV184: SI | EW184: SI | EX184: SI | EY184: SI | EZ184: SI | FA184: SI | FB184: SI | FC184: SI | FD184: SI | FE184: SI | FF184: SI | FG184: SI | FH184: SI | FI184: SI | FJ184: SI | FK184: SI | FL184: SI | FM184: SI | FN184: SI | FO184: SI | FP184: SI | FQ184: SI | FR184: SI | FS184: SI | FT184: SI | FU184: SI | FV184: SI | FW184: SI | FX184: SI | FY184: SI | FZ184: SI | GA184: SI | GB184: SI | GC184: SI | GD184: SI | GE184: SI | GF184: SI | GG184: SI | GH184: SI | GI184: SI | GJ184: SI | GK184: SI | GL184: SI | GM184: =IF(GM183=GM161,"SI","NO") -> SI | GN184: SI | GO184: SI | GP184: SI | GQ184: SI | GR184: SI | GS184: SI | GT184: SI | GU184: SI | GV184: SI | GW184: SI | GX184: SI | GY184: SI | GZ184: SI | HA184: SI | HB184: SI | HC184: SI | HD184: SI | HE184: SI | HF184: SI | HG184: SI | HH184: SI | HI184: SI | HJ184: SI | HK184: SI | HL184: SI | HM184: SI | HN184: SI | HO184: SI | HP184: SI | HQ184: SI | HR184: SI | HS184: SI | HT184: SI | HU184: SI | HV184: SI | HW184: SI
A186: TUBERCU_03
A187: anno | B187: 2024
A188: cod_red | B188: 03
A189: codmic | B189: (Todas)
A190: cod_prov | B190: (Todas)
A191: coddist | B191: (Todas)
A192: cod_estab | B192: (Todas)
A193: cod_eje | B193: (Todas)
B195: Valores
A196: Etiquetas de fila | B196: BAS001 | C196: BAS002 | D196: BAS003 | E196: BAS004 | F196: BAS005 | G196: BAS006 | H196: BAS007 | I196: BAS008 | J196: BAS009 | K196: BAS010 | L196: BAS011 | M196: BAS012 | N196: BAS013 | O196: BAS014 | P196: BAS015 | Q196: BAS016 | R196: BAS017 | S196: BAS018 | T196: BAS019 | U196: BAS020 | V196: BAS021 | W196: BAS022 | X196: BAS023 | Y196: BAS024 | Z196: BAS025 | AA196: BAS026 | AB196: BAS027 | AC196: BAS028 | AD196: BAS029 | AE196: BAS030 | AF196: BAS031 | AG196: BAS032 | AH196: BAS033 | AI196: BAS034 | AJ196: BAS035 | AK196: BAS036 | AL196: BAS037 | AM196: BAS038 | AN196: BAS039 | AO196: BAS040 | AP196: BAS041 | AQ196: BAS042 | AR196: BAS043 | AS196: BAS044 | AT196: BAS045 | AU196: BAS046 | AV196: BAS047 | AW196: BAS048 | AX196: BAS049 | AY196: BAS050 | AZ196: BAS051 | BA196: BAS052 | BB196: BAS053 | BC196: BAS054 | BD196: BAS055 | BE196: BAS056 | BF196: BAS057 | BG196: BAS058 | BH196: BAS059 | BI196: BAS060 | BJ196: BAS061 | BK196: BAS062 | BL196: BAS063 | BM196: BAS064 | BN196: BAS065 | BO196: BAS066 | BP196: BAS067 | BQ196: BAS068 | BR196: BAS069 | BS196: BAS070 | BT196: BAS071 | BU196: BAS072 | BV196: BAS073 | BW196: BAS074 | BX196: BAS075 | BY196: BAS076 | BZ196: BAS077 | CA196: BAS078 | CB196: BAS079 | CC196: BAS080 | CD196: BAS081 | CE196: BAS082 | CF196: BAS083 | CG196: BAS084 | CH196: BAS085 | CI196: BAS086 | CJ196: BAS087 | CK196: BAS088 | CL196: BAS089 | CM196: BAS090 | CN196: BAS091 | CO196: BAS092 | CP196: BAS093 | CQ196: BAS094 | CR196: BAS095 | CS196: BAS096 | CT196: BAS097 | CU196: BAS098 | CV196: BAS099 | CW196: BAS100 | CX196: BAS101 | CY196: BAS102 | CZ196: BAS103 | DA196: BAS104 | DB196: BAS105 | DC196: BAS106 | DD196: BAS107 | DE196: BAS108 | DF196: BAS109 | DG196: BAS110 | DH196: BAS111 | DI196: BAS112 | DJ196: BAS113 | DK196: BAS114 | DL196: BAS115 | DM196: BAS116 | DN196: BAS117 | DO196: BAS118 | DP196: BAS119 | DQ196: BAS120 | DR196: BAS121 | DS196: BAS122 | DT196: BAS123 | DU196: BAS124 | DV196: BAS125 | DW196: BAS126 | DX196: BAS127 | DY196: BAS128 | DZ196: BAS129 | EA196: BAS130 | EB196: BAS131 | EC196: BAS132 | ED196: BAS133 | EE196: BAS134 | EF196: BAS135 | EG196: BAS136 | EH196: BAS137 | EI196: BAS138 | EJ196: BAS139 | EK196: BAS140 | EL196: BAS141 | EM196: BAS142 | EN196: BAS143 | EO196: BAS144 | EP196: BAS145 | EQ196: BAS146 | ER196: BAS147 | ES196: BAS148 | ET196: BAS149 | EU196: BAS150 | EV196: BAS151 | EW196: BAS152 | EX196: BAS153 | EY196: BAS154 | EZ196: BAS155 | FA196: BAS156 | FB196: BAS157 | FC196: BAS158 | FD196: BAS159 | FE196: BAS160 | FF196: BAS161 | FG196: BAS162 | FH196: BAS163 | FI196: BAS164 | FJ196: BAS165 | FK196: BAS166 | FL196: BAS167 | FM196: BAS168 | FN196: BAS169 | FO196: BAS170 | FP196: BAS171 | FQ196: BAS172 | FR196: BAS173 | FS196: BAS174 | FT196: BAS175 | FU196: BAS176 | FV196: BAS177 | FW196: BAS178 | FX196: BAS179 | FY196: BAS180 | FZ196: BAS181 | GA196: BAS182 | GB196: BAS183 | GC196: BAS184 | GD196: BAS185 | GE196: BAS186 | GF196: BAS187 | GG196: BAS188 | GH196: BAS189 | GI196: BAS190 | GJ196: BAS191 | GK196: BAS192 | GL196: BAS193 | GM196: BAS194 | GN196: BAS195 | GO196: BAS196 | GP196: BAS197 | GQ196: BAS198 | GR196: BAS199 | GS196: BAS200 | GT196: BAS201 | GU196: BAS202 | GV196: BAS203 | GW196: BAS204 | GX196: BAS205 | GY196: BAS206 | GZ196: BAS207 | HA196: BAS208 | HB196: BAS209 | HC196: BAS210 | HD196: BAS211 | HE196: BAS212 | HF196: BAS213 | HG196: BAS214 | HH196: BAS215 | HI196: BAS216 | HJ196: BAS217 | HK196: BAS218 | HL196: BAS219 | HM196: BAS220 | HN196: BAS221 | HO196: BAS222 | HP196: BAS223 | HQ196: BAS224 | HR196: BAS225 | HS196: BAS226 | HT196: BAS227 | HU196: BAS228 | HV196: BAS229 | HW196: BAS230
A197: 1 | B197: 2 | C197: 2 | D197: 2 | E197: 4 | F197: 0 | G197: 1 | H197: 1 | I197: 0 | J197: 0 | K197: 0 | L197: 0 | M197: 0 | N197: 0 | O197: 0 | P197: 0 | Q197: 0 | R197: 1 | S197: 0 | T197: 0 | U197: 0 | V197: 0 | W197: 0 | X197: 0 | Y197: 0 | Z197: 0 | AA197: 0 | AB197: 0 | AC197: 0 | AD197: 0 | AE197: 0 | AF197: 0 | AG197: 0 | AH197: 0 | AI197: 0 | AJ197: 0 | AK197: 0 | AL197: 0 | AM197: 0 | AN197: 0 | AO197: 0 | AP197: 0 | AQ197: 0 | AR197: 0 | AS197: 0 | AT197: 0 | AU197: 0 | AV197: 0 | AW197: 0 | AX197: 0 | AY197: 0 | AZ197: 0 | BA197: 0 | BB197: 0 | BC197: 0 | BD197: 0 | BE197: 0 | BF197: 0 | BG197: 0 | BH197: 0 | BI197: 0 | BJ197: 0 | BK197: 0 | BL197: 0 | BM197: 0 | BN197: 0 | BO197: 0 | BP197: 0 | BQ197: 0 | BR197: 0 | BS197: 0 | BT197: 0 | BU197: 0 | BV197: 0 | BW197: 0 | BX197: 0 | BY197: 0 | BZ197: 0 | CA197: 0 | CB197: 0 | CC197: 0 | CD197: 0 | CE197: 0 | CF197: 0 | CG197: 0 | CH197: 0 | CI197: 0 | CJ197: 0 | CK197: 0 | CL197: 0 | CM197: 0 | CN197: 0 | CO197: 0 | CP197: 0 | CQ197: 0 | CR197: 0 | CS197: 0 | CT197: 0 | CU197: 0 | CV197: 0 | CW197: 0 | CX197: 0 | CY197: 0 | CZ197: 0 | DA197: 0 | DB197: 0 | DC197: 0 | DD197: 0 | DE197: 0 | DF197: 0 | DG197: 0 | DH197: 0 | DI197: 0 | DJ197: 0 | DK197: 0 | DL197: 0 | DM197: 0 | DN197: 0 | DO197: 0 | DP197: 0 | DQ197: 0 | DR197: 0 | DS197: 0 | DT197: 0 | DU197: 0 | DV197: 0 | DW197: 0 | DX197: 0 | DY197: 0 | DZ197: 0 | EA197: 0 | EB197: 0 | EC197: 0 | ED197: 0 | EE197: 0 | EF197: 0 | EG197: 0 | EH197: 0 | EI197: 0 | EJ197: 0 | EK197: 0 | EL197: 0 | EM197: 0 | EN197: 0 | EO197: 0 | EP197: 0 | EQ197: 0 | ER197: 0 | ES197: 0 | ET197: 0 | EU197: 0 | EV197: 0 | EW197: 0 | EX197: 0 | EY197: 0 | EZ197: 0 | FA197: 0 | FB197: 0 | FC197: 0 | FD197: 0 | FE197: 0 | FF197: 0 | FG197: 0 | FH197: 0 | FI197: 0 | FJ197: 0 | FK197: 0 | FL197: 0 | FM197: 0 | FN197: 0 | FO197: 0 | FP197: 0 | FQ197: 0 | FR197: 0 | FS197: 0 | FT197: 0 | FU197: 0 | FV197: 0 | FW197: 0 | FX197: 0 | FY197: 0 | FZ197: 0 | GA197: 0 | GB197: 0 | GC197: 0 | GD197: 0 | GE197: 0 | GF197: 0 | GG197: 0 | GH197: 0 | GI197: 0 | GJ197: 0 | GK197: 0 | GL197: 0 | GM197: 0 | GN197: 0 | GO197: 0 | GP197: 0 | GQ197: 0 | GR197: 0 | GS197: 0 | GT197: 0 | GU197: 0 | GV197: 0 | GW197: 0 | GX197: 0 | GY197: 0 | GZ197: 0 | HA197: 0 | HB197: 0 | HC197: 0 | HD197: 0 | HE197: 0 | HF197: 0 | HG197: 0 | HH197: 0 | HI197: 0 | HJ197: 0 | HK197: 0 | HL197: 0 | HM197: 0 | HN197: 0 | HO197: 0 | HP197: 0 | HQ197: 0 | HR197: 0 | HS197: 0 | HT197: 0 | HU197: 0 | HV197: 0 | HW197: 0
A198: 11 | B198: 0 | C198: 0 | D198: 0 | E198: 0 | F198: 0 | G198: 0 | H198: 0 | I198: 0 | J198: 1 | K198: 0 | L198: 0 | M198: 0 | N198: 1 | O198: 0 | P198: 0 | Q198: 0 | R198: 24 | S198: 8 | T198: 1 | U198: 0 | V198: 0 | W198: 0 | X198: 0 | Y198: 0 | Z198: 0 | AA198: 0 | AB198: 0 | AC198: 0 | AD198: 0 | AE198: 0 | AF198: 0 | AG198: 0 | AH198: 0 | AI198: 0 | AJ198: 0 | AK198: 0 | AL198: 0 | AM198: 0 | AN198: 0 | AO198: 0 | AP198: 0 | AQ198: 0 | AR198: 0 | AS198: 0 | AT198: 0 | AU198: 0 | AV198: 0 | AW198: 0 | AX198: 0 | AY198: 0 | AZ198: 0 | BA198: 0 | BB198: 0 | BC198: 0 | BD198: 0 | BE198: 0 | BF198: 0 | BG198: 0 | BH198: 0 | BI198: 0 | BJ198: 0 | BK198: 0 | BL198: 0 | BM198: 0 | BN198: 0 | BO198: 0 | BP198: 0 | BQ198: 0 | BR198: 0 | BS198: 0 | BT198: 0 | BU198: 0 | BV198: 0 | BW198: 0 | BX198: 0 | BY198: 0 | BZ198: 0 | CA198: 0 | CB198: 0 | CC198: 0 | CD198: 0 | CE198: 0 | CF198: 0 | CG198: 0 | CH198: 0 | CI198: 0 | CJ198: 0 | CK198: 0 | CL198: 0 | CM198: 0 | CN198: 0 | CO198: 0 | CP198: 0 | CQ198: 0 | CR198: 0 | CS198: 0 | CT198: 0 | CU198: 0 | CV198: 0 | CW198: 0 | CX198: 0 | CY198: 0 | CZ198: 0 | DA198: 0 | DB198: 0 | DC198: 0 | DD198: 0 | DE198: 0 | DF198: 0 | DG198: 0 | DH198: 0 | DI198: 0 | DJ198: 0 | DK198: 0 | DL198: 0 | DM198: 0 | DN198: 0 | DO198: 0 | DP198: 0 | DQ198: 0 | DR198: 0 | DS198: 0 | DT198: 0 | DU198: 0 | DV198: 0 | DW198: 0 | DX198: 0 | DY198: 0 | DZ198: 0 | EA198: 0 | EB198: 0 | EC198: 0 | ED198: 0 | EE198: 0 | EF198: 0 | EG198: 0 | EH198: 0 | EI198: 0 | EJ198: 0 | EK198: 0 | EL198: 0 | EM198: 0 | EN198: 0 | EO198: 0 | EP198: 0 | EQ198: 0 | ER198: 0 | ES198: 0 | ET198: 0 | EU198: 0 | EV198: 0 | EW198: 0 | EX198: 0 | EY198: 0 | EZ198: 0 | FA198: 0 | FB198: 0 | FC198: 0 | FD198: 0 | FE198: 0 | FF198: 0 | FG198: 0 | FH198: 0 | FI198: 0 | FJ198: 0 | FK198: 0 | FL198: 0 | FM198: 0 | FN198: 0 | FO198: 0 | FP198: 0 | FQ198: 0 | FR198: 0 | FS198: 0 | FT198: 0 | FU198: 0 | FV198: 0 | FW198: 0 | FX198: 0 | FY198: 0 | FZ198: 0 | GA198: 0 | GB198: 0 | GC198: 0 | GD198: 0 | GE198: 0 | GF198: 0 | GG198: 0 | GH198: 0 | GI198: 0 | GJ198: 0 | GK198: 0 | GL198: 0 | GM198: 0 | GN198: 0 | GO198: 0 | GP198: 0 | GQ198: 0 | GR198: 0 | GS198: 0 | GT198: 0 | GU198: 0 | GV198: 0 | GW198: 0 | GX198: 0 | GY198: 0 | GZ198: 0 | HA198: 0 | HB198: 0 | HC198: 0 | HD198: 0 | HE198: 0 | HF198: 0 | HG198: 0 | HH198: 0 | HI198: 0 | HJ198: 0 | HK198: 0 | HL198: 0 | HM198: 0 | HN198: 0 | HO198: 0 | HP198: 0 | HQ198: 0 | HR198: 0 | HS198: 0 | HT198: 0 | HU198: 0 | HV198: 0 | HW198: 0
A199: 5 | B199: 6 | C199: 6 | D199: 1 | E199: 2 | F199: 0 | G199: 0 | H199: 0 | I199: 1 | J199: 0 | K199: 0 | L199: 0 | M199: 0 | N199: 0 | O199: 0 | P199: 0 | Q199: 0 | R199: 37 | S199: 7 | T199: 0 | U199: 0 | V199: 0 | W199: 0 | X199: 0 | Y199: 0 | Z199: 0 | AA199: 0 | AB199: 0 | AC199: 0 | AD199: 0 | AE199: 0 | AF199: 0 | AG199: 0 | AH199: 0 | AI199: 0 | AJ199: 0 | AK199: 0 | AL199: 0 | AM199: 0 | AN199: 0 | AO199: 0 | AP199: 0 | AQ199: 0 | AR199: 0 | AS199: 0 | AT199: 0 | AU199: 0 | AV199: 0 | AW199: 0 | AX199: 0 | AY199: 0 | AZ199: 0 | BA199: 0 | BB199: 0 | BC199: 0 | BD199: 0 | BE199: 0 | BF199: 0 | BG199: 0 | BH199: 0 | BI199: 0 | BJ199: 0 | BK199: 0 | BL199: 0 | BM199: 0 | BN199: 0 | BO199: 0 | BP199: 0 | BQ199: 0 | BR199: 0 | BS199: 0 | BT199: 0 | BU199: 0 | BV199: 0 | BW199: 0 | BX199: 0 | BY199: 0 | BZ199: 0 | CA199: 0 | CB199: 0 | CC199: 0 | CD199: 0 | CE199: 0 | CF199: 0 | CG199: 0 | CH199: 0 | CI199: 0 | CJ199: 0 | CK199: 0 | CL199: 0 | CM199: 0 | CN199: 0 | CO199: 0 | CP199: 0 | CQ199: 0 | CR199: 0 | CS199: 0 | CT199: 0 | CU199: 0 | CV199: 0 | CW199: 0 | CX199: 0 | CY199: 0 | CZ199: 0 | DA199: 0 | DB199: 0 | DC199: 0 | DD199: 0 | DE199: 0 | DF199: 0 | DG199: 0 | DH199: 0 | DI199: 0 | DJ199: 0 | DK199: 0 | DL199: 0 | DM199: 0 | DN199: 0 | DO199: 0 | DP199: 0 | DQ199: 0 | DR199: 0 | DS199: 0 | DT199: 0 | DU199: 0 | DV199: 0 | DW199: 0 | DX199: 0 | DY199: 0 | DZ199: 0 | EA199: 0 | EB199: 0 | EC199: 0 | ED199: 0 | EE199: 0 | EF199: 0 | EG199: 0 | EH199: 0 | EI199: 0 | EJ199: 0 | EK199: 0 | EL199: 0 | EM199: 0 | EN199: 0 | EO199: 0 | EP199: 0 | EQ199: 0 | ER199: 0 | ES199: 0 | ET199: 0 | EU199: 0 | EV199: 0 | EW199: 0 | EX199: 0 | EY199: 0 | EZ199: 0 | FA199: 0 | FB199: 0 | FC199: 0 | FD199: 0 | FE199: 0 | FF199: 0 | FG199: 0 | FH199: 0 | FI199: 0 | FJ199: 0 | FK199: 0 | FL199: 0 | FM199: 0 | FN199: 0 | FO199: 0 | FP199: 0 | FQ199: 0 | FR199: 0 | FS199: 0 | FT199: 0 | FU199: 0 | FV199: 0 | FW199: 0 | FX199: 0 | FY199: 0 | FZ199: 0 | GA199: 0 | GB199: 0 | GC199: 0 | GD199: 0 | GE199: 0 | GF199: 0 | GG199: 0 | GH199: 0 | GI199: 0 | GJ199: 0 | GK199: 0 | GL199: 0 | GM199: 0 | GN199: 0 | GO199: 0 | GP199: 0 | GQ199: 0 | GR199: 0 | GS199: 0 | GT199: 0 | GU199: 0 | GV199: 0 | GW199: 0 | GX199: 0 | GY199: 0 | GZ199: 0 | HA199: 0 | HB199: 0 | HC199: 0 | HD199: 0 | HE199: 0 | HF199: 0 | HG199: 0 | HH199: 0 | HI199: 0 | HJ199: 0 | HK199: 0 | HL199: 0 | HM199: 0 | HN199: 0 | HO199: 0 | HP199: 0 | HQ199: 0 | HR199: 0 | HS199: 0 | HT199: 0 | HU199: 0 | HV199: 0 | HW199: 0
A200: 2 | B200: 9 | C200: 9 | D200: 1 | E200: 1 | F200: 0 | G200: 0 | H200: 0 | I200: 0 | J200: 0 | K200: 0 | L200: 0 | M200: 0 | N200: 0 | O200: 0 | P200: 0 | Q200: 0 | R200: 3 | S200: 0 | T200: 0 | U200: 0 | V200: 0 | W200: 0 | X200: 0 | Y200: 0 | Z200: 0 | AA200: 0 | AB200: 0 | AC200: 0 | AD200: 0 | AE200: 0 | AF200: 0 | AG200: 0 | AH200: 0 | AI200: 0 | AJ200: 0 | AK200: 0 | AL200: 0 | AM200: 0 | AN200: 0 | AO200: 0 | AP200: 0 | AQ200: 0 | AR200: 0 | AS200: 0 | AT200: 0 | AU200: 0 | AV200: 0 | AW200: 0 | AX200: 0 | AY200: 0 | AZ200: 0 | BA200: 0 | BB200: 0 | BC200: 0 | BD200: 0 | BE200: 0 | BF200: 0 | BG200: 0 | BH200: 0 | BI200: 0 | BJ200: 0 | BK200: 0 | BL200: 0 | BM200: 0 | BN200: 0 | BO200: 0 | BP200: 0 | BQ200: 0 | BR200: 0 | BS200: 0 | BT200: 0 | BU200: 0 | BV200: 0 | BW200: 0 | BX200: 0 | BY200: 0 | BZ200: 0 | CA200: 0 | CB200: 0 | CC200: 0 | CD200: 0 | CE200: 0 | CF200: 0 | CG200: 0 | CH200: 0 | CI200: 0 | CJ200: 0 | CK200: 0 | CL200: 0 | CM200: 0 | CN200: 0 | CO200: 0 | CP200: 0 | CQ200: 0 | CR200: 0 | CS200: 0 | CT200: 0 | CU200: 0 | CV200: 0 | CW200: 0 | CX200: 0 | CY200: 0 | CZ200: 0 | DA200: 0 | DB200: 0 | DC200: 0 | DD200: 0 | DE200: 0 | DF200: 0 | DG200: 0 | DH200: 0 | DI200: 0 | DJ200: 0 | DK200: 0 | DL200: 0 | DM200: 0 | DN200: 0 | DO200: 0 | DP200: 0 | DQ200: 0 | DR200: 0 | DS200: 0 | DT200: 0 | DU200: 0 | DV200: 0 | DW200: 0 | DX200: 0 | DY200: 0 | DZ200: 0 | EA200: 0 | EB200: 0 | EC200: 0 | ED200: 0 | EE200: 0 | EF200: 0 | EG200: 0 | EH200: 0 | EI200: 0 | EJ200: 0 | EK200: 0 | EL200: 0 | EM200: 0 | EN200: 0 | EO200: 0 | EP200: 0 | EQ200: 0 | ER200: 0 | ES200: 0 | ET200: 0 | EU200: 0 | EV200: 0 | EW200: 0 | EX200: 0 | EY200: 0 | EZ200: 0 | FA200: 0 | FB200: 0 | FC200: 0 | FD200: 0 | FE200: 0 | FF200: 0 | FG200: 0 | FH200: 0 | FI200: 0 | FJ200: 0 | FK200: 0 | FL200: 0 | FM200: 0 | FN200: 0 | FO200: 0 | FP200: 0 | FQ200: 0 | FR200: 0 | FS200: 0 | FT200: 0 | FU200: 0 | FV200: 0 | FW200: 0 | FX200: 0 | FY200: 0 | FZ200: 0 | GA200: 0 | GB200: 0 | GC200: 0 | GD200: 0 | GE200: 0 | GF200: 0 | GG200: 0 | GH200: 0 | GI200: 0 | GJ200: 0 | GK200: 0 | GL200: 0 | GM200: 0 | GN200: 0 | GO200: 0 | GP200: 0 | GQ200: 0 | GR200: 0 | GS200: 0 | GT200: 0 | GU200: 0 | GV200: 0 | GW200: 0 | GX200: 0 | GY200: 0 | GZ200: 0 | HA200: 0 | HB200: 0 | HC200: 0 | HD200: 0 | HE200: 0 | HF200: 0 | HG200: 0 | HH200: 0 | HI200: 0 | HJ200: 0 | HK200: 0 | HL200: 0 | HM200: 0 | HN200: 0 | HO200: 0 | HP200: 0 | HQ200: 0 | HR200: 0 | HS200: 0 | HT200: 0 | HU200: 0 | HV200: 0 | HW200: 0
A201: 6 | B201: 8 | C201: 6 | D201: 0 | E201: 1 | F201: 0 | G201: 0 | H201: 0 | I201: 0 | J201: 0 | K201: 0 | L201: 0 | M201: 0 | N201: 0 | O201: 0 | P201: 0 | Q201: 0 | R201: 24 | S201: 46 | T201: 0 | U201: 2 | V201: 0 | W201: 2 | X201: 0 | Y201: 0 | Z201: 0 | AA201: 0 | AB201: 0 | AC201: 0 | AD201: 0 | AE201: 0 | AF201: 0 | AG201: 0 | AH201: 0 | AI201: 0 | AJ201: 0 | AK201: 0 | AL201: 0 | AM201: 0 | AN201: 0 | AO201: 0 | AP201: 0 | AQ201: 0 | AR201: 0 | AS201: 0 | AT201: 0 | AU201: 0 | AV201: 0 | AW201: 0 | AX201: 0 | AY201: 0 | AZ201: 0 | BA201: 0 | BB201: 0 | BC201: 0 | BD201: 0 | BE201: 0 | BF201: 0 | BG201: 0 | BH201: 0 | BI201: 0 | BJ201: 0 | BK201: 0 | BL201: 0 | BM201: 0 | BN201: 0 | BO201: 0 | BP201: 0 | BQ201: 0 | BR201: 0 | BS201: 0 | BT201: 0 | BU201: 0 | BV201: 0 | BW201: 0 | BX201: 0 | BY201: 0 | BZ201: 0 | CA201: 0 | CB201: 0 | CC201: 0 | CD201: 0 | CE201: 0 | CF201: 0 | CG201: 0 | CH201: 0 | CI201: 0 | CJ201: 0 | CK201: 0 | CL201: 0 | CM201: 0 | CN201: 0 | CO201: 0 | CP201: 0 | CQ201: 0 | CR201: 0 | CS201: 0 | CT201: 0 | CU201: 0 | CV201: 0 | CW201: 0 | CX201: 0 | CY201: 0 | CZ201: 0 | DA201: 0 | DB201: 0 | DC201: 0 | DD201: 0 | DE201: 0 | DF201: 0 | DG201: 0 | DH201: 0 | DI201: 0 | DJ201: 0 | DK201: 0 | DL201: 0 | DM201: 0 | DN201: 0 | DO201: 0 | DP201: 0 | DQ201: 0 | DR201: 0 | DS201: 0 | DT201: 0 | DU201: 0 | DV201: 0 | DW201: 0 | DX201: 0 | DY201: 0 | DZ201: 0 | EA201: 0 | EB201: 0 | EC201: 0 | ED201: 0 | EE201: 0 | EF201: 0 | EG201: 0 | EH201: 0 | EI201: 0 | EJ201: 0 | EK201: 0 | EL201: 0 | EM201: 0 | EN201: 0 | EO201: 0 | EP201: 0 | EQ201: 0 | ER201: 0 | ES201: 0 | ET201: 0 | EU201: 0 | EV201: 0 | EW201: 0 | EX201: 0 | EY201: 0 | EZ201: 0 | FA201: 0 | FB201: 0 | FC201: 0 | FD201: 0 | FE201: 0 | FF201: 0 | FG201: 0 | FH201: 0 | FI201: 0 | FJ201: 0 | FK201: 0 | FL201: 0 | FM201: 0 | FN201: 0 | FO201: 0 | FP201: 0 | FQ201: 0 | FR201: 0 | FS201: 0 | FT201: 0 | FU201: 0 | FV201: 0 | FW201: 0 | FX201: 0 | FY201: 0 | FZ201: 0 | GA201: 0 | GB201: 0 | GC201: 0 | GD201: 0 | GE201: 0 | GF201: 0 | GG201: 0 | GH201: 0 | GI201: 0 | GJ201: 0 | GK201: 0 | GL201: 0 | GM201: 0 | GN201: 0 | GO201: 0 | GP201: 0 | GQ201: 0 | GR201: 0 | GS201: 0 | GT201: 0 | GU201: 0 | GV201: 0 | GW201: 0 | GX201: 0 | GY201: 0 | GZ201: 0 | HA201: 0 | HB201: 0 | HC201: 0 | HD201: 0 | HE201: 0 | HF201: 0 | HG201: 0 | HH201: 0 | HI201: 0 | HJ201: 0 | HK201: 0 | HL201: 0 | HM201: 0 | HN201: 0 | HO201: 0 | HP201: 0 | HQ201: 0 | HR201: 0 | HS201: 0 | HT201: 0 | HU201: 0 | HV201: 0 | HW201: 0
A202: 7 | B202: 0 | C202: 0 | D202: 0 | E202: 0 | F202: 0 | G202: 0 | H202: 0 | I202: 0 | J202: 0 | K202: 0 | L202: 0 | M202: 0 | N202: 0 | O202: 0 | P202: 0 | Q202: 0 | R202: 34 | S202: 3 | T202: 0 | U202: 3 | V202: 0 | W202: 3 | X202: 0 | Y202: 0 | Z202: 0 | AA202: 0 | AB202: 0 | AC202: 0 | AD202: 0 | AE202: 0 | AF202: 0 | AG202: 0 | AH202: 0 | AI202: 0 | AJ202: 0 | AK202: 0 | AL202: 0 | AM202: 0 | AN202: 0 | AO202: 0 | AP202: 0 | AQ202: 0 | AR202: 0 | AS202: 0 | AT202: 0 | AU202: 0 | AV202: 0 | AW202: 0 | AX202: 0 | AY202: 0 | AZ202: 0 | BA202: 0 | BB202: 0 | BC202: 0 | BD202: 0 | BE202: 0 | BF202: 0 | BG202: 0 | BH202: 0 | BI202: 0 | BJ202: 0 | BK202: 0 | BL202: 0 | BM202: 0 | BN202: 0 | BO202: 0 | BP202: 0 | BQ202: 0 | BR202: 0 | BS202: 0 | BT202: 0 | BU202: 0 | BV202: 0 | BW202: 0 | BX202: 0 | BY202: 0 | BZ202: 0 | CA202: 0 | CB202: 0 | CC202: 0 | CD202: 0 | CE202: 0 | CF202: 0 | CG202: 0 | CH202: 0 | CI202: 0 | CJ202: 0 | CK202: 0 | CL202: 0 | CM202: 0 | CN202: 0 | CO202: 0 | CP202: 0 | CQ202: 0 | CR202: 0 | CS202: 0 | CT202: 0 | CU202: 0 | CV202: 0 | CW202: 0 | CX202: 0 | CY202: 0 | CZ202: 0 | DA202: 0 | DB202: 0 | DC202: 0 | DD202: 0 | DE202: 0 | DF202: 0 | DG202: 0 | DH202: 0 | DI202: 0 | DJ202: 0 | DK202: 0 | DL202: 0 | DM202: 0 | DN202: 0 | DO202: 0 | DP202: 0 | DQ202: 0 | DR202: 0 | DS202: 0 | DT202: 0 | DU202: 0 | DV202: 0 | DW202: 0 | DX202: 0 | DY202: 0 | DZ202: 0 | EA202: 0 | EB202: 0 | EC202: 0 | ED202: 0 | EE202: 0 | EF202: 0 | EG202: 0 | EH202: 0 | EI202: 0 | EJ202: 0 | EK202: 0 | EL202: 0 | EM202: 0 | EN202: 0 | EO202: 0 | EP202: 0 | EQ202: 0 | ER202: 0 | ES202: 0 | ET202: 0 | EU202: 0 | EV202: 0 | EW202: 0 | EX202: 0 | EY202: 0 | EZ202: 0 | FA202: 0 | FB202: 0 | FC202: 0 | FD202: 0 | FE202: 0 | FF202: 0 | FG202: 0 | FH202: 0 | FI202: 0 | FJ202: 0 | FK202: 0 | FL202: 0 | FM202: 0 | FN202: 0 | FO202: 0 | FP202: 0 | FQ202: 0 | FR202: 0 | FS202: 0 | FT202: 0 | FU202: 0 | FV202: 0 | FW202: 0 | FX202: 0 | FY202: 0 | FZ202: 0 | GA202: 0 | GB202: 0 | GC202: 0 | GD202: 0 | GE202: 0 | GF202: 0 | GG202: 0 | GH202: 0 | GI202: 0 | GJ202: 0 | GK202: 0 | GL202: 0 | GM202: 0 | GN202: 0 | GO202: 0 | GP202: 0 | GQ202: 0 | GR202: 0 | GS202: 0 | GT202: 0 | GU202: 0 | GV202: 0 | GW202: 0 | GX202: 0 | GY202: 0 | GZ202: 0 | HA202: 0 | HB202: 0 | HC202: 0 | HD202: 0 | HE202: 0 | HF202: 0 | HG202: 0 | HH202: 0 | HI202: 0 | HJ202: 0 | HK202: 0 | HL202: 0 | HM202: 0 | HN202: 0 | HO202: 0 | HP202: 0 | HQ202: 0 | HR202: 0 | HS202: 0 | HT202: 0 | HU202: 0 | HV202: 0 | HW202: 0
A203: 8 | B203: 0 | C203: 0 | D203: 0 | E203: 0 | F203: 0 | G203: 0 | H203: 0 | I203: 0 | J203: 0 | K203: 0 | L203: 0 | M203: 0 | N203: 0 | O203: 0 | P203: 0 | Q203: 0 | R203: 50 | S203: 58 | T203: 0 | U203: 2 | V203: 0 | W203: 2 | X203: 0 | Y203: 0 | Z203: 0 | AA203: 0 | AB203: 0 | AC203: 0 | AD203: 0 | AE203: 0 | AF203: 0 | AG203: 0 | AH203: 0 | AI203: 0 | AJ203: 0 | AK203: 0 | AL203: 0 | AM203: 0 | AN203: 0 | AO203: 0 | AP203: 0 | AQ203: 0 | AR203: 0 | AS203: 0 | AT203: 0 | AU203: 0 | AV203: 0 | AW203: 0 | AX203: 0 | AY203: 0 | AZ203: 0 | BA203: 0 | BB203: 0 | BC203: 0 | BD203: 0 | BE203: 0 | BF203: 0 | BG203: 0 | BH203: 0 | BI203: 0 | BJ203: 0 | BK203: 0 | BL203: 0 | BM203: 0 | BN203: 0 | BO203: 0 | BP203: 0 | BQ203: 0 | BR203: 0 | BS203: 0 | BT203: 0 | BU203: 0 | BV203: 0 | BW203: 0 | BX203: 0 | BY203: 0 | BZ203: 0 | CA203: 0 | CB203: 0 | CC203: 0 | CD203: 0 | CE203: 0 | CF203: 0 | CG203: 0 | CH203: 0 | CI203: 0 | CJ203: 0 | CK203: 0 | CL203: 0 | CM203: 0 | CN203: 0 | CO203: 0 | CP203: 0 | CQ203: 0 | CR203: 0 | CS203: 0 | CT203: 0 | CU203: 0 | CV203: 0 | CW203: 0 | CX203: 0 | CY203: 0 | CZ203: 0 | DA203: 0 | DB203: 0 | DC203: 0 | DD203: 0 | DE203: 0 | DF203: 0 | DG203: 0 | DH203: 0 | DI203: 0 | DJ203: 0 | DK203: 0 | DL203: 0 | DM203: 0 | DN203: 0 | DO203: 0 | DP203: 0 | DQ203: 0 | DR203: 0 | DS203: 0 | DT203: 0 | DU203: 0 | DV203: 0 | DW203: 0 | DX203: 0 | DY203: 0 | DZ203: 0 | EA203: 0 | EB203: 0 | EC203: 0 | ED203: 0 | EE203: 0 | EF203: 0 | EG203: 0 | EH203: 0 | EI203: 0 | EJ203: 0 | EK203: 0 | EL203: 0 | EM203: 0 | EN203: 0 | EO203: 0 | EP203: 0 | EQ203: 0 | ER203: 0 | ES203: 0 | ET203: 0 | EU203: 0 | EV203: 0 | EW203: 0 | EX203: 0 | EY203: 0 | EZ203: 0 | FA203: 0 | FB203: 0 | FC203: 0 | FD203: 0 | FE203: 0 | FF203: 0 | FG203: 0 | FH203: 0 | FI203: 0 | FJ203: 0 | FK203: 0 | FL203: 0 | FM203: 0 | FN203: 0 | FO203: 0 | FP203: 0 | FQ203: 0 | FR203: 0 | FS203: 0 | FT203: 0 | FU203: 0 | FV203: 0 | FW203: 0 | FX203: 0 | FY203: 0 | FZ203: 0 | GA203: 0 | GB203: 0 | GC203: 0 | GD203: 0 | GE203: 0 | GF203: 0 | GG203: 0 | GH203: 0 | GI203: 0 | GJ203: 0 | GK203: 0 | GL203: 0 | GM203: 0 | GN203: 0 | GO203: 0 | GP203: 0 | GQ203: 0 | GR203: 0 | GS203: 0 | GT203: 0 | GU203: 0 | GV203: 0 | GW203: 0 | GX203: 0 | GY203: 0 | GZ203: 0 | HA203: 0 | HB203: 0 | HC203: 0 | HD203: 0 | HE203: 0 | HF203: 0 | HG203: 0 | HH203: 0 | HI203: 0 | HJ203: 0 | HK203: 0 | HL203: 0 | HM203: 0 | HN203: 0 | HO203: 0 | HP203: 0 | HQ203: 0 | HR203: 0 | HS203: 0 | HT203: 0 | HU203: 0 | HV203: 0 | HW203: 0
A204: 9 | B204: 1 | C204: 0 | D204: 0 | E204: 0 | F204: 0 | G204: 0 | H204: 0 | I204: 0 | J204: 0 | K204: 0 | L204: 0 | M204: 0 | N204: 0 | O204: 0 | P204: 0 | Q204: 0 | R204: 36 | S204: 26 | T204: 0 | U204: 0 | V204: 0 | W204: 0 | X204: 0 | Y204: 0 | Z204: 0 | AA204: 0 | AB204: 0 | AC204: 0 | AD204: 0 | AE204: 0 | AF204: 0 | AG204: 0 | AH204: 0 | AI204: 0 | AJ204: 0 | AK204: 0 | AL204: 0 | AM204: 0 | AN204: 0 | AO204: 0 | AP204: 0 | AQ204: 0 | AR204: 0 | AS204: 0 | AT204: 0 | AU204: 0 | AV204: 0 | AW204: 0 | AX204: 0 | AY204: 0 | AZ204: 0 | BA204: 0 | BB204: 0 | BC204: 0 | BD204: 0 | BE204: 0 | BF204: 0 | BG204: 0 | BH204: 0 | BI204: 0 | BJ204: 0 | BK204: 0 | BL204: 0 | BM204: 0 | BN204: 0 | BO204: 0 | BP204: 0 | BQ204: 0 | BR204: 0 | BS204: 0 | BT204: 0 | BU204: 0 | BV204: 0 | BW204: 0 | BX204: 0 | BY204: 0 | BZ204: 0 | CA204: 0 | CB204: 0 | CC204: 0 | CD204: 0 | CE204: 0 | CF204: 0 | CG204: 0 | CH204: 0 | CI204: 0 | CJ204: 0 | CK204: 0 | CL204: 0 | CM204: 0 | CN204: 0 | CO204: 0 | CP204: 0 | CQ204: 0 | CR204: 0 | CS204: 0 | CT204: 0 | CU204: 0 | CV204: 0 | CW204: 0 | CX204: 0 | CY204: 0 | CZ204: 0 | DA204: 0 | DB204: 0 | DC204: 0 | DD204: 0 | DE204: 0 | DF204: 0 | DG204: 0 | DH204: 0 | DI204: 0 | DJ204: 0 | DK204: 0 | DL204: 0 | DM204: 0 | DN204: 0 | DO204: 0 | DP204: 0 | DQ204: 0 | DR204: 0 | DS204: 0 | DT204: 0 | DU204: 0 | DV204: 0 | DW204: 0 | DX204: 0 | DY204: 0 | DZ204: 0 | EA204: 0 | EB204: 0 | EC204: 0 | ED204: 0 | EE204: 0 | EF204: 0 | EG204: 0 | EH204: 0 | EI204: 0 | EJ204: 0 | EK204: 0 | EL204: 0 | EM204: 0 | EN204: 0 | EO204: 0 | EP204: 0 | EQ204: 0 | ER204: 0 | ES204: 0 | ET204: 0 | EU204: 0 | EV204: 0 | EW204: 0 | EX204: 0 | EY204: 0 | EZ204: 0 | FA204: 0 | FB204: 0 | FC204: 0 | FD204: 0 | FE204: 0 | FF204: 0 | FG204: 0 | FH204: 0 | FI204: 0 | FJ204: 0 | FK204: 0 | FL204: 0 | FM204: 0 | FN204: 0 | FO204: 0 | FP204: 0 | FQ204: 0 | FR204: 0 | FS204: 0 | FT204: 0 | FU204: 0 | FV204: 0 | FW204: 0 | FX204: 0 | FY204: 0 | FZ204: 0 | GA204: 0 | GB204: 0 | GC204: 0 | GD204: 0 | GE204: 0 | GF204: 0 | GG204: 0 | GH204: 0 | GI204: 0 | GJ204: 0 | GK204: 0 | GL204: 0 | GM204: 0 | GN204: 0 | GO204: 0 | GP204: 0 | GQ204: 0 | GR204: 0 | GS204: 0 | GT204: 0 | GU204: 0 | GV204: 0 | GW204: 0 | GX204: 0 | GY204: 0 | GZ204: 0 | HA204: 0 | HB204: 0 | HC204: 0 | HD204: 0 | HE204: 0 | HF204: 0 | HG204: 0 | HH204: 0 | HI204: 0 | HJ204: 0 | HK204: 0 | HL204: 0 | HM204: 0 | HN204: 0 | HO204: 0 | HP204: 0 | HQ204: 0 | HR204: 0 | HS204: 0 | HT204: 0 | HU204: 0 | HV204: 0 | HW204: 0
A205: 10 | B205: 1 | C205: 0 | D205: 0 | E205: 0 | F205: 0 | G205: 0 | H205: 0 | I205: 0 | J205: 0 | K205: 0 | L205: 0 | M205: 0 | N205: 0 | O205: 0 | P205: 0 | Q205: 0 | R205: 19 | S205: 24 | T205: 0 | U205: 2 | V205: 0 | W205: 2 | X205: 0 | Y205: 0 | Z205: 0 | AA205: 0 | AB205: 0 | AC205: 0 | AD205: 0 | AE205: 0 | AF205: 0 | AG205: 0 | AH205: 0 | AI205: 0 | AJ205: 0 | AK205: 0 | AL205: 0 | AM205: 0 | AN205: 0 | AO205: 0 | AP205: 0 | AQ205: 0 | AR205: 0 | AS205: 0 | AT205: 0 | AU205: 0 | AV205: 0 | AW205: 0 | AX205: 0 | AY205: 0 | AZ205: 0 | BA205: 0 | BB205: 0 | BC205: 0 | BD205: 0 | BE205: 0 | BF205: 0 | BG205: 0 | BH205: 0 | BI205: 0 | BJ205: 0 | BK205: 0 | BL205: 0 | BM205: 0 | BN205: 0 | BO205: 0 | BP205: 0 | BQ205: 0 | BR205: 0 | BS205: 0 | BT205: 0 | BU205: 0 | BV205: 0 | BW205: 0 | BX205: 0 | BY205: 0 | BZ205: 0 | CA205: 0 | CB205: 0 | CC205: 0 | CD205: 0 | CE205: 0 | CF205: 0 | CG205: 0 | CH205: 0 | CI205: 0 | CJ205: 0 | CK205: 0 | CL205: 0 | CM205: 0 | CN205: 0 | CO205: 0 | CP205: 0 | CQ205: 0 | CR205: 0 | CS205: 0 | CT205: 0 | CU205: 0 | CV205: 0 | CW205: 0 | CX205: 0 | CY205: 0 | CZ205: 0 | DA205: 0 | DB205: 0 | DC205: 0 | DD205: 0 | DE205: 0 | DF205: 0 | DG205: 0 | DH205: 0 | DI205: 0 | DJ205: 0 | DK205: 0 | DL205: 0 | DM205: 0 | DN205: 0 | DO205: 0 | DP205: 0 | DQ205: 0 | DR205: 0 | DS205: 0 | DT205: 0 | DU205: 0 | DV205: 0 | DW205: 0 | DX205: 0 | DY205: 0 | DZ205: 0 | EA205: 0 | EB205: 0 | EC205: 0 | ED205: 0 | EE205: 0 | EF205: 0 | EG205: 0 | EH205: 0 | EI205: 0 | EJ205: 0 | EK205: 0 | EL205: 0 | EM205: 0 | EN205: 0 | EO205: 0 | EP205: 0 | EQ205: 0 | ER205: 0 | ES205: 0 | ET205: 0 | EU205: 0 | EV205: 0 | EW205: 0 | EX205: 0 | EY205: 0 | EZ205: 0 | FA205: 0 | FB205: 0 | FC205: 0 | FD205: 0 | FE205: 0 | FF205: 0 | FG205: 0 | FH205: 0 | FI205: 0 | FJ205: 0 | FK205: 0 | FL205: 0 | FM205: 0 | FN205: 0 | FO205: 0 | FP205: 0 | FQ205: 0 | FR205: 0 | FS205: 0 | FT205: 0 | FU205: 0 | FV205: 0 | FW205: 0 | FX205: 0 | FY205: 0 | FZ205: 0 | GA205: 0 | GB205: 0 | GC205: 0 | GD205: 0 | GE205: 0 | GF205: 0 | GG205: 0 | GH205: 0 | GI205: 0 | GJ205: 0 | GK205: 0 | GL205: 0 | GM205: 0 | GN205: 0 | GO205: 0 | GP205: 0 | GQ205: 0 | GR205: 0 | GS205: 0 | GT205: 0 | GU205: 0 | GV205: 0 | GW205: 0 | GX205: 0 | GY205: 0 | GZ205: 0 | HA205: 0 | HB205: 0 | HC205: 0 | HD205: 0 | HE205: 0 | HF205: 0 | HG205: 0 | HH205: 0 | HI205: 0 | HJ205: 0 | HK205: 0 | HL205: 0 | HM205: 0 | HN205: 0 | HO205: 0 | HP205: 0 | HQ205: 0 | HR205: 0 | HS205: 0 | HT205: 0 | HU205: 0 | HV205: 0 | HW205: 0
A206: 4 | B206: 3 | C206: 3 | D206: 3 | E206: 7 | F206: 0 | G206: 0 | H206: 0 | I206: 3 | J206: 0 | K206: 0 | L206: 0 | M206: 0 | N206: 0 | O206: 0 | P206: 0 | Q206: 0 | R206: 15 | S206: 5 | T206: 0 | U206: 1 | V206: 0 | W206: 1 | X206: 0 | Y206: 0 | Z206: 0 | AA206: 0 | AB206: 0 | AC206: 0 | AD206: 0 | AE206: 0 | AF206: 0 | AG206: 0 | AH206: 0 | AI206: 0 | AJ206: 0 | AK206: 0 | AL206: 0 | AM206: 0 | AN206: 0 | AO206: 0 | AP206: 0 | AQ206: 0 | AR206: 0 | AS206: 0 | AT206: 0 | AU206: 0 | AV206: 0 | AW206: 0 | AX206: 0 | AY206: 0 | AZ206: 0 | BA206: 0 | BB206: 0 | BC206: 0 | BD206: 0 | BE206: 0 | BF206: 0 | BG206: 0 | BH206: 0 | BI206: 0 | BJ206: 0 | BK206: 0 | BL206: 0 | BM206: 0 | BN206: 0 | BO206: 0 | BP206: 0 | BQ206: 0 | BR206: 0 | BS206: 0 | BT206: 0 | BU206: 0 | BV206: 0 | BW206: 0 | BX206: 0 | BY206: 0 | BZ206: 0 | CA206: 0 | CB206: 0 | CC206: 0 | CD206: 0 | CE206: 0 | CF206: 0 | CG206: 0 | CH206: 0 | CI206: 0 | CJ206: 0 | CK206: 0 | CL206: 0 | CM206: 0 | CN206: 0 | CO206: 0 | CP206: 0 | CQ206: 0 | CR206: 0 | CS206: 0 | CT206: 0 | CU206: 0 | CV206: 0 | CW206: 0 | CX206: 0 | CY206: 0 | CZ206: 0 | DA206: 0 | DB206: 0 | DC206: 0 | DD206: 0 | DE206: 0 | DF206: 0 | DG206: 0 | DH206: 0 | DI206: 0 | DJ206: 0 | DK206: 0 | DL206: 0 | DM206: 0 | DN206: 0 | DO206: 0 | DP206: 0 | DQ206: 0 | DR206: 0 | DS206: 0 | DT206: 0 | DU206: 0 | DV206: 0 | DW206: 0 | DX206: 0 | DY206: 0 | DZ206: 0 | EA206: 0 | EB206: 0 | EC206: 0 | ED206: 0 | EE206: 0 | EF206: 0 | EG206: 0 | EH206: 0 | EI206: 0 | EJ206: 0 | EK206: 0 | EL206: 0 | EM206: 0 | EN206: 0 | EO206: 0 | EP206: 0 | EQ206: 0 | ER206: 0 | ES206: 0 | ET206: 0 | EU206: 0 | EV206: 0 | EW206: 0 | EX206: 0 | EY206: 0 | EZ206: 0 | FA206: 0 | FB206: 0 | FC206: 0 | FD206: 0 | FE206: 0 | FF206: 0 | FG206: 0 | FH206: 0 | FI206: 0 | FJ206: 0 | FK206: 0 | FL206: 0 | FM206: 0 | FN206: 0 | FO206: 0 | FP206: 0 | FQ206: 0 | FR206: 0 | FS206: 0 | FT206: 0 | FU206: 0 | FV206: 0 | FW206: 0 | FX206: 0 | FY206: 0 | FZ206: 0 | GA206: 0 | GB206: 0 | GC206: 0 | GD206: 0 | GE206: 0 | GF206: 0 | GG206: 0 | GH206: 0 | GI206: 0 | GJ206: 0 | GK206: 0 | GL206: 0 | GM206: 0 | GN206: 0 | GO206: 0 | GP206: 0 | GQ206: 0 | GR206: 0 | GS206: 0 | GT206: 0 | GU206: 0 | GV206: 0 | GW206: 0 | GX206: 0 | GY206: 0 | GZ206: 0 | HA206: 0 | HB206: 0 | HC206: 0 | HD206: 0 | HE206: 0 | HF206: 0 | HG206: 0 | HH206: 0 | HI206: 0 | HJ206: 0 | HK206: 0 | HL206: 0 | HM206: 0 | HN206: 0 | HO206: 0 | HP206: 0 | HQ206: 0 | HR206: 0 | HS206: 0 | HT206: 0 | HU206: 0 | HV206: 0 | HW206: 0
A207: 3 | B207: 3 | C207: 0 | D207: 0 | E207: 0 | F207: 0 | G207: 0 | H207: 0 | I207: 1 | J207: 0 | K207: 0 | L207: 0 | M207: 0 | N207: 0 | O207: 0 | P207: 0 | Q207: 0 | R207: 3 | S207: 0 | T207: 0 | U207: 0 | V207: 0 | W207: 0 | X207: 0 | Y207: 0 | Z207: 0 | AA207: 0 | AB207: 0 | AC207: 0 | AD207: 0 | AE207: 0 | AF207: 0 | AG207: 0 | AH207: 0 | AI207: 0 | AJ207: 0 | AK207: 0 | AL207: 0 | AM207: 0 | AN207: 0 | AO207: 0 | AP207: 0 | AQ207: 0 | AR207: 0 | AS207: 0 | AT207: 0 | AU207: 0 | AV207: 0 | AW207: 0 | AX207: 0 | AY207: 0 | AZ207: 0 | BA207: 0 | BB207: 0 | BC207: 0 | BD207: 0 | BE207: 0 | BF207: 0 | BG207: 0 | BH207: 0 | BI207: 0 | BJ207: 0 | BK207: 0 | BL207: 0 | BM207: 0 | BN207: 0 | BO207: 0 | BP207: 0 | BQ207: 0 | BR207: 0 | BS207: 0 | BT207: 0 | BU207: 0 | BV207: 0 | BW207: 0 | BX207: 0 | BY207: 0 | BZ207: 0 | CA207: 0 | CB207: 0 | CC207: 0 | CD207: 0 | CE207: 0 | CF207: 0 | CG207: 0 | CH207: 0 | CI207: 0 | CJ207: 0 | CK207: 0 | CL207: 0 | CM207: 0 | CN207: 0 | CO207: 0 | CP207: 0 | CQ207: 0 | CR207: 0 | CS207: 0 | CT207: 0 | CU207: 0 | CV207: 0 | CW207: 0 | CX207: 0 | CY207: 0 | CZ207: 0 | DA207: 0 | DB207: 0 | DC207: 0 | DD207: 0 | DE207: 0 | DF207: 0 | DG207: 0 | DH207: 0 | DI207: 0 | DJ207: 0 | DK207: 0 | DL207: 0 | DM207: 0 | DN207: 0 | DO207: 0 | DP207: 0 | DQ207: 0 | DR207: 0 | DS207: 0 | DT207: 0 | DU207: 0 | DV207: 0 | DW207: 0 | DX207: 0 | DY207: 0 | DZ207: 0 | EA207: 0 | EB207: 0 | EC207: 0 | ED207: 0 | EE207: 0 | EF207: 0 | EG207: 0 | EH207: 0 | EI207: 0 | EJ207: 0 | EK207: 0 | EL207: 0 | EM207: 0 | EN207: 0 | EO207: 0 | EP207: 0 | EQ207: 0 | ER207: 0 | ES207: 0 | ET207: 0 | EU207: 0 | EV207: 0 | EW207: 0 | EX207: 0 | EY207: 0 | EZ207: 0 | FA207: 0 | FB207: 0 | FC207: 0 | FD207: 0 | FE207: 0 | FF207: 0 | FG207: 0 | FH207: 0 | FI207: 0 | FJ207: 0 | FK207: 0 | FL207: 0 | FM207: 0 | FN207: 0 | FO207: 0 | FP207: 0 | FQ207: 0 | FR207: 0 | FS207: 0 | FT207: 0 | FU207: 0 | FV207: 0 | FW207: 0 | FX207: 0 | FY207: 0 | FZ207: 0 | GA207: 0 | GB207: 0 | GC207: 0 | GD207: 0 | GE207: 0 | GF207: 0 | GG207: 0 | GH207: 0 | GI207: 0 | GJ207: 0 | GK207: 0 | GL207: 0 | GM207: 0 | GN207: 0 | GO207: 0 | GP207: 0 | GQ207: 0 | GR207: 0 | GS207: 0 | GT207: 0 | GU207: 0 | GV207: 0 | GW207: 0 | GX207: 0 | GY207: 0 | GZ207: 0 | HA207: 0 | HB207: 0 | HC207: 0 | HD207: 0 | HE207: 0 | HF207: 0 | HG207: 0 | HH207: 0 | HI207: 0 | HJ207: 0 | HK207: 0 | HL207: 0 | HM207: 0 | HN207: 0 | HO207: 0 | HP207: 0 | HQ207: 0 | HR207: 0 | HS207: 0 | HT207: 0 | HU207: 0 | HV207: 0 | HW207: 0
A208: T | B208: 33 | C208: 26 | D208: 7 | E208: 15 | F208: 0 | G208: 1 | H208: 1 | I208: 5 | J208: 1 | K208: 0 | L208: 0 | M208: 0 | N208: 1 | O208: 0 | P208: 0 | Q208: 0 | R208: 246 | S208: 177 | T208: 1 | U208: 10 | V208: 0 | W208: 10 | X208: 0 | Y208: 0 | Z208: 0 | AA208: 0 | AB208: 0 | AC208: 0 | AD208: 0 | AE208: 0 | AF208: 0 | AG208: 0 | AH208: 0 | AI208: 0 | AJ208: 0 | AK208: 0 | AL208: 0 | AM208: 0 | AN208: 0 | AO208: 0 | AP208: 0 | AQ208: 0 | AR208: 0 | AS208: 0 | AT208: 0 | AU208: 0 | AV208: 0 | AW208: 0 | AX208: 0 | AY208: 0 | AZ208: 0 | BA208: 0 | BB208: 0 | BC208: 0 | BD208: 0 | BE208: 0 | BF208: 0 | BG208: 0 | BH208: 0 | BI208: 0 | BJ208: 0 | BK208: 0 | BL208: 0 | BM208: 0 | BN208: 0 | BO208: 0 | BP208: 0 | BQ208: 0 | BR208: 0 | BS208: 0 | BT208: 0 | BU208: 0 | BV208: 0 | BW208: 0 | BX208: 0 | BY208: 0 | BZ208: 0 | CA208: 0 | CB208: 0 | CC208: 0 | CD208: 0 | CE208: 0 | CF208: 0 | CG208: 0 | CH208: 0 | CI208: 0 | CJ208: 0 | CK208: 0 | CL208: 0 | CM208: 0 | CN208: 0 | CO208: 0 | CP208: 0 | CQ208: 0 | CR208: 0 | CS208: 0 | CT208: 0 | CU208: 0 | CV208: 0 | CW208: 0 | CX208: 0 | CY208: 0 | CZ208: 0 | DA208: 0 | DB208: 0 | DC208: 0 | DD208: 0 | DE208: 0 | DF208: 0 | DG208: 0 | DH208: 0 | DI208: 0 | DJ208: 0 | DK208: 0 | DL208: 0 | DM208: 0 | DN208: 0 | DO208: 0 | DP208: 0 | DQ208: 0 | DR208: 0 | DS208: 0 | DT208: 0 | DU208: 0 | DV208: 0 | DW208: 0 | DX208: 0 | DY208: 0 | DZ208: 0 | EA208: 0 | EB208: 0 | EC208: 0 | ED208: 0 | EE208: 0 | EF208: 0 | EG208: 0 | EH208: 0 | EI208: 0 | EJ208: 0 | EK208: 0 | EL208: 0 | EM208: 0 | EN208: 0 | EO208: 0 | EP208: 0 | EQ208: 0 | ER208: 0 | ES208: 0 | ET208: 0 | EU208: 0 | EV208: 0 | EW208: 0 | EX208: 0 | EY208: 0 | EZ208: 0 | FA208: 0 | FB208: 0 | FC208: 0 | FD208: 0 | FE208: 0 | FF208: 0 | FG208: 0 | FH208: 0 | FI208: 0 | FJ208: 0 | FK208: 0 | FL208: 0 | FM208: 0 | FN208: 0 | FO208: 0 | FP208: 0 | FQ208: 0 | FR208: 0 | FS208: 0 | FT208: 0 | FU208: 0 | FV208: 0 | FW208: 0 | FX208: 0 | FY208: 0 | FZ208: 0 | GA208: 0 | GB208: 0 | GC208: 0 | GD208: 0 | GE208: 0 | GF208: 0 | GG208: 0 | GH208: 0 | GI208: 0 | GJ208: 0 | GK208: 0 | GL208: 0 | GM208: 0 | GN208: 0 | GO208: 0 | GP208: 0 | GQ208: 0 | GR208: 0 | GS208: 0 | GT208: 0 | GU208: 0 | GV208: 0 | GW208: 0 | GX208: 0 | GY208: 0 | GZ208: 0 | HA208: 0 | HB208: 0 | HC208: 0 | HD208: 0 | HE208: 0 | HF208: 0 | HG208: 0 | HH208: 0 | HI208: 0 | HJ208: 0 | HK208: 0 | HL208: 0 | HM208: 0 | HN208: 0 | HO208: 0 | HP208: 0 | HQ208: 0 | HR208: 0 | HS208: 0 | HT208: 0 | HU208: 0 | HV208: 0 | HW208: 0
A215: TOTAL
A216: =COUNT(A197:A213) -> 11 | B216: =SUM(B197:B213) -> 66 | C216: =SUM(C197:C213) -> 52 | D216: 14 | E216: 30 | F216: 0 | G216: 2 | H216: 2 | I216: 10 | J216: 2 | K216: 0 | L216: 0 | M216: 0 | N216: 2 | O216: 0 | P216: 0 | Q216: 0 | R216: 492 | S216: 354 | T216: 2 | U216: 20 | V216: 0 | W216: 20 | X216: 0 | Y216: 0 | Z216: 0 | AA216: 0 | AB216: 0 | AC216: 0 | AD216: 0 | AE216: 0 | AF216: 0 | AG216: 0 | AH216: 0 | AI216: 0 | AJ216: 0 | AK216: 0 | AL216: 0 | AM216: 0 | AN216: 0 | AO216: 0 | AP216: 0 | AQ216: 0 | AR216: 0 | AS216: 0 | AT216: 0 | AU216: 0 | AV216: 0 | AW216: 0 | AX216: 0 | AY216: 0 | AZ216: 0 | BA216: 0 | BB216: 0 | BC216: 0 | BD216: 0 | BE216: 0 | BF216: 0 | BG216: 0 | BH216: 0 | BI216: 0 | BJ216: 0 | BK216: 0 | BL216: 0 | BM216: 0 | BN216: 0 | BO216: =SUM(BO197:BO213) -> 0 | BP216: 0 | BQ216: 0 | BR216: 0 | BS216: 0 | BT216: 0 | BU216: 0 | BV216: 0 | BW216: 0 | BX216: 0 | BY216: 0 | BZ216: 0 | CA216: 0 | CB216: 0 | CC216: 0 | CD216: 0 | CE216: 0 | CF216: 0 | CG216: 0 | CH216: 0 | CI216: 0 | CJ216: 0 | CK216: 0 | CL216: 0 | CM216: 0 | CN216: 0 | CO216: 0 | CP216: 0 | CQ216: 0 | CR216: 0 | CS216: 0 | CT216: 0 | CU216: 0 | CV216: 0 | CW216: 0 | CX216: 0 | CY216: 0 | CZ216: 0 | DA216: 0 | DB216: 0 | DC216: 0 | DD216: 0 | DE216: 0 | DF216: 0 | DG216: 0 | DH216: 0 | DI216: 0 | DJ216: 0 | DK216: 0 | DL216: 0 | DM216: 0 | DN216: 0 | DO216: 0 | DP216: 0 | DQ216: 0 | DR216: 0 | DS216: 0 | DT216: 0 | DU216: 0 | DV216: 0 | DW216: 0 | DX216: 0 | DY216: 0 | DZ216: 0 | EA216: =SUM(EA197:EA213) -> 0 | EB216: 0 | EC216: 0 | ED216: 0 | EE216: 0 | EF216: 0 | EG216: 0 | EH216: 0 | EI216: 0 | EJ216: 0 | EK216: 0 | EL216: 0 | EM216: 0 | EN216: 0 | EO216: 0 | EP216: 0 | EQ216: 0 | ER216: 0 | ES216: 0 | ET216: 0 | EU216: 0 | EV216: 0 | EW216: 0 | EX216: 0 | EY216: 0 | EZ216: 0 | FA216: 0 | FB216: 0 | FC216: 0 | FD216: 0 | FE216: 0 | FF216: 0 | FG216: 0 | FH216: 0 | FI216: 0 | FJ216: 0 | FK216: 0 | FL216: 0 | FM216: 0 | FN216: 0 | FO216: 0 | FP216: 0 | FQ216: 0 | FR216: 0 | FS216: 0 | FT216: 0 | FU216: 0 | FV216: 0 | FW216: 0 | FX216: 0 | FY216: 0 | FZ216: 0 | GA216: 0 | GB216: 0 | GC216: 0 | GD216: 0 | GE216: 0 | GF216: 0 | GG216: 0 | GH216: 0 | GI216: 0 | GJ216: 0 | GK216: 0 | GL216: 0 | GM216: =SUM(GM197:GM213) -> 0 | GN216: 0 | GO216: 0 | GP216: 0 | GQ216: 0 | GR216: 0 | GS216: 0 | GT216: 0 | GU216: 0 | GV216: 0 | GW216: 0 | GX216: 0 | GY216: 0 | GZ216: 0 | HA216: 0 | HB216: 0 | HC216: 0 | HD216: 0 | HE216: 0 | HF216: 0 | HG216: 0 | HH216: 0 | HI216: 0 | HJ216: 0 | HK216: 0 | HL216: 0 | HM216: 0 | HN216: 0 | HO216: 0 | HP216: 0 | HQ216: 0 | HR216: 0 | HS216: 0 | HT216: 0 | HU216: 0 | HV216: 0 | HW216: 0
A217: =CONCATENATE(A197,"-",A198,"-",A199,"-",A200,"-",A201,"-",A202,"-",A203,"-",A204,"-",A205,"-",A206,"-",A207,"-",A208) -> 1-11-5-2-6-7-8-9-10-4-3-T
B218: BAS001 | C218: BAS002 | D218: BAS003 | E218: BAS004 | F218: BAS005 | G218: BAS006 | H218: BAS007 | I218: BAS008 | J218: BAS009 | K218: BAS010 | L218: BAS011 | M218: BAS012 | N218: BAS013 | O218: BAS014 | P218: BAS015 | Q218: BAS016 | R218: BAS017 | S218: BAS018 | T218: BAS019 | U218: BAS020 | V218: BAS021 | W218: BAS022 | X218: BAS023 | Y218: BAS024 | Z218: BAS025 | AA218: BAS026 | AB218: BAS027 | AC218: BAS028 | AD218: BAS029 | AE218: BAS030 | AF218: BAS031 | AG218: BAS032 | AH218: BAS033 | AI218: BAS034 | AJ218: BAS035 | AK218: BAS036 | AL218: BAS037 | AM218: BAS038 | AN218: BAS039 | AO218: BAS040 | AP218: BAS041 | AQ218: BAS042 | AR218: BAS043 | AS218: BAS044 | AT218: BAS045 | AU218: BAS046 | AV218: BAS047 | AW218: BAS048 | AX218: BAS049 | AY218: BAS050 | AZ218: BAS051 | BA218: BAS052 | BB218: BAS053 | BC218: BAS054 | BD218: BAS055 | BE218: BAS056 | BF218: BAS057 | BG218: BAS058 | BH218: BAS059 | BI218: BAS060 | BJ218: BAS061 | BK218: BAS062 | BL218: BAS063 | BM218: BAS064 | BN218: BAS065 | BO218: BAS066 | BP218: BAS067 | BQ218: BAS068 | BR218: BAS069 | BS218: BAS070 | BT218: BAS071 | BU218: BAS072 | BV218: BAS073 | BW218: BAS074 | BX218: BAS075 | BY218: BAS076 | BZ218: BAS077 | CA218: BAS078 | CB218: BAS079 | CC218: BAS080 | CD218: BAS081 | CE218: BAS082 | CF218: BAS083 | CG218: BAS084 | CH218: BAS085 | CI218: BAS086 | CJ218: BAS087 | CK218: BAS088 | CL218: BAS089 | CM218: BAS090 | CN218: BAS091 | CO218: BAS092 | CP218: BAS093 | CQ218: BAS094 | CR218: BAS095 | CS218: BAS096 | CT218: BAS097 | CU218: BAS098 | CV218: BAS099 | CW218: BAS100 | CX218: BAS101 | CY218: BAS102 | CZ218: BAS103 | DA218: BAS104 | DB218: BAS105 | DC218: BAS106 | DD218: BAS107 | DE218: BAS108 | DF218: BAS109 | DG218: BAS110 | DH218: BAS111 | DI218: BAS112 | DJ218: BAS113 | DK218: BAS114 | DL218: BAS115 | DM218: BAS116 | DN218: BAS117 | DO218: BAS118 | DP218: BAS119 | DQ218: BAS120 | DR218: BAS121 | DS218: BAS122 | DT218: BAS123 | DU218: BAS124 | DV218: BAS125 | DW218: BAS126 | DX218: BAS127 | DY218: BAS128 | DZ218: BAS129 | EA218: BAS130 | EB218: BAS131 | EC218: BAS132 | ED218: BAS133 | EE218: BAS134 | EF218: BAS135 | EG218: BAS136 | EH218: BAS137 | EI218: BAS138 | EJ218: BAS139 | EK218: BAS140 | EL218: BAS141 | EM218: BAS142 | EN218: BAS143 | EO218: BAS144 | EP218: BAS145 | EQ218: BAS146 | ER218: BAS147 | ES218: BAS148 | ET218: BAS149 | EU218: BAS150 | EV218: BAS151 | EW218: BAS152 | EX218: BAS153 | EY218: BAS154 | EZ218: BAS155 | FA218: BAS156 | FB218: BAS157 | FC218: BAS158 | FD218: BAS159 | FE218: BAS160 | FF218: BAS161 | FG218: BAS162 | FH218: BAS163 | FI218: BAS164 | FJ218: BAS165 | FK218: BAS166 | FL218: BAS167 | FM218: BAS168 | FN218: BAS169 | FO218: BAS170 | FP218: BAS171 | FQ218: BAS172 | FR218: BAS173 | FS218: BAS174 | FT218: BAS175 | FU218: BAS176 | FV218: BAS177 | FW218: BAS178 | FX218: BAS179 | FY218: BAS180 | FZ218: BAS181 | GA218: BAS182 | GB218: BAS183 | GC218: BAS184 | GD218: BAS185 | GE218: BAS186 | GF218: BAS187 | GG218: BAS188 | GH218: BAS189 | GI218: BAS190 | GJ218: BAS191 | GK218: BAS192 | GL218: BAS193 | GM218: BAS194 | GN218: BAS195 | GO218: BAS196 | GP218: BAS197 | GQ218: BAS198 | GR218: BAS199 | GS218: BAS200 | GT218: BAS201 | GU218: BAS202 | GV218: BAS203 | GW218: BAS204 | GX218: BAS205 | GY218: BAS206 | GZ218: BAS207 | HA218: BAS208 | HB218: BAS209 | HC218: BAS210 | HD218: BAS211 | HE218: BAS212 | HF218: BAS213 | HG218: BAS214 | HH218: BAS215 | HI218: BAS216 | HJ218: BAS217 | HK218: BAS218 | HL218: BAS219 | HM218: BAS220 | HN218: BAS221 | HO218: BAS222 | HP218: BAS223 | HQ218: BAS224 | HR218: BAS225 | HS218: BAS226 | HT218: BAS227 | HU218: BAS228 | HV218: BAS229 | HW218: BAS230
B219: =IF(B218=B196,"SI","NO") -> SI | C219: =IF(C218=C196,"SI","NO") -> SI | D219: SI | E219: SI | F219: SI | G219: SI | H219: SI | I219: SI | J219: SI | K219: SI | L219: SI | M219: SI | N219: SI | O219: SI | P219: SI | Q219: SI | R219: SI | S219: SI | T219: SI | U219: SI | V219: SI | W219: SI | X219: SI | Y219: SI | Z219: SI | AA219: SI | AB219: SI | AC219: SI | AD219: SI | AE219: SI | AF219: SI | AG219: SI | AH219: SI | AI219: SI | AJ219: SI | AK219: SI | AL219: SI | AM219: SI | AN219: SI | AO219: SI | AP219: SI | AQ219: SI | AR219: SI | AS219: SI | AT219: SI | AU219: SI | AV219: SI | AW219: SI | AX219: SI | AY219: SI | AZ219: SI | BA219: SI | BB219: SI | BC219: SI | BD219: SI | BE219: SI | BF219: SI | BG219: SI | BH219: SI | BI219: SI | BJ219: SI | BK219: SI | BL219: SI | BM219: SI | BN219: SI | BO219: =IF(BO218=BO196,"SI","NO") -> SI | BP219: SI | BQ219: SI | BR219: SI | BS219: SI | BT219: SI | BU219: SI | BV219: SI | BW219: SI | BX219: SI | BY219: SI | BZ219: SI | CA219: SI | CB219: SI | CC219: SI | CD219: SI | CE219: SI | CF219: SI | CG219: SI | CH219: SI | CI219: SI | CJ219: SI | CK219: SI | CL219: SI | CM219: SI | CN219: SI | CO219: SI | CP219: SI | CQ219: SI | CR219: SI | CS219: SI | CT219: SI | CU219: SI | CV219: SI | CW219: SI | CX219: SI | CY219: SI | CZ219: SI | DA219: SI | DB219: SI | DC219: SI | DD219: SI | DE219: SI | DF219: SI | DG219: SI | DH219: SI | DI219: SI | DJ219: SI | DK219: SI | DL219: SI | DM219: SI | DN219: SI | DO219: SI | DP219: SI | DQ219: SI | DR219: SI | DS219: SI | DT219: SI | DU219: SI | DV219: SI | DW219: SI | DX219: SI | DY219: SI | DZ219: SI | EA219: =IF(EA218=EA196,"SI","NO") -> SI | EB219: SI | EC219: SI | ED219: SI | EE219: SI | EF219: SI | EG219: SI | EH219: SI | EI219: SI | EJ219: SI | EK219: SI | EL219: SI | EM219: SI | EN219: SI | EO219: SI | EP219: SI | EQ219: SI | ER219: SI | ES219: SI | ET219: SI | EU219: SI | EV219: SI | EW219: SI | EX219: SI | EY219: SI | EZ219: SI | FA219: SI | FB219: SI | FC219: SI | FD219: SI | FE219: SI | FF219: SI | FG219: SI | FH219: SI | FI219: SI | FJ219: SI | FK219: SI | FL219: SI | FM219: SI | FN219: SI | FO219: SI | FP219: SI | FQ219: SI | FR219: SI | FS219: SI | FT219: SI | FU219: SI | FV219: SI | FW219: SI | FX219: SI | FY219: SI | FZ219: SI | GA219: SI | GB219: SI | GC219: SI | GD219: SI | GE219: SI | GF219: SI | GG219: SI | GH219: SI | GI219: SI | GJ219: SI | GK219: SI | GL219: SI | GM219: =IF(GM218=GM196,"SI","NO") -> SI | GN219: SI | GO219: SI | GP219: SI | GQ219: SI | GR219: SI | GS219: SI | GT219: SI | GU219: SI | GV219: SI | GW219: SI | GX219: SI | GY219: SI | GZ219: SI | HA219: SI | HB219: SI | HC219: SI | HD219: SI | HE219: SI | HF219: SI | HG219: SI | HH219: SI | HI219: SI | HJ219: SI | HK219: SI | HL219: SI | HM219: SI | HN219: SI | HO219: SI | HP219: SI | HQ219: SI | HR219: SI | HS219: SI | HT219: SI | HU219: SI | HV219: SI | HW219: SI
A221: LABORATORIO 01
A222: anno | B222: 2024
A223: cod_red | B223: 03
A224: codmic | B224: (Todas)
A225: cod_prov | B225: (Todas)
A226: coddist | B226: (Todas)
A227: cod_estab | B227: (Todas)
A228: cod_eje | B228: (Todas)
B230: Valores
A231: Etiquetas de fila | B231: BAS001 | C231: BAS002 | D231: BAS003 | E231: BAS004 | F231: BAS005 | G231: BAS006 | H231: BAS007 | I231: BAS008 | J231: BAS009 | K231: BAS010 | L231: BAS011 | M231: BAS012 | N231: BAS013 | O231: BAS014 | P231: BAS015 | Q231: BAS016 | R231: BAS017 | S231: BAS018 | T231: BAS019 | U231: BAS020 | V231: BAS021 | W231: BAS022 | X231: BAS023 | Y231: BAS024 | Z231: BAS025 | AA231: BAS026 | AB231: BAS027 | AC231: BAS028 | AD231: BAS029 | AE231: BAS030 | AF231: BAS031 | AG231: BAS032 | AH231: BAS033 | AI231: BAS034 | AJ231: BAS035 | AK231: BAS036 | AL231: BAS037 | AM231: BAS038 | AN231: BAS039 | AO231: BAS040 | AP231: BAS041 | AQ231: BAS042 | AR231: BAS043 | AS231: BAS044 | AT231: BAS045 | AU231: BAS046 | AV231: BAS047 | AW231: BAS048 | AX231: BAS049 | AY231: BAS050 | AZ231: BAS051 | BA231: BAS052 | BB231: BAS053 | BC231: BAS054 | BD231: BAS055 | BE231: BAS056 | BF231: BAS057 | BG231: BAS058 | BH231: BAS059 | BI231: BAS060 | BJ231: BAS061 | BK231: BAS062 | BL231: BAS063 | BM231: BAS064 | BN231: BAS065 | BO231: BAS066 | BP231: BAS067 | BQ231: BAS068 | BR231: BAS069 | BS231: BAS070 | BT231: BAS071 | BU231: BAS072 | BV231: BAS073 | BW231: BAS074 | BX231: BAS075 | BY231: BAS076 | BZ231: BAS077 | CA231: BAS078 | CB231: BAS079 | CC231: BAS080 | CD231: BAS081 | CE231: BAS082 | CF231: BAS083 | CG231: BAS084 | CH231: BAS085 | CI231: BAS086 | CJ231: BAS087 | CK231: BAS088 | CL231: BAS089 | CM231: BAS090 | CN231: BAS091 | CO231: BAS092 | CP231: BAS093 | CQ231: BAS094 | CR231: BAS095 | CS231: BAS096 | CT231: BAS097 | CU231: BAS098 | CV231: BAS099 | CW231: BAS100 | CX231: BAS101 | CY231: BAS102 | CZ231: BAS103 | DA231: BAS104 | DB231: BAS105 | DC231: BAS106 | DD231: BAS107 | DE231: BAS108 | DF231: BAS109 | DG231: BAS110 | DH231: BAS111 | DI231: BAS112 | DJ231: BAS113 | DK231: BAS114 | DL231: BAS115 | DM231: BAS116 | DN231: BAS117 | DO231: BAS118 | DP231: BAS119 | DQ231: BAS120 | DR231: BAS121 | DS231: BAS122 | DT231: BAS123 | DU231: BAS124 | DV231: BAS125 | DW231: BAS126 | DX231: BAS127 | DY231: BAS128 | DZ231: BAS129 | EA231: BAS130 | EB231: BAS131 | EC231: BAS132 | ED231: BAS133 | EE231: BAS134 | EF231: BAS135 | EG231: BAS136 | EH231: BAS137 | EI231: BAS138 | EJ231: BAS139 | EK231: BAS140 | EL231: BAS141 | EM231: BAS142 | EN231: BAS143 | EO231: BAS144 | EP231: BAS145 | EQ231: BAS146 | ER231: BAS147 | ES231: BAS148 | ET231: BAS149 | EU231: BAS150 | EV231: BAS151 | EW231: BAS152 | EX231: BAS153 | EY231: BAS154 | EZ231: BAS155 | FA231: BAS156 | FB231: BAS157 | FC231: BAS158 | FD231: BAS159 | FE231: BAS160 | FF231: BAS161 | FG231: BAS162 | FH231: BAS163 | FI231: BAS164 | FJ231: BAS165 | FK231: BAS166 | FL231: BAS167 | FM231: BAS168 | FN231: BAS169 | FO231: BAS170 | FP231: BAS171 | FQ231: BAS172 | FR231: BAS173 | FS231: BAS174 | FT231: BAS175 | FU231: BAS176 | FV231: BAS177 | FW231: BAS178 | FX231: BAS179 | FY231: BAS180 | FZ231: BAS181 | GA231: BAS182 | GB231: bas183 | GC231: bas184 | GD231: bas185 | GE231: bas186 | GF231: bas187 | GG231: bas188 | GH231: bas189 | GI231: bas190 | GJ231: bas191 | GK231: bas192 | GL231: bas193 | GM231: bas194 | GN231: bas195 | GO231: bas196 | GP231: bas197 | GQ231: bas198 | GR231: bas199 | GS231: bas200 | GT231: bas201 | GU231: bas202 | GV231: bas203 | GW231: bas204 | GX231: bas205 | GY231: bas206 | GZ231: bas207 | HA231: bas208 | HB231: bas209 | HC231: bas210 | HD231: bas211 | HE231: bas212 | HF231: bas213 | HG231: bas214 | HH231: bas215 | HI231: bas216 | HJ231: bas217 | HK231: bas218 | HL231: bas219 | HM231: bas220 | HN231: bas221 | HO231: bas222 | HP231: bas223 | HQ231: bas224 | HR231: bas225 | HS231: bas226 | HT231: bas227 | HU231: bas228 | HV231: bas229 | HW231: bas230
A232: 3 | B232: 0 | C232: 0 | D232: 0 | E232: 0 | F232: 0 | G232: 0 | H232: 0 | I232: 0 | J232: 0 | K232: 0 | L232: 0 | M232: 0 | N232: 0 | O232: 0 | P232: 0 | Q232: 0 | R232: 0 | S232: 0 | T232: 0 | U232: 0 | V232: 0 | W232: 0 | X232: 0 | Y232: 0 | Z232: 0 | AA232: 0 | AB232: 0 | AC232: 0 | AD232: 0 | AE232: 0 | AF232: 0 | AG232: 0 | AH232: 0 | AI232: 0 | AJ232: 0 | AK232: 0 | AL232: 0 | AM232: 0 | AN232: 0 | AO232: 0 | AP232: 0 | AQ232: 0 | AR232: 0 | AS232: 0 | AT232: 0 | AU232: 0 | AV232: 0 | AW232: 0 | AX232: 0 | AY232: 0 | AZ232: 0 | BA232: 0 | BB232: 0 | BC232: 0 | BD232: 0 | BE232: 0 | BF232: 0 | BG232: 0 | BH232: 0 | BI232: 0 | BJ232: 0 | BK232: 0 | BL232: 0 | BM232: 0 | BN232: 0 | BO232: 0 | BP232: 0 | BQ232: 0 | BR232: 0 | BS232: 0 | BT232: 0 | BU232: 0 | BV232: 0 | BW232: 0 | BX232: 0 | BY232: 0 | BZ232: 0 | CA232: 0 | CB232: 0 | CC232: 0 | CD232: 0 | CE232: 0 | CF232: 0 | CG232: 0 | CH232: 0 | CI232: 0 | CJ232: 0 | CK232: 0 | CL232: 0 | CM232: 0 | CN232: 0 | CO232: 0 | CP232: 0 | CQ232: 0 | CR232: 0 | CS232: 0 | CT232: 0 | CU232: 0 | CV232: 0 | CW232: 0 | CX232: 0 | CY232: 0 | CZ232: 0 | DA232: 0 | DB232: 0 | DC232: 0 | DD232: 0 | DE232: 0 | DF232: 0 | DG232: 0 | DH232: 0 | DI232: 0 | DJ232: 0 | DK232: 0 | DL232: 0 | DM232: 0 | DN232: 0 | DO232: 0 | DP232: 0 | DQ232: 0 | DR232: 0 | DS232: 0 | DT232: 0 | DU232: 0 | DV232: 0 | DW232: 0 | DX232: 0 | DY232: 0 | DZ232: 0 | EA232: 0 | EB232: 0 | EC232: 0 | ED232: 0 | EE232: 0 | EF232: 0 | EG232: 0 | EH232: 0 | EI232: 0 | EJ232: 0 | EK232: 0 | EL232: 0 | EM232: 0 | EN232: 0 | EO232: 0 | EP232: 0 | EQ232: 0 | ER232: 0 | ES232: 0 | ET232: 0 | EU232: 0 | EV232: 0 | EW232: 0 | EX232: 0 | EY232: 0 | EZ232: 0 | FA232: 0 | FB232: 0 | FC232: 0 | FD232: 0 | FE232: 0 | FF232: 0 | FG232: 0 | FH232: 0 | FI232: 0 | FJ232: 0 | FK232: 0 | FL232: 0 | FM232: 0 | FN232: 0 | FO232: 0 | FP232: 0 | FQ232: 0 | FR232: 0 | FS232: 0 | FT232: 0 | FU232: 0 | FV232: 0 | FW232: 0 | FX232: 0 | FY232: 0 | FZ232: 0 | GA232: 0 | GB232: 0 | GC232: 0 | GD232: 0 | GE232: 0 | GF232: 0 | GG232: 0 | GH232: 0 | GI232: 0 | GJ232: 0 | GK232: 0 | GL232: 0 | GM232: 0 | GN232: 0 | GO232: 0 | GP232: 0 | GQ232: 0 | GR232: 0 | GS232: 0 | GT232: 0 | GU232: 0 | GV232: 0 | GW232: 0 | GX232: 0 | GY232: 0 | GZ232: 0 | HA232: 0 | HB232: 0 | HC232: 0 | HD232: 0 | HE232: 0 | HF232: 0 | HG232: 0 | HH232: 0 | HI232: 0 | HJ232: 0 | HK232: 0 | HL232: 0 | HM232: 0 | HN232: 0 | HO232: 0 | HP232: 0 | HQ232: 0 | HR232: 0 | HS232: 0 | HT232: 0 | HU232: 0 | HV232: 0 | HW232: 0
A233: 1 | B233: 0 | C233: 0 | D233: 0 | E233: 0 | F233: 0 | G233: 0 | H233: 0 | I233: 0 | J233: 0 | K233: 0 | L233: 0 | M233: 0 | N233: 0 | O233: 0 | P233: 0 | Q233: 0 | R233: 0 | S233: 0 | T233: 0 | U233: 0 | V233: 0 | W233: 0 | X233: 0 | Y233: 0 | Z233: 0 | AA233: 0 | AB233: 0 | AC233: 0 | AD233: 0 | AE233: 0 | AF233: 0 | AG233: 0 | AH233: 0 | AI233: 0 | AJ233: 0 | AK233: 0 | AL233: 0 | AM233: 0 | AN233: 0 | AO233: 0 | AP233: 0 | AQ233: 0 | AR233: 0 | AS233: 0 | AT233: 0 | AU233: 0 | AV233: 0 | AW233: 0 | AX233: 0 | AY233: 0 | AZ233: 0 | BA233: 0 | BB233: 0 | BC233: 0 | BD233: 0 | BE233: 0 | BF233: 0 | BG233: 0 | BH233: 0 | BI233: 0 | BJ233: 0 | BK233: 0 | BL233: 0 | BM233: 0 | BN233: 0 | BO233: 0 | BP233: 0 | BQ233: 0 | BR233: 0 | BS233: 0 | BT233: 0 | BU233: 0 | BV233: 0 | BW233: 0 | BX233: 0 | BY233: 0 | BZ233: 0 | CA233: 0 | CB233: 0 | CC233: 0 | CD233: 0 | CE233: 0 | CF233: 0 | CG233: 0 | CH233: 0 | CI233: 0 | CJ233: 0 | CK233: 0 | CL233: 0 | CM233: 0 | CN233: 0 | CO233: 0 | CP233: 0 | CQ233: 0 | CR233: 0 | CS233: 0 | CT233: 0 | CU233: 0 | CV233: 0 | CW233: 0 | CX233: 0 | CY233: 0 | CZ233: 0 | DA233: 0 | DB233: 0 | DC233: 0 | DD233: 0 | DE233: 0 | DF233: 0 | DG233: 0 | DH233: 0 | DI233: 0 | DJ233: 0 | DK233: 0 | DL233: 0 | DM233: 0 | DN233: 0 | DO233: 0 | DP233: 0 | DQ233: 0 | DR233: 0 | DS233: 0 | DT233: 0 | DU233: 0 | DV233: 0 | DW233: 0 | DX233: 0 | DY233: 0 | DZ233: 0 | EA233: 0 | EB233: 0 | EC233: 0 | ED233: 0 | EE233: 0 | EF233: 0 | EG233: 0 | EH233: 0 | EI233: 0 | EJ233: 0 | EK233: 0 | EL233: 0 | EM233: 0 | EN233: 0 | EO233: 0 | EP233: 0 | EQ233: 0 | ER233: 0 | ES233: 0 | ET233: 0 | EU233: 0 | EV233: 0 | EW233: 0 | EX233: 0 | EY233: 0 | EZ233: 0 | FA233: 0 | FB233: 0 | FC233: 0 | FD233: 0 | FE233: 0 | FF233: 0 | FG233: 0 | FH233: 0 | FI233: 0 | FJ233: 0 | FK233: 0 | FL233: 0 | FM233: 0 | FN233: 0 | FO233: 0 | FP233: 0 | FQ233: 0 | FR233: 0 | FS233: 0 | FT233: 0 | FU233: 0 | FV233: 0 | FW233: 0 | FX233: 0 | FY233: 0 | FZ233: 0 | GA233: 0 | GB233: 0 | GC233: 0 | GD233: 0 | GE233: 0 | GF233: 0 | GG233: 0 | GH233: 0 | GI233: 0 | GJ233: 0 | GK233: 0 | GL233: 0 | GM233: 0 | GN233: 0 | GO233: 0 | GP233: 0 | GQ233: 0 | GR233: 0 | GS233: 0 | GT233: 0 | GU233: 0 | GV233: 0 | GW233: 0 | GX233: 0 | GY233: 0 | GZ233: 0 | HA233: 0 | HB233: 0 | HC233: 0 | HD233: 0 | HE233: 0 | HF233: 0 | HG233: 0 | HH233: 0 | HI233: 0 | HJ233: 0 | HK233: 0 | HL233: 0 | HM233: 0 | HN233: 0 | HO233: 0 | HP233: 0 | HQ233: 0 | HR233: 0 | HS233: 0 | HT233: 0 | HU233: 0 | HV233: 0 | HW233: 0
A234: 2 | B234: 0 | C234: 0 | D234: 0 | E234: 0 | F234: 0 | G234: 0 | H234: 0 | I234: 0 | J234: 0 | K234: 0 | L234: 0 | M234: 0 | N234: 0 | O234: 0 | P234: 0 | Q234: 0 | R234: 0 | S234: 0 | T234: 0 | U234: 0 | V234: 0 | W234: 0 | X234: 0 | Y234: 0 | Z234: 0 | AA234: 0 | AB234: 0 | AC234: 0 | AD234: 0 | AE234: 0 | AF234: 0 | AG234: 0 | AH234: 0 | AI234: 0 | AJ234: 0 | AK234: 0 | AL234: 0 | AM234: 0 | AN234: 0 | AO234: 0 | AP234: 0 | AQ234: 0 | AR234: 0 | AS234: 0 | AT234: 0 | AU234: 0 | AV234: 0 | AW234: 0 | AX234: 0 | AY234: 0 | AZ234: 0 | BA234: 0 | BB234: 0 | BC234: 0 | BD234: 0 | BE234: 0 | BF234: 0 | BG234: 0 | BH234: 0 | BI234: 0 | BJ234: 0 | BK234: 0 | BL234: 0 | BM234: 0 | BN234: 0 | BO234: 0 | BP234: 0 | BQ234: 0 | BR234: 0 | BS234: 0 | BT234: 0 | BU234: 0 | BV234: 0 | BW234: 0 | BX234: 0 | BY234: 0 | BZ234: 0 | CA234: 0 | CB234: 0 | CC234: 0 | CD234: 0 | CE234: 0 | CF234: 0 | CG234: 0 | CH234: 0 | CI234: 0 | CJ234: 0 | CK234: 0 | CL234: 0 | CM234: 0 | CN234: 0 | CO234: 0 | CP234: 0 | CQ234: 0 | CR234: 0 | CS234: 0 | CT234: 0 | CU234: 0 | CV234: 0 | CW234: 0 | CX234: 0 | CY234: 0 | CZ234: 0 | DA234: 0 | DB234: 0 | DC234: 0 | DD234: 0 | DE234: 0 | DF234: 0 | DG234: 0 | DH234: 0 | DI234: 0 | DJ234: 0 | DK234: 0 | DL234: 0 | DM234: 0 | DN234: 0 | DO234: 0 | DP234: 0 | DQ234: 0 | DR234: 0 | DS234: 0 | DT234: 0 | DU234: 0 | DV234: 0 | DW234: 0 | DX234: 0 | DY234: 0 | DZ234: 0 | EA234: 0 | EB234: 0 | EC234: 0 | ED234: 0 | EE234: 0 | EF234: 0 | EG234: 0 | EH234: 0 | EI234: 0 | EJ234: 0 | EK234: 0 | EL234: 0 | EM234: 0 | EN234: 0 | EO234: 0 | EP234: 0 | EQ234: 0 | ER234: 0 | ES234: 0 | ET234: 0 | EU234: 0 | EV234: 0 | EW234: 0 | EX234: 0 | EY234: 0 | EZ234: 0 | FA234: 0 | FB234: 0 | FC234: 0 | FD234: 0 | FE234: 0 | FF234: 0 | FG234: 0 | FH234: 0 | FI234: 0 | FJ234: 0 | FK234: 0 | FL234: 0 | FM234: 0 | FN234: 0 | FO234: 0 | FP234: 0 | FQ234: 0 | FR234: 0 | FS234: 0 | FT234: 0 | FU234: 0 | FV234: 0 | FW234: 0 | FX234: 0 | FY234: 0 | FZ234: 0 | GA234: 0 | GB234: 0 | GC234: 0 | GD234: 0 | GE234: 0 | GF234: 0 | GG234: 0 | GH234: 0 | GI234: 0 | GJ234: 0 | GK234: 0 | GL234: 0 | GM234: 0 | GN234: 0 | GO234: 0 | GP234: 0 | GQ234: 0 | GR234: 0 | GS234: 0 | GT234: 0 | GU234: 0 | GV234: 0 | GW234: 0 | GX234: 0 | GY234: 0 | GZ234: 0 | HA234: 0 | HB234: 0 | HC234: 0 | HD234: 0 | HE234: 0 | HF234: 0 | HG234: 0 | HH234: 0 | HI234: 0 | HJ234: 0 | HK234: 0 | HL234: 0 | HM234: 0 | HN234: 0 | HO234: 0 | HP234: 0 | HQ234: 0 | HR234: 0 | HS234: 0 | HT234: 0 | HU234: 0 | HV234: 0 | HW234: 0
A235: 4 | B235: 0 | C235: 0 | D235: 0 | E235: 0 | F235: 0 | G235: 0 | H235: 0 | I235: 0 | J235: 0 | K235: 0 | L235: 0 | M235: 0 | N235: 0 | O235: 0 | P235: 0 | Q235: 0 | R235: 0 | S235: 0 | T235: 0 | U235: 0 | V235: 0 | W235: 0 | X235: 0 | Y235: 0 | Z235: 0 | AA235: 0 | AB235: 0 | AC235: 0 | AD235: 0 | AE235: 0 | AF235: 0 | AG235: 0 | AH235: 0 | AI235: 0 | AJ235: 0 | AK235: 0 | AL235: 0 | AM235: 0 | AN235: 0 | AO235: 0 | AP235: 0 | AQ235: 0 | AR235: 0 | AS235: 0 | AT235: 0 | AU235: 0 | AV235: 0 | AW235: 0 | AX235: 0 | AY235: 0 | AZ235: 0 | BA235: 0 | BB235: 0 | BC235: 0 | BD235: 0 | BE235: 0 | BF235: 0 | BG235: 0 | BH235: 0 | BI235: 0 | BJ235: 0 | BK235: 0 | BL235: 0 | BM235: 0 | BN235: 0 | BO235: 0 | BP235: 0 | BQ235: 0 | BR235: 0 | BS235: 0 | BT235: 0 | BU235: 0 | BV235: 0 | BW235: 0 | BX235: 0 | BY235: 0 | BZ235: 0 | CA235: 0 | CB235: 0 | CC235: 0 | CD235: 0 | CE235: 0 | CF235: 0 | CG235: 0 | CH235: 0 | CI235: 0 | CJ235: 0 | CK235: 0 | CL235: 0 | CM235: 0 | CN235: 0 | CO235: 0 | CP235: 0 | CQ235: 0 | CR235: 0 | CS235: 0 | CT235: 0 | CU235: 0 | CV235: 0 | CW235: 0 | CX235: 0 | CY235: 0 | CZ235: 0 | DA235: 0 | DB235: 0 | DC235: 0 | DD235: 0 | DE235: 0 | DF235: 0 | DG235: 0 | DH235: 0 | DI235: 0 | DJ235: 0 | DK235: 0 | DL235: 0 | DM235: 0 | DN235: 0 | DO235: 0 | DP235: 0 | DQ235: 0 | DR235: 0 | DS235: 0 | DT235: 0 | DU235: 0 | DV235: 0 | DW235: 0 | DX235: 0 | DY235: 0 | DZ235: 0 | EA235: 0 | EB235: 0 | EC235: 0 | ED235: 0 | EE235: 0 | EF235: 0 | EG235: 0 | EH235: 0 | EI235: 0 | EJ235: 0 | EK235: 0 | EL235: 0 | EM235: 0 | EN235: 0 | EO235: 0 | EP235: 0 | EQ235: 0 | ER235: 0 | ES235: 0 | ET235: 0 | EU235: 0 | EV235: 0 | EW235: 0 | EX235: 0 | EY235: 0 | EZ235: 0 | FA235: 0 | FB235: 0 | FC235: 0 | FD235: 0 | FE235: 0 | FF235: 0 | FG235: 0 | FH235: 0 | FI235: 0 | FJ235: 0 | FK235: 0 | FL235: 0 | FM235: 0 | FN235: 0 | FO235: 0 | FP235: 0 | FQ235: 0 | FR235: 0 | FS235: 0 | FT235: 0 | FU235: 0 | FV235: 0 | FW235: 0 | FX235: 0 | FY235: 0 | FZ235: 0 | GA235: 0 | GB235: 0 | GC235: 0 | GD235: 0 | GE235: 0 | GF235: 0 | GG235: 0 | GH235: 0 | GI235: 0 | GJ235: 0 | GK235: 0 | GL235: 0 | GM235: 0 | GN235: 0 | GO235: 0 | GP235: 0 | GQ235: 0 | GR235: 0 | GS235: 0 | GT235: 0 | GU235: 0 | GV235: 0 | GW235: 0 | GX235: 0 | GY235: 0 | GZ235: 0 | HA235: 0 | HB235: 0 | HC235: 0 | HD235: 0 | HE235: 0 | HF235: 0 | HG235: 0 | HH235: 0 | HI235: 0 | HJ235: 0 | HK235: 0 | HL235: 0 | HM235: 0 | HN235: 0 | HO235: 0 | HP235: 0 | HQ235: 0 | HR235: 0 | HS235: 0 | HT235: 0 | HU235: 0 | HV235: 0 | HW235: 0
A236: 5 | B236: 0 | C236: 0 | D236: 0 | E236: 0 | F236: 0 | G236: 0 | H236: 0 | I236: 0 | J236: 0 | K236: 0 | L236: 0 | M236: 0 | N236: 0 | O236: 0 | P236: 0 | Q236: 0 | R236: 0 | S236: 0 | T236: 0 | U236: 0 | V236: 0 | W236: 0 | X236: 0 | Y236: 0 | Z236: 0 | AA236: 0 | AB236: 0 | AC236: 0 | AD236: 0 | AE236: 0 | AF236: 0 | AG236: 0 | AH236: 0 | AI236: 0 | AJ236: 0 | AK236: 0 | AL236: 0 | AM236: 0 | AN236: 0 | AO236: 0 | AP236: 0 | AQ236: 0 | AR236: 0 | AS236: 0 | AT236: 0 | AU236: 0 | AV236: 0 | AW236: 0 | AX236: 0 | AY236: 0 | AZ236: 0 | BA236: 0 | BB236: 0 | BC236: 0 | BD236: 0 | BE236: 0 | BF236: 0 | BG236: 0 | BH236: 0 | BI236: 0 | BJ236: 0 | BK236: 0 | BL236: 0 | BM236: 0 | BN236: 0 | BO236: 0 | BP236: 0 | BQ236: 0 | BR236: 0 | BS236: 0 | BT236: 0 | BU236: 0 | BV236: 0 | BW236: 0 | BX236: 0 | BY236: 0 | BZ236: 0 | CA236: 0 | CB236: 0 | CC236: 0 | CD236: 0 | CE236: 0 | CF236: 0 | CG236: 0 | CH236: 0 | CI236: 0 | CJ236: 0 | CK236: 0 | CL236: 0 | CM236: 0 | CN236: 0 | CO236: 0 | CP236: 0 | CQ236: 0 | CR236: 0 | CS236: 0 | CT236: 0 | CU236: 0 | CV236: 0 | CW236: 0 | CX236: 0 | CY236: 0 | CZ236: 0 | DA236: 0 | DB236: 0 | DC236: 0 | DD236: 0 | DE236: 0 | DF236: 0 | DG236: 0 | DH236: 0 | DI236: 0 | DJ236: 0 | DK236: 0 | DL236: 0 | DM236: 0 | DN236: 0 | DO236: 0 | DP236: 0 | DQ236: 0 | DR236: 0 | DS236: 0 | DT236: 0 | DU236: 0 | DV236: 0 | DW236: 0 | DX236: 0 | DY236: 0 | DZ236: 0 | EA236: 0 | EB236: 0 | EC236: 0 | ED236: 0 | EE236: 0 | EF236: 0 | EG236: 0 | EH236: 0 | EI236: 0 | EJ236: 0 | EK236: 0 | EL236: 0 | EM236: 0 | EN236: 0 | EO236: 0 | EP236: 0 | EQ236: 0 | ER236: 0 | ES236: 0 | ET236: 0 | EU236: 0 | EV236: 0 | EW236: 0 | EX236: 0 | EY236: 0 | EZ236: 0 | FA236: 0 | FB236: 0 | FC236: 0 | FD236: 0 | FE236: 0 | FF236: 0 | FG236: 0 | FH236: 0 | FI236: 0 | FJ236: 0 | FK236: 0 | FL236: 0 | FM236: 0 | FN236: 0 | FO236: 0 | FP236: 0 | FQ236: 0 | FR236: 0 | FS236: 0 | FT236: 0 | FU236: 0 | FV236: 0 | FW236: 0 | FX236: 0 | FY236: 0 | FZ236: 0 | GA236: 0 | GB236: 0 | GC236: 0 | GD236: 0 | GE236: 0 | GF236: 0 | GG236: 0 | GH236: 0 | GI236: 0 | GJ236: 0 | GK236: 0 | GL236: 0 | GM236: 0 | GN236: 0 | GO236: 0 | GP236: 0 | GQ236: 0 | GR236: 0 | GS236: 0 | GT236: 0 | GU236: 0 | GV236: 0 | GW236: 0 | GX236: 0 | GY236: 0 | GZ236: 0 | HA236: 0 | HB236: 0 | HC236: 0 | HD236: 0 | HE236: 0 | HF236: 0 | HG236: 0 | HH236: 0 | HI236: 0 | HJ236: 0 | HK236: 0 | HL236: 0 | HM236: 0 | HN236: 0 | HO236: 0 | HP236: 0 | HQ236: 0 | HR236: 0 | HS236: 0 | HT236: 0 | HU236: 0 | HV236: 0 | HW236: 0
A237: 11 | B237: 0 | C237: 0 | D237: 0 | E237: 0 | F237: 0 | G237: 0 | H237: 0 | I237: 0 | J237: 0 | K237: 0 | L237: 0 | M237: 0 | N237: 0 | O237: 0 | P237: 0 | Q237: 0 | R237: 0 | S237: 0 | T237: 0 | U237: 0 | V237: 0 | W237: 0 | X237: 0 | Y237: 0 | Z237: 0 | AA237: 0 | AB237: 0 | AC237: 0 | AD237: 0 | AE237: 0 | AF237: 0 | AG237: 0 | AH237: 0 | AI237: 0 | AJ237: 0 | AK237: 0 | AL237: 0 | AM237: 0 | AN237: 0 | AO237: 0 | AP237: 0 | AQ237: 0 | AR237: 0 | AS237: 0 | AT237: 0 | AU237: 0 | AV237: 0 | AW237: 0 | AX237: 0 | AY237: 0 | AZ237: 0 | BA237: 0 | BB237: 0 | BC237: 0 | BD237: 0 | BE237: 0 | BF237: 0 | BG237: 0 | BH237: 0 | BI237: 0 | BJ237: 0 | BK237: 0 | BL237: 0 | BM237: 0 | BN237: 0 | BO237: 0 | BP237: 0 | BQ237: 0 | BR237: 0 | BS237: 0 | BT237: 0 | BU237: 0 | BV237: 0 | BW237: 0 | BX237: 0 | BY237: 0 | BZ237: 0 | CA237: 0 | CB237: 0 | CC237: 0 | CD237: 0 | CE237: 0 | CF237: 0 | CG237: 0 | CH237: 0 | CI237: 0 | CJ237: 0 | CK237: 0 | CL237: 0 | CM237: 0 | CN237: 0 | CO237: 0 | CP237: 0 | CQ237: 0 | CR237: 0 | CS237: 0 | CT237: 0 | CU237: 0 | CV237: 0 | CW237: 0 | CX237: 0 | CY237: 0 | CZ237: 0 | DA237: 0 | DB237: 0 | DC237: 0 | DD237: 0 | DE237: 0 | DF237: 0 | DG237: 0 | DH237: 0 | DI237: 0 | DJ237: 0 | DK237: 0 | DL237: 0 | DM237: 0 | DN237: 0 | DO237: 0 | DP237: 0 | DQ237: 0 | DR237: 0 | DS237: 0 | DT237: 0 | DU237: 0 | DV237: 0 | DW237: 0 | DX237: 0 | DY237: 0 | DZ237: 0 | EA237: 0 | EB237: 0 | EC237: 0 | ED237: 0 | EE237: 0 | EF237: 0 | EG237: 0 | EH237: 0 | EI237: 0 | EJ237: 0 | EK237: 0 | EL237: 0 | EM237: 0 | EN237: 0 | EO237: 0 | EP237: 0 | EQ237: 0 | ER237: 0 | ES237: 0 | ET237: 0 | EU237: 0 | EV237: 0 | EW237: 0 | EX237: 0 | EY237: 0 | EZ237: 0 | FA237: 0 | FB237: 0 | FC237: 0 | FD237: 0 | FE237: 0 | FF237: 0 | FG237: 0 | FH237: 0 | FI237: 0 | FJ237: 0 | FK237: 0 | FL237: 0 | FM237: 0 | FN237: 0 | FO237: 0 | FP237: 0 | FQ237: 0 | FR237: 0 | FS237: 0 | FT237: 0 | FU237: 0 | FV237: 0 | FW237: 0 | FX237: 0 | FY237: 0 | FZ237: 0 | GA237: 0 | GB237: 0 | GC237: 0 | GD237: 0 | GE237: 0 | GF237: 0 | GG237: 0 | GH237: 0 | GI237: 0 | GJ237: 0 | GK237: 0 | GL237: 0 | GM237: 0 | GN237: 0 | GO237: 0 | GP237: 0 | GQ237: 0 | GR237: 0 | GS237: 0 | GT237: 0 | GU237: 0 | GV237: 0 | GW237: 0 | GX237: 0 | GY237: 0 | GZ237: 0 | HA237: 0 | HB237: 0 | HC237: 0 | HD237: 0 | HE237: 0 | HF237: 0 | HG237: 0 | HH237: 0 | HI237: 0 | HJ237: 0 | HK237: 0 | HL237: 0 | HM237: 0 | HN237: 0 | HO237: 0 | HP237: 0 | HQ237: 0 | HR237: 0 | HS237: 0 | HT237: 0 | HU237: 0 | HV237: 0 | HW237: 0
A238: 10 | B238: 0 | C238: 0 | D238: 0 | E238: 0 | F238: 0 | G238: 0 | H238: 0 | I238: 0 | J238: 0 | K238: 0 | L238: 0 | M238: 0 | N238: 0 | O238: 0 | P238: 0 | Q238: 0 | R238: 0 | S238: 0 | T238: 0 | U238: 0 | V238: 0 | W238: 0 | X238: 0 | Y238: 0 | Z238: 0 | AA238: 0 | AB238: 0 | AC238: 0 | AD238: 0 | AE238: 0 | AF238: 0 | AG238: 0 | AH238: 0 | AI238: 0 | AJ238: 0 | AK238: 0 | AL238: 0 | AM238: 0 | AN238: 0 | AO238: 0 | AP238: 0 | AQ238: 0 | AR238: 0 | AS238: 0 | AT238: 0 | AU238: 0 | AV238: 0 | AW238: 0 | AX238: 0 | AY238: 0 | AZ238: 0 | BA238: 0 | BB238: 0 | BC238: 0 | BD238: 0 | BE238: 0 | BF238: 0 | BG238: 0 | BH238: 0 | BI238: 0 | BJ238: 0 | BK238: 0 | BL238: 0 | BM238: 0 | BN238: 0 | BO238: 0 | BP238: 0 | BQ238: 0 | BR238: 0 | BS238: 0 | BT238: 0 | BU238: 0 | BV238: 0 | BW238: 0 | BX238: 0 | BY238: 0 | BZ238: 0 | CA238: 0 | CB238: 0 | CC238: 0 | CD238: 0 | CE238: 0 | CF238: 0 | CG238: 0 | CH238: 0 | CI238: 0 | CJ238: 0 | CK238: 0 | CL238: 0 | CM238: 0 | CN238: 0 | CO238: 0 | CP238: 0 | CQ238: 0 | CR238: 0 | CS238: 0 | CT238: 0 | CU238: 0 | CV238: 0 | CW238: 0 | CX238: 0 | CY238: 0 | CZ238: 0 | DA238: 0 | DB238: 0 | DC238: 0 | DD238: 0 | DE238: 0 | DF238: 0 | DG238: 0 | DH238: 0 | DI238: 0 | DJ238: 0 | DK238: 0 | DL238: 0 | DM238: 0 | DN238: 0 | DO238: 0 | DP238: 0 | DQ238: 0 | DR238: 0 | DS238: 0 | DT238: 0 | DU238: 0 | DV238: 0 | DW238: 0 | DX238: 0 | DY238: 0 | DZ238: 0 | EA238: 0 | EB238: 0 | EC238: 0 | ED238: 0 | EE238: 0 | EF238: 0 | EG238: 0 | EH238: 0 | EI238: 0 | EJ238: 0 | EK238: 0 | EL238: 0 | EM238: 0 | EN238: 0 | EO238: 0 | EP238: 0 | EQ238: 0 | ER238: 0 | ES238: 0 | ET238: 0 | EU238: 0 | EV238: 0 | EW238: 0 | EX238: 0 | EY238: 0 | EZ238: 0 | FA238: 0 | FB238: 0 | FC238: 0 | FD238: 0 | FE238: 0 | FF238: 0 | FG238: 0 | FH238: 0 | FI238: 0 | FJ238: 0 | FK238: 0 | FL238: 0 | FM238: 0 | FN238: 0 | FO238: 0 | FP238: 0 | FQ238: 0 | FR238: 0 | FS238: 0 | FT238: 0 | FU238: 0 | FV238: 0 | FW238: 0 | FX238: 0 | FY238: 0 | FZ238: 0 | GA238: 0 | GB238: 0 | GC238: 0 | GD238: 0 | GE238: 0 | GF238: 0 | GG238: 0 | GH238: 0 | GI238: 0 | GJ238: 0 | GK238: 0 | GL238: 0 | GM238: 0 | GN238: 0 | GO238: 0 | GP238: 0 | GQ238: 0 | GR238: 0 | GS238: 0 | GT238: 0 | GU238: 0 | GV238: 0 | GW238: 0 | GX238: 0 | GY238: 0 | GZ238: 0 | HA238: 0 | HB238: 0 | HC238: 0 | HD238: 0 | HE238: 0 | HF238: 0 | HG238: 0 | HH238: 0 | HI238: 0 | HJ238: 0 | HK238: 0 | HL238: 0 | HM238: 0 | HN238: 0 | HO238: 0 | HP238: 0 | HQ238: 0 | HR238: 0 | HS238: 0 | HT238: 0 | HU238: 0 | HV238: 0 | HW238: 0
A239: 9 | B239: 0 | C239: 0 | D239: 0 | E239: 0 | F239: 0 | G239: 0 | H239: 0 | I239: 0 | J239: 0 | K239: 0 | L239: 0 | M239: 0 | N239: 0 | O239: 0 | P239: 0 | Q239: 0 | R239: 0 | S239: 0 | T239: 0 | U239: 0 | V239: 0 | W239: 0 | X239: 0 | Y239: 0 | Z239: 0 | AA239: 0 | AB239: 0 | AC239: 0 | AD239: 0 | AE239: 0 | AF239: 0 | AG239: 0 | AH239: 0 | AI239: 0 | AJ239: 0 | AK239: 0 | AL239: 0 | AM239: 0 | AN239: 0 | AO239: 0 | AP239: 0 | AQ239: 0 | AR239: 0 | AS239: 0 | AT239: 0 | AU239: 0 | AV239: 0 | AW239: 0 | AX239: 0 | AY239: 0 | AZ239: 0 | BA239: 0 | BB239: 0 | BC239: 0 | BD239: 0 | BE239: 0 | BF239: 0 | BG239: 0 | BH239: 0 | BI239: 0 | BJ239: 0 | BK239: 0 | BL239: 0 | BM239: 0 | BN239: 0 | BO239: 0 | BP239: 0 | BQ239: 0 | BR239: 0 | BS239: 0 | BT239: 0 | BU239: 0 | BV239: 0 | BW239: 0 | BX239: 0 | BY239: 0 | BZ239: 0 | CA239: 0 | CB239: 0 | CC239: 0 | CD239: 0 | CE239: 0 | CF239: 0 | CG239: 0 | CH239: 0 | CI239: 0 | CJ239: 0 | CK239: 0 | CL239: 0 | CM239: 0 | CN239: 0 | CO239: 0 | CP239: 0 | CQ239: 0 | CR239: 0 | CS239: 0 | CT239: 0 | CU239: 0 | CV239: 0 | CW239: 0 | CX239: 0 | CY239: 0 | CZ239: 0 | DA239: 0 | DB239: 0 | DC239: 0 | DD239: 0 | DE239: 0 | DF239: 0 | DG239: 0 | DH239: 0 | DI239: 0 | DJ239: 0 | DK239: 0 | DL239: 0 | DM239: 0 | DN239: 0 | DO239: 0 | DP239: 0 | DQ239: 0 | DR239: 0 | DS239: 0 | DT239: 0 | DU239: 0 | DV239: 0 | DW239: 0 | DX239: 0 | DY239: 0 | DZ239: 0 | EA239: 0 | EB239: 0 | EC239: 0 | ED239: 0 | EE239: 0 | EF239: 0 | EG239: 0 | EH239: 0 | EI239: 0 | EJ239: 0 | EK239: 0 | EL239: 0 | EM239: 0 | EN239: 0 | EO239: 0 | EP239: 0 | EQ239: 0 | ER239: 0 | ES239: 0 | ET239: 0 | EU239: 0 | EV239: 0 | EW239: 0 | EX239: 0 | EY239: 0 | EZ239: 0 | FA239: 0 | FB239: 0 | FC239: 0 | FD239: 0 | FE239: 0 | FF239: 0 | FG239: 0 | FH239: 0 | FI239: 0 | FJ239: 0 | FK239: 0 | FL239: 0 | FM239: 0 | FN239: 0 | FO239: 0 | FP239: 0 | FQ239: 0 | FR239: 0 | FS239: 0 | FT239: 0 | FU239: 0 | FV239: 0 | FW239: 0 | FX239: 0 | FY239: 0 | FZ239: 0 | GA239: 0 | GB239: 0 | GC239: 0 | GD239: 0 | GE239: 0 | GF239: 0 | GG239: 0 | GH239: 0 | GI239: 0 | GJ239: 0 | GK239: 0 | GL239: 0 | GM239: 0 | GN239: 0 | GO239: 0 | GP239: 0 | GQ239: 0 | GR239: 0 | GS239: 0 | GT239: 0 | GU239: 0 | GV239: 0 | GW239: 0 | GX239: 0 | GY239: 0 | GZ239: 0 | HA239: 0 | HB239: 0 | HC239: 0 | HD239: 0 | HE239: 0 | HF239: 0 | HG239: 0 | HH239: 0 | HI239: 0 | HJ239: 0 | HK239: 0 | HL239: 0 | HM239: 0 | HN239: 0 | HO239: 0 | HP239: 0 | HQ239: 0 | HR239: 0 | HS239: 0 | HT239: 0 | HU239: 0 | HV239: 0 | HW239: 0
A240: 8 | B240: 0 | C240: 0 | D240: 0 | E240: 0 | F240: 0 | G240: 0 | H240: 0 | I240: 0 | J240: 0 | K240: 0 | L240: 0 | M240: 0 | N240: 0 | O240: 0 | P240: 0 | Q240: 0 | R240: 0 | S240: 0 | T240: 0 | U240: 0 | V240: 0 | W240: 0 | X240: 0 | Y240: 0 | Z240: 0 | AA240: 0 | AB240: 0 | AC240: 0 | AD240: 0 | AE240: 0 | AF240: 0 | AG240: 0 | AH240: 0 | AI240: 0 | AJ240: 0 | AK240: 0 | AL240: 0 | AM240: 0 | AN240: 0 | AO240: 0 | AP240: 0 | AQ240: 0 | AR240: 0 | AS240: 0 | AT240: 0 | AU240: 0 | AV240: 0 | AW240: 0 | AX240: 0 | AY240: 0 | AZ240: 0 | BA240: 0 | BB240: 0 | BC240: 0 | BD240: 0 | BE240: 0 | BF240: 0 | BG240: 0 | BH240: 0 | BI240: 0 | BJ240: 0 | BK240: 0 | BL240: 0 | BM240: 0 | BN240: 0 | BO240: 0 | BP240: 0 | BQ240: 0 | BR240: 0 | BS240: 0 | BT240: 0 | BU240: 0 | BV240: 0 | BW240: 0 | BX240: 0 | BY240: 0 | BZ240: 0 | CA240: 0 | CB240: 0 | CC240: 0 | CD240: 0 | CE240: 0 | CF240: 0 | CG240: 0 | CH240: 0 | CI240: 0 | CJ240: 0 | CK240: 0 | CL240: 0 | CM240: 0 | CN240: 0 | CO240: 0 | CP240: 0 | CQ240: 0 | CR240: 0 | CS240: 0 | CT240: 0 | CU240: 0 | CV240: 0 | CW240: 0 | CX240: 0 | CY240: 0 | CZ240: 0 | DA240: 0 | DB240: 0 | DC240: 0 | DD240: 0 | DE240: 0 | DF240: 0 | DG240: 0 | DH240: 0 | DI240: 0 | DJ240: 0 | DK240: 0 | DL240: 0 | DM240: 0 | DN240: 0 | DO240: 0 | DP240: 0 | DQ240: 0 | DR240: 0 | DS240: 0 | DT240: 0 | DU240: 0 | DV240: 0 | DW240: 0 | DX240: 0 | DY240: 0 | DZ240: 0 | EA240: 0 | EB240: 0 | EC240: 0 | ED240: 0 | EE240: 0 | EF240: 0 | EG240: 0 | EH240: 0 | EI240: 0 | EJ240: 0 | EK240: 0 | EL240: 0 | EM240: 0 | EN240: 0 | EO240: 0 | EP240: 0 | EQ240: 0 | ER240: 0 | ES240: 0 | ET240: 0 | EU240: 0 | EV240: 0 | EW240: 0 | EX240: 0 | EY240: 0 | EZ240: 0 | FA240: 0 | FB240: 0 | FC240: 0 | FD240: 0 | FE240: 0 | FF240: 0 | FG240: 0 | FH240: 0 | FI240: 0 | FJ240: 0 | FK240: 0 | FL240: 0 | FM240: 0 | FN240: 0 | FO240: 0 | FP240: 0 | FQ240: 0 | FR240: 0 | FS240: 0 | FT240: 0 | FU240: 0 | FV240: 0 | FW240: 0 | FX240: 0 | FY240: 0 | FZ240: 0 | GA240: 0 | GB240: 0 | GC240: 0 | GD240: 0 | GE240: 0 | GF240: 0 | GG240: 0 | GH240: 0 | GI240: 0 | GJ240: 0 | GK240: 0 | GL240: 0 | GM240: 0 | GN240: 0 | GO240: 0 | GP240: 0 | GQ240: 0 | GR240: 0 | GS240: 0 | GT240: 0 | GU240: 0 | GV240: 0 | GW240: 0 | GX240: 0 | GY240: 0 | GZ240: 0 | HA240: 0 | HB240: 0 | HC240: 0 | HD240: 0 | HE240: 0 | HF240: 0 | HG240: 0 | HH240: 0 | HI240: 0 | HJ240: 0 | HK240: 0 | HL240: 0 | HM240: 0 | HN240: 0 | HO240: 0 | HP240: 0 | HQ240: 0 | HR240: 0 | HS240: 0 | HT240: 0 | HU240: 0 | HV240: 0 | HW240: 0
A241: 7 | B241: 0 | C241: 0 | D241: 0 | E241: 0 | F241: 0 | G241: 0 | H241: 0 | I241: 0 | J241: 0 | K241: 0 | L241: 0 | M241: 0 | N241: 0 | O241: 0 | P241: 0 | Q241: 0 | R241: 0 | S241: 0 | T241: 0 | U241: 0 | V241: 0 | W241: 0 | X241: 0 | Y241: 0 | Z241: 0 | AA241: 0 | AB241: 0 | AC241: 0 | AD241: 0 | AE241: 0 | AF241: 0 | AG241: 0 | AH241: 0 | AI241: 0 | AJ241: 0 | AK241: 0 | AL241: 0 | AM241: 0 | AN241: 0 | AO241: 0 | AP241: 0 | AQ241: 0 | AR241: 0 | AS241: 0 | AT241: 0 | AU241: 0 | AV241: 0 | AW241: 0 | AX241: 0 | AY241: 0 | AZ241: 0 | BA241: 0 | BB241: 0 | BC241: 0 | BD241: 0 | BE241: 0 | BF241: 0 | BG241: 0 | BH241: 0 | BI241: 0 | BJ241: 0 | BK241: 0 | BL241: 0 | BM241: 0 | BN241: 0 | BO241: 0 | BP241: 0 | BQ241: 0 | BR241: 0 | BS241: 0 | BT241: 0 | BU241: 0 | BV241: 0 | BW241: 0 | BX241: 0 | BY241: 0 | BZ241: 0 | CA241: 0 | CB241: 0 | CC241: 0 | CD241: 0 | CE241: 0 | CF241: 0 | CG241: 0 | CH241: 0 | CI241: 0 | CJ241: 0 | CK241: 0 | CL241: 0 | CM241: 0 | CN241: 0 | CO241: 0 | CP241: 0 | CQ241: 0 | CR241: 0 | CS241: 0 | CT241: 0 | CU241: 0 | CV241: 0 | CW241: 0 | CX241: 0 | CY241: 0 | CZ241: 0 | DA241: 0 | DB241: 0 | DC241: 0 | DD241: 0 | DE241: 0 | DF241: 0 | DG241: 0 | DH241: 0 | DI241: 0 | DJ241: 0 | DK241: 0 | DL241: 0 | DM241: 0 | DN241: 0 | DO241: 0 | DP241: 0 | DQ241: 0 | DR241: 0 | DS241: 0 | DT241: 0 | DU241: 0 | DV241: 0 | DW241: 0 | DX241: 0 | DY241: 0 | DZ241: 0 | EA241: 0 | EB241: 0 | EC241: 0 | ED241: 0 | EE241: 0 | EF241: 0 | EG241: 0 | EH241: 0 | EI241: 0 | EJ241: 0 | EK241: 0 | EL241: 0 | EM241: 0 | EN241: 0 | EO241: 0 | EP241: 0 | EQ241: 0 | ER241: 0 | ES241: 0 | ET241: 0 | EU241: 0 | EV241: 0 | EW241: 0 | EX241: 0 | EY241: 0 | EZ241: 0 | FA241: 0 | FB241: 0 | FC241: 0 | FD241: 0 | FE241: 0 | FF241: 0 | FG241: 0 | FH241: 0 | FI241: 0 | FJ241: 0 | FK241: 0 | FL241: 0 | FM241: 0 | FN241: 0 | FO241: 0 | FP241: 0 | FQ241: 0 | FR241: 0 | FS241: 0 | FT241: 0 | FU241: 0 | FV241: 0 | FW241: 0 | FX241: 0 | FY241: 0 | FZ241: 0 | GA241: 0 | GB241: 0 | GC241: 0 | GD241: 0 | GE241: 0 | GF241: 0 | GG241: 0 | GH241: 0 | GI241: 0 | GJ241: 0 | GK241: 0 | GL241: 0 | GM241: 0 | GN241: 0 | GO241: 0 | GP241: 0 | GQ241: 0 | GR241: 0 | GS241: 0 | GT241: 0 | GU241: 0 | GV241: 0 | GW241: 0 | GX241: 0 | GY241: 0 | GZ241: 0 | HA241: 0 | HB241: 0 | HC241: 0 | HD241: 0 | HE241: 0 | HF241: 0 | HG241: 0 | HH241: 0 | HI241: 0 | HJ241: 0 | HK241: 0 | HL241: 0 | HM241: 0 | HN241: 0 | HO241: 0 | HP241: 0 | HQ241: 0 | HR241: 0 | HS241: 0 | HT241: 0 | HU241: 0 | HV241: 0 | HW241: 0
A242: 6 | B242: 0 | C242: 0 | D242: 0 | E242: 0 | F242: 0 | G242: 0 | H242: 0 | I242: 0 | J242: 0 | K242: 0 | L242: 0 | M242: 0 | N242: 0 | O242: 0 | P242: 0 | Q242: 0 | R242: 0 | S242: 0 | T242: 0 | U242: 0 | V242: 0 | W242: 0 | X242: 0 | Y242: 0 | Z242: 0 | AA242: 0 | AB242: 0 | AC242: 0 | AD242: 0 | AE242: 0 | AF242: 0 | AG242: 0 | AH242: 0 | AI242: 0 | AJ242: 0 | AK242: 0 | AL242: 0 | AM242: 0 | AN242: 0 | AO242: 0 | AP242: 0 | AQ242: 0 | AR242: 0 | AS242: 0 | AT242: 0 | AU242: 0 | AV242: 0 | AW242: 0 | AX242: 0 | AY242: 0 | AZ242: 0 | BA242: 0 | BB242: 0 | BC242: 0 | BD242: 0 | BE242: 0 | BF242: 0 | BG242: 0 | BH242: 0 | BI242: 0 | BJ242: 0 | BK242: 0 | BL242: 0 | BM242: 0 | BN242: 0 | BO242: 0 | BP242: 0 | BQ242: 0 | BR242: 0 | BS242: 0 | BT242: 0 | BU242: 0 | BV242: 0 | BW242: 0 | BX242: 0 | BY242: 0 | BZ242: 0 | CA242: 0 | CB242: 0 | CC242: 0 | CD242: 0 | CE242: 0 | CF242: 0 | CG242: 0 | CH242: 0 | CI242: 0 | CJ242: 0 | CK242: 0 | CL242: 0 | CM242: 0 | CN242: 0 | CO242: 0 | CP242: 0 | CQ242: 0 | CR242: 0 | CS242: 0 | CT242: 0 | CU242: 0 | CV242: 0 | CW242: 0 | CX242: 0 | CY242: 0 | CZ242: 0 | DA242: 0 | DB242: 0 | DC242: 0 | DD242: 0 | DE242: 0 | DF242: 0 | DG242: 0 | DH242: 0 | DI242: 0 | DJ242: 0 | DK242: 0 | DL242: 0 | DM242: 0 | DN242: 0 | DO242: 0 | DP242: 0 | DQ242: 0 | DR242: 0 | DS242: 0 | DT242: 0 | DU242: 0 | DV242: 0 | DW242: 0 | DX242: 0 | DY242: 0 | DZ242: 0 | EA242: 0 | EB242: 0 | EC242: 0 | ED242: 0 | EE242: 0 | EF242: 0 | EG242: 0 | EH242: 0 | EI242: 0 | EJ242: 0 | EK242: 0 | EL242: 0 | EM242: 0 | EN242: 0 | EO242: 0 | EP242: 0 | EQ242: 0 | ER242: 0 | ES242: 0 | ET242: 0 | EU242: 0 | EV242: 0 | EW242: 0 | EX242: 0 | EY242: 0 | EZ242: 0 | FA242: 0 | FB242: 0 | FC242: 0 | FD242: 0 | FE242: 0 | FF242: 0 | FG242: 0 | FH242: 0 | FI242: 0 | FJ242: 0 | FK242: 0 | FL242: 0 | FM242: 0 | FN242: 0 | FO242: 0 | FP242: 0 | FQ242: 0 | FR242: 0 | FS242: 0 | FT242: 0 | FU242: 0 | FV242: 0 | FW242: 0 | FX242: 0 | FY242: 0 | FZ242: 0 | GA242: 0 | GB242: 0 | GC242: 0 | GD242: 0 | GE242: 0 | GF242: 0 | GG242: 0 | GH242: 0 | GI242: 0 | GJ242: 0 | GK242: 0 | GL242: 0 | GM242: 0 | GN242: 0 | GO242: 0 | GP242: 0 | GQ242: 0 | GR242: 0 | GS242: 0 | GT242: 0 | GU242: 0 | GV242: 0 | GW242: 0 | GX242: 0 | GY242: 0 | GZ242: 0 | HA242: 0 | HB242: 0 | HC242: 0 | HD242: 0 | HE242: 0 | HF242: 0 | HG242: 0 | HH242: 0 | HI242: 0 | HJ242: 0 | HK242: 0 | HL242: 0 | HM242: 0 | HN242: 0 | HO242: 0 | HP242: 0 | HQ242: 0 | HR242: 0 | HS242: 0 | HT242: 0 | HU242: 0 | HV242: 0 | HW242: 0
A243: T | B243: 0 | C243: 0 | D243: 0 | E243: 0 | F243: 0 | G243: 0 | H243: 0 | I243: 0 | J243: 0 | K243: 0 | L243: 0 | M243: 0 | N243: 0 | O243: 0 | P243: 0 | Q243: 0 | R243: 0 | S243: 0 | T243: 0 | U243: 0 | V243: 0 | W243: 0 | X243: 0 | Y243: 0 | Z243: 0 | AA243: 0 | AB243: 0 | AC243: 0 | AD243: 0 | AE243: 0 | AF243: 0 | AG243: 0 | AH243: 0 | AI243: 0 | AJ243: 0 | AK243: 0 | AL243: 0 | AM243: 0 | AN243: 0 | AO243: 0 | AP243: 0 | AQ243: 0 | AR243: 0 | AS243: 0 | AT243: 0 | AU243: 0 | AV243: 0 | AW243: 0 | AX243: 0 | AY243: 0 | AZ243: 0 | BA243: 0 | BB243: 0 | BC243: 0 | BD243: 0 | BE243: 0 | BF243: 0 | BG243: 0 | BH243: 0 | BI243: 0 | BJ243: 0 | BK243: 0 | BL243: 0 | BM243: 0 | BN243: 0 | BO243: 0 | BP243: 0 | BQ243: 0 | BR243: 0 | BS243: 0 | BT243: 0 | BU243: 0 | BV243: 0 | BW243: 0 | BX243: 0 | BY243: 0 | BZ243: 0 | CA243: 0 | CB243: 0 | CC243: 0 | CD243: 0 | CE243: 0 | CF243: 0 | CG243: 0 | CH243: 0 | CI243: 0 | CJ243: 0 | CK243: 0 | CL243: 0 | CM243: 0 | CN243: 0 | CO243: 0 | CP243: 0 | CQ243: 0 | CR243: 0 | CS243: 0 | CT243: 0 | CU243: 0 | CV243: 0 | CW243: 0 | CX243: 0 | CY243: 0 | CZ243: 0 | DA243: 0 | DB243: 0 | DC243: 0 | DD243: 0 | DE243: 0 | DF243: 0 | DG243: 0 | DH243: 0 | DI243: 0 | DJ243: 0 | DK243: 0 | DL243: 0 | DM243: 0 | DN243: 0 | DO243: 0 | DP243: 0 | DQ243: 0 | DR243: 0 | DS243: 0 | DT243: 0 | DU243: 0 | DV243: 0 | DW243: 0 | DX243: 0 | DY243: 0 | DZ243: 0 | EA243: 0 | EB243: 0 | EC243: 0 | ED243: 0 | EE243: 0 | EF243: 0 | EG243: 0 | EH243: 0 | EI243: 0 | EJ243: 0 | EK243: 0 | EL243: 0 | EM243: 0 | EN243: 0 | EO243: 0 | EP243: 0 | EQ243: 0 | ER243: 0 | ES243: 0 | ET243: 0 | EU243: 0 | EV243: 0 | EW243: 0 | EX243: 0 | EY243: 0 | EZ243: 0 | FA243: 0 | FB243: 0 | FC243: 0 | FD243: 0 | FE243: 0 | FF243: 0 | FG243: 0 | FH243: 0 | FI243: 0 | FJ243: 0 | FK243: 0 | FL243: 0 | FM243: 0 | FN243: 0 | FO243: 0 | FP243: 0 | FQ243: 0 | FR243: 0 | FS243: 0 | FT243: 0 | FU243: 0 | FV243: 0 | FW243: 0 | FX243: 0 | FY243: 0 | FZ243: 0 | GA243: 0 | GB243: 0 | GC243: 0 | GD243: 0 | GE243: 0 | GF243: 0 | GG243: 0 | GH243: 0 | GI243: 0 | GJ243: 0 | GK243: 0 | GL243: 0 | GM243: 0 | GN243: 0 | GO243: 0 | GP243: 0 | GQ243: 0 | GR243: 0 | GS243: 0 | GT243: 0 | GU243: 0 | GV243: 0 | GW243: 0 | GX243: 0 | GY243: 0 | GZ243: 0 | HA243: 0 | HB243: 0 | HC243: 0 | HD243: 0 | HE243: 0 | HF243: 0 | HG243: 0 | HH243: 0 | HI243: 0 | HJ243: 0 | HK243: 0 | HL243: 0 | HM243: 0 | HN243: 0 | HO243: 0 | HP243: 0 | HQ243: 0 | HR243: 0 | HS243: 0 | HT243: 0 | HU243: 0 | HV243: 0 | HW243: 0
A249: TOTAL
A250: =COUNT(A232:A247) -> 11 | B250: =SUM(B232:B247) -> 0 | C250: =SUM(C232:C247) -> 0 | D250: 0 | E250: 0 | F250: 0 | G250: 0 | H250: 0 | I250: 0 | J250: 0 | K250: 0 | L250: 0 | M250: 0 | N250: 0 | O250: 0 | P250: 0 | Q250: 0 | R250: 0 | S250: 0 | T250: 0 | U250: 0 | V250: 0 | W250: 0 | X250: 0 | Y250: 0 | Z250: 0 | AA250: 0 | AB250: 0 | AC250: 0 | AD250: 0 | AE250: 0 | AF250: 0 | AG250: 0 | AH250: 0 | AI250: 0 | AJ250: 0 | AK250: 0 | AL250: 0 | AM250: 0 | AN250: 0 | AO250: 0 | AP250: 0 | AQ250: 0 | AR250: 0 | AS250: 0 | AT250: 0 | AU250: 0 | AV250: 0 | AW250: 0 | AX250: 0 | AY250: 0 | AZ250: 0 | BA250: 0 | BB250: 0 | BC250: 0 | BD250: 0 | BE250: 0 | BF250: 0 | BG250: 0 | BH250: 0 | BI250: 0 | BJ250: 0 | BK250: 0 | BL250: 0 | BM250: 0 | BN250: 0 | BO250: =SUM(BO232:BO247) -> 0 | BP250: 0 | BQ250: 0 | BR250: 0 | BS250: 0 | BT250: 0 | BU250: 0 | BV250: 0 | BW250: 0 | BX250: 0 | BY250: 0 | BZ250: 0 | CA250: 0 | CB250: 0 | CC250: 0 | CD250: 0 | CE250: 0 | CF250: 0 | CG250: 0 | CH250: 0 | CI250: 0 | CJ250: 0 | CK250: 0 | CL250: 0 | CM250: 0 | CN250: 0 | CO250: 0 | CP250: 0 | CQ250: 0 | CR250: 0 | CS250: 0 | CT250: 0 | CU250: 0 | CV250: 0 | CW250: 0 | CX250: 0 | CY250: 0 | CZ250: 0 | DA250: 0 | DB250: 0 | DC250: 0 | DD250: 0 | DE250: 0 | DF250: 0 | DG250: 0 | DH250: 0 | DI250: 0 | DJ250: 0 | DK250: 0 | DL250: 0 | DM250: 0 | DN250: 0 | DO250: 0 | DP250: 0 | DQ250: 0 | DR250: 0 | DS250: 0 | DT250: 0 | DU250: 0 | DV250: 0 | DW250: 0 | DX250: 0 | DY250: 0 | DZ250: 0 | EA250: =SUM(EA232:EA247) -> 0 | EB250: 0 | EC250: 0 | ED250: 0 | EE250: 0 | EF250: 0 | EG250: 0 | EH250: 0 | EI250: 0 | EJ250: 0 | EK250: 0 | EL250: 0 | EM250: 0 | EN250: 0 | EO250: 0 | EP250: 0 | EQ250: 0 | ER250: 0 | ES250: 0 | ET250: 0 | EU250: 0 | EV250: 0 | EW250: 0 | EX250: 0 | EY250: 0 | EZ250: 0 | FA250: 0 | FB250: 0 | FC250: 0 | FD250: 0 | FE250: 0 | FF250: 0 | FG250: 0 | FH250: 0 | FI250: 0 | FJ250: 0 | FK250: 0 | FL250: 0 | FM250: 0 | FN250: 0 | FO250: 0 | FP250: 0 | FQ250: 0 | FR250: 0 | FS250: 0 | FT250: 0 | FU250: 0 | FV250: 0 | FW250: 0 | FX250: 0 | FY250: 0 | FZ250: 0 | GA250: 0 | GB250: 0 | GC250: 0 | GD250: 0 | GE250: 0 | GF250: 0 | GG250: 0 | GH250: 0 | GI250: 0 | GJ250: 0 | GK250: 0 | GL250: 0 | GM250: =SUM(GM232:GM247) -> 0 | GN250: 0 | GO250: 0 | GP250: 0 | GQ250: 0 | GR250: 0 | GS250: 0 | GT250: 0 | GU250: 0 | GV250: 0 | GW250: 0 | GX250: 0 | GY250: 0 | GZ250: 0
A251: =CONCATENATE(A232,"-",A233,"-",A234,"-",A235,"-",A236,"-",A237,"-",A238,"-",A239,"-",A240,"-",A241,"-",A242,"-",A243) -> 3-1-2-4-5-11-10-9-8-7-6-T
B253: BAS001 | C253: BAS002 | D253: BAS003 | E253: BAS004 | F253: BAS005 | G253: BAS006 | H253: BAS007 | I253: BAS008 | J253: BAS009 | K253: BAS010 | L253: BAS011 | M253: BAS012 | N253: BAS013 | O253: BAS014 | P253: BAS015 | Q253: BAS016 | R253: BAS017 | S253: BAS018 | T253: BAS019 | U253: BAS020 | V253: BAS021 | W253: BAS022 | X253: BAS023 | Y253: BAS024 | Z253: BAS025 | AA253: BAS026 | AB253: BAS027 | AC253: BAS028 | AD253: BAS029 | AE253: BAS030 | AF253: BAS031 | AG253: BAS032 | AH253: BAS033 | AI253: BAS034 | AJ253: BAS035 | AK253: BAS036 | AL253: BAS037 | AM253: BAS038 | AN253: BAS039 | AO253: BAS040 | AP253: BAS041 | AQ253: BAS042 | AR253: BAS043 | AS253: BAS044 | AT253: BAS045 | AU253: BAS046 | AV253: BAS047 | AW253: BAS048 | AX253: BAS049 | AY253: BAS050 | AZ253: BAS051 | BA253: BAS052 | BB253: BAS053 | BC253: BAS054 | BD253: BAS055 | BE253: BAS056 | BF253: BAS057 | BG253: BAS058 | BH253: BAS059 | BI253: BAS060 | BJ253: BAS061 | BK253: BAS062 | BL253: BAS063 | BM253: BAS064 | BN253: BAS065 | BO253: BAS066 | BP253: BAS067 | BQ253: BAS068 | BR253: BAS069 | BS253: BAS070 | BT253: BAS071 | BU253: BAS072 | BV253: BAS073 | BW253: BAS074 | BX253: BAS075 | BY253: BAS076 | BZ253: BAS077 | CA253: BAS078 | CB253: BAS079 | CC253: BAS080 | CD253: BAS081 | CE253: BAS082 | CF253: BAS083 | CG253: BAS084 | CH253: BAS085 | CI253: BAS086 | CJ253: BAS087 | CK253: BAS088 | CL253: BAS089 | CM253: BAS090 | CN253: BAS091 | CO253: BAS092 | CP253: BAS093 | CQ253: BAS094 | CR253: BAS095 | CS253: BAS096 | CT253: BAS097 | CU253: BAS098 | CV253: BAS099 | CW253: BAS100 | CX253: BAS101 | CY253: BAS102 | CZ253: BAS103 | DA253: BAS104 | DB253: BAS105 | DC253: BAS106 | DD253: BAS107 | DE253: BAS108 | DF253: BAS109 | DG253: BAS110 | DH253: BAS111 | DI253: BAS112 | DJ253: BAS113 | DK253: BAS114 | DL253: BAS115 | DM253: BAS116 | DN253: BAS117 | DO253: BAS118 | DP253: BAS119 | DQ253: BAS120 | DR253: BAS121 | DS253: BAS122 | DT253: BAS123 | DU253: BAS124 | DV253: BAS125 | DW253: BAS126 | DX253: BAS127 | DY253: BAS128 | DZ253: BAS129 | EA253: BAS130 | EB253: BAS131 | EC253: BAS132 | ED253: BAS133 | EE253: BAS134 | EF253: BAS135 | EG253: BAS136 | EH253: BAS137 | EI253: BAS138 | EJ253: BAS139 | EK253: BAS140 | EL253: BAS141 | EM253: BAS142 | EN253: BAS143 | EO253: BAS144 | EP253: BAS145 | EQ253: BAS146 | ER253: BAS147 | ES253: BAS148 | ET253: BAS149 | EU253: BAS150 | EV253: BAS151 | EW253: BAS152 | EX253: BAS153 | EY253: BAS154 | EZ253: BAS155 | FA253: BAS156 | FB253: BAS157 | FC253: BAS158 | FD253: BAS159 | FE253: BAS160 | FF253: BAS161 | FG253: BAS162 | FH253: BAS163 | FI253: BAS164 | FJ253: BAS165 | FK253: BAS166 | FL253: BAS167 | FM253: BAS168 | FN253: BAS169 | FO253: BAS170 | FP253: BAS171 | FQ253: BAS172 | FR253: BAS173 | FS253: BAS174 | FT253: BAS175 | FU253: BAS176 | FV253: BAS177 | FW253: BAS178 | FX253: BAS179 | FY253: BAS180 | FZ253: BAS181 | GA253: BAS182 | GB253: BAS183 | GC253: BAS184 | GD253: BAS185 | GE253: BAS186 | GF253: BAS187 | GG253: BAS188 | GH253: BAS189 | GI253: BAS190 | GJ253: BAS191 | GK253: BAS192 | GL253: BAS193 | GM253: BAS194 | GN253: BAS195 | GO253: BAS196 | GP253: BAS197 | GQ253: BAS198 | GR253: BAS199 | GS253: BAS200 | GT253: BAS201 | GU253: BAS202 | GV253: BAS203 | GW253: BAS204 | GX253: BAS205 | GY253: BAS206 | GZ253: BAS207 | HA253: BAS208 | HB253: BAS209 | HC253: BAS210 | HD253: BAS211 | HE253: BAS212 | HF253: BAS213 | HG253: BAS214 | HH253: BAS215 | HI253: BAS216 | HJ253: BAS217 | HK253: BAS218 | HL253: BAS219 | HM253: BAS220 | HN253: BAS221 | HO253: BAS222 | HP253: BAS223 | HQ253: BAS224 | HR253: BAS225 | HS253: BAS226 | HT253: BAS227 | HU253: BAS228 | HV253: BAS229 | HW253: BAS230
B254: =IF(B253=B231,"SI","NO") -> SI | C254: =IF(C253=C231,"SI","NO") -> SI | D254: SI | E254: SI | F254: SI | G254: SI | H254: SI | I254: SI | J254: SI | K254: SI | L254: SI | M254: SI | N254: SI | O254: SI | P254: SI | Q254: SI | R254: SI | S254: SI | T254: SI | U254: SI | V254: SI | W254: SI | X254: SI | Y254: SI | Z254: SI | AA254: SI | AB254: SI | AC254: SI | AD254: SI | AE254: SI | AF254: SI | AG254: SI | AH254: SI | AI254: SI | AJ254: SI | AK254: SI | AL254: SI | AM254: SI | AN254: SI | AO254: SI | AP254: SI | AQ254: SI | AR254: SI | AS254: SI | AT254: SI | AU254: SI | AV254: SI | AW254: SI | AX254: SI | AY254: SI | AZ254: SI | BA254: SI | BB254: SI | BC254: SI | BD254: SI | BE254: SI | BF254: SI | BG254: SI | BH254: SI | BI254: SI | BJ254: SI | BK254: SI | BL254: SI | BM254: SI | BN254: SI | BO254: =IF(BO253=BO231,"SI","NO") -> SI | BP254: SI | BQ254: SI | BR254: SI | BS254: SI | BT254: SI | BU254: SI | BV254: SI | BW254: SI | BX254: SI | BY254: SI | BZ254: SI | CA254: SI | CB254: SI | CC254: SI | CD254: SI | CE254: SI | CF254: SI | CG254: SI | CH254: SI | CI254: SI | CJ254: SI | CK254: SI | CL254: SI | CM254: SI | CN254: SI | CO254: SI | CP254: SI | CQ254: SI | CR254: SI | CS254: SI | CT254: SI | CU254: SI | CV254: SI | CW254: SI | CX254: SI | CY254: SI | CZ254: SI | DA254: SI | DB254: SI | DC254: SI | DD254: SI | DE254: SI | DF254: SI | DG254: SI | DH254: SI | DI254: SI | DJ254: SI | DK254: SI | DL254: SI | DM254: SI | DN254: SI | DO254: SI | DP254: SI | DQ254: SI | DR254: SI | DS254: SI | DT254: SI | DU254: SI | DV254: SI | DW254: SI | DX254: SI | DY254: SI | DZ254: SI | EA254: =IF(EA253=EA231,"SI","NO") -> SI | EB254: SI | EC254: SI | ED254: SI | EE254: SI | EF254: SI | EG254: SI | EH254: SI | EI254: SI | EJ254: SI | EK254: SI | EL254: SI | EM254: SI | EN254: SI | EO254: SI | EP254: SI | EQ254: SI | ER254: SI | ES254: SI | ET254: SI | EU254: SI | EV254: SI | EW254: SI | EX254: SI | EY254: SI | EZ254: SI | FA254: SI | FB254: SI | FC254: SI | FD254: SI | FE254: SI | FF254: SI | FG254: SI | FH254: SI | FI254: SI | FJ254: SI | FK254: SI | FL254: SI | FM254: SI | FN254: SI | FO254: SI | FP254: SI | FQ254: SI | FR254: SI | FS254: SI | FT254: SI | FU254: SI | FV254: SI | FW254: SI | FX254: SI | FY254: SI | FZ254: SI | GA254: SI | GB254: SI | GC254: SI | GD254: SI | GE254: SI | GF254: SI | GG254: SI | GH254: SI | GI254: SI | GJ254: SI | GK254: SI | GL254: SI | GM254: =IF(GM253=GM231,"SI","NO") -> SI | GN254: SI | GO254: SI | GP254: SI | GQ254: SI | GR254: SI | GS254: SI | GT254: SI | GU254: SI | GV254: SI | GW254: SI | GX254: SI | GY254: SI | GZ254: SI | HA254: SI | HB254: SI | HC254: SI | HD254: SI | HE254: SI | HF254: SI | HG254: SI | HH254: SI | HI254: SI | HJ254: SI | HK254: SI | HL254: SI | HM254: SI | HN254: SI | HO254: SI | HP254: SI | HQ254: SI | HR254: SI | HS254: SI | HT254: SI | HU254: SI | HV254: SI | HW254: SI
A257: POBLACION GENERAL
A258: anno | B258: 2024
A259: cod_red | B259: 03
A260: codmic | B260: (Todas)
A261: cod_prov | B261: (Todas)
A262: coddist | B262: (Todas)
A263: cod_estab | B263: (Todas)
A264: cod_eje | B264: (Todas)
A266: Valores
A267: Suma de total | B267: Suma de emay15
A272: TBC_NEW
A273: ANNO | B273: 2024
A274: cod_red | B274: 03
A275: codmic | B275: (Todas)
A276: cod_prov | B276: (Todas)
A277: coddist | B277: (Todas)
A278: cod_estab | B278: (Todas)
A279: cod_eje | B279: (Todas)
B281: Valores
A282: Etiquetas de fila | B282: BAS001 | C282: BAS002 | D282: BAS003 | E282: BAS004 | F282: BAS005 | G282: BAS006 | H282: BAS007 | I282: BAS008 | J282: BAS009 | K282: BAS010 | L282: BAS011 | M282: BAS012 | N282: BAS013 | O282: BAS014 | P282: BAS015 | Q282: BAS016 | R282: BAS017 | S282: BAS018 | T282: BAS019 | U282: BAS020 | V282: BAS021 | W282: BAS022 | X282: BAS023 | Y282: BAS024 | Z282: BAS025 | AA282: BAS026 | AB282: BAS027 | AC282: BAS028 | AD282: BAS029 | AE282: BAS030 | AF282: BAS031 | AG282: BAS032 | AH282: BAS033 | AI282: BAS034 | AJ282: BAS035 | AK282: BAS036 | AL282: BAS037 | AM282: BAS038 | AN282: BAS039 | AO282: BAS040 | AP282: BAS041 | AQ282: BAS042 | AR282: BAS043 | AS282: BAS044 | AT282: BAS045 | AU282: BAS046 | AV282: BAS047 | AW282: BAS048 | AX282: BAS049 | AY282: BAS050 | AZ282: BAS051 | BA282: BAS052 | BB282: BAS053 | BC282: BAS054 | BD282: BAS055 | BE282: BAS056 | BF282: BAS057 | BG282: BAS058 | BH282: BAS059 | BI282: BAS060 | BJ282: BAS061 | BK282: BAS062 | BL282: BAS063 | BM282: BAS064 | BN282: BAS065 | BO282: BAS066 | BP282: BAS067 | BQ282: BAS068 | BR282: BAS069 | BS282: BAS070 | BT282: BAS071 | BU282: BAS072 | BV282: BAS073 | BW282: BAS074 | BX282: BAS075 | BY282: BAS076 | BZ282: BAS077 | CA282: BAS078 | CB282: BAS079 | CC282: BAS080 | CD282: BAS081 | CE282: BAS082 | CF282: BAS083 | CG282: BAS084 | CH282: BAS085 | CI282: BAS086 | CJ282: BAS087 | CK282: BAS088 | CL282: BAS089 | CM282: BAS090 | CN282: BAS091 | CO282: BAS092 | CP282: BAS093 | CQ282: BAS094 | CR282: BAS095 | CS282: BAS096 | CT282: BAS097 | CU282: BAS098 | CV282: BAS099 | CW282: BAS100 | CX282: BAS101 | CY282: BAS102 | CZ282: BAS103 | DA282: BAS104 | DB282: BAS105 | DC282: BAS106 | DD282: BAS107 | DE282: BAS108 | DF282: BAS109 | DG282: BAS110 | DH282: BAS111 | DI282: BAS112 | DJ282: BAS113 | DK282: BAS114 | DL282: BAS115 | DM282: BAS116 | DN282: BAS117 | DO282: BAS118 | DP282: BAS119 | DQ282: BAS120 | DR282: BAS121 | DS282: BAS122 | DT282: BAS123 | DU282: BAS124 | DV282: BAS125 | DW282: BAS126 | DX282: BAS127 | DY282: BAS128 | DZ282: BAS129 | EA282: BAS130 | EB282: BAS131 | EC282: BAS132 | ED282: BAS133 | EE282: BAS134 | EF282: BAS135 | EG282: BAS136 | EH282: BAS137 | EI282: BAS138 | EJ282: BAS139 | EK282: BAS140 | EL282: BAS141 | EM282: BAS142 | EN282: BAS143 | EO282: BAS144 | EP282: BAS145 | EQ282: BAS146 | ER282: BAS147 | ES282: BAS148 | ET282: BAS149 | EU282: BAS150 | EV282: BAS151 | EW282: BAS152 | EX282: BAS153 | EY282: BAS154 | EZ282: BAS155 | FA282: BAS156 | FB282: BAS157 | FC282: BAS158 | FD282: BAS159 | FE282: BAS160 | FF282: BAS161 | FG282: BAS162 | FH282: BAS163 | FI282: BAS164 | FJ282: BAS165 | FK282: BAS166 | FL282: BAS167 | FM282: BAS168 | FN282: BAS169 | FO282: BAS170 | FP282: BAS171 | FQ282: BAS172 | FR282: BAS173 | FS282: BAS174 | FT282: BAS175 | FU282: BAS176 | FV282: BAS177 | FW282: BAS178 | FX282: BAS179 | FY282: BAS180 | FZ282: BAS181 | GA282: BAS182 | GB282: BAS183 | GC282: BAS184 | GD282: BAS185 | GE282: BAS186 | GF282: BAS187 | GG282: BAS188 | GH282: BAS189 | GI282: BAS190 | GJ282: BAS191 | GK282: BAS192 | GL282: BAS193 | GM282: BAS194 | GN282: BAS195 | GO282: BAS196 | GP282: BAS197 | GQ282: BAS198 | GR282: BAS199 | GS282: BAS200 | GT282: BAS201 | GU282: BAS202 | GV282: BAS203 | GW282: BAS204 | GX282: BAS205 | GY282: BAS206 | GZ282: BAS207 | HA282: BAS208 | HB282: BAS209 | HC282: BAS210 | HD282: BAS211 | HE282: BAS212 | HF282: BAS213 | HG282: BAS214 | HH282: BAS215 | HI282: BAS216 | HJ282: BAS217 | HK282: BAS218 | HL282: BAS219 | HM282: BAS220 | HN282: BAS221 | HO282: BAS222 | HP282: BAS223 | HQ282: BAS224 | HR282: BAS225 | HS282: BAS226 | HT282: BAS227 | HU282: BAS228 | HV282: BAS229 | HW282: BAS230
A283: 1 | B283: 0 | C283: 0 | D283: 0 | E283: 0 | F283: 0 | G283: 0 | H283: 0 | I283: 0 | J283: 0 | K283: 0 | L283: 0 | M283: 0 | N283: 0 | O283: 1 | P283: 0 | Q283: 0 | R283: 0 | S283: 0 | T283: 0 | U283: 0 | V283: 0 | W283: 0 | X283: 0 | Y283: 0 | Z283: 0 | AA283: 0 | AB283: 0 | AC283: 0 | AD283: 0 | AE283: 0 | AF283: 0 | AG283: 0 | AH283: 0 | AI283: 0 | AJ283: 0 | AK283: 0 | AL283: 0 | AM283: 0 | AN283: 23 | AO283: 0 | AP283: 0 | AQ283: 0 | AR283: 0 | AS283: 0 | AT283: 0 | AU283: 0 | AV283: 0 | AW283: 0 | AX283: 0 | AY283: 0 | AZ283: 0 | BA283: 0 | BB283: 0 | BC283: 0 | BD283: 0 | BE283: 0 | BF283: 0 | BG283: 0 | BH283: 0 | BI283: 0 | BJ283: 0 | BK283: 0 | BL283: 0 | BM283: 0 | BN283: 0 | BO283: 0 | BP283: 0 | BQ283: 0 | BR283: 0 | BS283: 0 | BT283: 0 | BU283: 0 | BV283: 0 | BW283: 0 | BX283: 0 | BY283: 0 | BZ283: 0 | CA283: 0 | CB283: 0 | CC283: 0 | CD283: 0 | CE283: 0 | CF283: 0 | CG283: 23 | CH283: 0 | CI283: 0 | CJ283: 0 | CK283: 0 | CL283: 0 | CM283: 0 | CN283: 0 | CO283: 0 | CP283: 0 | CQ283: 0 | CR283: 0 | CS283: 0 | CT283: 0 | CU283: 0 | CV283: 0 | CW283: 0 | CX283: 0 | CY283: 0 | CZ283: 0 | DA283: 0 | DB283: 0 | DC283: 0 | DD283: 0 | DE283: 0 | DF283: 0 | DG283: 0 | DH283: 0 | DI283: 0 | DJ283: 0 | DK283: 0 | DL283: 0 | DM283: 0 | DN283: 0 | DO283: 0 | DP283: 0 | DQ283: 0 | DR283: 0 | DS283: 0 | DT283: 0 | DU283: 0 | DV283: 0 | DW283: 0 | DX283: 0 | DY283: 0 | DZ283: 0 | EA283: 0 | EB283: 0 | EC283: 0 | ED283: 0 | EE283: 0 | EF283: 0 | EG283: 0 | EH283: 0 | EI283: 0 | EJ283: 0 | EK283: 0 | EL283: 0 | EM283: 0 | EN283: 0 | EO283: 0 | EP283: 0 | EQ283: 0 | ER283: 0 | ES283: 0 | ET283: 0 | EU283: 0 | EV283: 0 | EW283: 0 | EX283: 0 | EY283: 0 | EZ283: 0 | FA283: 0 | FB283: 0 | FC283: 0 | FD283: 0 | FE283: 0 | FF283: 0 | FG283: 0 | FH283: 0 | FI283: 0 | FJ283: 0 | FK283: 0 | FL283: 0 | FM283: 0 | FN283: 0 | FO283: 0 | FP283: 0 | FQ283: 0 | FR283: 0 | FS283: 0 | FT283: 0 | FU283: 0 | FV283: 0 | FW283: 0 | FX283: 0 | FY283: 0 | FZ283: 0 | GA283: 0 | GB283: 0 | GC283: 0 | GD283: 0 | GE283: 0 | GF283: 0 | GG283: 0 | GH283: 0 | GI283: 0 | GJ283: 0 | GK283: 0 | GL283: 0 | GM283: 0 | GN283: 0 | GO283: 0 | GP283: 0 | GQ283: 0 | GR283: 0 | GS283: 0 | GT283: 0 | GU283: 0 | GV283: 0 | GW283: 0 | GX283: 0 | GY283: 0 | GZ283: 0 | HA283: 0 | HB283: 0 | HC283: 0 | HD283: 0 | HE283: 0 | HF283: 0 | HG283: 0 | HH283: 0 | HI283: 0 | HJ283: 0 | HK283: 0 | HL283: 0 | HM283: 0 | HN283: 0 | HO283: 0 | HP283: 0 | HQ283: 0 | HR283: 0 | HS283: 0 | HT283: 0 | HU283: 0 | HV283: 0 | HW283: 0
A284: 2 | B284: 0 | C284: 0 | D284: 0 | E284: 0 | F284: 0 | G284: 0 | H284: 0 | I284: 0 | J284: 0 | K284: 0 | L284: 0 | M284: 0 | N284: 0 | O284: 8 | P284: 0 | Q284: 0 | R284: 0 | S284: 0 | T284: 0 | U284: 0 | V284: 0 | W284: 0 | X284: 0 | Y284: 0 | Z284: 0 | AA284: 0 | AB284: 0 | AC284: 0 | AD284: 1 | AE284: 0 | AF284: 0 | AG284: 0 | AH284: 1 | AI284: 0 | AJ284: 0 | AK284: 0 | AL284: 0 | AM284: 0 | AN284: 21 | AO284: 0 | AP284: 0 | AQ284: 0 | AR284: 0 | AS284: 0 | AT284: 0 | AU284: 0 | AV284: 0 | AW284: 0 | AX284: 0 | AY284: 0 | AZ284: 0 | BA284: 0 | BB284: 0 | BC284: 0 | BD284: 0 | BE284: 0 | BF284: 0 | BG284: 0 | BH284: 0 | BI284: 0 | BJ284: 0 | BK284: 0 | BL284: 0 | BM284: 0 | BN284: 0 | BO284: 0 | BP284: 0 | BQ284: 0 | BR284: 0 | BS284: 0 | BT284: 0 | BU284: 0 | BV284: 0 | BW284: 0 | BX284: 0 | BY284: 0 | BZ284: 0 | CA284: 0 | CB284: 0 | CC284: 0 | CD284: 0 | CE284: 0 | CF284: 0 | CG284: 21 | CH284: 0 | CI284: 0 | CJ284: 0 | CK284: 0 | CL284: 0 | CM284: 0 | CN284: 0 | CO284: 0 | CP284: 0 | CQ284: 0 | CR284: 0 | CS284: 0 | CT284: 0 | CU284: 0 | CV284: 0 | CW284: 0 | CX284: 0 | CY284: 0 | CZ284: 0 | DA284: 0 | DB284: 0 | DC284: 0 | DD284: 0 | DE284: 0 | DF284: 0 | DG284: 0 | DH284: 0 | DI284: 0 | DJ284: 0 | DK284: 0 | DL284: 0 | DM284: 0 | DN284: 0 | DO284: 0 | DP284: 0 | DQ284: 0 | DR284: 0 | DS284: 0 | DT284: 0 | DU284: 0 | DV284: 0 | DW284: 0 | DX284: 0 | DY284: 0 | DZ284: 0 | EA284: 0 | EB284: 0 | EC284: 0 | ED284: 0 | EE284: 0 | EF284: 0 | EG284: 0 | EH284: 0 | EI284: 0 | EJ284: 0 | EK284: 0 | EL284: 0 | EM284: 0 | EN284: 0 | EO284: 0 | EP284: 0 | EQ284: 0 | ER284: 0 | ES284: 0 | ET284: 0 | EU284: 0 | EV284: 0 | EW284: 0 | EX284: 0 | EY284: 0 | EZ284: 0 | FA284: 0 | FB284: 0 | FC284: 0 | FD284: 0 | FE284: 0 | FF284: 0 | FG284: 0 | FH284: 0 | FI284: 0 | FJ284: 0 | FK284: 0 | FL284: 0 | FM284: 0 | FN284: 0 | FO284: 0 | FP284: 0 | FQ284: 0 | FR284: 0 | FS284: 0 | FT284: 0 | FU284: 0 | FV284: 0 | FW284: 0 | FX284: 0 | FY284: 0 | FZ284: 0 | GA284: 0 | GB284: 0 | GC284: 0 | GD284: 0 | GE284: 0 | GF284: 0 | GG284: 0 | GH284: 0 | GI284: 0 | GJ284: 0 | GK284: 0 | GL284: 0 | GM284: 0 | GN284: 0 | GO284: 0 | GP284: 0 | GQ284: 0 | GR284: 0 | GS284: 0 | GT284: 0 | GU284: 0 | GV284: 0 | GW284: 0 | GX284: 0 | GY284: 0 | GZ284: 0 | HA284: 0 | HB284: 0 | HC284: 0 | HD284: 0 | HE284: 0 | HF284: 0 | HG284: 0 | HH284: 0 | HI284: 0 | HJ284: 0 | HK284: 0 | HL284: 0 | HM284: 0 | HN284: 0 | HO284: 0 | HP284: 0 | HQ284: 0 | HR284: 0 | HS284: 0 | HT284: 0 | HU284: 0 | HV284: 0 | HW284: 0
A285: 3 | B285: 0 | C285: 0 | D285: 0 | E285: 0 | F285: 0 | G285: 0 | H285: 0 | I285: 0 | J285: 0 | K285: 0 | L285: 0 | M285: 0 | N285: 0 | O285: 1 | P285: 0 | Q285: 0 | R285: 0 | S285: 0 | T285: 0 | U285: 0 | V285: 0 | W285: 0 | X285: 0 | Y285: 0 | Z285: 0 | AA285: 0 | AB285: 0 | AC285: 0 | AD285: 0 | AE285: 0 | AF285: 0 | AG285: 0 | AH285: 0 | AI285: 0 | AJ285: 0 | AK285: 0 | AL285: 0 | AM285: 0 | AN285: 22 | AO285: 0 | AP285: 0 | AQ285: 0 | AR285: 0 | AS285: 0 | AT285: 0 | AU285: 0 | AV285: 0 | AW285: 0 | AX285: 0 | AY285: 0 | AZ285: 0 | BA285: 0 | BB285: 0 | BC285: 0 | BD285: 0 | BE285: 0 | BF285: 0 | BG285: 0 | BH285: 0 | BI285: 0 | BJ285: 0 | BK285: 0 | BL285: 0 | BM285: 0 | BN285: 0 | BO285: 0 | BP285: 0 | BQ285: 0 | BR285: 0 | BS285: 0 | BT285: 0 | BU285: 0 | BV285: 0 | BW285: 0 | BX285: 0 | BY285: 0 | BZ285: 0 | CA285: 0 | CB285: 0 | CC285: 0 | CD285: 0 | CE285: 0 | CF285: 0 | CG285: 22 | CH285: 0 | CI285: 0 | CJ285: 0 | CK285: 0 | CL285: 0 | CM285: 0 | CN285: 0 | CO285: 0 | CP285: 0 | CQ285: 0 | CR285: 0 | CS285: 0 | CT285: 0 | CU285: 0 | CV285: 0 | CW285: 0 | CX285: 0 | CY285: 0 | CZ285: 0 | DA285: 0 | DB285: 0 | DC285: 0 | DD285: 0 | DE285: 0 | DF285: 0 | DG285: 0 | DH285: 0 | DI285: 0 | DJ285: 0 | DK285: 0 | DL285: 0 | DM285: 0 | DN285: 0 | DO285: 0 | DP285: 0 | DQ285: 0 | DR285: 0 | DS285: 0 | DT285: 0 | DU285: 0 | DV285: 0 | DW285: 0 | DX285: 0 | DY285: 0 | DZ285: 0 | EA285: 0 | EB285: 0 | EC285: 0 | ED285: 0 | EE285: 0 | EF285: 0 | EG285: 0 | EH285: 0 | EI285: 0 | EJ285: 0 | EK285: 0 | EL285: 0 | EM285: 0 | EN285: 0 | EO285: 0 | EP285: 0 | EQ285: 0 | ER285: 0 | ES285: 0 | ET285: 0 | EU285: 0 | EV285: 0 | EW285: 0 | EX285: 0 | EY285: 0 | EZ285: 0 | FA285: 0 | FB285: 0 | FC285: 0 | FD285: 0 | FE285: 0 | FF285: 0 | FG285: 0 | FH285: 0 | FI285: 0 | FJ285: 0 | FK285: 0 | FL285: 0 | FM285: 0 | FN285: 0 | FO285: 0 | FP285: 0 | FQ285: 0 | FR285: 0 | FS285: 0 | FT285: 0 | FU285: 0 | FV285: 0 | FW285: 0 | FX285: 0 | FY285: 0 | FZ285: 0 | GA285: 0 | GB285: 0 | GC285: 0 | GD285: 0 | GE285: 0 | GF285: 0 | GG285: 0 | GH285: 0 | GI285: 0 | GJ285: 0 | GK285: 0 | GL285: 0 | GM285: 0 | GN285: 0 | GO285: 0 | GP285: 0 | GQ285: 0 | GR285: 0 | GS285: 0 | GT285: 0 | GU285: 0 | GV285: 0 | GW285: 0 | GX285: 0 | GY285: 0 | GZ285: 0 | HA285: 0 | HB285: 0 | HC285: 0 | HD285: 0 | HE285: 0 | HF285: 0 | HG285: 0 | HH285: 0 | HI285: 0 | HJ285: 0 | HK285: 0 | HL285: 0 | HM285: 0 | HN285: 0 | HO285: 0 | HP285: 0 | HQ285: 0 | HR285: 0 | HS285: 0 | HT285: 0 | HU285: 0 | HV285: 0 | HW285: 0
... 14 more rows

Sheet INFORME
B2: DIRECCION REGIONAL DE SALUD CUSCO
B3: DIRECCION EJECUTIVA DE INTELIGENCIA SANITARIA
B4: DIRECCION DE ESTADISTICA, INFORMATICA Y TELECOMUNICACION
B5: TUBERCULOSIS
B6: INFORME OPERACIONAL MENSUAL
B9: DIRESA | C9: CUSCO | F9: REGION | G9: CUSCO
B11: RED DE SALUD | C11: =+TABLAS!O9 -> 03 - LA CONVENCION | F11: EJECUTORA | G11: =+TABLAS!O14 -> 
B13: MICRO RED | C13: =+TABLAS!O10 ->  | F13: RESPONSABLE
B15: EE.SS. | C15: =+TABLAS!O11 ->  | F15: COD. RENAES | G15: =+TABLAS!Q11 -> 
B17: PROVINCIA | C17: =+TABLAS!O12 ->  | F17: AÑO | G17: =+TABLAS!J16 -> 2024 | H17: SEMESTRE | I17: 1 Sem ( ) | J17: 2 Sem ( )
B19: DISTRITO | C19: =+TABLAS!O13 ->  | F19: MES | G19: =+TABLAS!N26 -> FEB - NOV | H19: TRIMESTRE | I19: 1 Trim ( ) | J19: 2 Trim ( ) | K19: 3 Trim ( ) | L19: 4 Trim ( )
B21: INSTITUCION : MINSA ( X ) ESSALUD ( ) FFAA ( ) PNP ( ) INPE ( ) OTROS ( ) | I21: POBLACION TOTAL | M21: =+GETPIVOTDATA("Suma de total",TABLAS!$A$266) -> 0
H23: =TABLAS!B145 -> 0 | I23: TOTAL DE ATENCIONES EN MAYORES DE 15 AÑOS: | M23: =+GETPIVOTDATA("Suma de emay15",TABLAS!$A$266) -> 0
H25: 00-11a | I25: 12-17a | J25: 18-29a | K25: 30-59a | L25: 60-+a | M25: TOTAL
H26: =+GETPIVOTDATA("ATC",TABLAS!$A$59,"ETAPA","00-11A") -> 184575 | I26: =+GETPIVOTDATA("ATC",TABLAS!$A$59,"ETAPA","12-17A") -> 69589 | J26: =+GETPIVOTDATA("ATC",TABLAS!$A$59,"ETAPA","18-29A") -> 126644 | K26: =+GETPIVOTDATA("ATC",TABLAS!$A$59,"ETAPA","30-59A") -> 286379 | L26: =+GETPIVOTDATA("ATC",TABLAS!$A$59,"ETAPA","80-+A") -> 123837 | M26: =SUM(H26:L26) -> 791024
B30: A. DETECCION Y DIAGNÓSTICO DE CASOS | G30: 0-11a | H30: 12-17a | I30: 18-29a | J30: 30-59a | K30: 60-+a | L30: Total | M30: %
B31: A1. Sintomáticos Respiratorios (S.R.) Esperados = Atc > 15 años x 0.05 | L31: =M23*0.05 -> 0 | U31: =+U26*0.05 -> 0
B32: A2. S.R. Identificados | G32: =+GETPIVOTDATA(" BAS007",TABLAS!$A$124) -> 86 | H32: =+GETPIVOTDATA(" BAS008",TABLAS!$A$124) -> 185 | I32: =+GETPIVOTDATA(" BAS009",TABLAS!$A$124) -> 598 | J32: =+GETPIVOTDATA(" BAS010",TABLAS!$A$124) -> 1801 | K32: =+GETPIVOTDATA(" BAS011",TABLAS!$A$124) -> 1195 | L32: =SUM(G32:K32) -> 3865 | O32: =IF(L33<=L32,"SI","NO") -> SI | P32: =+L32-L33 -> 314 | U32: =+P23*0.05 -> 0
B33: A3. S.R. Examinados | G33: =+GETPIVOTDATA(" BAS012",TABLAS!$A$124) -> 79 | H33: =+GETPIVOTDATA(" BAS013",TABLAS!$A$124) -> 168 | I33: =+GETPIVOTDATA(" BAS014",TABLAS!$A$124) -> 557 | J33: =+GETPIVOTDATA(" BAS015",TABLAS!$A$124) -> 1653 | K33: =+GETPIVOTDATA(" BAS016",TABLAS!$A$124) -> 1094 | L33: 3551
B34: A4. S.R. Diagnosticados con TB Pulmonar baciloscopía positiva | G34: =+G49+G60+G67 -> 0 | H34: =+H49+H60+H67 -> 1 | I34: 8 | J34: 11 | K34: 19 | L34: =SUM(G34:K34) -> 39
B35: A5. Baciloscopías de Diagnóstico esperadas (A1 x 2) | G35: INFORMACION DE LABORATORIO | L35: =L31*2 -> 0
B36: A6. Baciloscopías de Diagnóstico Total | L36: ='INF BACTERIO'!M27 -> 0
B37: A7. Baciloscopías de Diagnóstico BK (+) | L37: ='INF BACTERIO'!M36 -> 0
B38: A8. Baciloscopías de Control Total | L38: ='INF BACTERIO'!M28 -> 0
B39: A9. Cultivos de Diagnóstico Total | L39: ='INF BACTERIO'!M47 -> 0
B40: A10. Cultivos de Diagnóstico Positivos | L40: ='INF BACTERIO'!M58 -> 0
B41: A11. Cultivos de Control Total | L41: ='INF BACTERIO'!M48 -> 0
B42: A12. Nº de Pruebas de Sensibilidad realizadas | L42: =SUM(L43:L44) -> 0
B43: A12.1 Nº de Pruebas de Sensibilidad Rápidas (H y R)
B44: A12.2 Nº de Pruebas de Sensibilidad Convencional
B46: B. CASOS NUEVOS | G46: 0-11a | H46: 12-17a | I46: 18-29a | J46: 30-59a | K46: 60-+a | L46: Total | M46: %
B47: Total de Casos Nuevos (B1+B2) | G47: =+G48+G53 -> 8 | H47: =+H48+H53 -> 1 | I47: 9 | J47: 15 | K47: =+K48+K53 -> 25 | L47: =SUM(G47:K47) -> 58 | M47: =+L47*100000/M21 ->  | O47: =+O48+O53 -> 59 | P47: =IF(O47=L47,"SI","NO") -> NO
B48: B1. TB Pulmonar Total (B1.1 +B1.2 + B1.3 + B1.4) | G48: =SUM(G49:G52) -> 8 | H48: =SUM(H49:H52) -> 1 | I48: =SUM(I49:I52) -> 9 | J48: =SUM(J49:J52) -> 15 | K48: =SUM(K49:K52) -> 25 | L48: 58 | O48: =+O144 -> 59
B49: B1.1 TB Pulmonar frotis positivo. | G49: =+GETPIVOTDATA(" BAS022",TABLAS!$A$124) -> 0 | H49: =+GETPIVOTDATA(" BAS023",TABLAS!$A$124) -> 1 | I49: =+GETPIVOTDATA(" BAS024",TABLAS!$A$124) -> 8 | J49: =+GETPIVOTDATA(" BAS025",TABLAS!$A$124) -> 10 | K49: =+GETPIVOTDATA(" BAS026",TABLAS!$A$124) -> 18 | L49: 37 | M49: =+L49*100000/M21 ->  | O49: =+P147 -> 37
B50: B1.2 TB Pulmonar cultivo positivo. | G50: =+GETPIVOTDATA(" BAS027",TABLAS!$A$124) -> 1 | H50: =+GETPIVOTDATA(" BAS028",TABLAS!$A$124) -> 0 | I50: =+GETPIVOTDATA(" BAS029",TABLAS!$A$124) -> 0 | J50: =+GETPIVOTDATA(" BAS030",TABLAS!$A$124) -> 0 | K50: =+GETPIVOTDATA(" BAS031",TABLAS!$A$124) -> 4 | L50: 5 | O50: =+P149 -> 5
B51: B1.3 TB Pulmonar frotis negativo. | G51: =+GETPIVOTDATA(" BAS032",TABLAS!$A$124) -> 7 | H51: =+GETPIVOTDATA(" BAS033",TABLAS!$A$124) -> 0 | I51: =+GETPIVOTDATA(" BAS034",TABLAS!$A$124) -> 0 | J51: =+GETPIVOTDATA(" BAS035",TABLAS!$A$124) -> 5 | K51: =+GETPIVOTDATA(" BAS036",TABLAS!$A$124) -> 3 | L51: 15 | O51: =+P151 -> 15
B52: B1.4 TB Pulmonar sin frotis de esputo. | G52: =+GETPIVOTDATA(" BAS037",TABLAS!$A$124) -> 0 | H52: =+GETPIVOTDATA(" BAS038",TABLAS!$A$124) -> 0 | I52: =+GETPIVOTDATA(" BAS039",TABLAS!$A$124) -> 1 | J52: =+GETPIVOTDATA(" BAS040",TABLAS!$A$124) -> 0 | K52: =+GETPIVOTDATA(" BAS041",TABLAS!$A$124) -> 0 | L52: 1 | O52: =+P153 -> 2
B53: B2. TB Extrapulmonar (B2.1 +B2.2) | G53: =SUM(G54:G55) -> 0 | H53: =SUM(H54:H55) -> 0 | I53: 0 | J53: 0 | K53: 0 | L53: 0 | O53: =+O155 -> 0
B54: B2.1 Con confirmación bacteriológica o histopatológica | G54: =+GETPIVOTDATA(" BAS042",TABLAS!$A$124) -> 0 | H54: =+GETPIVOTDATA(" BAS043",TABLAS!$A$124) -> 0 | I54: =+GETPIVOTDATA(" BAS044",TABLAS!$A$124) -> 0 | J54: =+GETPIVOTDATA(" BAS045",TABLAS!$A$124) -> 0 | K54: =+GETPIVOTDATA(" BAS046",TABLAS!$A$124) -> 0 | L54: 0
B55: B2.2 Sin confirmación bacteriológica o histopatológica | G55: =+GETPIVOTDATA(" BAS047",TABLAS!$A$124) -> 0 | H55: =+GETPIVOTDATA(" BAS048",TABLAS!$A$124) -> 0 | I55: =+GETPIVOTDATA(" BAS049",TABLAS!$A$124) -> 0 | J55: =+GETPIVOTDATA(" BAS050",TABLAS!$A$124) -> 0 | K55: =+GETPIVOTDATA(" BAS051",TABLAS!$A$124) -> 0 | L55: 0
B57: C. RECAÍDAS | G57: 0-11a | H57: 12-17a | I57: 18-29a | J57: 30-59a | K57: 60-+a | L57: Total | M57: %
B58: Recaídas (C1+C2) | G58: =+G59+G62 -> 0 | H58: 0 | I58: 0 | J58: 0 | K58: =+K59+K62 -> 1 | L58: =SUM(G58:K58) -> 1
B59: C1. Recaídas Pulmonar (C1.1 + C1.2) | G59: =+G60+G61 -> 0 | H59: 0 | I59: 0 | J59: 0 | K59: =+K60+K61 -> 1 | L59: 1
B60: C1.1 TB Pulmonar frotis positivo | G60: =+GETPIVOTDATA(" BAS052",TABLAS!$A$124) -> 0 | H60: =+GETPIVOTDATA(" BAS053",TABLAS!$A$124) -> 0 | I60: =+GETPIVOTDATA(" BAS054",TABLAS!$A$124) -> 0 | J60: =+GETPIVOTDATA(" BAS055",TABLAS!$A$124) -> 0 | K60: =+GETPIVOTDATA(" BAS056",TABLAS!$A$124) -> 1 | L60: 1
B61: C1.2 TB Pulmonar frotis negativo | G61: =+GETPIVOTDATA(" BAS057",TABLAS!$A$124) -> 0 | H61: =+GETPIVOTDATA(" BAS058",TABLAS!$A$124) -> 0 | I61: =+GETPIVOTDATA(" BAS059",TABLAS!$A$124) -> 0 | J61: =+GETPIVOTDATA(" BAS060",TABLAS!$A$124) -> 0 | K61: =+GETPIVOTDATA(" BAS061",TABLAS!$A$124) -> 0 | L61: 0
B62: C2 Recaídas Extrapulmonares | G62: =+GETPIVOTDATA(" BAS062",TABLAS!$A$124) -> 0 | H62: =+GETPIVOTDATA(" BAS063",TABLAS!$A$124) -> 0 | I62: =+GETPIVOTDATA(" BAS064",TABLAS!$A$124) -> 0 | J62: =+GETPIVOTDATA(" BAS065",TABLAS!$A$124) -> 0 | K62: =+GETPIVOTDATA(" BAS066",TABLAS!$A$124) -> 0 | L62: 0
B64: D. ABANDONOS RECUPERADOS | G64: 0-11a | H64: 12-17a | I64: 18-29a | J64: 30-59a | K64: 60-+a | L64: Total | M64: %
B65: Abandonos Recuperados (D1+D2) | G65: =+G66+G69 -> 0 | H65: =+H66+H69 -> 0 | I65: 0 | J65: 1 | K65: 0 | L65: =SUM(G65:K65) -> 1
B66: D1. Abandonos recuperados pulmonar (D1.1+D1.2) | G66: =+G67+G68 -> 0 | H66: =+H67+H68 -> 0 | I66: 0 | J66: 1 | K66: 0 | L66: 1
B67: D1.1 TB Pulmonar frotis positivo | G67: =+GETPIVOTDATA(" BAS067",TABLAS!$A$124) -> 0 | H67: =+GETPIVOTDATA(" BAS068",TABLAS!$A$124) -> 0 | I67: =+GETPIVOTDATA(" BAS069",TABLAS!$A$124) -> 0 | J67: =+GETPIVOTDATA(" BAS070",TABLAS!$A$124) -> 1 | K67: =+GETPIVOTDATA(" BAS071",TABLAS!$A$124) -> 0 | L67: 1
B68: D1.2 TB Pulmonar frotis negativo | G68: =+GETPIVOTDATA(" BAS072",TABLAS!$A$124) -> 0 | H68: =+GETPIVOTDATA(" BAS073",TABLAS!$A$124) -> 0 | I68: =+GETPIVOTDATA(" BAS074",TABLAS!$A$124) -> 0 | J68: =+GETPIVOTDATA(" BAS075",TABLAS!$A$124) -> 0 | K68: =+GETPIVOTDATA(" BAS076",TABLAS!$A$124) -> 0 | L68: 0
B69: D2. Abandonos Recuperados Extrapulmonares | G69: =+GETPIVOTDATA(" BAS077",TABLAS!$A$124) -> 0 | H69: =+GETPIVOTDATA(" BAS078",TABLAS!$A$124) -> 0 | I69: =+GETPIVOTDATA(" BAS079",TABLAS!$A$124) -> 0 | J69: =+GETPIVOTDATA(" BAS080",TABLAS!$A$124) -> 0 | K69: =+GETPIVOTDATA(" BAS081",TABLAS!$A$124) -> 0 | L69: 0
B71: E. FRACASOS | G71: 0-11a | H71: 12-17a | I71: 18-29a | J71: 30-59a | K71: 60-+a | L71: Total | M71: %
B72: E1. Total de casos que fracasan a esquema con medicamentos de primera línea | G72: =+GETPIVOTDATA(" BAS082",TABLAS!$A$124) -> 0 | H72: =+GETPIVOTDATA(" BAS083",TABLAS!$A$124) -> 0 | I72: =+GETPIVOTDATA(" BAS084",TABLAS!$A$124) -> 0 | J72: =+GETPIVOTDATA(" BAS085",TABLAS!$A$124) -> 0 | K72: =+GETPIVOTDATA(" BAS086",TABLAS!$A$124) -> 0 | L72: =SUM(G72:K72) -> 0
B74: F. MORBILIDAD TOTAL (B+ C + D + E) | G74: 0-11a | H74: 12-17a | I74: 18-29a | J74: 30-59a | K74: 60-+a | L74: Total | M74: %
B75: F1. Total de personas afectadas con tuberculosis | G75: =+G72+G65+G58+G47 -> 8 | H75: 1 | I75: 9 | J75: 16 | K75: 26 | L75: =SUM(G75:K75) -> 60 | M75: =+L75*100000/M21 -> 
B77: G. CASOS DE TB CON RESISTENCIA A MEDICAMENTOS | G77: 0-11a | H77: 12-17a | I77: 18-29a | J77: 30-59a | K77: 60-+a | L77: Total | M77: %
B78: G1. Casos nuevos y antes tratados de otras Tuberculosis Drogo Resistente | G78: =+GETPIVOTDATA(" BAS092",TABLAS!$A$124)+GETPIVOTDATA(" BAS097",TABLAS!$A$124) -> 0 | H78: =+GETPIVOTDATA(" BAS093",TABLAS!$A$124)+GETPIVOTDATA(" BAS098",TABLAS!$A$124) -> 0 | I78: =+GETPIVOTDATA(" BAS094",TABLAS!$A$124)+GETPIVOTDATA(" BAS099",TABLAS!$A$124) -> 0 | J78: =+GETPIVOTDATA(" BAS095",TABLAS!$A$124)+GETPIVOTDATA(" BAS100",TABLAS!$A$124) -> 0 | K78: =+GETPIVOTDATA(" BAS096",TABLAS!$A$124)+GETPIVOTDATA(" BAS101",TABLAS!$A$124) -> 0 | L78: =SUM(G78:K78) -> 0
B79: G2. Casos nuevos con TBMDR confirmada | G79: =+GETPIVOTDATA(" BAS102",TABLAS!$A$124) -> 0 | H79: =+GETPIVOTDATA(" BAS103",TABLAS!$A$124) -> 0 | I79: =+GETPIVOTDATA(" BAS104",TABLAS!$A$124) -> 0 | J79: =+GETPIVOTDATA(" BAS105",TABLAS!$A$124) -> 0 | K79: =+GETPIVOTDATA(" BAS106",TABLAS!$A$124) -> 0 | L79: 0
B80: G3. Casos antes tratados con TBMDR confirmada | G80: =+GETPIVOTDATA(" BAS107",TABLAS!$A$124) -> 0 | H80: =+GETPIVOTDATA(" BAS108",TABLAS!$A$124) -> 0 | I80: =+GETPIVOTDATA(" BAS109",TABLAS!$A$124) -> 0 | J80: =+GETPIVOTDATA(" BAS110",TABLAS!$A$124) -> 0 | K80: =+GETPIVOTDATA(" BAS111",TABLAS!$A$124) -> 0 | L80: 0
B81: G4. Casos nuevos con TB XDR confirmada | G81: =+GETPIVOTDATA(" BAS112",TABLAS!$A$124) -> 0 | H81: =+GETPIVOTDATA(" BAS113",TABLAS!$A$124) -> 0 | I81: =+GETPIVOTDATA(" BAS114",TABLAS!$A$124) -> 0 | J81: =+GETPIVOTDATA(" BAS115",TABLAS!$A$124) -> 0 | K81: =+GETPIVOTDATA(" BAS116",TABLAS!$A$124) -> 0 | L81: 0
B82: G5. Casos antes tratados con TB XDR confirmada | G82: =+GETPIVOTDATA(" BAS117",TABLAS!$A$124) -> 0 | H82: =+GETPIVOTDATA(" BAS118",TABLAS!$A$124) -> 0 | I82: =+GETPIVOTDATA(" BAS119",TABLAS!$A$124) -> 0 | J82: =+GETPIVOTDATA(" BAS120",TABLAS!$A$124) -> 0 | K82: =+GETPIVOTDATA(" BAS121",TABLAS!$A$124) -> 0 | L82: =SUM(G82:K82) -> 0
B84: H. ESTUDIO DE CONTACTOS | G84: 0-11a | H84: 12-17a | I84: 18-29a | J84: 30-59a | K84: 60-+a | L84: Total | M84: %
B85: H1. Contactos Esperados (Morbilidad x 4) | L85: =SUM(G85:K85) -> 0
B86: H2. Contactos Censados | G86: =+GETPIVOTDATA(" BAS122",TABLAS!$A$124) -> 15 | H86: =+GETPIVOTDATA(" BAS123",TABLAS!$A$124) -> 6 | I86: =+GETPIVOTDATA(" BAS124",TABLAS!$A$124) -> 6 | J86: =+GETPIVOTDATA(" BAS125",TABLAS!$A$124) -> 22 | K86: =+GETPIVOTDATA(" BAS126",TABLAS!$A$124) -> 7 | L86: 56 | O86: =IF(O47>L86,"NO","SI") -> NO | P86: =IF(O86="NO","VERIFIQUE PORQUE NO EXISTE CONTACTOS ","") -> VERIFIQUE PORQUE NO EXISTE CONTACTOS
B87: H3. Contactos Examinados | G87: =+GETPIVOTDATA(" BAS127",TABLAS!$A$124)+GETPIVOTDATA(" BAS132",TABLAS!$A$124)+GETPIVOTDATA(" BAS143",TABLAS!$A$124)+GETPIVOTDATA(" BAS144",TABLAS!$A$124)+GETPIVOTDATA(" BAS145",TABLAS!$A$124)+GETPIVOTDATA(" BAS146",TABLAS!$A$124) -> 44 | H87: =+GETPIVOTDATA(" BAS128",TABLAS!$A$124)+GETPIVOTDATA(" BAS133",TABLAS!$A$124)+GETPIVOTDATA(" BAS147",TABLAS!$A$124) -> 14 | I87: =+GETPIVOTDATA(" BAS129",TABLAS!$A$124)+GETPIVOTDATA(" BAS134",TABLAS!$A$124)+GETPIVOTDATA(" BAS148",TABLAS!$A$124) -> 18 | J87: =+GETPIVOTDATA(" BAS130",TABLAS!$A$124)+GETPIVOTDATA(" BAS135",TABLAS!$A$124)+GETPIVOTDATA(" BAS149",TABLAS!$A$124) -> 51 | K87: =+GETPIVOTDATA(" BAS131",TABLAS!$A$124)+GETPIVOTDATA(" BAS136",TABLAS!$A$124)+GETPIVOTDATA(" BAS150",TABLAS!$A$124) -> 27 | L87: 154 | O87: =IF(L87>L86,"NO","SI") -> NO | P87: =IF(O87="NO","VERIFIQUE EL REGISTRO DE EXAMINADOS QUE DEBE SER IGUAL O MENOR QUE CENSADOS ","") -> VERIFIQUE EL REGISTRO DE EXAMINADOS QUE DEBE SER IGUAL O MENOR QUE CENSADOS
B88: H4. Contactos Examinados con TB | G88: =+GETPIVOTDATA(" BAS137",TABLAS!$A$124)+GETPIVOTDATA(" BAS212",TABLAS!$A$124)+GETPIVOTDATA(" BAS151",TABLAS!$A$124) -> 14 | H88: =+GETPIVOTDATA(" BAS138",TABLAS!$A$124)+GETPIVOTDATA(" BAS213",TABLAS!$A$124)+GETPIVOTDATA(" BAS152",TABLAS!$A$124) -> 0 | I88: =+GETPIVOTDATA(" BAS139",TABLAS!$A$124)+GETPIVOTDATA(" BAS214",TABLAS!$A$124)+GETPIVOTDATA(" BAS153",TABLAS!$A$124) -> 0 | J88: =+GETPIVOTDATA(" BAS140",TABLAS!$A$124)+GETPIVOTDATA(" BAS215",TABLAS!$A$124)+GETPIVOTDATA(" BAS154",TABLAS!$A$124) -> 6 | K88: =+GETPIVOTDATA(" BAS141",TABLAS!$A$124)+GETPIVOTDATA(" BAS216",TABLAS!$A$124)+GETPIVOTDATA(" BAS155",TABLAS!$A$124) -> 0 | L88: 20
B89: H5. Contactos Examinados con TB pulmonar frotis positivo | G89: =+GETPIVOTDATA(" BAS137",TABLAS!$A$124) -> 0 | H89: =+GETPIVOTDATA(" BAS138",TABLAS!$A$124) -> 0 | I89: =+GETPIVOTDATA(" BAS139",TABLAS!$A$124) -> 0 | J89: =+GETPIVOTDATA(" BAS140",TABLAS!$A$124) -> 0 | K89: =+GETPIVOTDATA(" BAS141",TABLAS!$A$124) -> 0 | L89: =SUM(G89:K89) -> 0
B91: I. TERAPIA PREVENTIVA (TPI-TPC) | G91: 0-11a | H91: 12-17a | I91: 18-29a | J91: 30-59a | K91: 60-+a | L91: Total | M91: %
B92: I1. Contactos Censados < 5 años de pacientes con TBP | L92: =+GETPIVOTDATA(" BAS142",TABLAS!$A$124) -> 0
B93: I2. Contactos Examinados < 5 años de pacientes con TBP | L93: =+GETPIVOTDATA(" BAS144",TABLAS!$A$124) -> 2
B94: I3. Nº de Contactos < 5 años con Terapia Preventiva con Isoniacida (TPI) | L94: =+GETPIVOTDATA(" BAS156",TABLAS!$A$124) -> 0
B95: I4. Nº de personas con VIH positivo | G95: =+GETPIVOTDATA(" BAS157",TABLAS!$A$124) -> 0 | H95: =+GETPIVOTDATA(" BAS158",TABLAS!$A$124) -> 0 | I95: =+GETPIVOTDATA(" BAS159",TABLAS!$A$124) -> 0 | J95: =+GETPIVOTDATA(" BAS160",TABLAS!$A$124) -> 0 | K95: =+GETPIVOTDATA(" BAS161",TABLAS!$A$124) -> 0 | L95: =SUM(G95:K95) -> 0
B96: I5. N° de personas con VIH que reciben Terapia Preventiva con Isoniacida (TPI) | G96: =+GETPIVOTDATA(" BAS162",TABLAS!$A$124) -> 0 | H96: =+GETPIVOTDATA(" BAS163",TABLAS!$A$124) -> 0 | I96: =+GETPIVOTDATA(" BAS164",TABLAS!$A$124) -> 0 | J96: =+GETPIVOTDATA(" BAS165",TABLAS!$A$124) -> 0 | K96: =+GETPIVOTDATA(" BAS166",TABLAS!$A$124) -> 0 | L96: 0
B97: I6. N° de personas con TB-VIH que reciben Terapia Preventiva con Cotrimoxazol (TPC) | G97: =+GETPIVOTDATA(" BAS167",TABLAS!$A$124) -> 0 | H97: =+GETPIVOTDATA(" BAS168",TABLAS!$A$124) -> 0 | I97: =+GETPIVOTDATA(" BAS169",TABLAS!$A$124) -> 0 | J97: =+GETPIVOTDATA(" BAS170",TABLAS!$A$124) -> 0 | K97: =+GETPIVOTDATA(" BAS171",TABLAS!$A$124) -> 0 | L97: =SUM(G97:K97) -> 0
B99: J. COINFECCION TB - VIH (1ro TB => 2do VIH) | G99: 0-11a | H99: 12-17a | I99: 18-29a | J99: 30-59a | K99: 60-+a | L99: Total | M99: %
B100: J1. Total de Casos TB-VIH (J1.1+J1.2) | G100: =+G101+G104 -> 0 | H100: =+H101+H104 -> 0 | I100: 0 | J100: 1 | K100: 0 | L100: =SUM(G100:K100) -> 1
B101: J1.1 Total de casos TB / VIH Nuevos (J1.1.1 + J1.1.2) | G101: =SUM(G102:G103) -> 0 | H101: =SUM(H102:H103) -> 0 | I101: 0 | J101: 0 | K101: 0 | L101: =SUM(G101:K101) -> 0
B102: J1.1.1 TB Pulmonar | G102: =+GETPIVOTDATA(" BAS172",TABLAS!$A$124) -> 0 | H102: =+GETPIVOTDATA(" BAS173",TABLAS!$A$124) -> 0 | I102: =+GETPIVOTDATA(" BAS174",TABLAS!$A$124) -> 0 | J102: =+GETPIVOTDATA(" BAS175",TABLAS!$A$124) -> 0 | K102: =+GETPIVOTDATA(" BAS176",TABLAS!$A$124) -> 0 | L102: 0
B103: J1.1.2 TB Extrapulmonar | G103: =+GETPIVOTDATA(" BAS182",TABLAS!$A$124) -> 0 | H103: =+GETPIVOTDATA(" BAS183",TABLAS!$A$124) -> 0 | I103: =+GETPIVOTDATA(" BAS184",TABLAS!$A$124) -> 0 | J103: =+GETPIVOTDATA(" BAS185",TABLAS!$A$124) -> 0 | K103: =+GETPIVOTDATA(" BAS186",TABLAS!$A$124) -> 0 | L103: 0
B104: J1.2 Total de casos TB/VIH antes tratados (J1.2.1 + J1.2.2) | G104: =SUM(G105:G106) -> 0 | H104: =SUM(H105:H106) -> 0 | I104: 0 | J104: 1 | K104: 0 | L104: 1
B105: J1.2.1 TB Pulmonar | G105: =+GETPIVOTDATA(" BAS192",TABLAS!$A$124) -> 0 | H105: =+GETPIVOTDATA(" BAS193",TABLAS!$A$124) -> 0 | I105: =+GETPIVOTDATA(" BAS194",TABLAS!$A$124) -> 0 | J105: =+GETPIVOTDATA(" BAS195",TABLAS!$A$124) -> 1 | K105: =+GETPIVOTDATA(" BAS196",TABLAS!$A$124) -> 0 | L105: 1
B106: J1.2.2 TB Extrapulmonar | G106: =+GETPIVOTDATA(" BAS197",TABLAS!$A$124) -> 0 | H106: =+GETPIVOTDATA(" BAS198",TABLAS!$A$124) -> 0 | I106: =+GETPIVOTDATA(" BAS199",TABLAS!$A$124) -> 0 | J106: =+GETPIVOTDATA(" BAS200",TABLAS!$A$124) -> 0 | K106: =+GETPIVOTDATA(" BAS201",TABLAS!$A$124) -> 0 | L106: =SUM(G106:K106) -> 0
B107: J2. Total de casos TB/VIH que reciben TARGA | G107: =+GETPIVOTDATA(" BAS202",TABLAS!$A$124) -> 0 | H107: =+GETPIVOTDATA(" BAS203",TABLAS!$A$124) -> 0 | I107: =+GETPIVOTDATA(" BAS204",TABLAS!$A$124) -> 0 | J107: =+GETPIVOTDATA(" BAS205",TABLAS!$A$124) -> 0 | K107: =+GETPIVOTDATA(" BAS206",TABLAS!$A$124) -> 0 | L107: =SUM(G107:K107) -> 0
B109: K. TAMIZAJE DE VIH EN PACIENTES CON TB (1ro VIH => 2do TBC) | G109: 0-11a | H109: 12-17a | I109: 18-29a | J109: 30-59a | K109: 60-+a | L109: Total | M109: %
B110: K1. Total de casos que recibieron consejeria pre test para VIH | G110: =+GETPIVOTDATA(" BAS006",TABLAS!$A$160)+GETPIVOTDATA(" BAS001",TABLAS!$A$160) -> 1 | H110: =+GETPIVOTDATA(" BAS007",TABLAS!$A$160)+GETPIVOTDATA(" BAS002",TABLAS!$A$160) -> 3 | I110: =+GETPIVOTDATA(" BAS008",TABLAS!$A$160)+GETPIVOTDATA(" BAS003",TABLAS!$A$160) -> 10 | J110: =+GETPIVOTDATA(" BAS009",TABLAS!$A$160)+GETPIVOTDATA(" BAS004",TABLAS!$A$160) -> 20 | K110: =+GETPIVOTDATA(" BAS010",TABLAS!$A$160)+GETPIVOTDATA(" BAS005",TABLAS!$A$160) -> 10 | L110: =SUM(G110:K110) -> 44
B111: K2. Total de casos que cuentan con resultado de tamizaje de VIH durante el tratamiento | G111: =+GETPIVOTDATA(" BAS011",TABLAS!$A$160) -> 0 | H111: =+GETPIVOTDATA(" BAS012",TABLAS!$A$160) -> 1 | I111: =+GETPIVOTDATA(" BAS013",TABLAS!$A$160) -> 6 | J111: =+GETPIVOTDATA(" BAS014",TABLAS!$A$160) -> 11 | K111: =+GETPIVOTDATA(" BAS015",TABLAS!$A$160) -> 5 | L111: 23
B112: K3. Total de casos que cuentan con resultado de VIH reactivo | G112: =+GETPIVOTDATA(" BAS016",TABLAS!$A$160)+GETPIVOTDATA(" BAS021",TABLAS!$A$160) -> 0 | H112: =+GETPIVOTDATA(" BAS017",TABLAS!$A$160)+GETPIVOTDATA(" BAS022",TABLAS!$A$160) -> 0 | I112: =+GETPIVOTDATA(" BAS018",TABLAS!$A$160)+GETPIVOTDATA(" BAS023",TABLAS!$A$160) -> 0 | J112: =+GETPIVOTDATA(" BAS019",TABLAS!$A$160)+GETPIVOTDATA(" BAS024",TABLAS!$A$160) -> 0 | K112: =+GETPIVOTDATA(" BAS020",TABLAS!$A$160)+GETPIVOTDATA(" BAS025",TABLAS!$A$160) -> 1 | L112: 1
B114: L. MENINGITIS TB EN MENORES DE 5 Años | G114: 0-11a | H114: 12-17a | I114: 18-29a | J114: 30-59a | K114: 60-+a | L114: Total | M114: %
B115: L1. N° casos de meningitis TB en < de 5 años | L115: =+GETPIVOTDATA(" BAS026",TABLAS!$A$160) -> 0
B117: M. GESTANTES CON TUBERCULOSIS | G117: 0-11a | H117: 12-17a | I117: 18-29a | J117: 30-59a | K117: 60-+a | L117: Total | M117: %
B118: M1. N° de Gestantes con TB (M1.1+ M1.2 ) | G118: =SUM(G119:G120) -> 0 | H118: =SUM(H119:H120) -> 0 | I118: 0 | J118: 0 | K118: 0 | L118: =SUM(G118:K118) -> 0
B119: M1.1 TB Pulmonar | G119: =+GETPIVOTDATA(" BAS027",TABLAS!$A$160) -> 0 | H119: =+GETPIVOTDATA(" BAS028",TABLAS!$A$160) -> 0 | I119: =+GETPIVOTDATA(" BAS029",TABLAS!$A$160) -> 0 | J119: =+GETPIVOTDATA(" BAS030",TABLAS!$A$160) -> 0 | K119: =+GETPIVOTDATA(" BAS031",TABLAS!$A$160) -> 0 | L119: =SUM(G119:K119) -> 0
B120: M1.2 TB Extrapulmonar | G120: =+GETPIVOTDATA(" BAS032",TABLAS!$A$160) -> 0 | H120: =+GETPIVOTDATA(" BAS033",TABLAS!$A$160) -> 0 | I120: =+GETPIVOTDATA(" BAS034",TABLAS!$A$160) -> 0 | J120: =+GETPIVOTDATA(" BAS035",TABLAS!$A$160) -> 0 | K120: =+GETPIVOTDATA(" BAS036",TABLAS!$A$160) -> 0 | L120: =SUM(G120:K120) -> 0
B122: N. PERSONAL DE SALUD DEL EESS CON TUBERCULOSIS | G122: 0-11a | H122: 12-17a | I122: 18-29a | J122: 30-59a | K122: 60-+a | L122: Total | M122: %
B123: N1. N°de trabajadores del EESS con TB (N1.1+ N1.2)
B124: N1.1 TB Pulmonar | G124: =+GETPIVOTDATA(" BAS037",TABLAS!$A$160) -> 0 | H124: =+GETPIVOTDATA(" BAS038",TABLAS!$A$160) -> 0 | I124: =+GETPIVOTDATA(" BAS039",TABLAS!$A$160) -> 0 | J124: =+GETPIVOTDATA(" BAS040",TABLAS!$A$160) -> 0 | K124: =+GETPIVOTDATA(" BAS041",TABLAS!$A$160) -> 0 | L124: =SUM(G124:K124) -> 0
B125: N1.2 TB Extrapulmonar | G125: =+GETPIVOTDATA(" BAS042",TABLAS!$A$160) -> 0 | H125: =+GETPIVOTDATA(" BAS043",TABLAS!$A$160) -> 0 | I125: =+GETPIVOTDATA(" BAS044",TABLAS!$A$160) -> 0 | J125: =+GETPIVOTDATA(" BAS045",TABLAS!$A$160) -> 0 | K125: =+GETPIVOTDATA(" BAS046",TABLAS!$A$160) -> 0 | L125: 0
B126: N2. N° de trabajadores con TB-MDR confirmado | G126: =+GETPIVOTDATA(" BAS047",TABLAS!$A$160) -> 0 | H126: =+GETPIVOTDATA(" BAS048",TABLAS!$A$160) -> 0 | I126: =+GETPIVOTDATA(" BAS049",TABLAS!$A$160) -> 0 | J126: =+GETPIVOTDATA(" BAS050",TABLAS!$A$160) -> 0 | K126: =+GETPIVOTDATA(" BAS051",TABLAS!$A$160) -> 0 | L126: =SUM(G126:K126) -> 0
B128: O. COMORBILIDAD TB / DIABETES | G128: 0-11a | H128: 12-17a | I128: 18-29a | J128: 30-59a | K128: 60-+a | L128: Total | M128: %
B129: O1. Total de casos con TB / DIABETES (O1.1+ O1.2 ) | G129: =SUM(G130:G131) -> 0 | H129: =SUM(H130:H131) -> 0 | I129: 0 | J129: 0 | K129: 0 | L129: =SUM(G129:K129) -> 0
B130: O1.1 TB Pulmonar | G130: =+GETPIVOTDATA(" BAS052",TABLAS!$A$160)+GETPIVOTDATA(" BAS057",TABLAS!$A$160) -> 0 | H130: =+GETPIVOTDATA(" BAS053",TABLAS!$A$160)+GETPIVOTDATA(" BAS058",TABLAS!$A$160) -> 0 | I130: =+GETPIVOTDATA(" BAS054",TABLAS!$A$160)+GETPIVOTDATA(" BAS059",TABLAS!$A$160) -> 0 | J130: =+GETPIVOTDATA(" BAS055",TABLAS!$A$160)+GETPIVOTDATA(" BAS060",TABLAS!$A$160) -> 0 | K130: =+GETPIVOTDATA(" BAS056",TABLAS!$A$160)+GETPIVOTDATA(" BAS061",TABLAS!$A$160) -> 0 | L130: =SUM(G130:K130) -> 0
B131: O1.2 TB Extrapulmonar | G131: =+GETPIVOTDATA(" BAS062",TABLAS!$A$160)+GETPIVOTDATA(" BAS067",TABLAS!$A$160) -> 0 | H131: =+GETPIVOTDATA(" BAS063",TABLAS!$A$160)+GETPIVOTDATA(" BAS068",TABLAS!$A$160) -> 0 | I131: =+GETPIVOTDATA(" BAS064",TABLAS!$A$160)+GETPIVOTDATA(" BAS069",TABLAS!$A$160) -> 0 | J131: =+GETPIVOTDATA(" BAS065",TABLAS!$A$160)+GETPIVOTDATA(" BAS070",TABLAS!$A$160) -> 0 | K131: =+GETPIVOTDATA(" BAS066",TABLAS!$A$160)+GETPIVOTDATA(" BAS071",TABLAS!$A$160) -> 0 | L131: =SUM(G131:K131) -> 0
B133: P. TAMIZAJE DIABETES EN PACIENTES CON TB | G133: 0-11a | H133: 12-17a | I133: 18-29a | J133: 30-59a | K133: 60-+a | L133: Total | M133: %
B134: P1. Total de casos con TB que cuenten con resultado de glicemia durante el tratamiento | G134: =+GETPIVOTDATA(" BAS072",TABLAS!$A$160) -> 0 | H134: =+GETPIVOTDATA(" BAS073",TABLAS!$A$160) -> 1 | I134: =+GETPIVOTDATA(" BAS074",TABLAS!$A$160) -> 3 | J134: =+GETPIVOTDATA(" BAS075",TABLAS!$A$160) -> 8 | K134: =+GETPIVOTDATA(" BAS076",TABLAS!$A$160) -> 7 | L134: =SUM(G134:K134) -> 19
B136: Q. FALLECIDOS | G136: 0-11a | H136: 12-17a | I136: 18-29a | J136: 30-59a | K136: 60-+a | L136: Total | M136: %
B137: Q1. Nº de Pacientes fallecidos durante tratamiento TB | G137: =+GETPIVOTDATA(" BAS077",TABLAS!$A$160) -> 0 | H137: =+GETPIVOTDATA(" BAS078",TABLAS!$A$160) -> 0 | I137: =+GETPIVOTDATA(" BAS079",TABLAS!$A$160) -> 0 | J137: =+GETPIVOTDATA(" BAS080",TABLAS!$A$160) -> 0 | K137: =+GETPIVOTDATA(" BAS081",TABLAS!$A$160) -> 0 | L137: =SUM(G137:K137) -> 0
B139: R. RAFA | G139: 0-11a | H139: 12-17a | I139: 18-29a | J139: 30-59a | K139: 60-+a | L139: Total | M139: %
B140: R1. N° de pacientes con Reacciones Adversas a Fármacos Antituberculosis | G140: =+GETPIVOTDATA(" BAS082",TABLAS!$A$160) -> 0 | H140: =+GETPIVOTDATA(" BAS083",TABLAS!$A$160) -> 0 | I140: =+GETPIVOTDATA(" BAS084",TABLAS!$A$160) -> 0 | J140: =+GETPIVOTDATA(" BAS085",TABLAS!$A$160) -> 0 | K140: =+GETPIVOTDATA(" BAS086",TABLAS!$A$160) -> 0 | L140: =SUM(G140:K140) -> 0
B142: S. CASOS NUEVOS DE TUBERCULOSIS | E142: Sexo | F142: Grupos de Edades según Sexo
F143: 0-4a | G143: 5-14a | H143: 15-24a | I143: 25-34a | J143: 35-44a | K143: 45-54a | L143: 55-64a | M143: 65-+a | O143: =+O144+O155 -> 59
B144: S1. TB Pulmonar Total (S1.1 +S1.2 + S1.3) | E144: Total | F144: =SUM(F145:F146) -> 2 | G144: 6 | H144: 3 | I144: 9 | J144: 5 | K144: 9 | L144: 0 | M144: 25 | O144: =SUM(F144:M144) -> 59
E145: M | F145: =+F147+F149+F151+F153 -> 1 | G145: =+G147+G149+G151+G153 -> 5 | H145: 1 | I145: 5 | J145: 2 | K145: 6 | L145: 0 | M145: 20 | O145: =SUM(F145:M145) -> 40
E146: F | F146: =+F148+F150+F152+F154 -> 1 | G146: 1 | H146: 2 | I146: 4 | J146: 3 | K146: 3 | L146: 0 | M146: 5 | O146: 19
B147: S1.1 TB Pulmonar frotis positivo | E147: M | F147: =+GETPIVOTDATA(" BAS087",TABLAS!$A$160) -> 0 | G147: =+GETPIVOTDATA(" BAS088",TABLAS!$A$160) -> 0 | H147: =+GETPIVOTDATA(" BAS089",TABLAS!$A$160) -> 1 | I147: =+GETPIVOTDATA(" BAS090",TABLAS!$A$160) -> 4 | J147: =+GETPIVOTDATA(" BAS091",TABLAS!$A$160) -> 1 | K147: =+GETPIVOTDATA(" BAS092",TABLAS!$A$160) -> 3 | L147: =+GETPIVOTDATA(" BAS093",TABLAS!$A$160) -> 0 | M147: =+GETPIVOTDATA(" BAS094",TABLAS!$A$160) -> 14 | O147: =SUM(F147:M147) -> 23 | P147: =+O147+O148 -> 37
E148: F | F148: =+GETPIVOTDATA(" BAS095",TABLAS!$A$160) -> 0 | G148: =+GETPIVOTDATA(" BAS096",TABLAS!$A$160) -> 0 | H148: =+GETPIVOTDATA(" BAS097",TABLAS!$A$160) -> 2 | I148: =+GETPIVOTDATA(" BAS098",TABLAS!$A$160) -> 4 | J148: =+GETPIVOTDATA(" BAS099",TABLAS!$A$160) -> 2 | K148: =+GETPIVOTDATA(" BAS100",TABLAS!$A$160) -> 2 | L148: =+GETPIVOTDATA(" BAS101",TABLAS!$A$160) -> 0 | M148: =+GETPIVOTDATA(" BAS102",TABLAS!$A$160) -> 4 | O148: =SUM(F148:M148) -> 14
B149: S1.1 TB Pulmonar cultivo positivo FN | E149: M | F149: =+GETPIVOTDATA(" BAS103",TABLAS!$A$160) -> 0 | G149: =+GETPIVOTDATA(" BAS104",TABLAS!$A$160) -> 1 | H149: =+GETPIVOTDATA(" BAS105",TABLAS!$A$160) -> 0 | I149: =+GETPIVOTDATA(" BAS106",TABLAS!$A$160) -> 0 | J149: =+GETPIVOTDATA(" BAS107",TABLAS!$A$160) -> 0 | K149: =+GETPIVOTDATA(" BAS108",TABLAS!$A$160) -> 0 | L149: =+GETPIVOTDATA(" BAS109",TABLAS!$A$160) -> 0 | M149: =+GETPIVOTDATA(" BAS110",TABLAS!$A$160) -> 4 | O149: 5 | P149: =+O149+O150 -> 5
E150: F | F150: =+GETPIVOTDATA(" BAS111",TABLAS!$A$160) -> 0 | G150: =+GETPIVOTDATA(" BAS112",TABLAS!$A$160) -> 0 | H150: =+GETPIVOTDATA(" BAS113",TABLAS!$A$160) -> 0 | I150: =+GETPIVOTDATA(" BAS114",TABLAS!$A$160) -> 0 | J150: =+GETPIVOTDATA(" BAS115",TABLAS!$A$160) -> 0 | K150: =+GETPIVOTDATA(" BAS116",TABLAS!$A$160) -> 0 | L150: =+GETPIVOTDATA(" BAS117",TABLAS!$A$160) -> 0 | M150: =+GETPIVOTDATA(" BAS118",TABLAS!$A$160) -> 0 | O150: 0
B151: S1.3 TB Pulmonar frotis negativo CN | E151: M | F151: =+GETPIVOTDATA(" BAS119",TABLAS!$A$160) -> 1 | G151: =+GETPIVOTDATA(" BAS120",TABLAS!$A$160) -> 4 | H151: =+GETPIVOTDATA(" BAS121",TABLAS!$A$160) -> 0 | I151: =+GETPIVOTDATA(" BAS122",TABLAS!$A$160) -> 0 | J151: =+GETPIVOTDATA(" BAS123",TABLAS!$A$160) -> 1 | K151: =+GETPIVOTDATA(" BAS124",TABLAS!$A$160) -> 2 | L151: =+GETPIVOTDATA(" BAS125",TABLAS!$A$160) -> 0 | M151: =+GETPIVOTDATA(" BAS126",TABLAS!$A$160) -> 2 | O151: 10 | P151: =+O151+O152 -> 15
E152: F | F152: =+GETPIVOTDATA(" BAS127",TABLAS!$A$160) -> 1 | G152: =+GETPIVOTDATA(" BAS128",TABLAS!$A$160) -> 1 | H152: =+GETPIVOTDATA(" BAS129",TABLAS!$A$160) -> 0 | I152: =+GETPIVOTDATA(" BAS130",TABLAS!$A$160) -> 0 | J152: =+GETPIVOTDATA(" BAS131",TABLAS!$A$160) -> 1 | K152: =+GETPIVOTDATA(" BAS132",TABLAS!$A$160) -> 1 | L152: =+GETPIVOTDATA(" BAS133",TABLAS!$A$160) -> 0 | M152: =+GETPIVOTDATA(" BAS134",TABLAS!$A$160) -> 1 | O152: 5
B153: S1.4 TB Pulmonar sin frotis de esputo | E153: M | F153: =+GETPIVOTDATA(" BAS135",TABLAS!$A$160) -> 0 | G153: =+GETPIVOTDATA(" BAS136",TABLAS!$A$160) -> 0 | H153: =+GETPIVOTDATA(" BAS137",TABLAS!$A$160) -> 0 | I153: =+GETPIVOTDATA(" BAS138",TABLAS!$A$160) -> 1 | J153: =+GETPIVOTDATA(" BAS139",TABLAS!$A$160) -> 0 | K153: =+GETPIVOTDATA(" BAS140",TABLAS!$A$160) -> 1 | L153: =+GETPIVOTDATA(" BAS141",TABLAS!$A$160) -> 0 | M153: =+GETPIVOTDATA(" BAS142",TABLAS!$A$160) -> 0 | O153: 2 | P153: =+O153+O154 -> 2
E154: F | F154: =+GETPIVOTDATA(" BAS143",TABLAS!$A$160) -> 0 | G154: =+GETPIVOTDATA(" BAS144",TABLAS!$A$160) -> 0 | H154: =+GETPIVOTDATA(" BAS145",TABLAS!$A$160) -> 0 | I154: =+GETPIVOTDATA(" BAS146",TABLAS!$A$160) -> 0 | J154: =+GETPIVOTDATA(" BAS147",TABLAS!$A$160) -> 0 | K154: =+GETPIVOTDATA(" BAS148",TABLAS!$A$160) -> 0 | L154: =+GETPIVOTDATA(" BAS149",TABLAS!$A$160) -> 0 | M154: =+GETPIVOTDATA(" BAS150",TABLAS!$A$160) -> 0 | O154: 0
B155: S2. TB Extrapulmonar (B2.1 +B2.2) | E155: Total | F155: =SUM(F156:F157) -> 0 | G155: =SUM(G156:G157) -> 0 | H155: =SUM(H156:H157) -> 0 | I155: 0 | J155: 0 | K155: 0 | L155: 0 | M155: 0 | O155: =SUM(F155:M155) -> 0
E156: M | F156: =+F158+F160 -> 0 | G156: =+G158+G160 -> 0 | H156: =+H158+H160 -> 0 | I156: 0 | J156: 0 | K156: 0 | L156: 0 | M156: 0 | O156: =SUM(F156:M156) -> 0
E157: F | F157: =+F159+F161 -> 0 | G157: =+G159+G161 -> 0 | H157: 0 | I157: 0 | J157: 0 | K157: 0 | L157: 0 | M157: 0 | O157: 0
B158: S2.1 Con confirmación bacteriológica o histopatológica | E158: M | F158: =+GETPIVOTDATA(" BAS151",TABLAS!$A$160) -> 0 | G158: =+GETPIVOTDATA(" BAS152",TABLAS!$A$160) -> 0 | H158: =+GETPIVOTDATA(" BAS153",TABLAS!$A$160) -> 0 | I158: =+GETPIVOTDATA(" BAS154",TABLAS!$A$160) -> 0 | J158: =+GETPIVOTDATA(" BAS155",TABLAS!$A$160) -> 0 | K158: =+GETPIVOTDATA(" BAS156",TABLAS!$A$160) -> 0 | L158: =+GETPIVOTDATA(" BAS157",TABLAS!$A$160) -> 0 | M158: =+GETPIVOTDATA(" BAS158",TABLAS!$A$160) -> 0 | O158: 0 | P158: =+O158+O159 -> 0
E159: F | F159: =+GETPIVOTDATA(" BAS159",TABLAS!$A$160) -> 0 | G159: =+GETPIVOTDATA(" BAS160",TABLAS!$A$160) -> 0 | H159: =+GETPIVOTDATA(" BAS161",TABLAS!$A$160) -> 0 | I159: =+GETPIVOTDATA(" BAS162",TABLAS!$A$160) -> 0 | J159: =+GETPIVOTDATA(" BAS163",TABLAS!$A$160) -> 0 | K159: =+GETPIVOTDATA(" BAS164",TABLAS!$A$160) -> 0 | L159: =+GETPIVOTDATA(" BAS165",TABLAS!$A$160) -> 0 | M159: =+GETPIVOTDATA(" BAS166",TABLAS!$A$160) -> 0 | O159: 0
B160: S2.2 Sin confirmación bacteriológica o histopatológica | E160: M | F160: =+GETPIVOTDATA(" BAS167",TABLAS!$A$160) -> 0 | G160: =+GETPIVOTDATA(" BAS168",TABLAS!$A$160) -> 0 | H160: =+GETPIVOTDATA(" BAS169",TABLAS!$A$160) -> 0 | I160: =+GETPIVOTDATA(" BAS170",TABLAS!$A$160) -> 0 | J160: =+GETPIVOTDATA(" BAS171",TABLAS!$A$160) -> 0 | K160: =+GETPIVOTDATA(" BAS172",TABLAS!$A$160) -> 0 | L160: =+GETPIVOTDATA(" BAS173",TABLAS!$A$160) -> 0 | M160: =+GETPIVOTDATA(" BAS174",TABLAS!$A$160) -> 0 | O160: 0 | P160: =+O160+O161 -> 0
E161: F | F161: =+GETPIVOTDATA(" BAS175",TABLAS!$A$160) -> 0 | G161: =+GETPIVOTDATA(" BAS176",TABLAS!$A$160) -> 0 | H161: =+GETPIVOTDATA(" BAS177",TABLAS!$A$160) -> 0 | I161: =+GETPIVOTDATA(" BAS178",TABLAS!$A$160) -> 0 | J161: =+GETPIVOTDATA(" BAS179",TABLAS!$A$160) -> 0 | K161: =+GETPIVOTDATA(" BAS180",TABLAS!$A$160) -> 0 | L161: =+GETPIVOTDATA(" BAS181",TABLAS!$A$160) -> 0 | M161: =+GETPIVOTDATA(" BAS182",TABLAS!$A$160) -> 0 | O161: 0
B163: A3. S.R. Examinados / 1° Muestra | G163: =+GETPIVOTDATA(" BAS012",TABLAS!$A$124) -> 79 | H163: =+GETPIVOTDATA(" BAS013",TABLAS!$A$124) -> 168 | I163: =+GETPIVOTDATA(" BAS014",TABLAS!$A$124) -> 557 | J163: =+GETPIVOTDATA(" BAS015",TABLAS!$A$124) -> 1653 | K163: =+GETPIVOTDATA(" BAS016",TABLAS!$A$124) -> 1094 | L163: =SUM(G163:K163) -> 3551
B164: A3. S.R. Examinados / 2° Muestra | G164: =+GETPIVOTDATA(" BAS226",TABLAS!$A$124) -> 65 | H164: =+GETPIVOTDATA(" BAS227",TABLAS!$A$124) -> 163 | I164: =+GETPIVOTDATA(" BAS228",TABLAS!$A$124) -> 521 | J164: =+GETPIVOTDATA(" BAS229",TABLAS!$A$124) -> 1631 | K164: =+GETPIVOTDATA(" BAS230",TABLAS!$A$124) -> 1075 | L164: =SUM(G164:K164) -> 3455 | M164: =+L164*100/L163 -> 97.29653619
B165: I3. Nº de Contactos > 5 años con Terapia Preventiva con Isoniacida (TPI) | G165: =+GETPIVOTDATA(" BAS186",TABLAS!$A$160) -> 0 | H165: =+GETPIVOTDATA(" BAS187",TABLAS!$A$160) -> 0 | I165: =+GETPIVOTDATA(" BAS188",TABLAS!$A$160) -> 0 | J165: =+GETPIVOTDATA(" BAS189",TABLAS!$A$160) -> 0 | K165: =+GETPIVOTDATA(" BAS190",TABLAS!$A$160) -> 0 | L165: =SUM(G165:K165) -> 0
B166: Registro de Bateria Completa | G166: =+GETPIVOTDATA(" BAS221",TABLAS!$A$124) -> 0 | H166: =+GETPIVOTDATA(" BAS222",TABLAS!$A$124) -> 1 | I166: =+GETPIVOTDATA(" BAS223",TABLAS!$A$124) -> 3 | J166: =+GETPIVOTDATA(" BAS224",TABLAS!$A$124) -> 5 | K166: =+GETPIVOTDATA(" BAS225",TABLAS!$A$124) -> 4 | L166: =SUM(G166:K166) -> 13
G168: Primera Fase | I168: Segunda Fase
G169: 1° Dosis | H169: 50° Dosis | I169: 51° Dosis | J169: TA Dosis
B170: Tratamiento con TBC Sensible | D170: Esquema TBC Sensible (Sin VIH/SIDA) | G170: =+GETPIVOTDATA(" BAS001",TABLAS!$A$195) -> 33 | H170: =+GETPIVOTDATA(" BAS002",TABLAS!$A$195) -> 26 | I170: =+GETPIVOTDATA(" BAS003",TABLAS!$A$195) -> 7 | J170: =+GETPIVOTDATA(" BAS004",TABLAS!$A$195) -> 15
D171: Esquema TBC Sensible Extrapulmonar | G171: =+GETPIVOTDATA(" BAS005",TABLAS!$A$195) -> 0 | H171: =+GETPIVOTDATA(" BAS006",TABLAS!$A$195) -> 1 | I171: =+GETPIVOTDATA(" BAS007",TABLAS!$A$195) -> 1 | J171: =+GETPIVOTDATA(" BAS008",TABLAS!$A$195) -> 5
D172: Esquema TBC Sensible Extrapulmonar C/SNC-O | G172: =+GETPIVOTDATA(" BAS009",TABLAS!$A$195) -> 1 | H172: =+GETPIVOTDATA(" BAS010",TABLAS!$A$195) -> 0 | I172: =+GETPIVOTDATA(" BAS011",TABLAS!$A$195) -> 0 | J172: =+GETPIVOTDATA(" BAS012",TABLAS!$A$195) -> 0
D173: Esquema TBC Sensible (Con VIH/SIDA) | G173: =+GETPIVOTDATA(" BAS013",TABLAS!$A$195) -> 1 | H173: =+GETPIVOTDATA(" BAS014",TABLAS!$A$195) -> 0 | I173: =+GETPIVOTDATA(" BAS015",TABLAS!$A$195) -> 0 | J173: =+GETPIVOTDATA(" BAS016",TABLAS!$A$195) -> 0
B174: Tratamiento con MDR | D174: Esquema Individualizado | G174: =+GETPIVOTDATA(" BAS017",TABLAS!$A$195) -> 246 | J174: =+GETPIVOTDATA(" BAS018",TABLAS!$A$195) -> 177
D175: Esquema Estandarizado | G175: =+GETPIVOTDATA(" BAS019",TABLAS!$A$195) -> 1 | J175: =+GETPIVOTDATA(" BAS020",TABLAS!$A$195) -> 10
D176: Esquema Empírico | G176: =+GETPIVOTDATA(" BAS021",TABLAS!$A$195) -> 0 | J176: =+GETPIVOTDATA(" BAS022",TABLAS!$A$195) -> 10
C183: Firma y Sello del Responsable de la ES PCT

Sheet INF BACTERIO
A1: DIRECCION REGIONAL DE SALUD CUSCO
A2: DIRECCION EJECUTIVA DE INTELIGENCIA SANITARIA
A3: DIRECCION DE ESTADISTICA, INFORMATICA Y TELECOMUNICACION
A5: CONSOLIDADO MENSUAL - ESTRATEGIAS Y COMPONENTES
B7: DIRESA | D7: =INFORME!C9 -> CUSCO | G7: AÑO | H7: =INFORME!G19 -> FEB - NOV
B9: RED DE SALUD | D9: =INFORME!C11 -> 03 - LA CONVENCION | G9: MES | H9: =INFORME!G17 -> 2024
B11: MICRO RED | D11: =INFORME!C13 -> 
B13: EE.SS. | D13: =+INFORME!C15 -> 
B15: PROVINCIA | D15: =INFORME!C17 -> 
B17: DISTRITO | D17: =INFORME!C19 -> 
A19: BACTERIOLOGICO (TUBERCULOSIS) | AB19: =+GETPIVOTDATA(" BAS001",TABLAS!$A$230) -> 0 | AC19: =+GETPIVOTDATA(" BAS002",TABLAS!$A$230) -> 0 | AD19: =+GETPIVOTDATA(" BAS003",TABLAS!$A$230) -> 0 | AE19: =+GETPIVOTDATA(" BAS004",TABLAS!$A$230) -> 0 | AF19: =+GETPIVOTDATA(" BAS005",TABLAS!$A$230) -> 0 | AG19: =+GETPIVOTDATA(" BAS006",TABLAS!$A$230) -> 0 | AH19: =+GETPIVOTDATA(" BAS007",TABLAS!$A$230) -> 0 | AI19: =+GETPIVOTDATA(" BAS008",TABLAS!$A$230) -> 0
A20: Tipo | E20: REALIZADO
E21: 0-11a | F21: 12-14a | G21: 15-17a | H21: 18-24a | I21: 25-29a | J21: 30-44a | K21: 45-59a | L21: 60-+a | M21: TOTAL | N21: Acumulado
A22: TOTAL | Z22: =+IMPORTARDATOSDINAMICOS(" BAS | AE22: ",TABLAS!$A$179)
A23: DIAGNOSTICO | B23: En Sintomatico Respiratorio | E23: =+GETPIVOTDATA(" BAS001",TABLAS!$A$230) -> 0 | F23: =+GETPIVOTDATA(" BAS002",TABLAS!$A$230) -> 0 | G23: =+GETPIVOTDATA(" BAS003",TABLAS!$A$230) -> 0 | H23: =+GETPIVOTDATA(" BAS004",TABLAS!$A$230) -> 0 | I23: =+GETPIVOTDATA(" BAS005",TABLAS!$A$230) -> 0 | J23: =+GETPIVOTDATA(" BAS006",TABLAS!$A$230) -> 0 | K23: =+GETPIVOTDATA(" BAS007",TABLAS!$A$230) -> 0 | L23: =+GETPIVOTDATA(" BAS008",TABLAS!$A$230) -> 0 | M23: =SUM(E23:L23) -> 0 | R23: 001 | S23: 002 | T23: 003 | U23: 004 | V23: 005 | W23: 006 | X23: 007 | Y23: 008 | AB23: =CONCATENATE($Z$22,R23,$AE$22) -> =+IMPORTARDATOSDINAMICOS(" BAS001",TABLAS!$A$179) | AC23: =CONCATENATE($Z$22,S23,$AE$22) -> =+IMPORTARDATOSDINAMICOS(" BAS002",TABLAS!$A$179) | AD23: =+IMPORTARDATOSDINAMICOS(" BAS003",TABLAS!$A$179) | AE23: =+IMPORTARDATOSDINAMICOS(" BAS004",TABLAS!$A$179) | AF23: =+IMPORTARDATOSDINAMICOS(" BAS005",TABLAS!$A$179) | AG23: =+IMPORTARDATOSDINAMICOS(" BAS006",TABLAS!$A$179) | AH23: =+IMPORTARDATOSDINAMICOS(" BAS007",TABLAS!$A$179) | AI23: =+IMPORTARDATOSDINAMICOS(" BAS008",TABLAS!$A$179) | AK23: =+IMPORTARDATOSDINAMICOS(" BAS001",TABLAS!$A$179) | AL23: =+IMPORTARDATOSDINAMICOS(" BAS002",TABLAS!$A$179) | AM23: =+IMPORTARDATOSDINAMICOS(" BAS003",TABLAS!$A$179) | AN23: =+IMPORTARDATOSDINAMICOS(" BAS004",TABLAS!$A$179) | AO23: =+IMPORTARDATOSDINAMICOS(" BAS005",TABLAS!$A$179) | AP23: =+IMPORTARDATOSDINAMICOS(" BAS006",TABLAS!$A$179) | AQ23: =+IMPORTARDATOSDINAMICOS(" BAS007",TABLAS!$A$179) | AR23: =+IMPORTARDATOSDINAMICOS(" BAS008",TABLAS!$A$179)
B24: En RX Anormal | E24: =+GETPIVOTDATA(" BAS009",TABLAS!$A$230) -> 0 | F24: =+GETPIVOTDATA(" BAS010",TABLAS!$A$230) -> 0 | G24: =+GETPIVOTDATA(" BAS011",TABLAS!$A$230) -> 0 | H24: =+GETPIVOTDATA(" BAS012",TABLAS!$A$230) -> 0 | I24: =+GETPIVOTDATA(" BAS013",TABLAS!$A$230) -> 0 | J24: =+GETPIVOTDATA(" BAS014",TABLAS!$A$230) -> 0 | K24: =+GETPIVOTDATA(" BAS015",TABLAS!$A$230) -> 0 | L24: =+GETPIVOTDATA(" BAS016",TABLAS!$A$230) -> 0 | M24: 0 | R24: 009 | S24: 010 | T24: 011 | U24: 012 | V24: 013 | W24: 014 | X24: 015 | Y24: 016 | AB24: =CONCATENATE($Z$22,R24,$AE$22) -> =+IMPORTARDATOSDINAMICOS(" BAS009",TABLAS!$A$179) | AC24: =CONCATENATE($Z$22,S24,$AE$22) -> =+IMPORTARDATOSDINAMICOS(" BAS010",TABLAS!$A$179) | AD24: =CONCATENATE($Z$22,T24,$AE$22) -> =+IMPORTARDATOSDINAMICOS(" BAS011",TABLAS!$A$179) | AE24: =CONCATENATE($Z$22,U24,$AE$22) -> =+IMPORTARDATOSDINAMICOS(" BAS012",TABLAS!$A$179) | AF24: =CONCATENATE($Z$22,V24,$AE$22) -> =+IMPORTARDATOSDINAMICOS(" BAS013",TABLAS!$A$179) | AG24: =CONCATENATE($Z$22,W24,$AE$22) -> =+IMPORTARDATOSDINAMICOS(" BAS014",TABLAS!$A$179) | AH24: =CONCATENATE($Z$22,X24,$AE$22) -> =+IMPORTARDATOSDINAMICOS(" BAS015",TABLAS!$A$179) | AI24: =CONCATENATE($Z$22,Y24,$AE$22) -> =+IMPORTARDATOSDINAMICOS(" BAS016",TABLAS!$A$179) | AK24: =+IMPORTARDATOSDINAMICOS(" BAS009",TABLAS!$A$179) | AL24: =+IMPORTARDATOSDINAMICOS(" BAS010",TABLAS!$A$179) | AM24: =+IMPORTARDATOSDINAMICOS(" BAS011",TABLAS!$A$179) | AN24: =+IMPORTARDATOSDINAMICOS(" BAS012",TABLAS!$A$179) | AO24: =+IMPORTARDATOSDINAMICOS(" BAS013",TABLAS!$A$179) | AP24: =+IMPORTARDATOSDINAMICOS(" BAS014",TABLAS!$A$179) | AQ24: =+IMPORTARDATOSDINAMICOS(" BAS015",TABLAS!$A$179) | AR24: =+IMPORTARDATOSDINAMICOS(" BAS016",TABLAS!$A$179)
B25: En Seguimiento Diagnostico | E25: =+GETPIVOTDATA(" BAS017",TABLAS!$A$230) -> 0 | F25: =+GETPIVOTDATA(" BAS018",TABLAS!$A$230) -> 0 | G25: =+GETPIVOTDATA(" BAS019",TABLAS!$A$230) -> 0 | H25: =+GETPIVOTDATA(" BAS020",TABLAS!$A$230) -> 0 | I25: =+GETPIVOTDATA(" BAS021",TABLAS!$A$230) -> 0 | J25: =+GETPIVOTDATA(" BAS022",TABLAS!$A$230) -> 0 | K25: =+GETPIVOTDATA(" BAS023",TABLAS!$A$230) -> 0 | L25: =+GETPIVOTDATA(" BAS024",TABLAS!$A$230) -> 0 | M25: 0 | R25: 017 | S25: 018 | T25: 019 | U25: 020 | V25: 021 | W25: 022 | X25: 023 | Y25: 024 | AB25: =+IMPORTARDATOSDINAMICOS(" BAS017",TABLAS!$A$179) | AC25: =+IMPORTARDATOSDINAMICOS(" BAS018",TABLAS!$A$179) | AD25: =+IMPORTARDATOSDINAMICOS(" BAS019",TABLAS!$A$179) | AE25: =+IMPORTARDATOSDINAMICOS(" BAS020",TABLAS!$A$179) | AF25: =+IMPORTARDATOSDINAMICOS(" BAS021",TABLAS!$A$179) | AG25: =+IMPORTARDATOSDINAMICOS(" BAS022",TABLAS!$A$179) | AH25: =+IMPORTARDATOSDINAMICOS(" BAS023",TABLAS!$A$179) | AI25: =+IMPORTARDATOSDINAMICOS(" BAS024",TABLAS!$A$179) | AK25: =+IMPORTARDATOSDINAMICOS(" BAS017",TABLAS!$A$179) | AL25: =+IMPORTARDATOSDINAMICOS(" BAS018",TABLAS!$A$179) | AM25: =+IMPORTARDATOSDINAMICOS(" BAS019",TABLAS!$A$179) | AN25: =+IMPORTARDATOSDINAMICOS(" BAS020",TABLAS!$A$179) | AO25: =+IMPORTARDATOSDINAMICOS(" BAS021",TABLAS!$A$179) | AP25: =+IMPORTARDATOSDINAMICOS(" BAS022",TABLAS!$A$179) | AQ25: =+IMPORTARDATOSDINAMICOS(" BAS023",TABLAS!$A$179) | AR25: =+IMPORTARDATOSDINAMICOS(" BAS024",TABLAS!$A$179)
B26: En Localizacion Extrapulmonar | E26: =+GETPIVOTDATA(" BAS025",TABLAS!$A$230) -> 0 | F26: =+GETPIVOTDATA(" BAS026",TABLAS!$A$230) -> 0 | G26: =+GETPIVOTDATA(" BAS027",TABLAS!$A$230) -> 0 | H26: =+GETPIVOTDATA(" BAS028",TABLAS!$A$230) -> 0 | I26: =+GETPIVOTDATA(" BAS029",TABLAS!$A$230) -> 0 | J26: =+GETPIVOTDATA(" BAS030",TABLAS!$A$230) -> 0 | K26: =+GETPIVOTDATA(" BAS031",TABLAS!$A$230) -> 0 | L26: =+GETPIVOTDATA(" BAS032",TABLAS!$A$230) -> 0 | M26: 0 | R26: 025 | S26: 026 | T26: 027 | U26: 028 | V26: 029 | W26: 030 | X26: 031 | Y26: 032 | AB26: =+IMPORTARDATOSDINAMICOS(" BAS025",TABLAS!$A$179) | AC26: =+IMPORTARDATOSDINAMICOS(" BAS026",TABLAS!$A$179) | AD26: =+IMPORTARDATOSDINAMICOS(" BAS027",TABLAS!$A$179) | AE26: =+IMPORTARDATOSDINAMICOS(" BAS028",TABLAS!$A$179) | AF26: =+IMPORTARDATOSDINAMICOS(" BAS029",TABLAS!$A$179) | AG26: =+IMPORTARDATOSDINAMICOS(" BAS030",TABLAS!$A$179) | AH26: =+IMPORTARDATOSDINAMICOS(" BAS031",TABLAS!$A$179) | AI26: =+IMPORTARDATOSDINAMICOS(" BAS032",TABLAS!$A$179) | AK26: =+IMPORTARDATOSDINAMICOS(" BAS025",TABLAS!$A$179) | AL26: =+IMPORTARDATOSDINAMICOS(" BAS026",TABLAS!$A$179) | AM26: =+IMPORTARDATOSDINAMICOS(" BAS027",TABLAS!$A$179) | AN26: =+IMPORTARDATOSDINAMICOS(" BAS028",TABLAS!$A$179) | AO26: =+IMPORTARDATOSDINAMICOS(" BAS029",TABLAS!$A$179) | AP26: =+IMPORTARDATOSDINAMICOS(" BAS030",TABLAS!$A$179) | AQ26: =+IMPORTARDATOSDINAMICOS(" BAS031",TABLAS!$A$179) | AR26: =+IMPORTARDATOSDINAMICOS(" BAS032",TABLAS!$A$179)
B27: Total de Diagnostico | E27: =SUM(E23:E26) -> 0 | F27: =SUM(F23:F26) -> 0 | G27: 0 | H27: 0 | I27: 0 | J27: 0 | K27: 0 | L27: 0 | M27: 0
A28: CONTROL DE TRATAMIENTO | E28: =+GETPIVOTDATA(" BAS033",TABLAS!$A$230) -> 0 | F28: =+GETPIVOTDATA(" BAS034",TABLAS!$A$230) -> 0 | G28: =+GETPIVOTDATA(" BAS035",TABLAS!$A$230) -> 0 | H28: =+GETPIVOTDATA(" BAS036",TABLAS!$A$230) -> 0 | I28: =+GETPIVOTDATA(" BAS037",TABLAS!$A$230) -> 0 | J28: =+GETPIVOTDATA(" BAS038",TABLAS!$A$230) -> 0 | K28: =+GETPIVOTDATA(" BAS039",TABLAS!$A$230) -> 0 | L28: =+GETPIVOTDATA(" BAS040",TABLAS!$A$230) -> 0 | M28: 0 | R28: 033 | S28: 034 | T28: 035 | U28: 036 | V28: 037 | W28: 038 | X28: 039 | Y28: 040 | AB28: =CONCATENATE($Z$22,R28,$AE$22) -> =+IMPORTARDATOSDINAMICOS(" BAS033",TABLAS!$A$179) | AC28: =CONCATENATE($Z$22,S28,$AE$22) -> =+IMPORTARDATOSDINAMICOS(" BAS034",TABLAS!$A$179) | AD28: =CONCATENATE($Z$22,T28,$AE$22) -> =+IMPORTARDATOSDINAMICOS(" BAS035",TABLAS!$A$179) | AE28: =CONCATENATE($Z$22,U28,$AE$22) -> =+IMPORTARDATOSDINAMICOS(" BAS036",TABLAS!$A$179) | AF28: =CONCATENATE($Z$22,V28,$AE$22) -> =+IMPORTARDATOSDINAMICOS(" BAS037",TABLAS!$A$179) | AG28: =CONCATENATE($Z$22,W28,$AE$22) -> =+IMPORTARDATOSDINAMICOS(" BAS038",TABLAS!$A$179) | AH28: =CONCATENATE($Z$22,X28,$AE$22) -> =+IMPORTARDATOSDINAMICOS(" BAS039",TABLAS!$A$179) | AI28: =CONCATENATE($Z$22,Y28,$AE$22) -> =+IMPORTARDATOSDINAMICOS(" BAS040",TABLAS!$A$179) | AK28: =+IMPORTARDATOSDINAMICOS(" BAS033",TABLAS!$A$179) | AL28: =+IMPORTARDATOSDINAMICOS(" BAS034",TABLAS!$A$179) | AM28: =+IMPORTARDATOSDINAMICOS(" BAS035",TABLAS!$A$179) | AN28: =+IMPORTARDATOSDINAMICOS(" BAS036",TABLAS!$A$179) | AO28: =+IMPORTARDATOSDINAMICOS(" BAS037",TABLAS!$A$179) | AP28: =+IMPORTARDATOSDINAMICOS(" BAS038",TABLAS!$A$179) | AQ28: =+IMPORTARDATOSDINAMICOS(" BAS039",TABLAS!$A$179) | AR28: =+IMPORTARDATOSDINAMICOS(" BAS040",TABLAS!$A$179)
A29: Tipo | E29: POSITIVO
E30: 0-11a | F30: 12-14a | G30: 15-17a | H30: 18-24a | I30: 25-29a | J30: 30-44a | K30: 45-59a | L30: 60-+a | M30: TOTAL | N30: Acumulado
A31: TOTAL
A32: DIAGNOSTICO | B32: En Sintomatico Respiratorio | E32: =+GETPIVOTDATA(" BAS041",TABLAS!$A$230) -> 0 | F32: =+GETPIVOTDATA(" BAS042",TABLAS!$A$230) -> 0 | G32: =+GETPIVOTDATA(" BAS043",TABLAS!$A$230) -> 0 | H32: =+GETPIVOTDATA(" BAS044",TABLAS!$A$230) -> 0 | I32: =+GETPIVOTDATA(" BAS045",TABLAS!$A$230) -> 0 | J32: =+GETPIVOTDATA(" BAS046",TABLAS!$A$230) -> 0 | K32: =+GETPIVOTDATA(" BAS047",TABLAS!$A$230) -> 0 | L32: =+GETPIVOTDATA(" BAS048",TABLAS!$A$230) -> 0 | M32: =SUM(E32:L32) -> 0 | R32: 041 | S32: 042 | T32: 043 | U32: 044 | V32: 045 | W32: 046 | X32: 047 | Y32: 048 | AB32: =CONCATENATE($Z$22,R32,$AE$22) -> =+IMPORTARDATOSDINAMICOS(" BAS041",TABLAS!$A$179) | AC32: =CONCATENATE($Z$22,S32,$AE$22) -> =+IMPORTARDATOSDINAMICOS(" BAS042",TABLAS!$A$179) | AD32: =CONCATENATE($Z$22,T32,$AE$22) -> =+IMPORTARDATOSDINAMICOS(" BAS043",TABLAS!$A$179) | AE32: =CONCATENATE($Z$22,U32,$AE$22) -> =+IMPORTARDATOSDINAMICOS(" BAS044",TABLAS!$A$179) | AF32: =CONCATENATE($Z$22,V32,$AE$22) -> =+IMPORTARDATOSDINAMICOS(" BAS045",TABLAS!$A$179) | AG32: =CONCATENATE($Z$22,W32,$AE$22) -> =+IMPORTARDATOSDINAMICOS(" BAS046",TABLAS!$A$179) | AH32: =CONCATENATE($Z$22,X32,$AE$22) -> =+IMPORTARDATOSDINAMICOS(" BAS047",TABLAS!$A$179) | AI32: =CONCATENATE($Z$22,Y32,$AE$22) -> =+IMPORTARDATOSDINAMICOS(" BAS048",TABLAS!$A$179) | AK32: =+IMPORTARDATOSDINAMICOS(" BAS041",TABLAS!$A$179) | AL32: =+IMPORTARDATOSDINAMICOS(" BAS042",TABLAS!$A$179) | AM32: =+IMPORTARDATOSDINAMICOS(" BAS043",TABLAS!$A$179) | AN32: =+IMPORTARDATOSDINAMICOS(" BAS044",TABLAS!$A$179) | AO32: =+IMPORTARDATOSDINAMICOS(" BAS045",TABLAS!$A$179) | AP32: =+IMPORTARDATOSDINAMICOS(" BAS046",TABLAS!$A$179) | AQ32: =+IMPORTARDATOSDINAMICOS(" BAS047",TABLAS!$A$179) | AR32: =+IMPORTARDATOSDINAMICOS(" BAS048",TABLAS!$A$179)
B33: En RX Anormal | E33: =+GETPIVOTDATA(" BAS049",TABLAS!$A$230) -> 0 | F33: =+GETPIVOTDATA(" BAS050",TABLAS!$A$230) -> 0 | G33: =+GETPIVOTDATA(" BAS051",TABLAS!$A$230) -> 0 | H33: =+GETPIVOTDATA(" BAS052",TABLAS!$A$230) -> 0 | I33: =+GETPIVOTDATA(" BAS053",TABLAS!$A$230) -> 0 | J33: =+GETPIVOTDATA(" BAS054",TABLAS!$A$230) -> 0 | K33: =+GETPIVOTDATA(" BAS055",TABLAS!$A$230) -> 0 | L33: =+GETPIVOTDATA(" BAS056",TABLAS!$A$230) -> 0 | M33: 0 | R33: 049 | S33: 050 | T33: 051 | U33: 052 | V33: 053 | W33: 054 | X33: 055 | Y33: 056 | AB33: =+IMPORTARDATOSDINAMICOS(" BAS049",TABLAS!$A$179) | AC33: =+IMPORTARDATOSDINAMICOS(" BAS050",TABLAS!$A$179) | AD33: =+IMPORTARDATOSDINAMICOS(" BAS051",TABLAS!$A$179) | AE33: =+IMPORTARDATOSDINAMICOS(" BAS052",TABLAS!$A$179) | AF33: =+IMPORTARDATOSDINAMICOS(" BAS053",TABLAS!$A$179) | AG33: =+IMPORTARDATOSDINAMICOS(" BAS054",TABLAS!$A$179) | AH33: =+IMPORTARDATOSDINAMICOS(" BAS055",TABLAS!$A$179) | AI33: =+IMPORTARDATOSDINAMICOS(" BAS056",TABLAS!$A$179) | AK33: =+IMPORTARDATOSDINAMICOS(" BAS049",TABLAS!$A$179) | AL33: =+IMPORTARDATOSDINAMICOS(" BAS050",TABLAS!$A$179) | AM33: =+IMPORTARDATOSDINAMICOS(" BAS051",TABLAS!$A$179) | AN33: =+IMPORTARDATOSDINAMICOS(" BAS052",TABLAS!$A$179) | AO33: =+IMPORTARDATOSDINAMICOS(" BAS053",TABLAS!$A$179) | AP33: =+IMPORTARDATOSDINAMICOS(" BAS054",TABLAS!$A$179) | AQ33: =+IMPORTARDATOSDINAMICOS(" BAS055",TABLAS!$A$179) | AR33: =+IMPORTARDATOSDINAMICOS(" BAS056",TABLAS!$A$179)
B34: En Seguimiento Diagnostico | E34: =+GETPIVOTDATA(" BAS057",TABLAS!$A$230) -> 0 | F34: =+GETPIVOTDATA(" BAS058",TABLAS!$A$230) -> 0 | G34: =+GETPIVOTDATA(" BAS059",TABLAS!$A$230) -> 0 | H34: =+GETPIVOTDATA(" BAS060",TABLAS!$A$230) -> 0 | I34: =+GETPIVOTDATA(" BAS061",TABLAS!$A$230) -> 0 | J34: =+GETPIVOTDATA(" BAS062",TABLAS!$A$230) -> 0 | K34: =+GETPIVOTDATA(" BAS063",TABLAS!$A$230) -> 0 | L34: =+GETPIVOTDATA(" BAS064",TABLAS!$A$230) -> 0 | M34: 0 | R34: 057 | S34: 058 | T34: 059 | U34: 060 | V34: 061 | W34: 062 | X34: 063 | Y34: 064 | AB34: =+IMPORTARDATOSDINAMICOS(" BAS057",TABLAS!$A$179) | AC34: =+IMPORTARDATOSDINAMICOS(" BAS058",TABLAS!$A$179) | AD34: =+IMPORTARDATOSDINAMICOS(" BAS059",TABLAS!$A$179) | AE34: =+IMPORTARDATOSDINAMICOS(" BAS060",TABLAS!$A$179) | AF34: =+IMPORTARDATOSDINAMICOS(" BAS061",TABLAS!$A$179) | AG34: =+IMPORTARDATOSDINAMICOS(" BAS062",TABLAS!$A$179) | AH34: =+IMPORTARDATOSDINAMICOS(" BAS063",TABLAS!$A$179) | AI34: =+IMPORTARDATOSDINAMICOS(" BAS064",TABLAS!$A$179) | AK34: =+IMPORTARDATOSDINAMICOS(" BAS057",TABLAS!$A$179) | AL34: =+IMPORTARDATOSDINAMICOS(" BAS058",TABLAS!$A$179) | AM34: =+IMPORTARDATOSDINAMICOS(" BAS059",TABLAS!$A$179) | AN34: =+IMPORTARDATOSDINAMICOS(" BAS060",TABLAS!$A$179) | AO34: =+IMPORTARDATOSDINAMICOS(" BAS061",TABLAS!$A$179) | AP34: =+IMPORTARDATOSDINAMICOS(" BAS062",TABLAS!$A$179) | AQ34: =+IMPORTARDATOSDINAMICOS(" BAS063",TABLAS!$A$179) | AR34: =+IMPORTARDATOSDINAMICOS(" BAS064",TABLAS!$A$179)
B35: En Localizacion Extrapulmonar | E35: =+GETPIVOTDATA(" BAS065",TABLAS!$A$230) -> 0 | F35: =+GETPIVOTDATA(" BAS066",TABLAS!$A$230) -> 0 | G35: =+GETPIVOTDATA(" BAS067",TABLAS!$A$230) -> 0 | H35: =+GETPIVOTDATA(" BAS068",TABLAS!$A$230) -> 0 | I35: =+GETPIVOTDATA(" BAS069",TABLAS!$A$230) -> 0 | J35: =+GETPIVOTDATA(" BAS070",TABLAS!$A$230) -> 0 | K35: =+GETPIVOTDATA(" BAS071",TABLAS!$A$230) -> 0 | L35: =+GETPIVOTDATA(" BAS072",TABLAS!$A$230) -> 0 | M35: 0 | R35: 065 | S35: 066 | T35: 067 | U35: 068 | V35: 069 | W35: 070 | X35: 071 | Y35: 072 | AB35: =+IMPORTARDATOSDINAMICOS(" BAS065",TABLAS!$A$179) | AC35: =+IMPORTARDATOSDINAMICOS(" BAS066",TABLAS!$A$179) | AD35: =+IMPORTARDATOSDINAMICOS(" BAS067",TABLAS!$A$179) | AE35: =+IMPORTARDATOSDINAMICOS(" BAS068",TABLAS!$A$179) | AF35: =+IMPORTARDATOSDINAMICOS(" BAS069",TABLAS!$A$179) | AG35: =+IMPORTARDATOSDINAMICOS(" BAS070",TABLAS!$A$179) | AH35: =+IMPORTARDATOSDINAMICOS(" BAS071",TABLAS!$A$179) | AI35: =+IMPORTARDATOSDINAMICOS(" BAS072",TABLAS!$A$179) | AK35: =+IMPORTARDATOSDINAMICOS(" BAS065",TABLAS!$A$179) | AL35: =+IMPORTARDATOSDINAMICOS(" BAS066",TABLAS!$A$179) | AM35: =+IMPORTARDATOSDINAMICOS(" BAS067",TABLAS!$A$179) | AN35: =+IMPORTARDATOSDINAMICOS(" BAS068",TABLAS!$A$179) | AO35: =+IMPORTARDATOSDINAMICOS(" BAS069",TABLAS!$A$179) | AP35: =+IMPORTARDATOSDINAMICOS(" BAS070",TABLAS!$A$179) | AQ35: =+IMPORTARDATOSDINAMICOS(" BAS071",TABLAS!$A$179) | AR35: =+IMPORTARDATOSDINAMICOS(" BAS072",TABLAS!$A$179)
B36: Total de Diagnostico | E36: =SUM(E32:E35) -> 0 | F36: =SUM(F32:F35) -> 0 | G36: 0 | H36: 0 | I36: 0 | J36: 0 | K36: 0 | L36: 0 | M36: 0
A37: CONTROL DE TRATAMIENTO | E37: =+GETPIVOTDATA(" BAS073",TABLAS!$A$230) -> 0 | F37: =+GETPIVOTDATA(" BAS074",TABLAS!$A$230) -> 0 | G37: =+GETPIVOTDATA(" BAS075",TABLAS!$A$230) -> 0 | H37: =+GETPIVOTDATA(" BAS076",TABLAS!$A$230) -> 0 | I37: =+GETPIVOTDATA(" BAS077",TABLAS!$A$230) -> 0 | J37: =+GETPIVOTDATA(" BAS078",TABLAS!$A$230) -> 0 | K37: =+GETPIVOTDATA(" BAS079",TABLAS!$A$230) -> 0 | L37: =+GETPIVOTDATA(" BAS080",TABLAS!$A$230) -> 0 | M37: 0 | R37: 073 | S37: 074 | T37: 075 | U37: 076 | V37: 077 | W37: 078 | X37: 079 | Y37: 080 | AB37: =CONCATENATE($Z$22,R37,$AE$22) -> =+IMPORTARDATOSDINAMICOS(" BAS073",TABLAS!$A$179) | AC37: =CONCATENATE($Z$22,S37,$AE$22) -> =+IMPORTARDATOSDINAMICOS(" BAS074",TABLAS!$A$179) | AD37: =CONCATENATE($Z$22,T37,$AE$22) -> =+IMPORTARDATOSDINAMICOS(" BAS075",TABLAS!$A$179) | AE37: =CONCATENATE($Z$22,U37,$AE$22) -> =+IMPORTARDATOSDINAMICOS(" BAS076",TABLAS!$A$179) | AF37: =CONCATENATE($Z$22,V37,$AE$22) -> =+IMPORTARDATOSDINAMICOS(" BAS077",TABLAS!$A$179) | AG37: =CONCATENATE($Z$22,W37,$AE$22) -> =+IMPORTARDATOSDINAMICOS(" BAS078",TABLAS!$A$179) | AH37: =CONCATENATE($Z$22,X37,$AE$22) -> =+IMPORTARDATOSDINAMICOS(" BAS079",TABLAS!$A$179) | AI37: =CONCATENATE($Z$22,Y37,$AE$22) -> =+IMPORTARDATOSDINAMICOS(" BAS080",TABLAS!$A$179) | AK37: =+IMPORTARDATOSDINAMICOS(" BAS073",TABLAS!$A$179) | AL37: =+IMPORTARDATOSDINAMICOS(" BAS074",TABLAS!$A$179) | AM37: =+IMPORTARDATOSDINAMICOS(" BAS075",TABLAS!$A$179) | AN37: =+IMPORTARDATOSDINAMICOS(" BAS076",TABLAS!$A$179) | AO37: =+IMPORTARDATOSDINAMICOS(" BAS077",TABLAS!$A$179) | AP37: =+IMPORTARDATOSDINAMICOS(" BAS078",TABLAS!$A$179) | AQ37: =+IMPORTARDATOSDINAMICOS(" BAS079",TABLAS!$A$179) | AR37: =+IMPORTARDATOSDINAMICOS(" BAS080",TABLAS!$A$179)
A39: CULTIVOS (TUBERCULOSIS)
A40: Tipo | E40: REALIZADO
E41: 0-11a | F41: 12-14a | G41: 15-17a | H41: 18-24a | I41: 25-29a | J41: 30-44a | K41: 45-59a | L41: 60-+a | M41: TOTAL | N41: Acumulado
A42: TOTAL
A43: DIAGNOSTICO | B43: En Sintomatico Respiratorio | E43: =+GETPIVOTDATA(" BAS081",TABLAS!$A$230) -> 0 | F43: =+GETPIVOTDATA(" BAS082",TABLAS!$A$230) -> 0 | G43: =+GETPIVOTDATA(" BAS083",TABLAS!$A$230) -> 0 | H43: =+GETPIVOTDATA(" BAS084",TABLAS!$A$230) -> 0 | I43: =+GETPIVOTDATA(" BAS085",TABLAS!$A$230) -> 0 | J43: =+GETPIVOTDATA(" BAS086",TABLAS!$A$230) -> 0 | K43: =+GETPIVOTDATA(" BAS087",TABLAS!$A$230) -> 0 | L43: =+GETPIVOTDATA(" BAS088",TABLAS!$A$230) -> 0 | M43: =SUM(E43:L43) -> 0 | R43: 081 | S43: 082 | T43: 083 | U43: 084 | V43: 085 | W43: 086 | X43: 087 | Y43: 088 | AB43: =CONCATENATE($Z$22,R43,$AE$22) -> =+IMPORTARDATOSDINAMICOS(" BAS081",TABLAS!$A$179) | AC43: =CONCATENATE($Z$22,S43,$AE$22) -> =+IMPORTARDATOSDINAMICOS(" BAS082",TABLAS!$A$179) | AD43: =CONCATENATE($Z$22,T43,$AE$22) -> =+IMPORTARDATOSDINAMICOS(" BAS083",TABLAS!$A$179) | AE43: =CONCATENATE($Z$22,U43,$AE$22) -> =+IMPORTARDATOSDINAMICOS(" BAS084",TABLAS!$A$179) | AF43: =CONCATENATE($Z$22,V43,$AE$22) -> =+IMPORTARDATOSDINAMICOS(" BAS085",TABLAS!$A$179) | AG43: =CONCATENATE($Z$22,W43,$AE$22) -> =+IMPORTARDATOSDINAMICOS(" BAS086",TABLAS!$A$179) | AH43: =CONCATENATE($Z$22,X43,$AE$22) -> =+IMPORTARDATOSDINAMICOS(" BAS087",TABLAS!$A$179) | AI43: =CONCATENATE($Z$22,Y43,$AE$22) -> =+IMPORTARDATOSDINAMICOS(" BAS088",TABLAS!$A$179) | AK43: =+IMPORTARDATOSDINAMICOS(" BAS081",TABLAS!$A$179) | AL43: =+IMPORTARDATOSDINAMICOS(" BAS082",TABLAS!$A$179) | AM43: =+IMPORTARDATOSDINAMICOS(" BAS083",TABLAS!$A$179) | AN43: =+IMPORTARDATOSDINAMICOS(" BAS084",TABLAS!$A$179) | AO43: =+IMPORTARDATOSDINAMICOS(" BAS085",TABLAS!$A$179) | AP43: =+IMPORTARDATOSDINAMICOS(" BAS086",TABLAS!$A$179) | AQ43: =+IMPORTARDATOSDINAMICOS(" BAS087",TABLAS!$A$179) | AR43: =+IMPORTARDATOSDINAMICOS(" BAS088",TABLAS!$A$179)
B44: En RX Anormal | E44: =+GETPIVOTDATA(" BAS089",TABLAS!$A$230) -> 0 | F44: =+GETPIVOTDATA(" BAS090",TABLAS!$A$230) -> 0 | G44: =+GETPIVOTDATA(" BAS091",TABLAS!$A$230) -> 0 | H44: =+GETPIVOTDATA(" BAS092",TABLAS!$A$230) -> 0 | I44: =+GETPIVOTDATA(" BAS093",TABLAS!$A$230) -> 0 | J44: =+GETPIVOTDATA(" BAS094",TABLAS!$A$230) -> 0 | K44: =+GETPIVOTDATA(" BAS095",TABLAS!$A$230) -> 0 | L44: =+GETPIVOTDATA(" BAS096",TABLAS!$A$230) -> 0 | M44: 0 | R44: 089 | S44: 090 | T44: 091 | U44: 092 | V44: 093 | W44: 094 | X44: 095 | Y44: 096 | AB44: =+IMPORTARDATOSDINAMICOS(" BAS089",TABLAS!$A$179) | AC44: =+IMPORTARDATOSDINAMICOS(" BAS090",TABLAS!$A$179) | AD44: =+IMPORTARDATOSDINAMICOS(" BAS091",TABLAS!$A$179) | AE44: =+IMPORTARDATOSDINAMICOS(" BAS092",TABLAS!$A$179) | AF44: =+IMPORTARDATOSDINAMICOS(" BAS093",TABLAS!$A$179) | AG44: =+IMPORTARDATOSDINAMICOS(" BAS094",TABLAS!$A$179) | AH44: =+IMPORTARDATOSDINAMICOS(" BAS095",TABLAS!$A$179) | AI44: =+IMPORTARDATOSDINAMICOS(" BAS096",TABLAS!$A$179) | AK44: =+IMPORTARDATOSDINAMICOS(" BAS089",TABLAS!$A$179) | AL44: =+IMPORTARDATOSDINAMICOS(" BAS090",TABLAS!$A$179) | AM44: =+IMPORTARDATOSDINAMICOS(" BAS091",TABLAS!$A$179) | AN44: =+IMPORTARDATOSDINAMICOS(" BAS092",TABLAS!$A$179) | AO44: =+IMPORTARDATOSDINAMICOS(" BAS093",TABLAS!$A$179) | AP44: =+IMPORTARDATOSDINAMICOS(" BAS094",TABLAS!$A$179) | AQ44: =+IMPORTARDATOSDINAMICOS(" BAS095",TABLAS!$A$179) | AR44: =+IMPORTARDATOSDINAMICOS(" BAS096",TABLAS!$A$179)
B45: En Seguimiento Diagnostico | E45: =+GETPIVOTDATA(" BAS097",TABLAS!$A$230) -> 0 | F45: =+GETPIVOTDATA(" BAS098",TABLAS!$A$230) -> 0 | G45: =+GETPIVOTDATA(" BAS099",TABLAS!$A$230) -> 0 | H45: =+GETPIVOTDATA(" BAS100",TABLAS!$A$230) -> 0 | I45: =+GETPIVOTDATA(" BAS101",TABLAS!$A$230) -> 0 | J45: =+GETPIVOTDATA(" BAS102",TABLAS!$A$230) -> 0 | K45: =+GETPIVOTDATA(" BAS103",TABLAS!$A$230) -> 0 | L45: =+GETPIVOTDATA(" BAS104",TABLAS!$A$230) -> 0 | M45: 0 | R45: 097 | S45: 098 | T45: 099 | U45: 100 | V45: 101 | W45: 102 | X45: 103 | Y45: 104 | AB45: =+IMPORTARDATOSDINAMICOS(" BAS097",TABLAS!$A$179) | AC45: =+IMPORTARDATOSDINAMICOS(" BAS098",TABLAS!$A$179) | AD45: =+IMPORTARDATOSDINAMICOS(" BAS099",TABLAS!$A$179) | AE45: =+IMPORTARDATOSDINAMICOS(" BAS100",TABLAS!$A$179) | AF45: =+IMPORTARDATOSDINAMICOS(" BAS101",TABLAS!$A$179) | AG45: =+IMPORTARDATOSDINAMICOS(" BAS102",TABLAS!$A$179) | AH45: =+IMPORTARDATOSDINAMICOS(" BAS103",TABLAS!$A$179) | AI45: =+IMPORTARDATOSDINAMICOS(" BAS104",TABLAS!$A$179) | AK45: =+IMPORTARDATOSDINAMICOS(" BAS097",TABLAS!$A$179) | AL45: =+IMPORTARDATOSDINAMICOS(" BAS098",TABLAS!$A$179) | AM45: =+IMPORTARDATOSDINAMICOS(" BAS099",TABLAS!$A$179) | AN45: =+IMPORTARDATOSDINAMICOS(" BAS100",TABLAS!$A$179) | AO45: =+IMPORTARDATOSDINAMICOS(" BAS101",TABLAS!$A$179) | AP45: =+IMPORTARDATOSDINAMICOS(" BAS102",TABLAS!$A$179) | AQ45: =+IMPORTARDATOSDINAMICOS(" BAS103",TABLAS!$A$179) | AR45: =+IMPORTARDATOSDINAMICOS(" BAS104",TABLAS!$A$179)
B46: En Localizacion Extrapulmonar | E46: =+GETPIVOTDATA(" BAS105",TABLAS!$A$230) -> 0 | F46: =+GETPIVOTDATA(" BAS106",TABLAS!$A$230) -> 0 | G46: =+GETPIVOTDATA(" BAS107",TABLAS!$A$230) -> 0 | H46: =+GETPIVOTDATA(" BAS108",TABLAS!$A$230) -> 0 | I46: =+GETPIVOTDATA(" BAS109",TABLAS!$A$230) -> 0 | J46: =+GETPIVOTDATA(" BAS110",TABLAS!$A$230) -> 0 | K46: =+GETPIVOTDATA(" BAS111",TABLAS!$A$230) -> 0 | L46: =+GETPIVOTDATA(" BAS112",TABLAS!$A$230) -> 0 | M46: 0 | R46: 105 | S46: =+R46+1 -> 106 | T46: =+S46+1 -> 107 | U46: 108 | V46: 109 | W46: 110 | X46: 111 | Y46: 112 | AB46: =+IMPORTARDATOSDINAMICOS(" BAS105",TABLAS!$A$179) | AC46: =+IMPORTARDATOSDINAMICOS(" BAS106",TABLAS!$A$179) | AD46: =+IMPORTARDATOSDINAMICOS(" BAS107",TABLAS!$A$179) | AE46: =+IMPORTARDATOSDINAMICOS(" BAS108",TABLAS!$A$179) | AF46: =+IMPORTARDATOSDINAMICOS(" BAS109",TABLAS!$A$179) | AG46: =+IMPORTARDATOSDINAMICOS(" BAS110",TABLAS!$A$179) | AH46: =+IMPORTARDATOSDINAMICOS(" BAS111",TABLAS!$A$179) | AI46: =+IMPORTARDATOSDINAMICOS(" BAS112",TABLAS!$A$179) | AK46: =+IMPORTARDATOSDINAMICOS(" BAS105",TABLAS!$A$179) | AL46: =+IMPORTARDATOSDINAMICOS(" BAS106",TABLAS!$A$179) | AM46: =+IMPORTARDATOSDINAMICOS(" BAS107",TABLAS!$A$179) | AN46: =+IMPORTARDATOSDINAMICOS(" BAS108",TABLAS!$A$179) | AO46: =+IMPORTARDATOSDINAMICOS(" BAS109",TABLAS!$A$179) | AP46: =+IMPORTARDATOSDINAMICOS(" BAS110",TABLAS!$A$179) | AQ46: =+IMPORTARDATOSDINAMICOS(" BAS111",TABLAS!$A$179) | AR46: =+IMPORTARDATOSDINAMICOS(" BAS112",TABLAS!$A$179)
B47: Total de Diagnostico | E47: =SUM(E43:E46) -> 0 | F47: =SUM(F43:F46) -> 0 | G47: 0 | H47: 0 | I47: 0 | J47: 0 | K47: 0 | L47: 0 | M47: 0
A48: CONTROL DE TRATAMIENTO | E48: =+GETPIVOTDATA(" BAS113",TABLAS!$A$230) -> 0 | F48: =+GETPIVOTDATA(" BAS114",TABLAS!$A$230) -> 0 | G48: =+GETPIVOTDATA(" BAS115",TABLAS!$A$230) -> 0 | H48: =+GETPIVOTDATA(" BAS116",TABLAS!$A$230) -> 0 | I48: =+GETPIVOTDATA(" BAS117",TABLAS!$A$230) -> 0 | J48: =+GETPIVOTDATA(" BAS118",TABLAS!$A$230) -> 0 | K48: =+GETPIVOTDATA(" BAS119",TABLAS!$A$230) -> 0 | L48: =+GETPIVOTDATA(" BAS120",TABLAS!$A$230) -> 0 | M48: 0 | R48: =+Y46+1 -> 113 | S48: =+R48+1 -> 114 | T48: 115 | U48: 116 | V48: 117 | W48: 118 | X48: 119 | Y48: 120 | AB48: =CONCATENATE($Z$22,R48,$AE$22) -> =+IMPORTARDATOSDINAMICOS(" BAS113",TABLAS!$A$179) | AC48: =CONCATENATE($Z$22,S48,$AE$22) -> =+IMPORTARDATOSDINAMICOS(" BAS114",TABLAS!$A$179) | AD48: =CONCATENATE($Z$22,T48,$AE$22) -> =+IMPORTARDATOSDINAMICOS(" BAS115",TABLAS!$A$179) | AE48: =CONCATENATE($Z$22,U48,$AE$22) -> =+IMPORTARDATOSDINAMICOS(" BAS116",TABLAS!$A$179) | AF48: =CONCATENATE($Z$22,V48,$AE$22) -> =+IMPORTARDATOSDINAMICOS(" BAS117",TABLAS!$A$179) | AG48: =CONCATENATE($Z$22,W48,$AE$22) -> =+IMPORTARDATOSDINAMICOS(" BAS118",TABLAS!$A$179) | AH48: =CONCATENATE($Z$22,X48,$AE$22) -> =+IMPORTARDATOSDINAMICOS(" BAS119",TABLAS!$A$179) | AI48: =CONCATENATE($Z$22,Y48,$AE$22) -> =+IMPORTARDATOSDINAMICOS(" BAS120",TABLAS!$A$179) | AK48: =+IMPORTARDATOSDINAMICOS(" BAS113",TABLAS!$A$179) | AL48: =+IMPORTARDATOSDINAMICOS(" BAS114",TABLAS!$A$179) | AM48: =+IMPORTARDATOSDINAMICOS(" BAS115",TABLAS!$A$179) | AN48: =+IMPORTARDATOSDINAMICOS(" BAS116",TABLAS!$A$179) | AO48: =+IMPORTARDATOSDINAMICOS(" BAS117",TABLAS!$A$179) | AP48: =+IMPORTARDATOSDINAMICOS(" BAS118",TABLAS!$A$179) | AQ48: =+IMPORTARDATOSDINAMICOS(" BAS119",TABLAS!$A$179) | AR48: =+IMPORTARDATOSDINAMICOS(" BAS120",TABLAS!$A$179)
A49: Nº de cultivos contaminados | E49: =+GETPIVOTDATA(" BAS121",TABLAS!$A$230) -> 0 | F49: =+GETPIVOTDATA(" BAS122",TABLAS!$A$230) -> 0 | G49: =+GETPIVOTDATA(" BAS123",TABLAS!$A$230) -> 0 | H49: =+GETPIVOTDATA(" BAS124",TABLAS!$A$230) -> 0 | I49: =+GETPIVOTDATA(" BAS125",TABLAS!$A$230) -> 0 | J49: =+GETPIVOTDATA(" BAS126",TABLAS!$A$230) -> 0 | K49: =+GETPIVOTDATA(" BAS127",TABLAS!$A$230) -> 0 | L49: =+GETPIVOTDATA(" BAS128",TABLAS!$A$230) -> 0 | M49: 0 | R49: =+Y48+1 -> 121 | S49: =+R49+1 -> 122 | T49: 123 | U49: 124 | V49: 125 | W49: 126 | X49: 127 | Y49: 128 | AB49: =+IMPORTARDATOSDINAMICOS(" BAS121",TABLAS!$A$179) | AC49: =+IMPORTARDATOSDINAMICOS(" BAS122",TABLAS!$A$179) | AD49: =+IMPORTARDATOSDINAMICOS(" BAS123",TABLAS!$A$179) | AE49: =+IMPORTARDATOSDINAMICOS(" BAS124",TABLAS!$A$179) | AF49: =+IMPORTARDATOSDINAMICOS(" BAS125",TABLAS!$A$179) | AG49: =+IMPORTARDATOSDINAMICOS(" BAS126",TABLAS!$A$179) | AH49: =+IMPORTARDATOSDINAMICOS(" BAS127",TABLAS!$A$179) | AI49: =+IMPORTARDATOSDINAMICOS(" BAS128",TABLAS!$A$179) | AK49: =+IMPORTARDATOSDINAMICOS(" BAS121",TABLAS!$A$179) | AL49: =+IMPORTARDATOSDINAMICOS(" BAS122",TABLAS!$A$179) | AM49: =+IMPORTARDATOSDINAMICOS(" BAS123",TABLAS!$A$179) | AN49: =+IMPORTARDATOSDINAMICOS(" BAS124",TABLAS!$A$179) | AO49: =+IMPORTARDATOSDINAMICOS(" BAS125",TABLAS!$A$179) | AP49: =+IMPORTARDATOSDINAMICOS(" BAS126",TABLAS!$A$179) | AQ49: =+IMPORTARDATOSDINAMICOS(" BAS127",TABLAS!$A$179) | AR49: =+IMPORTARDATOSDINAMICOS(" BAS128",TABLAS!$A$179)
A50: Nº de Pruebas de Sensibilidad | E50: =+GETPIVOTDATA(" BAS129",TABLAS!$A$230) -> 0 | F50: =+GETPIVOTDATA(" BAS130",TABLAS!$A$230) -> 0 | G50: =+GETPIVOTDATA(" BAS131",TABLAS!$A$230) -> 0 | H50: =+GETPIVOTDATA(" BAS132",TABLAS!$A$230) -> 0 | I50: =+GETPIVOTDATA(" BAS133",TABLAS!$A$230) -> 0 | J50: =+GETPIVOTDATA(" BAS134",TABLAS!$A$230) -> 0 | K50: =+GETPIVOTDATA(" BAS135",TABLAS!$A$230) -> 0 | L50: =+GETPIVOTDATA(" BAS136",TABLAS!$A$230) -> 0 | M50: 0 | R50: =+Y49+1 -> 129 | S50: =+R50+1 -> 130 | T50: 131 | U50: 132 | V50: 133 | W50: 134 | X50: 135 | Y50: 136 | AB50: =+IMPORTARDATOSDINAMICOS(" BAS129",TABLAS!$A$179) | AC50: =+IMPORTARDATOSDINAMICOS(" BAS130",TABLAS!$A$179) | AD50: =+IMPORTARDATOSDINAMICOS(" BAS131",TABLAS!$A$179) | AE50: =+IMPORTARDATOSDINAMICOS(" BAS132",TABLAS!$A$179) | AF50: =+IMPORTARDATOSDINAMICOS(" BAS133",TABLAS!$A$179) | AG50: =+IMPORTARDATOSDINAMICOS(" BAS134",TABLAS!$A$179) | AH50: =+IMPORTARDATOSDINAMICOS(" BAS135",TABLAS!$A$179) | AI50: =+IMPORTARDATOSDINAMICOS(" BAS136",TABLAS!$A$179) | AK50: =+IMPORTARDATOSDINAMICOS(" BAS129",TABLAS!$A$179) | AL50: =+IMPORTARDATOSDINAMICOS(" BAS130",TABLAS!$A$179) | AM50: =+IMPORTARDATOSDINAMICOS(" BAS131",TABLAS!$A$179) | AN50: =+IMPORTARDATOSDINAMICOS(" BAS132",TABLAS!$A$179) | AO50: =+IMPORTARDATOSDINAMICOS(" BAS133",TABLAS!$A$179) | AP50: =+IMPORTARDATOSDINAMICOS(" BAS134",TABLAS!$A$179) | AQ50: =+IMPORTARDATOSDINAMICOS(" BAS135",TABLAS!$A$179) | AR50: =+IMPORTARDATOSDINAMICOS(" BAS136",TABLAS!$A$179)
A51: Tipo | E51: POSITIVO
E52: 0-11a | F52: 12-14a | G52: 15-17a | H52: 18-24a | I52: 25-29a | J52: 30-44a | K52: 45-59a | L52: 60-+a | M52: TOTAL | N52: Acumulado
A53: TOTAL
A54: DIAGNOSTICO | B54: En Sintomatico Respiratorio | E54: =+GETPIVOTDATA(" BAS137",TABLAS!$A$230) -> 0 | F54: =+GETPIVOTDATA(" BAS138",TABLAS!$A$230) -> 0 | G54: =+GETPIVOTDATA(" BAS139",TABLAS!$A$230) -> 0 | H54: =+GETPIVOTDATA(" BAS140",TABLAS!$A$230) -> 0 | I54: =+GETPIVOTDATA(" BAS141",TABLAS!$A$230) -> 0 | J54: =+GETPIVOTDATA(" BAS142",TABLAS!$A$230) -> 0 | K54: =+GETPIVOTDATA(" BAS143",TABLAS!$A$230) -> 0 | L54: =+GETPIVOTDATA(" BAS144",TABLAS!$A$230) -> 0 | M54: =SUM(E54:L54) -> 0 | R54: =+Y50+1 -> 137 | S54: =+R54+1 -> 138 | T54: 139 | U54: 140 | V54: 141 | W54: 142 | X54: 143 | Y54: 144 | AB54: =CONCATENATE($Z$22,R54,$AE$22) -> =+IMPORTARDATOSDINAMICOS(" BAS137",TABLAS!$A$179) | AC54: =CONCATENATE($Z$22,S54,$AE$22) -> =+IMPORTARDATOSDINAMICOS(" BAS138",TABLAS!$A$179) | AD54: =CONCATENATE($Z$22,T54,$AE$22) -> =+IMPORTARDATOSDINAMICOS(" BAS139",TABLAS!$A$179) | AE54: =CONCATENATE($Z$22,U54,$AE$22) -> =+IMPORTARDATOSDINAMICOS(" BAS140",TABLAS!$A$179) | AF54: =CONCATENATE($Z$22,V54,$AE$22) -> =+IMPORTARDATOSDINAMICOS(" BAS141",TABLAS!$A$179) | AG54: =CONCATENATE($Z$22,W54,$AE$22) -> =+IMPORTARDATOSDINAMICOS(" BAS142",TABLAS!$A$179) | AH54: =CONCATENATE($Z$22,X54,$AE$22) -> =+IMPORTARDATOSDINAMICOS(" BAS143",TABLAS!$A$179) | AI54: =CONCATENATE($Z$22,Y54,$AE$22) -> =+IMPORTARDATOSDINAMICOS(" BAS144",TABLAS!$A$179) | AK54: =+IMPORTARDATOSDINAMICOS(" BAS137",TABLAS!$A$179) | AL54: =+IMPORTARDATOSDINAMICOS(" BAS138",TABLAS!$A$179) | AM54: =+IMPORTARDATOSDINAMICOS(" BAS139",TABLAS!$A$179) | AN54: =+IMPORTARDATOSDINAMICOS(" BAS140",TABLAS!$A$179) | AO54: =+IMPORTARDATOSDINAMICOS(" BAS141",TABLAS!$A$179) | AP54: =+IMPORTARDATOSDINAMICOS(" BAS142",TABLAS!$A$179) | AQ54: =+IMPORTARDATOSDINAMICOS(" BAS143",TABLAS!$A$179) | AR54: =+IMPORTARDATOSDINAMICOS(" BAS144",TABLAS!$A$179)
B55: En RX Anormal | E55: =+GETPIVOTDATA(" BAS145",TABLAS!$A$230) -> 0 | F55: =+GETPIVOTDATA(" BAS146",TABLAS!$A$230) -> 0 | G55: =+GETPIVOTDATA(" BAS147",TABLAS!$A$230) -> 0 | H55: =+GETPIVOTDATA(" BAS148",TABLAS!$A$230) -> 0 | I55: =+GETPIVOTDATA(" BAS149",TABLAS!$A$230) -> 0 | J55: =+GETPIVOTDATA(" BAS150",TABLAS!$A$230) -> 0 | K55: =+GETPIVOTDATA(" BAS151",TABLAS!$A$230) -> 0 | L55: =+GETPIVOTDATA(" BAS152",TABLAS!$A$230) -> 0 | M55: 0 | R55: =+Y54+1 -> 145 | S55: =+R55+1 -> 146 | T55: =+S55+1 -> 147 | U55: 148 | V55: 149 | W55: 150 | X55: 151 | Y55: 152 | AB55: =+IMPORTARDATOSDINAMICOS(" BAS145",TABLAS!$A$179) | AC55: =+IMPORTARDATOSDINAMICOS(" BAS146",TABLAS!$A$179) | AD55: =+IMPORTARDATOSDINAMICOS(" BAS147",TABLAS!$A$179) | AE55: =+IMPORTARDATOSDINAMICOS(" BAS148",TABLAS!$A$179) | AF55: =+IMPORTARDATOSDINAMICOS(" BAS149",TABLAS!$A$179) | AG55: =+IMPORTARDATOSDINAMICOS(" BAS150",TABLAS!$A$179) | AH55: =+IMPORTARDATOSDINAMICOS(" BAS151",TABLAS!$A$179) | AI55: =+IMPORTARDATOSDINAMICOS(" BAS152",TABLAS!$A$179) | AK55: =+IMPORTARDATOSDINAMICOS(" BAS145",TABLAS!$A$179) | AL55: =+IMPORTARDATOSDINAMICOS(" BAS146",TABLAS!$A$179) | AM55: =+IMPORTARDATOSDINAMICOS(" BAS147",TABLAS!$A$179) | AN55: =+IMPORTARDATOSDINAMICOS(" BAS148",TABLAS!$A$179) | AO55: =+IMPORTARDATOSDINAMICOS(" BAS149",TABLAS!$A$179) | AP55: =+IMPORTARDATOSDINAMICOS(" BAS150",TABLAS!$A$179) | AQ55: =+IMPORTARDATOSDINAMICOS(" BAS151",TABLAS!$A$179) | AR55: =+IMPORTARDATOSDINAMICOS(" BAS152",TABLAS!$A$179)
B56: En Seguimiento Diagnostico | E56: =+GETPIVOTDATA(" BAS153",TABLAS!$A$230) -> 0 | F56: =+GETPIVOTDATA(" BAS154",TABLAS!$A$230) -> 0 | G56: =+GETPIVOTDATA(" BAS155",TABLAS!$A$230) -> 0 | H56: =+GETPIVOTDATA(" BAS156",TABLAS!$A$230) -> 0 | I56: =+GETPIVOTDATA(" BAS157",TABLAS!$A$230) -> 0 | J56: =+GETPIVOTDATA(" BAS158",TABLAS!$A$230) -> 0 | K56: =+GETPIVOTDATA(" BAS159",TABLAS!$A$230) -> 0 | L56: =+GETPIVOTDATA(" BAS160",TABLAS!$A$230) -> 0 | M56: 0 | R56: =+Y55+1 -> 153 | S56: =+R56+1 -> 154 | T56: 155 | U56: 156 | V56: 157 | W56: 158 | X56: 159 | Y56: 160 | AB56: =+IMPORTARDATOSDINAMICOS(" BAS153",TABLAS!$A$179) | AC56: =+IMPORTARDATOSDINAMICOS(" BAS154",TABLAS!$A$179) | AD56: =+IMPORTARDATOSDINAMICOS(" BAS155",TABLAS!$A$179) | AE56: =+IMPORTARDATOSDINAMICOS(" BAS156",TABLAS!$A$179) | AF56: =+IMPORTARDATOSDINAMICOS(" BAS157",TABLAS!$A$179) | AG56: =+IMPORTARDATOSDINAMICOS(" BAS158",TABLAS!$A$179) | AH56: =+IMPORTARDATOSDINAMICOS(" BAS159",TABLAS!$A$179) | AI56: =+IMPORTARDATOSDINAMICOS(" BAS160",TABLAS!$A$179) | AK56: =+IMPORTARDATOSDINAMICOS(" BAS153",TABLAS!$A$179) | AL56: =+IMPORTARDATOSDINAMICOS(" BAS154",TABLAS!$A$179) | AM56: =+IMPORTARDATOSDINAMICOS(" BAS155",TABLAS!$A$179) | AN56: =+IMPORTARDATOSDINAMICOS(" BAS156",TABLAS!$A$179) | AO56: =+IMPORTARDATOSDINAMICOS(" BAS157",TABLAS!$A$179) | AP56: =+IMPORTARDATOSDINAMICOS(" BAS158",TABLAS!$A$179) | AQ56: =+IMPORTARDATOSDINAMICOS(" BAS159",TABLAS!$A$179) | AR56: =+IMPORTARDATOSDINAMICOS(" BAS160",TABLAS!$A$179)
B57: En Localizacion Extrapulmonar | E57: =+GETPIVOTDATA(" BAS161",TABLAS!$A$230) -> 0 | F57: =+GETPIVOTDATA(" BAS162",TABLAS!$A$230) -> 0 | G57: =+GETPIVOTDATA(" BAS163",TABLAS!$A$230) -> 0 | H57: =+GETPIVOTDATA(" BAS164",TABLAS!$A$230) -> 0 | I57: =+GETPIVOTDATA(" BAS165",TABLAS!$A$230) -> 0 | J57: =+GETPIVOTDATA(" BAS166",TABLAS!$A$230) -> 0 | K57: =+GETPIVOTDATA(" BAS167",TABLAS!$A$230) -> 0 | L57: =+GETPIVOTDATA(" BAS168",TABLAS!$A$230) -> 0 | M57: 0 | R57: 161 | S57: =+R57+1 -> 162 | T57: 163 | U57: 164 | V57: 165 | W57: 166 | X57: 167 | Y57: 168 | AB57: =+IMPORTARDATOSDINAMICOS(" BAS161",TABLAS!$A$179) | AC57: =+IMPORTARDATOSDINAMICOS(" BAS162",TABLAS!$A$179) | AD57: =+IMPORTARDATOSDINAMICOS(" BAS163",TABLAS!$A$179) | AE57: =+IMPORTARDATOSDINAMICOS(" BAS164",TABLAS!$A$179) | AF57: =+IMPORTARDATOSDINAMICOS(" BAS165",TABLAS!$A$179) | AG57: =+IMPORTARDATOSDINAMICOS(" BAS166",TABLAS!$A$179) | AH57: =+IMPORTARDATOSDINAMICOS(" BAS167",TABLAS!$A$179) | AI57: =+IMPORTARDATOSDINAMICOS(" BAS168",TABLAS!$A$179) | AK57: =+IMPORTARDATOSDINAMICOS(" BAS161",TABLAS!$A$179) | AL57: =+IMPORTARDATOSDINAMICOS(" BAS162",TABLAS!$A$179) | AM57: =+IMPORTARDATOSDINAMICOS(" BAS163",TABLAS!$A$179) | AN57: =+IMPORTARDATOSDINAMICOS(" BAS164",TABLAS!$A$179) | AO57: =+IMPORTARDATOSDINAMICOS(" BAS165",TABLAS!$A$179) | AP57: =+IMPORTARDATOSDINAMICOS(" BAS166",TABLAS!$A$179) | AQ57: =+IMPORTARDATOSDINAMICOS(" BAS167",TABLAS!$A$179) | AR57: =+IMPORTARDATOSDINAMICOS(" BAS168",TABLAS!$A$179)
B58: Total de Diagnostico | E58: =SUM(E54:E57) -> 0 | F58: =SUM(F54:F57) -> 0 | G58: 0 | H58: 0 | I58: 0 | J58: 0 | K58: 0 | L58: 0 | M58: 0
A59: CONTROL DE TRATAMIENTO | E59: =+GETPIVOTDATA(" BAS169",TABLAS!$A$230) -> 0 | F59: =+GETPIVOTDATA(" BAS170",TABLAS!$A$230) -> 0 | G59: =+GETPIVOTDATA(" BAS171",TABLAS!$A$230) -> 0 | H59: =+GETPIVOTDATA(" BAS172",TABLAS!$A$230) -> 0 | I59: =+GETPIVOTDATA(" BAS173",TABLAS!$A$230) -> 0 | J59: =+GETPIVOTDATA(" BAS174",TABLAS!$A$230) -> 0 | K59: =+GETPIVOTDATA(" BAS175",TABLAS!$A$230) -> 0 | L59: =+GETPIVOTDATA(" BAS176",TABLAS!$A$230) -> 0 | M59: =SUM(E59:L59) -> 0 | R59: =+Y57+1 -> 169 | S59: =+R59+1 -> 170 | T59: 171 | U59: 172 | V59: 173 | W59: 174 | X59: 175 | Y59: 176 | AB59: =CONCATENATE($Z$22,R59,$AE$22) -> =+IMPORTARDATOSDINAMICOS(" BAS169",TABLAS!$A$179) | AC59: =CONCATENATE($Z$22,S59,$AE$22) -> =+IMPORTARDATOSDINAMICOS(" BAS170",TABLAS!$A$179) | AD59: =CONCATENATE($Z$22,T59,$AE$22) -> =+IMPORTARDATOSDINAMICOS(" BAS171",TABLAS!$A$179) | AE59: =CONCATENATE($Z$22,U59,$AE$22) -> =+IMPORTARDATOSDINAMICOS(" BAS172",TABLAS!$A$179) | AF59: =CONCATENATE($Z$22,V59,$AE$22) -> =+IMPORTARDATOSDINAMICOS(" BAS173",TABLAS!$A$179) | AG59: =CONCATENATE($Z$22,W59,$AE$22) -> =+IMPORTARDATOSDINAMICOS(" BAS174",TABLAS!$A$179) | AH59: =CONCATENATE($Z$22,X59,$AE$22) -> =+IMPORTARDATOSDINAMICOS(" BAS175",TABLAS!$A$179) | AI59: =CONCATENATE($Z$22,Y59,$AE$22) -> =+IMPORTARDATOSDINAMICOS(" BAS176",TABLAS!$A$179) | AK59: =+IMPORTARDATOSDINAMICOS(" BAS169",TABLAS!$A$179) | AL59: =+IMPORTARDATOSDINAMICOS(" BAS170",TABLAS!$A$179) | AM59: =+IMPORTARDATOSDINAMICOS(" BAS171",TABLAS!$A$179) | AN59: =+IMPORTARDATOSDINAMICOS(" BAS172",TABLAS!$A$179) | AO59: =+IMPORTARDATOSDINAMICOS(" BAS173",TABLAS!$A$179) | AP59: =+IMPORTARDATOSDINAMICOS(" BAS174",TABLAS!$A$179) | AQ59: =+IMPORTARDATOSDINAMICOS(" BAS175",TABLAS!$A$179) | AR59: =+IMPORTARDATOSDINAMICOS(" BAS176",TABLAS!$A$179)

Sheet Datos (hidden)
B9: ANO | D9: MESES | F9: COD_RED | G9: DESC_RED | H9: CONCATENAR | J9: COD_RED | K9: COD_MIC | L9: DESC_MICRO | M9: CONCATENAR | O9: COD_ESTAB | P9: DESC_ESTAB | Q9: COD_RED | R9: COD_MIC | S9: COD_PROV | T9: COD_DIST | U9: REDMIC | V9: CONCATENAR | X9: COD_PROV | Y9: DESC_PROV | Z9: CONCATENAR | AB9: COD_PROV | AC9: COD_DIST | AD9: DESC_DIST | AE9: PROVDIST | AF9: CONCATENAR
B10: 2024 | D10: 01-Enero | F10: 00 | G10: NO TIENE ASIGNADO NINGUNA RED | H10: =CONCATENATE(F10," - ",G10) -> 00 - NO TIENE ASIGNADO NINGUNA RED | J10: 00 | K10: 00 | L10: NO PERTENECE A NINGUNA MICRORED | M10: =CONCATENATE(J10,K10," - ",L10) -> 0000 - NO PERTENECE A NINGUNA MICRORED | O10: 000000000 | P10: (All) | Q10: 00 | R10: 00 | U10: =CONCATENATE(Q10,R10) -> 0000 | V10: =CONCATENATE(O10," - ",P10) -> 000000000 - (All) | X10: 00 | Y10: (All) | Z10: =CONCATENATE(X10," - ",Y10) -> 00 - (All) | AB10: 01 | AC10: 00 | AD10: (All) | AE10: =CONCATENATE(AB10,AC10) -> 0100 | AF10: =CONCATENATE(AB10,AC10," - ",AD10) -> 0100 - (All)
D11: 02-Febrero | F11: 01 | G11: CUSCO SUR | H11: =CONCATENATE(F11," - ",G11) -> 01 - CUSCO SUR | J11: 00 | K11: 99 | L11: (All) | M11: 0099 - (All) | O11: 000028190 | P11: SAMUE CUSCO | Q11: 00 | R11: 00 | S11: 01 | T11: 01 | U11: =CONCATENATE(Q11,R11) -> 0000 | V11: =CONCATENATE(O11," - ",P11) -> 000028190 - SAMUE CUSCO | X11: 01 | Y11: CUSCO | Z11: =CONCATENATE(X11," - ",Y11) -> 01 - CUSCO | AB11: 01 | AC11: 01 | AD11: CUSCO | AE11: =CONCATENATE(AB11,AC11) -> 0101 | AF11: =CONCATENATE(AB11,AC11," - ",AD11) -> 0101 - CUSCO
D12: 03-Marzo | F12: 02 | G12: CUSCO NORTE | H12: 02 - CUSCO NORTE | J12: 01 | K12: 00 | L12: NO PERTENECE A NINGUNA MICRORED | M12: 0100 - NO PERTENECE A NINGUNA MICRORED | O12: 000002289 | P12: HOSPITAL DE APOYO DEPARTAMENTAL CUSCO | Q12: 00 | R12: 00 | S12: 01 | T12: 01 | U12: 0000 | V12: 000002289 - HOSPITAL DE APOYO DEPARTAMENTAL CUSCO | X12: 02 | Y12: ACOMAYO | Z12: =CONCATENATE(X12," - ",Y12) -> 02 - ACOMAYO | AB12: 01 | AC12: 02 | AD12: CCORCA | AE12: 0102 | AF12: 0102 - CCORCA
D13: 04-Abril | F13: 03 | G13: LA CONVENCION | H13: 03 - LA CONVENCION | J13: 01 | K13: 16 | L13: CUSCO | M13: 0116 - CUSCO | O13: 000002305 | P13: ANTONIO LORENA DEL CUSCO | Q13: 00 | R13: 00 | S13: 01 | T13: 06 | U13: 0000 | V13: 000002305 - ANTONIO LORENA DEL CUSCO | X13: 03 | Y13: ANTA | Z13: 03 - ANTA | AB13: 01 | AC13: 03 | AD13: POROY | AE13: 0103 | AF13: 0103 - POROY
D14: 05-Mayo | F14: 04 | G14: CANAS-CANCHIS-ESPINAR | H14: 04 - CANAS-CANCHIS-ESPINAR | J14: 01 | K14: 03 | L14: PARURO | M14: 0103 - PARURO | O14: 999999999 | P14: (All) | Q14: 00 | R14: 99 | U14: 0099 | V14: 999999999 - (All) | X14: 04 | Y14: CALCA | Z14: 04 - CALCA | AB14: 01 | AC14: 04 | AD14: SAN JERONIMO | AE14: 0104 | AF14: 0104 - SAN JERONIMO
D15: 06-Junio | F15: 05 | G15: KIMBIRI PICHARI | H15: 05 - KIMBIRI PICHARI | J15: 01 | K15: 06 | L15: PAUCARTAMBO | M15: 0106 - PAUCARTAMBO | O15: 000025210 | P15: TUPAC AMARU | Q15: 01 | R15: 00 | S15: 01 | T15: 05 | U15: 0100 | V15: 000025210 - TUPAC AMARU | X15: 05 | Y15: CANAS | Z15: 05 - CANAS | AB15: 01 | AC15: 05 | AD15: SAN SEBASTIAN | AE15: 0105 | AF15: 0105 - SAN SEBASTIAN
D16: 07-Julio | F16: 06 | G16: CHUMBIVILCAS | H16: 06 - CHUMBIVILCAS | J16: 01 | K16: 12 | L16: URCOS | M16: 0112 - URCOS | O16: 000000000 | P16: (All) | Q16: 01 | R16: 03 | U16: 0103 | V16: 000000000 - (All) | X16: 06 | Y16: CANCHIS | Z16: 06 - CANCHIS | AB16: 01 | AC16: 06 | AD16: SANTIAGO | AE16: 0106 | AF16: 0106 - SANTIAGO
D17: 08-Agosto | F17: 99 | G17: (All) | H17: 99 - (All) | J17: 01 | K17: 13 | L17: ACOMAYO | M17: 0113 - ACOMAYO | O17: 000002499 | P17: PARURO | Q17: 01 | R17: 03 | S17: 10 | T17: 01 | U17: 0103 | V17: 000002499 - PARURO | X17: 07 | Y17: CHUMBIVILCAS | Z17: 07 - CHUMBIVILCAS | AB17: 01 | AC17: 07 | AD17: SAYLLA | AE17: 0107 | AF17: 0107 - SAYLLA
D18: 09-Setiembre | J18: 01 | K18: 15 | L18: OCONGATE | M18: 0115 - OCONGATE | O18: 000002500 | P18: ACCHA | Q18: 01 | R18: 03 | S18: 10 | T18: 02 | U18: 0103 | V18: 000002500 - ACCHA | X18: 08 | Y18: ESPINAR | Z18: 08 - ESPINAR | AB18: 01 | AC18: 08 | AD18: WANCHAQ | AE18: 0108 | AF18: 0108 - WANCHAQ
D19: 10-Octubre | J19: 01 | K19: 99 | L19: (All) | M19: 0199 - (All) | O19: 000002501 | P19: CCAPI | Q19: 01 | R19: 03 | S19: 10 | T19: 03 | U19: 0103 | V19: 000002501 - CCAPI | X19: 09 | Y19: LA CONVENCION | Z19: 09 - LA CONVENCION | AB19: 02 | AC19: 00 | AD19: (All) | AE19: 0200 | AF19: 0200 - (All)
D20: 11-Noviembre | F20: EJECUTORAS | J20: 02 | K20: 01 | L20: BELEMPAMPA | M20: 0201 - BELEMPAMPA | O20: 000002502 | P20: CCOYABAMBA | Q20: 01 | R20: 03 | S20: 10 | T20: 03 | U20: 0103 | V20: 000002502 - CCOYABAMBA | X20: 10 | Y20: PARURO | Z20: 10 - PARURO | AB20: 02 | AC20: 01 | AD20: ACOMAYO | AE20: 0201 | AF20: 0201 - ACOMAYO
D21: 12-Diciembre | F21: COD_RED | G21: DESC_RED | H21: CONCATENAR | J21: 02 | K21: 02 | L21: WANCHAQ | M21: 0202 - WANCHAQ | O21: 000002503 | P21: COLCHA | Q21: 01 | R21: 03 | S21: 10 | T21: 04 | U21: 0103 | V21: 000002503 - COLCHA | X21: 11 | Y21: PAUCARTAMBO | Z21: 11 - PAUCARTAMBO | AB21: 02 | AC21: 02 | AD21: ACOPIA | AE21: 0202 | AF21: 0202 - ACOPIA
F22: 01 | G22: HOSPITAL REGIONAL CUSCO | H22: =CONCATENATE(F22," - ",G22) -> 01 - HOSPITAL REGIONAL CUSCO | J22: 02 | K22: 03 | L22: ANTA | M22: 0203 - ANTA | O22: 000002504 | P22: HUANOQUITE | Q22: 01 | R22: 03 | S22: 10 | T22: 05 | U22: 0103 | V22: 000002504 - HUANOQUITE | X22: 12 | Y22: QUISPICANCHI | Z22: 12 - QUISPICANCHI | AB22: 02 | AC22: 03 | AD22: ACOS | AE22: 0203 | AF22: 0203 - ACOS
F23: 02 | G23: HOSPITAL ANTONIO LORENA | H23: =CONCATENATE(F23," - ",G23) -> 02 - HOSPITAL ANTONIO LORENA | J23: 02 | K23: 04 | L23: LIMATAMBO | M23: 0204 - LIMATAMBO | O23: 000002505 | P23: OMACHA | Q23: 01 | R23: 03 | S23: 10 | T23: 06 | U23: 0103 | V23: 000002505 - OMACHA | X23: 13 | Y23: URUBAMBA | Z23: 13 - URUBAMBA | AB23: 02 | AC23: 04 | AD23: MOSOC LLACTA | AE23: 0204 | AF23: 0204 - MOSOC LLACTA
F24: 03 | G24: CUSCO NORTE | H24: 03 - CUSCO NORTE | J24: 02 | K24: 05 | L24: PISAC | M24: 0205 - PISAC | O24: 000002506 | P24: ANTAPALLPA | Q24: 01 | R24: 03 | S24: 10 | T24: 06 | U24: 0103 | V24: 000002506 - ANTAPALLPA | AB24: 02 | AC24: 05 | AD24: POMACANCHI | AE24: 0205 | AF24: 0205 - POMACANCHI
F25: 04 | G25: CUSCO SUR | H25: 04 - CUSCO SUR | J25: 02 | K25: 06 | L25: CALCA | M25: 0206 - CALCA | O25: 000002507 | P25: PACCARECTAMBO | Q25: 01 | R25: 03 | S25: 10 | T25: 07 | U25: 0103 | V25: 000002507 - PACCARECTAMBO | AB25: 02 | AC25: 06 | AD25: RONDOCAN | AE25: 0206 | AF25: 0206 - RONDOCAN
F26: 05 | G26: LA CONVENCION | H26: 05 - LA CONVENCION | J26: 02 | K26: 07 | L26: URUBAMBA | M26: 0207 - URUBAMBA | O26: 000002509 | P26: YAURISQUE | Q26: 01 | R26: 03 | S26: 10 | T26: 09 | U26: 0103 | V26: 000002509 - YAURISQUE | AB26: 02 | AC26: 07 | AD26: SANGARARA | AE26: 0207 | AF26: 0207 - SANGARARA
F27: 06 | G27: HOSPITAL QUILLABAMBA | H27: 06 - HOSPITAL QUILLABAMBA | J27: 02 | K27: 08 | L27: YANATILE | M27: 0208 - YANATILE | O27: 000006978 | P27: CCOCHIRIHUAY | Q27: 01 | R27: 03 | S27: 10 | T27: 04 | U27: 0103 | V27: 000006978 - CCOCHIRIHUAY | AB27: 03 | AC27: 00 | AD27: (All) | AE27: 0300 | AF27: 0300 - (All)
F28: 07 | G28: CANAS CANCHIS ESPINAR | H28: 07 - CANAS CANCHIS ESPINAR | J28: 02 | K28: 09 | L28: SIETE CUARTONES | M28: 0209 - SIETE CUARTONES | O28: 000007147 | P28: PUESTO DE SALUD DE HUASQUILLAY | Q28: 01 | R28: 03 | S28: 10 | T28: 06 | U28: 0103 | V28: 000007147 - PUESTO DE SALUD DE HUASQUILLAY | AB28: 03 | AC28: 01 | AD28: ANTA | AE28: 0301 | AF28: 0301 - ANTA
F29: 08 | G29: HOSPITAL SICUANI | H29: 08 - HOSPITAL SICUANI | J29: 02 | K29: 99 | L29: (All) | M29: 0299 - (All) | O29: 000012924 | P29: SAHUA SAHUA | Q29: 01 | R29: 03 | S29: 10 | T29: 06 | U29: 0103 | V29: 000012924 - SAHUA SAHUA | AB29: 03 | AC29: 02 | AD29: ANCAHUASI | AE29: 0302 | AF29: 0302 - ANCAHUASI
F30: 09 | G30: HOSPITAL ESPINAR | H30: 09 - HOSPITAL ESPINAR | J30: 03 | K30: 00 | L30: NO PERTENECE A NINGUNA MICRORED | M30: 0300 - NO PERTENECE A NINGUNA MICRORED | O30: 000000000 | P30: (All) | Q30: 01 | R30: 06 | U30: 0106 | V30: 000000000 - (All) | AB30: 03 | AC30: 03 | AD30: CACHIMAYO | AE30: 0303 | AF30: 0303 - CACHIMAYO
F31: 10 | G31: KIMBIRI PICHARI | H31: 10 - KIMBIRI PICHARI | J31: 03 | K31: 01 | L31: SANTA ANA | M31: 0301 - SANTA ANA | O31: 000002510 | P31: PAUCARTAMBO | Q31: 01 | R31: 06 | S31: 11 | T31: 01 | U31: 0106 | V31: 000002510 - PAUCARTAMBO | AB31: 03 | AC31: 04 | AD31: CHINCHAYPUJIO | AE31: 0304 | AF31: 0304 - CHINCHAYPUJIO
F32: 11 | G32: CHUMBIVILCAS | H32: 11 - CHUMBIVILCAS | J32: 03 | K32: 02 | L32: MARANURA | M32: 0302 - MARANURA | O32: 000002511 | P32: MOLLOMARCA | Q32: 01 | R32: 06 | S32: 11 | T32: 01 | U32: 0106 | V32: 000002511 - MOLLOMARCA | AB32: 03 | AC32: 05 | AD32: HUAROCONDO | AE32: 0305 | AF32: 0305 - HUAROCONDO
F33: 99 | G33: (ALL) | H33: =CONCATENATE(F33," - ",G33) -> 99 - (ALL) | J33: 03 | K33: 03 | L33: QUELLOUNO | M33: 0303 - QUELLOUNO | O33: 000002512 | P33: CAICAY | Q33: 01 | R33: 06 | S33: 11 | T33: 02 | U33: 0106 | V33: 000002512 - CAICAY | AB33: 03 | AC33: 06 | AD33: LIMATAMBO | AE33: 0306 | AF33: 0306 - LIMATAMBO
J34: 03 | K34: 04 | L34: KITENI | M34: 0304 - KITENI | O34: 000002513 | P34: HUASAC | Q34: 01 | R34: 06 | S34: 11 | T34: 02 | U34: 0106 | V34: 000002513 - HUASAC | AB34: 03 | AC34: 07 | AD34: MOLLEPATA | AE34: 0307 | AF34: 0307 - MOLLEPATA
J35: 03 | K35: 05 | L35: KAMISEA | M35: 0305 - KAMISEA | O35: 000002514 | P35: CHALLABAMBA | Q35: 01 | R35: 06 | S35: 11 | T35: 03 | U35: 0106 | V35: 000002514 - CHALLABAMBA | AB35: 03 | AC35: 08 | AD35: PUCYURA | AE35: 0308 | AF35: 0308 - PUCYURA
J36: 03 | K36: 06 | L36: PUCYURA | M36: 0306 - PUCYURA | O36: 000002516 | P36: COLQUEPATA | Q36: 01 | R36: 06 | S36: 11 | T36: 04 | U36: 0106 | V36: 000002516 - COLQUEPATA | AB36: 03 | AC36: 09 | AD36: ZURITE | AE36: 0309 | AF36: 0309 - ZURITE
J37: 03 | K37: 07 | L37: PALMA REAL | M37: 0307 - PALMA REAL | O37: 000002517 | P37: PICHIHUA COLQUEPATA | Q37: 01 | R37: 06 | S37: 11 | T37: 04 | U37: 0106 | V37: 000002517 - PICHIHUA COLQUEPATA | AB37: 04 | AC37: 00 | AD37: (All) | AE37: 0400 | AF37: 0400 - (All)
J38: 03 | K38: 99 | L38: (All) | M38: 0399 - (All) | O38: 000002518 | P38: VIZCOCHONI | Q38: 01 | R38: 06 | S38: 11 | T38: 04 | U38: 0106 | V38: 000002518 - VIZCOCHONI | AB38: 04 | AC38: 01 | AD38: CALCA | AE38: 0401 | AF38: 0401 - CALCA
J39: 04 | K39: 00 | L39: NO PERTENECE A NINGUNA MICRORED | M39: 0400 - NO PERTENECE A NINGUNA MICRORED | O39: 000002519 | P39: AYRE | Q39: 01 | R39: 06 | S39: 11 | T39: 04 | U39: 0106 | V39: 000002519 - AYRE | AB39: 04 | AC39: 02 | AD39: COYA | AE39: 0402 | AF39: 0402 - COYA
J40: 04 | K40: 01 | L40: YANAOCA | M40: 0401 - YANAOCA | O40: 000002520 | P40: HUANCARANI | Q40: 01 | R40: 06 | S40: 11 | T40: 05 | U40: 0106 | V40: 000002520 - HUANCARANI | AB40: 04 | AC40: 03 | AD40: LAMAY | AE40: 0403 | AF40: 0403 - LAMAY
J41: 04 | K41: 02 | L41: EL DESCANSO | M41: 0402 - EL DESCANSO | O41: 000002521 | P41: PILCOPATA | Q41: 01 | R41: 06 | S41: 11 | T41: 06 | U41: 0106 | V41: 000002521 - PILCOPATA | AB41: 04 | AC41: 04 | AD41: LARES | AE41: 0404 | AF41: 0404 - LARES
J42: 04 | K42: 03 | L42: COMBAPATA | M42: 0403 - COMBAPATA | O42: 000002522 | P42: PATRIA | Q42: 01 | R42: 06 | S42: 11 | T42: 06 | U42: 0106 | V42: 000002522 - PATRIA | AB42: 04 | AC42: 05 | AD42: PISAC | AE42: 0405 | AF42: 0405 - PISAC
J43: 04 | K43: 04 | L43: TECHO OBRERO | M43: 0404 - TECHO OBRERO | O43: 000006979 | P43: TOCRA | Q43: 01 | R43: 06 | S43: 11 | T43: 04 | U43: 0106 | V43: 000006979 - TOCRA | AB43: 04 | AC43: 06 | AD43: SAN SALVADOR | AE43: 0406 | AF43: 0406 - SAN SALVADOR
J44: 04 | K44: 05 | L44: PAMPAPHALLA | M44: 0405 - PAMPAPHALLA | O44: 000010077 | P44: PAUCARTAMBO -ESSALUD | Q44: 01 | R44: 06 | S44: 11 | T44: 01 | U44: 0106 | V44: 000010077 - PAUCARTAMBO -ESSALUD | AB44: 04 | AC44: 07 | AD44: TARAY | AE44: 0407 | AF44: 0407 - TARAY
J45: 04 | K45: 06 | L45: YAURI | M45: 0406 - YAURI | O45: 000033777 | P45: MENTAL COMUNITARIO VIRGEN DEL ROSARIO | Q45: 01 | R45: 06 | S45: 11 | T45: 01 | U45: 0106 | V45: 000033777 - MENTAL COMUNITARIO VIRGEN DEL ROSARIO | AB45: 04 | AC45: 08 | AD45: YANATILE | AE45: 0408 | AF45: 0408 - YANATILE
J46: 04 | K46: 99 | L46: (All) | M46: 0499 - (All) | O46: 000000000 | P46: (All) | Q46: 01 | R46: 12 | U46: 0112 | V46: 000000000 - (All) | AB46: 05 | AC46: 00 | AD46: (All) | AE46: 0500 | AF46: 0500 - (All)
J47: 05 | K47: 00 | L47: NO PERTENECE A NINGUNA MICRORED | M47: 0500 - NO PERTENECE A NINGUNA MICRORED | O47: 000002523 | P47: URCOS | Q47: 01 | R47: 12 | S47: 12 | T47: 01 | U47: 0112 | V47: 000002523 - URCOS | AB47: 05 | AC47: 01 | AD47: YANAOCA | AE47: 0501 | AF47: 0501 - YANAOCA
J48: 05 | K48: 01 | L48: KIMBIRI | M48: 0501 - KIMBIRI | O48: 000002525 | P48: ANDAHUAYLILLAS | Q48: 01 | R48: 12 | S48: 12 | T48: 02 | U48: 0112 | V48: 000002525 - ANDAHUAYLILLAS | AB48: 05 | AC48: 02 | AD48: CHECCA | AE48: 0502 | AF48: 0502 - CHECCA
J49: 05 | K49: 02 | L49: PICHARI | M49: 0502 - PICHARI | O49: 000002530 | P49: CUSIPATA | Q49: 01 | R49: 12 | S49: 12 | T49: 06 | U49: 0112 | V49: 000002530 - CUSIPATA | AB49: 05 | AC49: 03 | AD49: KUNTURKANKI | AE49: 0503 | AF49: 0503 - KUNTURKANKI
J50: 05 | K50: 99 | L50: (All) | M50: 0599 - (All) | O50: 000002532 | P50: HUARO | Q50: 01 | R50: 12 | S50: 12 | T50: 07 | U50: 0112 | V50: 000002532 - HUARO | AB50: 05 | AC50: 04 | AD50: LANGUI | AE50: 0504 | AF50: 0504 - LANGUI
J51: 06 | K51: 00 | L51: NO PERTENECE A NINGUNA MICRORED | M51: 0600 - NO PERTENECE A NINGUNA MICRORED | O51: 000002533 | P51: URPAY | Q51: 01 | R51: 12 | S51: 12 | T51: 07 | U51: 0112 | V51: 000002533 - URPAY | AB51: 05 | AC51: 05 | AD51: LAYO | AE51: 0505 | AF51: 0505 - LAYO
J52: 06 | K52: 09 | L52: SANTO TOMAS | M52: 0609 - SANTO TOMAS | O52: 000002534 | P52: LUCRE | Q52: 01 | R52: 12 | S52: 12 | T52: 08 | U52: 0112 | V52: 000002534 - LUCRE | AB52: 05 | AC52: 06 | AD52: PAMPAMARCA | AE52: 0506 | AF52: 0506 - PAMPAMARCA
J53: 06 | K53: 01 | L53: LIVITACA | M53: 0601 - LIVITACA | O53: 000002537 | P53: OROPESA | Q53: 01 | R53: 12 | S53: 12 | T53: 11 | U53: 0112 | V53: 000002537 - OROPESA | AB53: 05 | AC53: 07 | AD53: QUEHUE | AE53: 0507 | AF53: 0507 - QUEHUE
J54: 06 | K54: 99 | L54: (All) | M54: 0699 - (All) | O54: 000002538 | P54: QUIQUIJANA | Q54: 01 | R54: 12 | S54: 12 | T54: 12 | U54: 0112 | V54: 000002538 - QUIQUIJANA | AB54: 05 | AC54: 08 | AD54: TUPAC AMARU | AE54: 0508 | AF54: 0508 - TUPAC AMARU
J55: 99 | K55: 99 | L55: (All) | M55: 9999 - (All) | O55: 000002539 | P55: CCOLCA | Q55: 01 | R55: 12 | S55: 12 | T55: 12 | U55: 0112 | V55: 000002539 - CCOLCA | AB55: 06 | AC55: 00 | AD55: (All) | AE55: 0600 | AF55: 0600 - (All)
O56: 000006980 | P56: CHILLIHUANI | Q56: 01 | R56: 12 | S56: 12 | T56: 06 | U56: 0112 | V56: 000006980 - CHILLIHUANI | AB56: 06 | AC56: 01 | AD56: SICUANI | AE56: 0601 | AF56: 0601 - SICUANI
O57: 000008911 | P57: HUARA HUARA | Q57: 01 | R57: 12 | S57: 12 | T57: 05 | U57: 0112 | V57: 000008911 - HUARA HUARA | AB57: 06 | AC57: 02 | AD57: CHECACUPE | AE57: 0602 | AF57: 0602 - CHECACUPE
O58: 000011747 | P58: POSTA MEDICA POLICIAL PUCUTO | Q58: 01 | R58: 12 | S58: 12 | T58: 07 | U58: 0112 | V58: 000011747 - POSTA MEDICA POLICIAL PUCUTO | AB58: 06 | AC58: 03 | AD58: COMBAPATA | AE58: 0603 | AF58: 0603 - COMBAPATA
O59: 000026385 | P59: URCOS - ESSALUD | Q59: 01 | R59: 12 | S59: 12 | T59: 01 | U59: 0112 | V59: 000026385 - URCOS - ESSALUD | AB59: 06 | AC59: 04 | AD59: MARANGANI | AE59: 0604 | AF59: 0604 - MARANGANI
O60: 000030708 | P60: MENTAL COMUNITARIO HUARO | Q60: 01 | R60: 12 | S60: 12 | T60: 07 | U60: 0112 | V60: 000030708 - MENTAL COMUNITARIO HUARO | AB60: 06 | AC60: 05 | AD60: PITUMARCA | AE60: 0605 | AF60: 0605 - PITUMARCA
O61: 000000000 | P61: (All) | Q61: 01 | R61: 13 | U61: 0113 | V61: 000000000 - (All) | AB61: 06 | AC61: 06 | AD61: SAN PABLO | AE61: 0606 | AF61: 0606 - SAN PABLO
O62: 000002317 | P62: ACOMAYO | Q62: 01 | R62: 13 | S62: 02 | T62: 01 | U62: 0113 | V62: 000002317 - ACOMAYO | AB62: 06 | AC62: 07 | AD62: SAN PEDRO | AE62: 0607 | AF62: 0607 - SAN PEDRO
O63: 000002318 | P63: ACOPIA | Q63: 01 | R63: 13 | S63: 02 | T63: 02 | U63: 0113 | V63: 000002318 - ACOPIA | AB63: 06 | AC63: 08 | AD63: TINTA | AE63: 0608 | AF63: 0608 - TINTA
O64: 000002319 | P64: ACOS | Q64: 01 | R64: 13 | S64: 02 | T64: 03 | U64: 0113 | V64: 000002319 - ACOS | AB64: 07 | AC64: 00 | AD64: (All) | AE64: 0700 | AF64: 0700 - (All)
O65: 000002321 | P65: POMACANCHI | Q65: 01 | R65: 13 | S65: 02 | T65: 05 | U65: 0113 | V65: 000002321 - POMACANCHI | AB65: 07 | AC65: 01 | AD65: SANTO TOMAS | AE65: 0701 | AF65: 0701 - SANTO TOMAS
O66: 000002322 | P66: SAN JUAN DE POMACANCHI | Q66: 01 | R66: 13 | S66: 02 | T66: 05 | U66: 0113 | V66: 000002322 - SAN JUAN DE POMACANCHI | AB66: 07 | AC66: 02 | AD66: CAPACMARCA | AE66: 0702 | AF66: 0702 - CAPACMARCA
O67: 000002324 | P67: PUESTO DE SALUD SANGARARA | Q67: 01 | R67: 13 | S67: 02 | T67: 07 | U67: 0113 | V67: 000002324 - PUESTO DE SALUD SANGARARA | AB67: 07 | AC67: 03 | AD67: CHAMACA | AE67: 0703 | AF67: 0703 - CHAMACA
O68: 000002325 | P68: PUESTO DE SALUD MARCACONGA | Q68: 01 | R68: 13 | S68: 02 | T68: 07 | U68: 0113 | V68: 000002325 - PUESTO DE SALUD MARCACONGA | AB68: 07 | AC68: 04 | AD68: COLQUEMARCA | AE68: 0704 | AF68: 0704 - COLQUEMARCA
O69: 000002508 | P69: PILLPINTO | Q69: 01 | R69: 13 | S69: 10 | T69: 08 | U69: 0113 | V69: 000002508 - PILLPINTO | AB69: 07 | AC69: 05 | AD69: LIVITACA | AE69: 0705 | AF69: 0705 - LIVITACA
O70: 000010076 | P70: ACOMAYO - ESSALUD | Q70: 01 | R70: 13 | S70: 02 | T70: 01 | U70: 0113 | V70: 000010076 - ACOMAYO - ESSALUD | AB70: 07 | AC70: 06 | AD70: LLUSCO | AE70: 0706 | AF70: 0706 - LLUSCO
N71: 0 | O71: 000012926 | P71: SANTA LUCIA | Q71: 01 | R71: 13 | S71: 02 | T71: 05 | U71: 0113 | V71: 000012926 - SANTA LUCIA | AB71: 07 | AC71: 07 | AD71: QUIÑOTA | AE71: 0707 | AF71: 0707 - QUIÑOTA
N72: 1 | O72: 000000000 | P72: (All) | Q72: 01 | R72: 15 | U72: 0115 | V72: 000000000 - (All) | AB72: 07 | AC72: 08 | AD72: VELILLE | AE72: 0708 | AF72: 0708 - VELILLE
N73: 2 | O73: 000002524 | P73: PAMPACAMARA | Q73: 01 | R73: 15 | S73: 12 | T73: 05 | U73: 0115 | V73: 000002524 - PAMPACAMARA | AB73: 08 | AC73: 00 | AD73: (All) | AE73: 0800 | AF73: 0800 - (All)
N74: 3 | O74: 000002526 | P74: QUINCE MIL | Q74: 01 | R74: 15 | S74: 12 | T74: 03 | U74: 0115 | V74: 000002526 - QUINCE MIL | AB74: 08 | AC74: 01 | AD74: ESPINAR | AE74: 0801 | AF74: 0801 - ESPINAR
N75: 4 | O75: 000002527 | P75: CCARHUAYO | Q75: 01 | R75: 15 | S75: 12 | T75: 04 | U75: 0115 | V75: 000002527 - CCARHUAYO | AB75: 08 | AC75: 02 | AD75: CONDOROMA | AE75: =CONCATENATE(AB75,AC75) -> 0802 | AF75: =CONCATENATE(AB75,AC75," - ",AD75) -> 0802 - CONDOROMA
N76: 5 | O76: 000002528 | P76: CCATCCA | Q76: 01 | R76: 15 | S76: 12 | T76: 05 | U76: 0115 | V76: 000002528 - CCATCCA | AB76: 08 | AC76: 03 | AD76: COPORAQUE | AE76: 0803 | AF76: 0803 - COPORAQUE
N77: 6 | O77: 000002529 | P77: KCAURY | Q77: 01 | R77: 15 | S77: 12 | T77: 05 | U77: 0115 | V77: 000002529 - KCAURY | AB77: 08 | AC77: 04 | AD77: OCORURO | AE77: 0804 | AF77: 0804 - OCORURO
N78: 7 | O78: 000002535 | P78: MARCAPATA | Q78: 01 | R78: 15 | S78: 12 | T78: 09 | U78: 0115 | V78: 000002535 - MARCAPATA | AB78: 08 | AC78: 05 | AD78: PALLPATA | AE78: 0805 | AF78: 0805 - PALLPATA
N79: 9 | O79: 000002536 | P79: OCONGATE | Q79: 01 | R79: 15 | S79: 12 | T79: 10 | U79: 0115 | V79: 000002536 - OCONGATE | AB79: 08 | AC79: 06 | AD79: PICHIGUA | AE79: 0806 | AF79: 0806 - PICHIGUA
N80: 10 | O80: 000006977 | P80: TINKI | Q80: 01 | R80: 15 | S80: 12 | T80: 10 | U80: =CONCATENATE(Q80,R80) -> 0115 | V80: =CONCATENATE(O80," - ",P80) -> 000006977 - TINKI | AB80: 08 | AC80: 07 | AD80: SUYCKUTAMBO | AE80: 0807 | AF80: 0807 - SUYCKUTAMBO
N81: 11 | O81: 000007110 | P81: INCACANCHA | Q81: 01 | R81: 15 | S81: 12 | T81: 09 | U81: 0115 | V81: 000007110 - INCACANCHA | AB81: 08 | AC81: 08 | AD81: ALTO PICHIGUA | AE81: 0808 | AF81: 0808 - ALTO PICHIGUA
N82: 12 | O82: 000012931 | P82: CHICHINA | Q82: 01 | R82: 15 | S82: 12 | T82: 05 | U82: 0115 | V82: 000012931 - CHICHINA | AB82: 09 | AC82: 00 | AD82: (All) | AE82: 0900 | AF82: 0900 - (All)
N83: 13 | O83: 000016335 | P83: CCAPANA | Q83: 01 | R83: 15 | S83: 12 | T83: 05 | U83: 0115 | V83: 000016335 - CCAPANA | AB83: 09 | AC83: 01 | AD83: SANTA ANA | AE83: 0901 | AF83: 0901 - SANTA ANA
N84: 0 | O84: 000000000 | P84: (All) | Q84: 01 | R84: 16 | U84: 0116 | V84: 000000000 - (All) | AB84: 09 | AC84: 02 | AD84: ECHARATE | AE84: 0902 | AF84: 0902 - ECHARATE
N85: 1 | O85: 000002300 | P85: SAN JERONIMO | Q85: 01 | R85: 16 | S85: 01 | T85: 04 | U85: 0116 | V85: 000002300 - SAN JERONIMO | AB85: 09 | AC85: 03 | AD85: HUAYOPATA | AE85: 0903 | AF85: 0903 - HUAYOPATA
N86: 2 | O86: 000002301 | P86: SAN SEBASTIAN | Q86: 01 | R86: 16 | S86: 01 | T86: 05 | U86: 0116 | V86: 000002301 - SAN SEBASTIAN | AB86: 09 | AC86: 04 | AD86: MARANURA | AE86: 0904 | AF86: 0904 - MARANURA
N87: 3 | O87: 000002303 | P87: SANTA ROSA | Q87: 01 | R87: 16 | S87: 01 | T87: 05 | U87: 0116 | V87: 000002303 - SANTA ROSA | AB87: 09 | AC87: 05 | AD87: OCOBAMBA | AE87: 0905 | AF87: 0905 - OCOBAMBA
N88: 4 | O88: 000002314 | P88: SAYLLA | Q88: 01 | R88: 16 | S88: 01 | T88: 07 | U88: 0116 | V88: 000002314 - SAYLLA | AB88: 09 | AC88: 06 | AD88: QUELLOUNO | AE88: 0906 | AF88: 0906 - QUELLOUNO
N89: 5 | O89: 000002323 | P89: RONDOCAN | Q89: 01 | R89: 16 | S89: 02 | T89: 06 | U89: 0116 | V89: 000002323 - RONDOCAN | AB89: 09 | AC89: 07 | AD89: KIMBIRI | AE89: 0907 | AF89: 0907 - KIMBIRI
N90: 6 | O90: 000007699 | P90: CONCHACALLE | Q90: 01 | R90: 16 | S90: 01 | T90: 04 | U90: 0116 | V90: 000007699 - CONCHACALLE | AB90: 09 | AC90: 08 | AD90: SANTA TERESA | AE90: 0908 | AF90: 0908 - SANTA TERESA
N91: 7 | O91: 000010065 | P91: SAN SEBASTIAN ESSALUD | Q91: 01 | R91: 16 | S91: 01 | T91: 05 | U91: 0116 | V91: 000010065 - SAN SEBASTIAN ESSALUD | AB91: 09 | AC91: 09 | AD91: VILCABAMBA | AE91: 0909 | AF91: 0909 - VILCABAMBA
N92: 8 | O92: 000011743 | P92: POLICIAL "SANTA ROSA" CUSCO | Q92: 01 | R92: 16 | S92: 01 | T92: 05 | U92: 0116 | V92: 000011743 - POLICIAL "SANTA ROSA" CUSCO | AB92: 09 | AC92: 10 | AD92: PICHARI | AE92: 0910 | AF92: 0910 - PICHARI
N93: 9 | O93: 000018926 | P93: ESTABLECIMIENTO PENITENCIARIO CUSCO VARONES | Q93: 01 | R93: 16 | S93: 01 | T93: 04 | U93: 0116 | V93: 000018926 - ESTABLECIMIENTO PENITENCIARIO CUSCO VARONES | AB93: 09 | AC93: 11 | AD93: INKAWASI | AE93: 0911 | AF93: 0911 - INKAWASI
N94: 10 | O94: 000021187 | P94: ESTABLECIMIENTO PENITENCIARIO CUSCO MUJERES | Q94: 01 | R94: 16 | S94: 01 | T94: 04 | U94: 0116 | V94: 000021187 - ESTABLECIMIENTO PENITENCIARIO CUSCO MUJERES | AB94: 09 | AC94: 12 | AD94: VILLA VIRGEN | AE94: 0912 | AF94: 0912 - VILLA VIRGEN
N95: 0 | O95: 000026181 | P95: MENTAL SAN SEBASTIAN | Q95: 01 | R95: 16 | S95: 01 | T95: 05 | U95: 0116 | V95: 000026181 - MENTAL SAN SEBASTIAN | AB95: 09 | AC95: 13 | AD95: VILLA KINTIARINA | AE95: 0913 | AF95: 0913 - VILLA KINTIARINA
N96: 1 | O96: 000030727 | P96: PATRÓN SAN SEBASTIAN | Q96: 01 | R96: 16 | S96: 01 | T96: 04 | U96: 0116 | V96: 000030727 - PATRÓN SAN SEBASTIAN | AB96: 09 | AC96: 14 | AD96: MEGANTONI | AE96: 0914 | AF96: 0914 - MEGANTONI
N97: 2 | O97: 999999999 | P97: (All) | Q97: 01 | R97: 99 | U97: 0199 | V97: 999999999 - (All) | AB97: 09 | AC97: 15 | AD97: KUMPIRUSHIATO | AE97: 0915 | AF97: 0915 - KUMPIRUSHIATO
N98: 3 | O98: 000000000 | P98: (All) | Q98: 02 | R98: 01 | U98: 0201 | V98: 000000000 - (All) | AB98: 09 | AC98: 16 | AD98: CIELO PUNCO | AE98: 0916 | AF98: 0916 - CIELO PUNCO
O99: 000002292 | P99: INDEPENDENCIA | Q99: 02 | R99: 01 | S99: 01 | T99: 01 | U99: 0201 | V99: 000002292 - INDEPENDENCIA | AB99: 09 | AC99: 17 | AD99: MANITEA | AE99: 0917 | AF99: 0917 - MANITEA
N100: 4 | O100: 000002297 | P100: CCORCCA | Q100: 02 | R100: 01 | S100: 01 | T100: 02 | U100: 0201 | V100: 000002297 - CCORCCA | AB100: 09 | AC100: 18 | AD100: UNION ASHANINKA | AE100: 0918 | AF100: 0918 - UNION ASHANINKA
N101: 5 | O101: 000002306 | P101: BELEMPAMPA | Q101: 02 | R101: 01 | S101: 01 | T101: 06 | U101: 0201 | V101: 000002306 - BELEMPAMPA | AB101: 09 | AC101: 00 | AD101: (All) | AE101: 0900 | AF101: 0900 - (All)
N102: 6 | O102: 000002308 | P102: ZARZUELA ALTA | Q102: 02 | R102: 01 | S102: 01 | T102: 06 | U102: 0201 | V102: 000002308 - ZARZUELA ALTA | AB102: 10 | AC102: 01 | AD102: PARURO | AE102: 1001 | AF102: 1001 - PARURO
O103: 000002309 | P103: DIGNIDAD NACIONAL | Q103: 02 | R103: 01 | S103: 01 | T103: 06 | U103: 0201 | V103: 000002309 - DIGNIDAD NACIONAL | AB103: 10 | AC103: 02 | AD103: ACCHA | AE103: 1002 | AF103: 1002 - ACCHA
N104: 7 | O104: 000002313 | P104: OCCOPATA | Q104: 02 | R104: 01 | S104: 01 | T104: 06 | U104: 0201 | V104: 000002313 - OCCOPATA | AB104: 10 | AC104: 03 | AD104: CCAPI | AE104: 1003 | AF104: 1003 - CCAPI
N105: 8 | O105: 000010067 | P105: C.M. SANTIAGO ESSALUD | Q105: 02 | R105: 01 | S105: 01 | T105: 06 | U105: 0201 | V105: 000010067 - C.M. SANTIAGO ESSALUD | AB105: 10 | AC105: 04 | AD105: COLCHA | AE105: 1004 | AF105: 1004 - COLCHA
N106: 9 | O106: 000010920 | P106: QUINTA BRIGADA DE MONTAÑA | Q106: 02 | R106: 01 | S106: 01 | T106: 06 | U106: 0201 | V106: 000010920 - QUINTA BRIGADA DE MONTAÑA | AB106: 10 | AC106: 05 | AD106: HUANOQUITE | AE106: 1005 | AF106: 1005 - HUANOQUITE
N107: 10 | O107: 000026182 | P107: MENTAL SANTIAGO | Q107: 02 | R107: 01 | S107: 01 | T107: 06 | U107: 0201 | V107: 000026182 - MENTAL SANTIAGO | AB107: 10 | AC107: 06 | AD107: OMACHA | AE107: 1006 | AF107: 1006 - OMACHA
N108: 11 | O108: 000000000 | P108: (All) | Q108: 02 | R108: 02 | U108: 0202 | V108: 000000000 - (All) | AB108: 10 | AC108: 07 | AD108: PACCARITAMBO | AE108: 1007 | AF108: 1007 - PACCARITAMBO
N109: 0 | O109: 000002302 | P109: CCORAO | Q109: 02 | R109: 02 | S109: 01 | T109: 05 | U109: 0202 | V109: 000002302 - CCORAO | AB109: 10 | AC109: 08 | AD109: PILLPINTO | AE109: 1008 | AF109: 1008 - PILLPINTO
N110: 1 | O110: 000002307 | P110: MANCO CAPAC | Q110: 02 | R110: 02 | S110: 01 | T110: 06 | U110: 0202 | V110: 000002307 - MANCO CAPAC | AB110: 10 | AC110: 09 | AD110: YAURISQUE | AE110: 1009 | AF110: 1009 - YAURISQUE
O111: 000002310 | P111: CHOCCO | Q111: 02 | R111: 02 | S111: 01 | T111: 06 | U111: 0202 | V111: 000002310 - CHOCCO | AB111: 11 | AC111: 00 | AD111: (All) | AE111: 1100 | AF111: 1100 - (All)
O112: 000002315 | P112: WANCHAQ | Q112: 02 | R112: 02 | S112: 01 | T112: 08 | U112: 0202 | V112: 000002315 - WANCHAQ | AB112: 11 | AC112: 01 | AD112: PAUCARTAMBO | AE112: 1101 | AF112: 1101 - PAUCARTAMBO
N113: 2 | O113: 000002316 | P113: TTIO | Q113: 02 | R113: 02 | S113: 01 | T113: 08 | U113: 0202 | V113: 000002316 - TTIO | AB113: 11 | AC113: 02 | AD113: CAICAY | AE113: 1102 | AF113: 1102 - CAICAY
N114: 3 | O114: 000010041 | P114: ADOLFO GUEVARA VELASCO | Q114: 02 | R114: 02 | S114: 01 | T114: 08 | U114: 0202 | V114: 000010041 - ADOLFO GUEVARA VELASCO | AB114: 11 | AC114: 03 | AD114: CHALLABAMBA | AE114: 1103 | AF114: 1103 - CHALLABAMBA
N115: 4 | O115: 000026183 | P115: METROPOLITANO | Q115: 02 | R115: 02 | S115: 01 | T115: 08 | U115: 0202 | V115: 000026183 - METROPOLITANO | AB115: 11 | AC115: 04 | AD115: COLQUEPATA | AE115: 1104 | AF115: 1104 - COLQUEPATA
N116: 5 | O116: 000030730 | P116: PATRON SANTIAGO | Q116: 02 | R116: 02 | S116: 01 | T116: 08 | U116: 0202 | V116: 000030730 - PATRON SANTIAGO | AB116: 11 | AC116: 05 | AD116: HUANCARANI | AE116: 1105 | AF116: 1105 - HUANCARANI
N117: 6 | O117: 000000000 | P117: (All) | Q117: 02 | R117: 03 | U117: 0203 | V117: 000000000 - (All) | AB117: 11 | AC117: 06 | AD117: KOSÑIPATA | AE117: 1106 | AF117: 1106 - KOSÑIPATA
N118: 7 | O118: 000002326 | P118: ANTA | Q118: 02 | R118: 03 | S118: 03 | T118: 01 | U118: 0203 | V118: 000002326 - ANTA | AB118: 12 | AC118: 00 | AD118: (All) | AE118: 1200 | AF118: 1200 - (All)
N119: 0 | O119: 000002327 | P119: CHACAN | Q119: 02 | R119: 03 | S119: 03 | T119: 01 | U119: 0203 | V119: 000002327 - CHACAN | AB119: 12 | AC119: 01 | AD119: URCOS | AE119: 1201 | AF119: 1201 - URCOS
N120: 1 | O120: 000002328 | P120: COMPONE | Q120: 02 | R120: 03 | S120: 03 | T120: 01 | U120: 0203 | V120: 000002328 - COMPONE | AB120: 12 | AC120: 02 | AD120: ANDAHUAYLILLAS | AE120: 1202 | AF120: 1202 - ANDAHUAYLILLAS
N121: 2 | O121: 000002329 | P121: CONCHACALLA | Q121: 02 | R121: 03 | S121: 03 | T121: 01 | U121: 0203 | V121: 000002329 - CONCHACALLA | AB121: 12 | AC121: 03 | AD121: CAMANTI | AE121: 1203 | AF121: 1203 - CAMANTI
N122: 3 | O122: 000002330 | P122: ANCAHUASI | Q122: 02 | R122: 03 | S122: 03 | T122: 02 | U122: 0203 | V122: 000002330 - ANCAHUASI | AB122: 12 | AC122: 04 | AD122: CCARHUAYO | AE122: 1204 | AF122: 1204 - CCARHUAYO
N123: 4 | O123: 000002331 | P123: CACHIMAYO | Q123: 02 | R123: 03 | S123: 03 | T123: 03 | U123: 0203 | V123: 000002331 - CACHIMAYO | AB123: 12 | AC123: 05 | AD123: CCATCA | AE123: 1205 | AF123: 1205 - CCATCA
N124: 5 | O124: 000002332 | P124: CHINCHAYPUJIO | Q124: 02 | R124: 03 | S124: 03 | T124: 04 | U124: 0203 | V124: 000002332 - CHINCHAYPUJIO | AB124: 12 | AC124: 06 | AD124: CUSIPATA | AE124: 1206 | AF124: 1206 - CUSIPATA
N125: 6 | O125: 000002333 | P125: HUAROCONDO | Q125: 02 | R125: 03 | S125: 03 | T125: 05 | U125: 0203 | V125: 000002333 - HUAROCONDO | AB125: 12 | AC125: 07 | AD125: HUARO | AE125: 1207 | AF125: 1207 - HUARO
N126: 7 | O126: 000002334 | P126: HUAYLLACOCHA | Q126: 02 | R126: 03 | S126: 03 | T126: 05 | U126: 0203 | V126: 000002334 - HUAYLLACOCHA | AB126: 12 | AC126: 08 | AD126: LUCRE | AE126: 1208 | AF126: 1208 - LUCRE
O127: 000002339 | P127: PUCYURA ANTA | Q127: 02 | R127: 03 | S127: 03 | T127: 08 | U127: 0203 | V127: 000002339 - PUCYURA ANTA | AB127: 12 | AC127: 09 | AD127: MARCAPATA | AE127: 1209 | AF127: 1209 - MARCAPATA
N128: 8 | O128: 000002340 | P128: ZURITE | Q128: 02 | R128: 03 | S128: 03 | T128: 09 | U128: 0203 | V128: 000002340 - ZURITE | AB128: 12 | AC128: 10 | AD128: OCONGATE | AE128: 1210 | AF128: 1210 - OCONGATE
N129: 9 | O129: 000006972 | P129: PANTIPATA | Q129: 02 | R129: 03 | S129: 03 | T129: 04 | U129: 0203 | V129: 000006972 - PANTIPATA | AB129: 12 | AC129: 11 | AD129: OROPESA | AE129: 1211 | AF129: 1211 - OROPESA
N130: 10 | O130: 000027790 | P130: MENTAL COMUNITARIO ANTA | Q130: 02 | R130: 03 | S130: 03 | T130: 01 | U130: 0203 | V130: 000027790 - MENTAL COMUNITARIO ANTA | AB130: 12 | AC130: 12 | AD130: QUIQUIJANA | AE130: 1212 | AF130: 1212 - QUIQUIJANA
O131: 000029514 | P131: ESSALUD ANTA | Q131: 02 | R131: 03 | S131: 03 | T131: 01 | U131: 0203 | V131: 000029514 - ESSALUD ANTA | AB131: 13 | AC131: 00 | AD131: (All) | AE131: 1300 | AF131: 1300 - (All)
O132: 000000000 | P132: (All) | Q132: 02 | R132: 04 | U132: 0204 | V132: 000000000 - (All) | AB132: 13 | AC132: 01 | AD132: URUBAMBA | AE132: 1301 | AF132: 1301 - URUBAMBA
O133: 000002336 | P133: LIMATAMBO | Q133: 02 | R133: 04 | S133: 03 | T133: 06 | U133: 0204 | V133: 000002336 - LIMATAMBO | AB133: 13 | AC133: 02 | AD133: CHINCHERO | AE133: 1302 | AF133: 1302 - CHINCHERO
O134: 000002337 | P134: PAMPACONGA | Q134: 02 | R134: 04 | S134: 03 | T134: 06 | U134: 0204 | V134: 000002337 - PAMPACONGA | AB134: 13 | AC134: 03 | AD134: HUAYLLABAMBA | AE134: 1303 | AF134: 1303 - HUAYLLABAMBA
O135: 000002338 | P135: MOLLEPATA | Q135: 02 | R135: 04 | S135: 03 | T135: 07 | U135: 0204 | V135: 000002338 - MOLLEPATA | AB135: 13 | AC135: 04 | AD135: MACHUPICCHU | AE135: 1304 | AF135: 1304 - MACHUPICCHU
O136: 000010761 | P136: URATARI | Q136: 02 | R136: 04 | S136: 03 | T136: 06 | U136: 0204 | V136: 000010761 - URATARI | AB136: 13 | AC136: 05 | AD136: MARAS | AE136: 1305 | AF136: 1305 - MARAS
O137: 000021061 | P137: HUAMANPATA | Q137: 02 | R137: 04 | S137: 03 | T137: 07 | U137: 0204 | V137: 000021061 - HUAMANPATA | AB137: 13 | AC137: 06 | AD137: OLLANTAYTAMBO | AE137: 1306 | AF137: 1306 - OLLANTAYTAMBO
O138: 000000000 | P138: (All) | Q138: 02 | R138: 05 | U138: 0205 | V138: 000000000 - (All) | AB138: 13 | AC138: 07 | AD138: YUCAY | AE138: =CONCATENATE(AB138,AC138) -> 1307 | AF138: 1307 - YUCAY
O139: 000002343 | P139: COYA | Q139: 02 | R139: 05 | S139: 04 | T139: 02 | U139: 0205 | V139: 000002343 - COYA | AB139: 00 | AC139: 00 | AD139: (All) | AE139: =CONCATENATE(AB139,AC139) -> 0000 | AF139: 0000 - (All)
O140: 000002344 | P140: LAMAY | Q140: 02 | R140: 05 | S140: 04 | T140: 03 | U140: 0205 | V140: 000002344 - LAMAY
O141: 000002348 | P141: PISAC | Q141: 02 | R141: 05 | S141: 04 | T141: 05 | U141: 0205 | V141: 000002348 - PISAC
O142: 000002349 | P142: CUYO CHICO | Q142: 02 | R142: 05 | S142: 04 | T142: 05 | U142: 0205 | V142: 000002349 - CUYO CHICO
O143: 000002350 | P143: CUYO GRANDE | Q143: 02 | R143: 05 | S143: 04 | T143: 05 | U143: 0205 | V143: 000002350 - CUYO GRANDE
O144: 000002351 | P144: QUELLO QUELLO | Q144: 02 | R144: 05 | S144: 04 | T144: 05 | U144: 0205 | V144: 000002351 - QUELLO QUELLO
O145: 000002352 | P145: SAN SALVADOR | Q145: 02 | R145: 05 | S145: 04 | T145: 06 | U145: 0205 | V145: 000002352 - SAN SALVADOR
O146: 000002353 | P146: TARAY | Q146: 02 | R146: 05 | S146: 04 | T146: 07 | U146: 0205 | V146: 000002353 - TARAY
O147: 000002354 | P147: HUANCALLE | Q147: 02 | R147: 05 | S147: 04 | T147: 07 | U147: 0205 | V147: 000002354 - HUANCALLE
O148: 000006970 | P148: TIRACANCHA | Q148: 02 | R148: 05 | S148: 04 | T148: 06 | U148: 0205 | V148: 000006970 - TIRACANCHA
O149: 000006975 | P149: SAYLLAFAYA | Q149: 02 | R149: 05 | S149: 04 | T149: 03 | U149: 0205 | V149: 000006975 - SAYLLAFAYA
O150: 000007145 | P150: HUAMA | Q150: 02 | R150: 05 | S150: 04 | T150: 03 | U150: =CONCATENATE(Q150,R150) -> 0205 | V150: =CONCATENATE(O150," - ",P150) -> 000007145 - HUAMA
O151: 000007146 | P151: POQUES | Q151: 02 | R151: 05 | S151: 04 | T151: 03 | U151: 0205 | V151: 000007146 - POQUES
O152: 000025368 | P152: HUARQUI | Q152: 02 | R152: 05 | S152: 04 | T152: 03 | U152: 0205 | V152: 000025368 - HUARQUI
O153: 000000000 | P153: (All) | Q153: 02 | R153: 06 | U153: 0206 | V153: 000000000 - (All)
O154: 000002341 | P154: CALCA | Q154: 02 | R154: 06 | S154: 04 | T154: 01 | U154: 0206 | V154: 000002341 - CALCA
O155: 000002342 | P155: AMPARAES | Q155: 02 | R155: 06 | S155: 04 | T155: 04 | U155: 0206 | V155: 000002342 - AMPARAES
O156: 000002345 | P156: CCACHIN | Q156: 02 | R156: 06 | S156: 04 | T156: 04 | U156: 0206 | V156: 000002345 - CCACHIN
O157: 000002346 | P157: CHOQUECANCHA | Q157: 02 | R157: 06 | S157: 04 | T157: 04 | U157: 0206 | V157: 000002346 - CHOQUECANCHA
O158: 000002347 | P158: LARES | Q158: 02 | R158: 06 | S158: 04 | T158: 04 | U158: 0206 | V158: 000002347 - LARES
O159: 000002361 | P159: SUYO | Q159: 02 | R159: 06 | S159: 04 | T159: 04 | U159: 0206 | V159: 000002361 - SUYO
O160: 000002515 | P160: PAROBAMBA | Q160: 02 | R160: 06 | S160: 11 | T160: 03 | U160: 0206 | V160: 000002515 - PAROBAMBA
O161: 000007143 | P161: OTOCANI | Q161: 02 | R161: 06 | S161: 11 | T161: 03 | U161: 0206 | V161: 000007143 - OTOCANI
O162: 000007144 | P162: PATABAMBA | Q162: 02 | R162: 06 | S162: 04 | T162: 07 | U162: 0206 | V162: 000007144 - PATABAMBA
O163: 000010069 | P163: ESSALUD CALCA | Q163: 02 | R163: 06 | S163: 04 | T163: 01 | U163: 0206 | V163: 000010069 - ESSALUD CALCA
O164: 000010759 | P164: HUARAN | Q164: 02 | R164: 06 | S164: 04 | T164: 01 | U164: 0206 | V164: 000010759 - HUARAN
O165: 000010762 | P165: ACCHA ALTA - PAMPALLACTA | Q165: 02 | R165: 06 | S165: 04 | T165: 01 | U165: 0206 | V165: 000010762 - ACCHA ALTA - PAMPALLACTA
O166: 000026273 | P166: MENTAL COMUNITARIO VIRGEN ASUNTA DE CALCA | Q166: 02 | R166: 06 | S166: 04 | T166: 01 | U166: 0206 | V166: 000026273 - MENTAL COMUNITARIO VIRGEN ASUNTA DE CALCA
O167: 000000000 | P167: (All) | Q167: 02 | R167: 07 | U167: 0207 | V167: 000000000 - (All)
O168: 000002540 | P168: URUBAMBA | Q168: 02 | R168: 07 | S168: 13 | T168: 01 | U168: 0207 | V168: 000002540 - URUBAMBA
O169: 000002541 | P169: YANAHUARA | Q169: 02 | R169: 07 | S169: 13 | T169: 01 | U169: 0207 | V169: 000002541 - YANAHUARA
O170: 000002543 | P170: CHINCHERO | Q170: 02 | R170: 07 | S170: 13 | T170: 02 | U170: 0207 | V170: 000002543 - CHINCHERO
